{"text_format":"1","workbook":"xlsx","n_sheets":31,"sheets":["Notice","Identification","Elevage","Effluents à gérer","Cultures et ilots PAC","Bilan fourrager","Synthèse","Indicateurs","Synthèse_CF","Notice_CF","Reference_effluents","Reference_cultures","Reference_animaux","Reference_divers","0PPF Céréales","0CF Céréales","0PPF Colza","0CF Colza","0PPF Maïs","0CF Maïs","0PPF Dérobée + Maïs","0CF Dérobée + Maïs","0PPF Prairies","0CF Prairies","0PPF Légumes frais","0CF Légumes frais","0PPF Légumes - industries","0CF Légumes - industries","0PPF Autres cultures","0CF Autres cultures","Rendements"],"not_rendered":{"charts":0,"images":17,"macros":1,"external_links":0,"defined_names":67,"comments":5,"pivot_tables":0},"unopened":[],"bounds":{"document_bytes":16777216,"sheet_cells":100000,"rows_first":2000,"rows_last":500,"rows_between":2000,"halvings":0,"cell_chars":16384,"cell_head_chars":4096},"cells_cut":0,"cells_raw":0,"read":"whole","date_system":"1900"}

{"sheet":"Notice","index":0,"n_rows":286,"n_cols":11,"rows_kept":286,"cut":false,"hidden":false,"merged":[[114,4,114,12],[50,4,50,12],[50,1,50,2],[156,1,156,2],[156,4,156,12],[152,5,152,12],[149,1,149,2],[149,4,149,12],[155,1,155,2],[155,4,155,12],[49,1,49,2],[154,5,154,12],[150,4,150,12],[151,4,151,12],[6,3,6,8],[67,3,67,12],[55,4,55,12],[39,4,39,12],[18,1,18,12],[27,4,27,12],[49,4,49,12],[85,3,85,12],[54,4,54,12],[76,3,76,12],[71,3,71,12],[59,1,59,12],[57,0,57,12],[53,4,53,12],[53,1,53,2],[54,1,54,2],[51,1,51,2],[51,4,51,12],[52,4,52,12],[52,1,52,2],[258,7,261,12],[260,3,260,5],[256,7,257,12],[55,1,55,3],[70,1,70,2],[70,3,70,12],[36,4,36,12],[41,4,41,12],[48,1,48,12],[38,4,38,12],[42,4,42,12],[43,4,43,12],[44,4,44,12],[41,1,41,2],[37,4,37,12],[46,0,46,12],[23,1,23,12],[24,1,24,2],[1,3,4,8],[1,10,1,12],[3,10,3,12],[5,3,5,8],[7,1,8,11],[14,0,14,12],[16,1,16,12],[17,1,17,12],[10,1,10,2],[11,1,11,2],[12,1,12,11],[11,4,11,11],[21,0,22,12],[115,4,115,12],[278,7,281,12],[86,3,86,12],[90,3,90,12],[91,3,91,12],[92,3,92,12],[88,1,88,12],[89,1,89,2],[89,3,89,12],[158,1,158,12],[276,2,280,2],[276,3,276,5],[277,3,277,5],[278,3,278,5],[279,3,279,5],[280,3,280,5],[272,7,273,12],[275,1,275,2],[159,1,159,12],[162,4,162,5],[163,4,163,5],[194,2,194,5],[195,2,195,5],[198,2,201,3],[268,7,270,12],[215,2,215,5],[128,4,128,12],[129,4,129,12],[131,4,131,12],[132,4,132,12],[133,4,133,12],[138,4,138,12],[134,4,134,12],[199,4,199,5],[198,4,198,5],[220,1,245,1],[200,4,201,4],[139,4,139,12],[140,4,140,12],[141,4,141,12],[262,1,262,2],[263,2,265,2],[263,3,263,5],[265,3,265,5],[264,3,264,5],[224,7,243,12],[153,5,153,12],[142,4,142,12],[143,4,143,12],[144,4,144,12],[145,4,145,12],[146,4,146,12],[147,4,147,12],[148,4,148,12],[32,1,32,12],[33,4,33,11],[35,1,35,12],[29,4,29,12],[30,1,30,2],[30,4,30,12],[24,4,24,12],[29,1,29,2],[25,1,25,2],[26,1,26,2],[27,1,27,2],[28,1,28,2],[25,4,25,12],[26,4,26,12],[28,4,28,12],[60,1,60,12],[62,7,62,12],[84,1,84,2],[84,3,84,12],[78,3,78,12],[78,1,78,2],[82,3,82,12],[74,1,74,2],[74,3,74,12],[72,3,72,12],[75,3,75,12],[95,4,95,12],[93,3,93,12],[94,3,94,12],[61,1,61,2],[61,3,61,12],[81,3,81,12],[67,1,67,2],[68,1,68,2],[68,3,68,12],[100,4,100,12],[97,5,97,12],[98,5,98,12],[99,5,99,12],[64,8,64,12],[63,8,63,12],[65,8,65,12],[96,5,96,12],[79,3,79,12],[80,3,80,12],[101,5,101,12],[107,4,107,12],[102,5,102,12],[103,5,103,12],[104,5,104,12],[105,5,105,12],[106,5,106,12],[108,5,108,12],[112,1,113,2],[112,4,112,12],[113,4,113,12],[109,5,109,12],[110,5,110,12],[111,5,111,12],[157,1,157,12],[161,1,162,3],[161,4,161,5],[161,7,168,12],[163,1,166,3],[164,4,166,4],[167,1,168,3],[167,4,167,5],[168,4,168,5],[272,2,273,2],[271,3,271,5],[272,3,272,5],[273,3,273,5],[268,2,271,2],[202,2,202,5],[203,2,214,3],[203,4,206,4],[207,4,210,4],[211,4,214,4],[259,3,259,5],[258,3,258,5],[253,3,253,5],[254,3,254,5],[177,4,180,4],[181,4,184,4],[197,2,197,5],[185,2,185,5],[216,2,217,3],[216,4,216,5],[199,7,204,12],[241,4,244,4],[211,7,213,12],[252,7,255,12],[244,7,247,12],[245,2,245,5],[232,2,232,5],[252,1,252,2],[219,1,219,5],[197,1,217,1],[169,7,172,12],[173,7,194,12],[170,1,170,5],[171,1,171,5],[190,4,193,4],[173,1,195,1],[173,2,184,3],[186,4,189,4],[173,4,176,4],[186,2,193,3],[248,7,248,12],[206,7,209,12],[233,2,244,3],[233,4,236,4],[237,4,240,4],[246,1,246,5],[248,1,248,5],[218,7,223,12],[224,4,227,4],[217,4,217,5],[267,1,267,2],[268,3,268,5],[269,3,269,5],[270,3,270,5],[220,2,231,3],[220,4,223,4],[250,1,250,12],[253,2,254,2],[257,3,257,5],[257,2,260,2],[135,4,135,12],[116,4,117,12],[119,4,119,12],[120,4,120,12],[123,4,123,12],[124,4,124,12],[125,4,125,12],[126,4,126,12],[130,4,130,12],[121,4,121,12],[284,0,284,12],[285,3,285,12],[137,4,137,12],[122,4,122,12],[136,4,136,12],[262,7,264,12],[256,1,256,2],[195,7,198,12],[228,4,231,4],[216,7,217,12]]}
[]
[null,null,null,"EQUI-FERTI (®)\n2013/2014"]
[]
[null,null,null,null,null,null,null,null,null,null,"Version n° 1f5 du 15/04/2014"]
[]
[null,null,null,"Logiciel de calcul du Plan Prévisionnel de Fumure conforme à l'arrêté préfectoral du 5 juillet 2013"]
[null,null,null,"(®) Marque déposée à l'INPI - 2013"]
[null,"Notice d'utilisation"]
[]
[]
[null,"ATTENTION :",null,null,"Assurez-vous que les macros sont bien activées."]
[null,"Pour le vérifier :",null,null,"Dans le menu général d'Excel, sélectionner «Outils» / «Macro» / «Sécurité…» choisir l'option \"Niveau de sécurité moyen\""]
[null,"Le logiciel a été développé sous Microsoft Excel 2003. Il est compatible avec des versions plus récentes  (2007 et 2010),\nmais il n'est pas compatible avec la version 2000, ni avec les suites «Open Office» et «Libre Office»."]
[]
["Présentation générale :"]
[]
[null,"Cet outil permet d'établir un Plan Prévionnel de Fumure (PPF) conforme aux préconisations et directives de l'arrêté préfectoral du 5 juillet 2013,"]
[null,"établissant le référentiel régional de mise en oeuvre de l'équilibre de la fertilisation azotée pour la région Bretagne."]
[null,"Il permet également de valider la concordance entre les effluents issus de l'élevage de l'exploitation avec les quantités de fertilisants mobilisées dans le plan prévisionnel de fumure. "]
[]
[]
["Ergonomie :"]
[]
["*","Pour les raison indiquées ci-dessus, il est conseillé de saisir les différentes feuilles dans l'ordre de présentation :"]
[null," * Elevage : ",null,null,"Saisie du cheptel de l'exploitaiton"]
[null," * Effluents à gérer :",null,null,"Etablissement de la liste des effluents mobilisés dans le PPF, en tenant compte des éventuels traitements, imports et/ou exports"]
[null," * Cultures et ilots :",null,null,"Saisie des parcelles culturales à partir des îlots PAC, ainsi que des cultures prévues avec l'objectif de rendement de chacune d'elles"]
[null," * Bilan fourrager : ",null,null,"Vérification de l'équilibre du bilan fourrager "]
[null," * PPF xxx : ",null,null,"Saisie du PPF pour chaque parcelle culturale. Les PPF sont regroupés selon les grilles appliquées pour chaque culture, conformément aux différentes annexes de l'arrêté préfectoral"]
[null," * Synthèse :",null,null,"Cette feuille affiche un récaptitulatif de l'équilibre du bilan entre les effluents utilisés dans le PPF et ceux disponibles sur l'exploitation."]
[null," * Indicateurs :",null,null,"Cette feuille calcul un certain nombre d'indicateurs environnementaux . Pour cela, il est nécessaire de préciser si certaines parcelles de l'exploitation sont concernées par un zonage particulier."]
[]
["*","Les principes généraux d'ergonomie sont les suivants :"]
[null,null,null,null,"Les zones de saisie sont blanches. Elles peuvent disposer de listes déroulantes qui apparaissent lorsqu'on place le curseur dessus ou présenter des «Info-bulles» contenant une aide à la saisie"]
[]
[null," Toutes les autres cellules sont verrouillées : leur contenu ne peut être modifié en cliquant dessus."]
[null,null,null,null,"Légende standard des tableaux"]
[null,null,null,null,"Légende des tableaux dépendant du contexte (ex. : nom des îlots, libellé des cultures, …)"]
[null,null,null,null,"Données indicatives, pour information. Elles permettent de s'assurer que les données correspondantes qui ont été saisies sont proches des standards "]
[null,null,null,null,"Cellule contenant un calcul. Ces cellules peuvent faire l'objet d'un contrôle de saisie ou de calcul qui en modifie la couleur"]
[]
[null," Contrôles",null,null,"Le logiciel contient des contrôles de saisie ou de calcul qui se matérialisent par un changement de couleur de la cellule concernée :"]
[null,null,null,null,"Le calcul ou l'indicateur est conforme aux référentiels de l'arrêté préfectoral"]
[null,null,null,null,"Le calcul ou l'indicateur présente un écart considéré comme faible par rapport aux référentiels de l'arrêté. Cet écart est acceptable et n'est pas bloquant. Il doit cependant pouvoir être justifié."]
[null,null,null,null,"Le calcul ou l'indicateur présente un écart considéré comme important par rapport aux référentiels de l'arrêté. CET ECART N'EST PAS ACCEPTABLE et souvent bloquant en cours de saisie."]
[]
["Contraintes techniques :"]
[]
["*","Le logiciel a été développé sous Microsoft Excel 2003. Il est compatible avec des versions plus récentes  (2007 et 2010),\n                                              mais il n'est pas compatible avec la version 2000."]
["*","Blocages :",null,null,"En cas de plantage avec affichage d'un mesage d'erreur, il est possible que les calculs et contrôles ne s'exécutent plus. Dans ce cas, il faut cliquer sur le bouton en haut de chaque page « Cliquer en cas de plantage » pour relancer les calculs."]
["*"," Limites techniques :",null,null,"Le nombre total de parcelles culturales est limité à 99.\nLe nombre de parcelles par grille de culture est limité à 40, sauf pour les prairies où il est limité à 99. "]
["*","Impressions :",null,null,"Il est possible d'imprimer différents documents à l'aide des boutons présents sur la présente feuille. En cliquant sur ces boutions, le logiciel présente un aprecu des documents à imprimer. Il est alors possible de modifier éventuellement, si nécessaire, la mise en page.\nLes documents proposés sont les suivants : "]
[null," - Notice d'utilisation : ",null,null,"Ce bouton permet d'imprimer la présente notice d'utilisation"]
[null," - Volet recapitulatif :",null,null,"Cer bouton permet d'imprimer les feuilles de présentation générale et de synthèse : « Idenitifcation», «Elevage», «Effluents à gérer», «Cultures et îlots PAC», «Bilan fourrager», et «Synthèse»."]
[null," - Volet PPF : ",null,null,"Ce bouton permet d'imprimer l'ensemble des feuilles de calcul du PPF de chaque parcelle."]
[null," - Objectifs de rendement : ",null,null,"Ce bouton permet d'imprimer le tableau des objectifs de rendements. Ce tableau n'est disponible qu'en impression papier, il n'est pas visible dans le logiciel.\nCe tableau qui est destiné à présenter l'ensemble des potentiels de rendement de chaque parcelle  pour chaque culture, est renseigné par les valeurs de la campagne en cours, qui sont saisies dans la feuille «Cultures et îlots PAC». Ce tableau peut être complété à la main, pour les autres cultures potentiellement pratiquées sur chaque parcelle."]
[]
["Conseils d'utlisation :"]
[]
["*","Organisation générale du logiciel :"]
[null,"Le logiciel présente les feuilles ou onglets suivants :"]
[null,"* Notice :",null,"Cette feuille présente la notice d'utilsation du logiciel.\nElle comporte également le menu de gestion qui donne accès aux impressions et à l'importation de données :"]
[null,null,null,null,null,null,null,"\n\nCliquer pour accéder au menu ci-dessous\n\nModule d'administration du logiciel (accès avec mot de passe)"]
[null,null,null,null,null,null,null,null,"\nLe menu des outils a cet aspect lorsque le fichier est vierge\n\n\nCliquer pour accéder au menu suivant.\nATTENTION :  Ce menu n'est visible que si le fichier est vierge de toute saisie, car l'import de données  écrase toute information déja saisie.\n\nCliquer pour d'afficher les tableaux de référence du GREN qui servent de base aux calculs\n\nCliquer pour imprimer ces tableaux\n\n\nCliquer pour imprimer la présente notice"]
[null,null,null,null,null,null,null,null,"Il est possible de pré-remplir le fichier avec des données qui sont déja saisies dans un fichier EQUI-FERTI existant.\n\n- Les données peuvent provenir d'une version antérieure du logiciel EQUI-FERTI: \n--> Dans ce cas, toutes les données sont transférées.\n--> Le fichier prend le nom du fichier d'origine avec «_maj» ajouté à la fin.\n\n - Les données peuvent provenir du PPF de la campagne précédente, établie sur EQUI-FERTI : \n--> Dans ce cas, seuls les effectifs, les effluents gérés et le parcellaire cultural seront transférées.\n--> Le nom du fichier est inchagné"]
[null,null,null,null,null,null,null,null,"\nLe menu des outils a cet aspect lorsque le fichier est renseigné\n\nCliquer pour générer le cahier de fertilisation à partir du PPF.\nATTENTION : Il faut être certain d'avoir terminé la saisie du PPF, car cette action fige le fichier «PPF» (il n'est plus possible de modifier les données qu'il contient) et le renomme en ajoutant «_ppf» au nom du fichier.\n\nCliquer pour d'afficher les tableaux de référence du GREN qui servent de base aux calculs\n\nCliquer pour imprimer ces tableaux\n\nCliquer pour imprimer la présente notice\n\nCliquer pour imprimer les feuilles de description de l'exploitation (cheptel, gestion des effluents, parcellaire, bilan fourrager, synthèse et indicateurs environnementaux.\n\nCliquer pour imprimer les feuilles de détail du PPF\n\nCliquer pour imprimer le tableau des objectifs de rendements"]
[]
[null,"* Identification :",null,"Cette feuille permet de saisir les coordonnées de l'exploitation. Ces données figurent en tête de l'édition papier du tableau.\nCertaines de ces informations peuvent servir de référence pour le calcul de données techniques, par exemple, le Reliquat Sortie d'Hiver (RSH) par défaut dépend de la localisation géographique de l'exploitation. Le code postal de l'adresse permet de pré positionner la bonne valeur."]
[null,"* Elevage :",null,"Cette feuille permet de saisir le cheptel de l'exploitation. Cette saisie va permettre le calcul de la quantité d'effluents produite par l'élévage, et donc la quantité d'azote disponible pour la fertilisation des cultures.\nLa saisie des effectifs est répartie en 4 blocs selon les catégories d'animaux. Pour chaque catégorie, les données à fournir sont les suivantes :"]
[]
[null," - Bovins : ",null,"Production laitière (en litres) : Cette donnée permet le calcul du nombre d'Unité Gros Bovins (UGB) utile à l'évaluation du bilan fourrager."]
[null,null,null,"Effectifs : Nombre d'animaux"]
[null,null,null,"Nombre de mois de présence au pâturage : Cette information permet d'évaluer  la part maîtrisable de la production d'azote"]
[]
[null," - Volailles : ",null,"Catégorie d'animaux produits : Elle indique l'espèce et la catégorie d'animaux produits (ex.: poulet standard) "]
[null,null,null,"Type de production : Permet de préciser une qualité particulière de la production (ex.: Label, Bio,…)"]
[null,null,null,"Nombre d'animaux : Selon la catégorie d'animaux, l'unité (colonne précedente) est précisée. Généralement il s'agit du nombre d'animaux produits, mais dans certains cas, il s'agit du nombre d'animaux présents. Dans ce cas il sera nécessaire d'indiquer le nombre de bandes par an (colonne suivante).  "]
[]
[null," - Porcins :",null,"Catégorie d'animaux produits ou élevés "]
[null,null,null,"Alimentation : Standard ou biphasée"]
[null,null,null,"Type de batiment : Permet de préciser le type de litière et donc du type d'effluent produit"]
[null,null,null,"Effectifs : Nombre d'animaux"]
[null,null,null,"Plein-air O/N : Cette information permet d'évaluer la part maîtrisable de l'azote produit"]
[]
[null," - Autres productions :",null,"Catégorie et/ou espèce d'animaux"]
[null,null,null,"Effectifs : Nombre d'animaux"]
[null,null,null,"Mois de présence au pâturage : Cette information permet d'évaluer la part maîtrisable de la production d'azote"]
[]
[null,"NB : dans la feuille \"élevage\", les colonnes de droite indiquent les quantités de phospore produites. Ces données ne sont pas utlisées dans la suite du logiciel et sont fournies à titre d'informations et peuvent servir à s'assurer de l'équilibre de la fertilisation vis à vis de cet élément."]
[null,"* Effluents à gérer :",null,"Cette feuille permet de déterminer à partir des effluents issus de l'élevage, quels sont les produits à épandre sur les cultures et les quantités disponibles."]
[null,null,null," - Le premier tableau permet de mettre en correspondance les effluents produits par l'élevage ainsi que les quantités constatées, avec la quantité d'azote produite par les animaux selon les normes CORPEN. L'équilibre est vérifié pour chaque catégorie d'animaux ainsi qu'au niveau global de l'exploitation."]
[null,null,null," - Le deuxième tableau permet d'indiquer, lorsqu'un processus de compostage ou de traitement est appliqué à certains effluents de l'élevage, quelles sont les quantités traitées et quels sont les produits récupérés. L'équilibre entre la quantité d'azote en entrée de traitement / compostage et la quantité en sortie est également vérifié. Comme dans le tableau précédent, si l'écart au niveau de ce bilan est considéré comme trop important, les chiffres sont soulignés en rouge."]
[null,null,null," - Les deux tableaux suivants permettent de saisir les éventuels echanges avec des tiers, en import ou en export. Les produits exportés ne peuvent être que des produits issus de l'exploitation, les produits importés vont apparaître dans le tableau récapitulatif des effluents à épandre."]
[null,null,null," - Le dernier tableau récapitule le disponible des différents effluents ou produits à épandre. Il ne prend pas en compte d'éventuels mouvements de stock qui pourraient modifier la quantité disponible sur la campagne culturale. Ce tableau va permettre d'indiquer la quanité disponible de chaque produit, lors de l'établissement des plans de fumure des cultures.  "]
[null,null,null,"Pour chacun des tableaux, les informations suivantes sont attendues :"]
[null,null,null,null," - Effluents produits sur l'exploitation :"]
[null,null,null,null,null,"catégorie d'animaux générant ce produit : Cette donnée permet de cibler les effluents issus de l'élevage. Cette information est également utile à la vérification de la cohérence entre l'azote géré sur l'exploitation, avec les quantité estimées produites par les animaux."]
[null,null,null,null,null,"Type d'effluent : Nature du produit issu de l'élevage"]
[null,null,null,null,null,"Tonnage / volume (t ou m3) : Quantité d'effluent produit par l'élevage en tonnes ou mètres cube"]
[null,null,null,null,null,"Teneur en azote (kg N / t ou m3) : Teneur en azote de l'effluent concerné, en kilogrammes d'azote par tonne ou mètre cube. La colonne de droite indique, pour information, la teneur standard en azote de ce type d'effluent."]
[null,null,null,null," - Azote éliminé par traitement et/ou compostage :"]
[null,null,null,null,null,"Effluents issus de l'elevage soumis à traitement ou compostage : Saisir le ou les effluents qui vont être soumis à un traitement  ou un compostage. Ne sont pris en compte que des effluents issus de l'élevage. Si les effluent importés sont traités, on ne saisira en import que le résultat (type de produit, quantité et teneur an azote) de ce traitement;"]
[null,null,null,null,null,"Quantité à traiter : Quantité de l'effluent concerné en t ou m3"]
[null,null,null,null,null,"Réduction d'azote attendue : Le traitement  ou compostage amène une réduction de la quantité d'azote. La quantité à saisir est la réduction globale apportée par le traitement en kg d'azote."]
[null,null,null,null,null,"Effluent produit : Indiquer le type de produit issu du traitement ou compostage.\nSi plusieurs sous-produits résultent d'un même traitement, il suffit de saisir sur la ligne suivante un nouveau sous-produit, sans resaisir l'effluent traité en entrée. Dans ce cas la question suivante sera posée pour confirmation :\n         S'agit-il d'un autre sous-produit du même traitement que la ligne précédente?\ndans l'affirmative, le nom du produit en entrée sera dupliqué, mais pas la quantité traitée (la cellule sera grisée) "]
[null,null,null,null,null,"Quantité (t ou m3) : Quantité de l'effluent produit en t ou m3"]
[null,null,null,null,null,"Teneur en azote  (kg N /t ou m3) : teneur en azote de l'effluent produit en kg d'azote par t ou m3"]
[null,null,null,null," - Exports et Imports"]
[null,null,null,null,null,"Nom du tiers :  Nom du destinataire dans le cas de l'export du produit, ou nom du fournisseur, dans le cas de l'import d'un produit"]
[null,null,null,null,null,"type d'effluent : Qui fait l'objet de l'import ou l'export"]
[null,null,null,null,null,"Quantité transférée / importée : en t ou m3"]
[null,null,null,null,null,"teneur Azote (kg N /t ou m3) : Concerne les produits importés et permet donc de calculer les quantités d'azote apportées par l'épandage de ce produit"]
[null,"* Cultures et îlots PAC:",null,null,"Cette feuille permet de saisir les caractéristiques des parcelles culturales. Cette saisie s'effectue en 3 étapes :\n"]
[null,null,null,null,"   1 -  Saisie du nombre total d'îlots PAC : Cette saisie va créer le tableau de saisie de chacun des îlots\n\n   2 -  Saisie de chacun des îlots PAC : Cette saisie va créer le tableau de saisie des parcelles culturales\n      Pour chaque îlot, les saisies suivantes sont obligatoires :\n          * Numéro de l'îlot,\n          * Surface de l'îlot,\n          * Nombre de parcelles culturales sur cet îlot\n\n   3 - Saisie de chacunes des parcelles culturales"]
[null,null," - Limites techniques",null,"Le nombre de parcelles culturales est limité à 99.\nLe nombre de parcelles par grille de culture est limité à 40, sauf pour les prairies ou il est limité à 99. "]
[null,null,null,null,"A la sortie de cette feuille, il ya génération des feuilles de calcul du PPF pour chaque parcelle. Les parcelles sont regroupées, en fonction de la culture,  selon des grilles de calcul qui sont définies dans l'arrêté préfectoral. Les feuilles de calcul sont nommées «PPF »+ nom de la grille (ex.: «PPF Cérérales», ou «PPF Dérobées + maïs»).\nCette opération est exécutée à chaque sortie de la feuille «Cultures et îlots PAC», de sorte que si une culture est modifiée, cette modification est répercutée sur la feuille PPF correspondante.\nDe même, si le nombre de parcelles est diminué (voir ci-dessus), les feuilles PPF seront corrigées voir supprimées si une culture n'apparait plus dans le tableau «Plan cultural»."]
[null,null," - Nombre d'îlots PAC",null,"La saisie du nombre d'îlots va générer le tableau de saisie des îlots.\nSi après saisie d'un certain nombre d'îlots, ce nombre est augmenté, de nouvelles lignes seront ajoutées au tableau des îlots.\nSi le nombre d'îlots est diminué, les dernière lignes seront supprimées même si des données ont été saisies. Dans ce cas un message d'avertissment indiquera le nombre de lignes qui seront supprimées."]
[]
[null,null," - Tableau des îlots PAC"]
[null,null,null,null,"Pour chaque îlot les données suivantes sont attendues :"]
[null,null,null,null,"Nom de l'îlot : Cette information est facultative"]
[null,null,null,null,"Numéro de l'îlot : Il s'agit du numéro PAC de l'îlot. Cette information est obligatoire car elle fait partie de l'identifiant de chaque parcelle culturale"]
[null,null,null,null,"Surface totale :  Il s'agit de la surface de l'îlot. Cette information est obligatoire car un contrôle de cohérence vérifie que la surface de l'îlot est égale à la somme des SAU de chaque parcelle."]
[null,null,null,null,"Nombre de parcelles culturales : La saisie de cette information est obligatoire car elle va permettre la génération des lignes de saisie de chaque parcelle."]
[null,null,null,null,"Chaque ligne du tableau des parcelles culturales va être pré-renseignée par :\n   - Le nom de l'îlot\n   - Le numéro de l'îlot\n   - L'identifiant de la parcelle qui est composé de la façon suivante : \"n° îlot\"-\"n° ordre\"\n       Ex. : la 1ère parcelle de l'îlot 3 a pour identifiant : 3-1\n "]
[null,null,null,null,"Si le nombre de parcelles d'un îlot est augmenté, il sera ajouté des lignes suplémentaires dans la tableau, en respectant l'ordre croissant des n° de parcelles."]
[null,null,null,null,"Si le nombre de parcelles d'un îlot est diminué, les dernières lignes seront supprimées, même si celles-ci contiennnent des données. Dans ce cas, un message d'avertissement indiquera le nombre de lignes qui seront supprimées."]
[null,null," - Plan cultural"]
[null,null,null,null,"Ce tableau permet la saisie de chaque parcelle culturale. Pour chaque parcelle culturale, il ne doit y avoir qu'une seule culture  ( les informations sur une dérobée précédant cette culture pourront être saisies sur la même ligne)."]
[null,null,null,null,"Les informations saisies dans ce tableau vont permettre de générer automatiquement les feuilles de saisie du PPF pour chaque parcelle culturale, en appliquant les grilles de calcul définies dans l'arrêté préfectoral."]
[null,null,null,null,"Ces information vont également permettre d'établir le tableau des «Potentiels de rendements des parcelles de l'exploitation» évoqué en annexe 12 de l'arrêté préfectoral."]
[null,null,null,null,"Pour chaque parcelle culturale, les données suivantes sont attendues :"]
[null,null,null,null," 1 - Caractéristiques de la parcelle culturale : "]
[null,null,null,null,"SAU ( Parcelle culturale ) : en ha. La somme des SAU des parcelles culturales d'un îlot doit correspondre à la surface totale de l'îlot"]
[null,null,null,null,"SPE ( Parcelle culturale ) : Surface potentiellement épandable de la parcelle en ha.\n Cette information doit être renseignée, car lorsqu'elle est nulle, il n'est pas possible d'y épandre des matières organiques"]
[null,null,null,null,"SNE ( Parcelle culturale ) : Surface non épandage de la parcelle en ha"]
[null,null,null,null,"Type de sol ( Parcelle culturale) : Permet d'évaluer le potentiel de production de la parcelle, en prenant en compte le caractère hydromorphe ou non du sol. Cette information figure dans le tableau des «Potentiels de rendement des parcelles de l'exploitation» "]
[null,null,null,null,"Profondeur ( Parcelle culturale ) : Complète, avec le type de sol, l'évaluation du potentiel de production de la parcelle. Cette information figure dans le tableau des «Potentiels de rendement des parcelles de l'exploitation» "]
[null,null,null,null," 2 - Culture prévue : "]
[null,null,null,null,"Famille culturale : Permet de préciser la famille de la culture prévue, afin de limiter la longueur de la liste de choix. Si la famille n'est pas saisie, la liste des cultures est vide."]
[null,null,null,null,"Culture : Dénomination de la culture prévue"]
[null,null,null,null,"Objectif de rendement : cette information est obligatoire car elle intervient dans le calcul des besoins de la culture. L'unité de rendement (par ha) est indiquée dans la colonne précédente, et la colonne suivante indique, pour information, le rendement moyen de cette culture dans la région (données statistiques sur les 10 dernières années)."]
[null,null,null,null,"Pailles ou cannes exportées (oui/Non) : Pour certaines cultures, les céréales notamment, il est important de préciser si les pailles (ou cannes) sont exportées ou enfouies, car celles-ci ont un impact sur la quantité d'azote exportée par la culture. Cette information est donc prise en compte dans le calcul de la Balance Globale Azotée (BGA) qui apparait dans la feuille de synthèse. "]
[null,null,null,null," 3 - Culture dérobée : "]
[null,null,null,null,"Certaines cultures peuvent être précédées d'une dérobée, notamment les fourrages de printemps ou les maïs. L'état de développement de cette dérobée a un impact sur le calcul de la dose de fertilisants à apporter à la culture. \nSi une culture dérobée a été mise en place avant la culture prévue, il faut saisir les informations suivantes :"]
[null,null,null,null,"Date de semis ( de la dérobée) : Cette information permet d'évaluer le niveau de développement végétatif, et donc la quantité d'azote déjà prélevée sur la parcelle."]
[null,null,null,null,"Objectif de rendement ( de la dérobée) : Les cultures dérobées interviennent dans le calcul du bilan fourrager. Il est donc nécessaire de connaître l'objectif de rendement de cette culture. Le rendement moyen de cette culture dans la région (données statistiques sur les 10 dernières années) est donné pour information."]
[null,null,null,null," 4 - Deuxième culture sur la parcelle : "]
[null,null,null,null,"En dehors du cas des dérobées évoquées ci-dessus, il est possible qu'une 2ème culture soit prévue sur la parcelle. C'est souvent le cas pour les productions légumières.\nDans ce cas il faut répondre «Oui» à la dernière colonne. Cette réponse génère une 2ème ligne pour la même parcelle qui va permettre de saisir la culture en question. Cette nouvelle ligne portera un numéro de parcelle «bis», les cumuls de surfaces ne seront pas modifiés, mais il sera possible de saisir le PPF correspondant.\n"]
[null,"* Bilan fourrager :",null,null,"Cette feuille permet de vérifier deux équilibres : \n - L'équilibre du bilan fourrager : Besoins des herbivores == Production fourragère.\n - L'équilibre entre le nombre global de jours pâturés ( temps de pâturage X nb d'UGB) et le potentiel de production des surfaces pâturées.\nLe respect de ces équilibres est matérialisé par la couleur des écarts (voir chapitre ergonomie).\nLa plupart des informations sont reprises dans les feuilles «Elevage» et «Cultures et îlots PAC», toutefois dans le calcul du bilan fourrager il y a lieu d'intégrer les éventuels imports ou exports de fourrages, notamment si le bilan global est en déséquilibre : excédentaire ou déficitaire.\n"]
[]
[null,null,null,null," - Tableau des imports et exports de fourrages"]
[null,null,null,null,null,"Les données suivantes sont attendues : "]
[null,null,null,null,null,"Produits : Dénomination du fourrage qui est importé (tableau des imports ou achats en haut) ou exporté (tableau des exports ou ventes)"]
[null,null,null,null,null,"Tonnes de MS : Quantité totale du produit concerné, évaluée en tonnes de matière sèche (MS)"]
[null,"* Synthèse :",null,null,"Cette feuille récapitule les informations sur :\n - La quantité d'effluents à épandre, avec un tableau des effluents disponibles identiques à celui de la feuille «Effluents à gérer»,\n - L'«Assolement global», avec un tableau qui indique pour chaque culture les quantités de fertilisants apportées.\nLa ligne de total de ce dernier tableau permet de vérifier si la consommation de chacun des eflluents est conforme aux quantités disponibles.\n"]
[null,"* Indicateurs :",null,null,"Cette feuille porte sur les indicateurs environnementaux. Il est donc nécessaire de préciser si des parcelles sont conernées par un zonage particulier.\nun premier tableau permet de saisir cette information. Si au moins une parcelles est concernée, un tableau récapitulatif des parcelles permet de saisir quelles sont les parcelles concernées.\n\nIl est ensuite nécessaire de cliquer sur le bouton de recalcul  pour mettre \nà jour les différents indicateurs\n"]
["*","Feuilles de saisie des Plans Prévisionnels de Fumure :"]
[null,"La légende occupe les colonnes de gauche qui sont figées. Chaque colonne de droite correspond à une parcelle culturale.\nLes feuilles de saisie des PPF sont disposées selon une trame commune qui reprend les éléments suivants :\n"]
[]
[]
[null,"Ilot",null,null,"Nom",null,null,"Identification de la parcelle et de la culture : \nLes informations de ce blocs proviennent de la feuille «Cultures et îlots PAC». Elle ne sont pas modifiables directement dans la feuille PPF.\nSi la SPE est nulle, elle s'affiche en orange, et la saisie d'apports organiques est verrouillée."]
[null,null,null,null,"Numéro"]
[null,"Parcelle culturale",null,null,"N° parcelle"]
[null,null,null,null,"Surfaces","SAU"]
[null,null,null,null,null,"SPE"]
[null,null,null,null,null,"SNE"]
[null,"Culture",null,null,"Intitulé"]
[null,null,null,null,"Objectif de rendement"]
[null,null,null,null,null,null,null,"Pour certaines cultures un quantité d'azote forfaitaire est ajoutée aux besoins strictes de la culture. Elle correspond à la partie non valorisée, en fin de culture, de l'azote du sol."]
[null,"Azote non valorisable (forfait kg N/ha)"]
[null,"Besoins de la culture"]
[]
[null,"Apports au semis","Apports de matières organiques \n(au semis)",null,"Apport de matières organiques","Type",null,"Apports de fertilisants au semis :\nLes informations de ce bloc concernent les apports au semis de la culture ou de la dérobée qui précède la culture. En général, ces apports ont été faits avant l'établissement du PPF et font l'objet d'un calcul particulier.\nCes apports peuvent bien sûr être fractionnés : 3 apports possibles pour les matières organiques et 2 pour les apports minéraux. Si ce nombre n'est pas suffisant, il est possible de grouper sur une même ligne, deux apports qui concerneraient des fertilisants identiques à des dates rapprochées."]
[null,null,null,null,null,"date d'apport"]
[null,null,null,null,null,"Quantité  / ha"]
[null,null,null,null,null,"Valeur N (kg/ha)"]
[null,null,null,null,"Apport de matières organiques","Type"]
[null,null,null,null,null,"date d'apport"]
[null,null,null,null,null,"Quantité  / ha"]
[null,null,null,null,null,"Valeur N (kg/ha)"]
[null,null,null,null,"Apport de matières organiques","Type"]
[null,null,null,null,null,"date d'apport"]
[null,null,null,null,null,"Quantité  / ha"]
[null,null,null,null,null,"Valeur N (kg/ha)"]
[null,null,"N efficace total des Matières organiques au semis (kg N/ha)"]
[null,null,"Apport N minéral prévisionnel (au semis)",null,"Apport d'azote minéral","Type"]
[null,null,null,null,null,"date d'apport"]
[null,null,null,null,null,"Quantité  / ha"]
[null,null,null,null,null,"teneur en N (%)"]
[null,null,null,null,"Apport d'azote minéral","Type"]
[null,null,null,null,null,"date d'apport"]
[null,null,null,null,null,"Quantité  / ha"]
[null,null,null,null,null,"teneur en N (%)"]
[null,null,"Total apport N minéral(kg/ha)"]
[null,null,"Azote déjà prélevé (Nabs)",null,null,null,null,"Reliquat sortie d'Hiver (RSH) :  Le RSH est valorisé par défaut à une valeur forfaitaire indiquée dans l'arrêté préfectoral. Il vous est possible de modifier cette valeur, notamment si vous disposez d'une mesure réalisée sur la parcelle."]
[]
[null,"Restitutions du sol","Reliquat sortie d'hiver (RSH)"]
[null,null,"Précédent cultural",null,"CIPAN"]
[null,null,null,null,"Culture précédente",null,null,"Restitutions du sol :\nLes informations de ce bloc concernent les restitutions d'azote par le sol, en fonction du ou des précedants culturaux, des apports de matières organiques les années précédentes, du système global de cultures sur la parcelle, ainsi que des restitutions propres au sol (matière organiques, ...). Ces restitutions viennent en déduction des doses d'azote à apporter sur la parcelle."]
[null,null,null,null,"Si prairie","Age"]
[null,null,null,null,null,"Type d'exploit."]
[null,null,"Effets des précédents"]
[null,null,"Apports antérieurs de matières organiques\n(Combinaisons possibles\n sur 3 ans)",null,"Apport 1","Type"]
[null,null,null,null,null,"Fréquence"]
[null,null,null,null,null,"Quantité  / ha"]
[null,null,null,null,null,"Valeur N (kg/ha)",null,"Précédent cultural : Indiquez s'il s'agit d'une CIPAN en cochant \"Oui\", sinon indiquer la culture présente l'année précédente. S'il s'agit d'une prairie, vous devez préciser l'age de la prairie à son retournement, ainsi que son mode d'exploitation."]
[null,null,null,null,"Apport 2","Type"]
[null,null,null,null,null,"Fréquence"]
[null,null,null,null,null,"Quantité  / ha"]
[null,null,null,null,null,"Valeur N (kg/ha)"]
[null,null,null,null,"Apport 3","Type",null,"Apports antérieurs : Indiquez le type, la teneur en azote et la fréquence d'épandage des apports de matières organiques sur cette parcelle. Il est possible de saisir 3 types d'apports différents."]
[null,null,null,null,null,"Fréquence"]
[null,null,null,null,null,"Quantité  / ha"]
[null,null,null,null,null,"Valeur N (kg/ha)"]
[null,null,"Total contribution apports organiques antérieurs (kgN/ha)"]
[null,null,"Fournitures par le sol",null,"Système de cultures",null,null,"Système de cultures : Permet d'évaluer la contribution de l'humus du sol."]
[null,null,null,null,"Mh du sol"]
[null,null,null,null,null,null,null,"La dose est la quantité d'azote à apporter sur la parcelle, exprimée en kilogrammes par hectare :\nElle tient compte des besoins de la culture, des restitutions d'azote par le sol, et des éventuels apports antérieurs. Cette dose est un maximum qu'il ne faut pas dépasser.\nSi cette dose est nulle, il n'est pas possible de saisir des apports azotés."]
[null,"Dose à apporter (kg N/ha)"]
[null,"Apports prévisionnels sur la culture","Apports prévisionnel de matières organiques",null,"Apport 1","Type"]
[null,null,null,null,null,"date d'apport"]
[null,null,null,null,null,"Quantité  / ha"]
[null,null,null,null,null,"Valeur N (kg/ha)"]
[null,null,null,null,"Apport 2","Type",null,"Apports prévisionnels sur la culture :\nLa somme des apports doit correspondre à la «dose à apporter», sans la dépasser.\nCes apports concernent les apports de matières organiques et dans ce cas ils sont débités des effluents disponibles sur l'exploitation (feuilles précédentes), mais également les apports minéraux.\nCes apports peuvent bien sûr être fractionnés : 3 apports possibles pour les matières organiques et 2 ou 3 pour les apports minéraux. Si ce nombre n'est pas suffisant, il est possible de grouper sur une même ligne, deux apports qui concerneraient des fertilisants identiques à des dates rapprochées."]
[null,null,null,null,null,"date d'apport"]
[null,null,null,null,null,"Quantité  / ha"]
[null,null,null,null,null,"Valeur N (kg/ha)"]
[null,null,null,null,"Apport 3","Type"]
[null,null,null,null,null,"date d'apport"]
[null,null,null,null,null,"Quantité  / ha"]
[null,null,null,null,null,"Valeur N (kg/ha)"]
[null,null,"N efficace total des Matières organiques"]
[null,null,"Apport N minéral prévisionnel",null,"Apport 1","Type"]
[null,null,null,null,null,"date d'apport"]
[null,null,null,null,null,"Quantité / ha"]
[null,null,null,null,null,"teneur en azote (%)"]
[null,null,null,null,"Apport 2","Type"]
[null,null,null,null,null,"date d'apport"]
[null,null,null,null,null,"Quantité / ha"]
[null,null,null,null,null,"teneur en azote (%)"]
[null,null,null,null,"Apport 3","Type"]
[null,null,null,null,null,"date d'apport"]
[null,null,null,null,null,"Quantité / ha"]
[null,null,null,null,null,"teneur en azote (%)",null,"Ecart entre l'azote apporté sur la parcelle et la dose calculée :\nCet écart apparaît en vert s'il est faible. Il apparaît en rouge en cas d'excédent et en orange en cas de déficit non négligeable."]
[null,null,"Apport total N minéral"]
[null,"Ecart entre besoins et fertilisation (kg N/ha)"]
[]
[null,"Culture suivante",null,null,null,null,null,"Culture prévue sur la parcelle pour la campagne suivante."]
[]
[null,"les grilles de calcul peuvent en outre, nécessiter la saisie de données spécifques :"]
[]
[null,"* Dérobées + maïs :",null,null,null,null,null,"Le niveau de développement végétatif de la dérobée doit être saisi pour évaluer la quantité d'azote d'éja absorbée par la plante. L'affichage d'une image illustrant la notion de développement végétatif du couvert, peut aider à la saiise de cette information."]
[null,null,"Dérobée","Couvert végétal"]
[]
[]
[null,"* Prairies :",null,null,null,null,null,"Par défaut la réponse est \"Non\". Si s'agit bien de la première année d'implantation de la prairie sur cette parcelle, choisir \"Oui\". Cette information a un impact sur le calcul des restitutions par le sol."]
[null,null,"Fourniture par le sol","1ère année d'implantation de la prairie"]
[null,null,null,"Taux de légumineuses pondéré annuel",null,null,null,"Le taux de légumineuses doit être saisi, car il a un impact sur les besoins en azote de la culture (apport symbiotique des légumineuses).\nATTENTION : en cas  d'association avec du trèfle blanc, il est déconseillé de faire des apports d'azote la première année pour permettre l'installation du trèfle."]
[]
[]
[]
[null,"* Légumes frais :",null,null,null,null,null,"2 options sont proposées :\n - Cas général ( légumes exclusifs ou mixte légumes + céréales),\n - Cas particulier (système endivier ou sol très pauvre en matière organique)"]
[null,null,"Précédent cultural","Système de culture et/ou type de sol"]
[]
[]
[]
[null,"* Légumes - industrie :"]
[null,null,"Apports antérieurs","Précédent cultural",null,null,null,"Les apports antérieurs ainsi que le reliquat pré-semis sont évalués à partir du précédent cultural et du système d'élevage qui détermine le type d'apport organique pratiqué sur la parcelle."]
[null,null,null,"Système d'élevage"]
[]
[]
[null,null,"Reliquat pré-semis (kgN/ha)","Mesuré sur la parcelle",null,null,null,"Toutefois, si une mesure du reliquat pré-semis est disponible pour la parcelle, il est possible de la saisir directement."]
[]
[]
[null,"* Autres cultures :"]
[null,null,"Culture"]
[]
[null,null,null,null,null,null,null,"Pour ces cultures, il est indiqué deux doses :\n - La dose pivot qui est la dose récommandée\n - La dose plafond qui est une dose maximale qu'il ne faut pas dépasser. La saisie d'un apport supérieur à cette dose plafond sera refusée par le logiciel."]
[null,null,null,"Dose pivot (kg N/ha)"]
[null,null,null,"Dose plafond (kg N/ha)"]
[]
[]
[]
["Si vous constatez un dsyfonctionnement de ce logiciel, vous pouvez le signaler sur le site de la DRAAF de Bretagne : "]
[null,null,null,"http://www.draaf.bretagne.agriculture.gouv.fr/Foire-aux-questions"]

{"sheet":"Identification","index":1,"n_rows":27,"n_cols":8,"rows_kept":27,"cut":false,"hidden":false,"merged":[[9,6,10,8],[7,6,7,8],[1,6,4,8],[5,6,5,8]]}
[]
[null,null,null,null,null,null,"EQUI-FERTI (®)\n2013/2014"]
[]
[]
[]
[null,null,null,null,null,null,"Logiciel de calcul du Plan Prévisionnel de Fumure conforme à l'arrêté préfectoral du 5 juillet 2013"]
[]
[null,null,null,null,null,null,"Plan Prévisionnel de Fumure"]
[]
[null,null,null,null,null,null,"            Coordonnées de l'exploitation"]
[]
[null,null,null,null,null,null,"Raison sociale :"]
[null,null,null,null,null,null,"Exploitant(s) :"]
[null,null,null,null,null,null,"Adresse ( 1ère ligne) :"]
[null,null,null,null,null,null,"Adresse (suite) :"]
[null,null,null,null,null,null,"CP - Bureau distributeur :"]
[null,null,null,null,null,null,"Commune :"]
[null,null,null,null,null,null,"Téléphone :"]
[null,null,null,null,null,null,"Fax :"]
[null,null,null,null,null,null,"e-mail :"]
[null,null,null,null,null,null,"n° PACAGE :"]
[null,null,null,null,null,null,"n° EDE :"]
[null,null,null,null,null,null,"n° SIREN :"]
[]
[]
[]
[null,null,null,null,null,null,null,"Version n° 1f5 du 15/04/2014"]

{"sheet":"Elevage","index":2,"n_rows":53,"n_cols":64,"rows_kept":53,"cut":false,"hidden":false,"merged":[[46,1,46,14],[45,1,45,7],[24,1,24,2],[25,1,25,7],[27,7,27,10],[51,6,51,9],[12,1,12,4],[13,1,13,4],[17,7,17,10],[50,5,50,7],[16,7,16,9],[44,1,44,4],[21,1,21,2],[48,8,48,10],[31,3,31,4],[9,1,9,4],[10,1,10,4],[11,1,11,4],[30,3,30,4],[28,3,28,4],[22,1,22,2],[23,1,23,2],[17,11,17,14],[35,1,35,7],[8,1,8,4],[5,1,5,4],[6,1,6,4],[52,6,52,9],[26,7,26,9],[18,1,18,2],[19,1,19,2],[20,1,20,2],[3,1,3,2],[3,3,3,4],[4,3,4,4],[7,1,7,4],[43,1,43,4],[34,3,34,4],[38,1,38,4],[29,3,29,4],[14,1,14,7],[15,1,15,14],[32,3,32,4],[33,3,33,4],[48,12,48,14],[27,11,27,14],[0,60,0,63],[4,1,4,2],[2,11,2,14],[2,15,3,15],[2,7,2,10],[0,1,0,15],[38,62,38,63],[41,1,41,4],[42,1,42,4],[37,15,38,15],[37,7,37,10],[39,1,39,4],[38,60,38,61],[37,11,37,14],[40,1,40,4]]}
[null,"1)  Azote et phosphore d'origine animale produits par le cheptel ",null,null,null,null,null,null,null,null,null,null,null,null,null,null,null,null,null,null,null,null,null,null,null,null,null,null,null,null,null,null,null,null,null,null,null,null,null,null,null,null,null,null,null,null,null,null,null,null,null,null,null,null,null,null,null,null,null,null,"Calculs intermédiaires"]
[]
[null,null,null,null,null,null,null,"Azote (kg N)",null,null,null,"Phosphore (kg P2O5)",null,null,null,"UGB",null,null,null,null,null,null,null,null,null,null,null,null,null,null,null,null,null,null,null,null,null,null,null,null,null,null,null,null,null,null,null,null,null,null,null,null,null,null,null,null,null,null,null,null,"Kg lait/VL/an"]
[null,"BOVINS",null,"Production laitière totale livrée sur la campagne (en l)",null,"effectifs","Nombre de mois au pâturage","par animal","Total","Maîtrisable","Non maitrisable","par animal","Total","Maîtrisable","Non maitrisable",null,null,null,null,null,null,null,null,null,null,null,null,null,null,null,null,null,null,null,null,null,null,null,null,null,null,null,null,null,null,null,null,null,null,null,null,null,null,null,null,null,null,null,null,null,{"$f":"IF(ISBLANK(F5),0,D5/F5/0.92)","v":0},"N maitris",null,"UGBJPP"]
[null,{"$f":"Reference_animaux!B4","v":"vaches laitières"},null,null,null,null,null,{"$f":"BI8","v":0},{"$f":"$F5*H5","v":0},{"$f":"BJ8*F5","v":0},{"$f":"I5-J5","v":0},{"$f":"Reference_animaux!D4","v":38},{"$f":"$F5*L5","v":0},{"$f":"IF(ISBLANK($G5),M5,M5*(1-$G5/12))","v":0},{"$f":"M5-N5","v":0},{"$f":"IF(OR(ISBLANK(BI4),ISBLANK(F5)),0,IF(BI4<Reference_animaux!$AD$3,Reference_animaux!$AD$7,IF(BI4<Reference_animaux!$AE$3,Reference_animaux!$AE$7,Reference_animaux!$AF$7)))*F5","v":0},null,null,null,null,null,null,null,null,null,null,null,null,null,null,null,null,null,null,null,null,null,null,null,null,null,null,null,null,null,null,null,null,null,null,null,null,null,null,null,null,null,null,null,null,{"$f":"IF(ISBLANK(BI$4),0,IF(BI$4<Reference_animaux!$AD$3,Reference_animaux!$AD4,IF(BI$4<Reference_animaux!$AE$3,Reference_animaux!$AE4,Reference_animaux!$AF4)))","v":75},null,null,{"$f":"IF(ISBLANK(G5),0,P5*G5*30.5)","v":0}]
[null,{"$f":"Reference_animaux!B5","v":"Vaches nourrices"},null,null,null,null,null,{"$f":"Reference_animaux!C5","v":68},{"$f":"$F6*H6","v":0},{"$f":"IF(ISBLANK($G6),I6,I6*(1-$G6/12))","v":0},{"$f":"I6-J6","v":0},{"$f":"Reference_animaux!D5","v":39},0,0,{"$f":"M6-N6","v":0},{"$f":"Reference_animaux!E5*$F6","v":0},null,null,null,null,null,null,null,null,null,null,null,null,null,null,null,null,null,null,null,null,null,null,null,null,null,null,null,null,null,null,null,null,null,null,null,null,null,null,null,null,null,null,null,null,{"$f":"IF(ISBLANK(BI$4),0,IF(BI$4<Reference_animaux!$AD$3,Reference_animaux!$AD5,IF(BI$4<Reference_animaux!$AE$3,Reference_animaux!$AE5,Reference_animaux!$AF5)))","v":92},null,null,{"$f":"P6*G6*30.5","v":0}]
[null,{"$f":"Reference_animaux!B6","v":"vaches de réforme"},null,null,null,null,null,{"$f":"Reference_animaux!C6","v":40.5},0,0,0,{"$f":"Reference_animaux!D6","v":25},0,0,0,{"$f":"Reference_animaux!E6*$F7","v":0},null,null,null,null,null,null,null,null,null,null,null,null,null,null,null,null,null,null,null,null,null,null,null,null,null,null,null,null,null,null,null,null,null,null,null,null,null,null,null,null,null,null,null,null,{"$f":"IF(ISBLANK(BI$4),0,IF(BI$4<Reference_animaux!$AD$3,Reference_animaux!$AD6,IF(BI$4<Reference_animaux!$AE$3,Reference_animaux!$AE6,Reference_animaux!$AF6)))","v":104},null,null,0]
[null,{"$f":"Reference_animaux!B7","v":"Génisses de 2 ans et plus"},null,null,null,null,null,{"$f":"Reference_animaux!C7","v":54},0,0,0,{"$f":"Reference_animaux!D7","v":25},0,0,0,{"$f":"Reference_animaux!E7*$F8","v":0},null,null,null,null,null,null,null,null,null,null,null,null,null,null,null,null,null,null,null,null,null,null,null,null,null,null,null,null,null,null,null,null,null,null,null,null,null,null,null,null,null,null,null,null,{"$f":"IF(ISBLANK($G$5),0,IF($G$5<Reference_animaux!AC4,BI5,IF($G$5<Reference_animaux!AC5,BI6,BI7)))","v":0},{"$f":"IF(ISBLANK($G$5),0,IF(ISBLANK(BI$5),0,$BI5*(12-$G$5)/12))","v":0},null,0]
[null,{"$f":"Reference_animaux!B8","v":"Génises de 1 à 2 ans"},null,null,null,null,null,{"$f":"Reference_animaux!C8","v":42.5},0,0,0,{"$f":"Reference_animaux!D8","v":18},0,0,0,{"$f":"Reference_animaux!E8*$F9","v":0},null,null,null,null,null,null,null,null,null,null,null,null,null,null,null,null,null,null,null,null,null,null,null,null,null,null,null,null,null,null,null,null,null,null,null,null,null,null,null,null,null,null,null,null,null,null,null,0]
[null,{"$f":"Reference_animaux!B9","v":"Génisses de moins d'1 an "},null,null,null,null,null,{"$f":"Reference_animaux!C9","v":25},0,0,0,{"$f":"Reference_animaux!D9","v":7},0,0,0,{"$f":"Reference_animaux!E9*$F10","v":0},null,null,null,null,null,null,null,null,null,null,null,null,null,null,null,null,null,null,null,null,null,null,null,null,null,null,null,null,null,null,null,null,null,null,null,null,null,null,null,null,null,null,null,null,null,null,null,0]
[null,{"$f":"Reference_animaux!B10","v":"Bovins mâles de 2 ans et plus"},null,null,null,null,null,{"$f":"Reference_animaux!C10","v":73},0,0,0,{"$f":"Reference_animaux!D10","v":34},0,0,0,{"$f":"Reference_animaux!E10*$F11","v":0},null,null,null,null,null,null,null,null,null,null,null,null,null,null,null,null,null,null,null,null,null,null,null,null,null,null,null,null,null,null,null,null,null,null,null,null,null,null,null,null,null,null,null,null,null,null,null,0]
[null,{"$f":"Reference_animaux!B11","v":"Bovins viande de 1 à 2ans"},null,null,null,null,null,{"$f":"Reference_animaux!C11","v":40.5},0,0,0,{"$f":"Reference_animaux!D11","v":25},0,0,0,{"$f":"Reference_animaux!E11*$F12","v":0},null,null,null,null,null,null,null,null,null,null,null,null,null,null,null,null,null,null,null,null,null,null,null,null,null,null,null,null,null,null,null,null,null,null,null,null,null,null,null,null,null,null,null,null,null,null,null,0]
[null,{"$f":"Reference_animaux!B12","v":"Bovins de moins d'1 an (croissance)"},null,null,null,null,null,{"$f":"Reference_animaux!C12","v":25},0,0,0,{"$f":"Reference_animaux!D12","v":7},0,0,0,{"$f":"Reference_animaux!E12*$F13","v":0},null,null,null,null,null,null,null,null,null,null,null,null,null,null,null,null,null,null,null,null,null,null,null,null,null,null,null,null,null,null,null,null,null,null,null,null,null,null,null,null,null,null,null,null,null,null,null,0]
[null,{"$f":"Reference_animaux!B15","v":"Veaux de boucherie (places)"},null,null,null,null,null,{"$f":"Reference_animaux!C15","v":6.3},0,{"$f":"IF(ISBLANK(G14),I14,I14*(1-G14/12))","v":0},0,{"$f":"Reference_animaux!D15","v":3},0,0,0,{"$f":"Reference_animaux!E15*$F14","v":0},null,null,null,null,null,null,null,null,null,null,null,null,null,null,null,null,null,null,null,null,null,null,null,null,null,null,null,null,null,null,null,null,null,null,null,null,null,null,null,null,null,null,null,null,null,null,null,0]
[null,"Total",null,null,null,null,null,null,{"$f":"SUM(I5:I14)","v":0},{"$f":"SUM(J5:J14)","v":0},{"$f":"SUM(K5:K14)","v":0},null,{"$f":"SUM(M5:M14)","v":0},{"$f":"SUM(N5:N14)","v":0},{"$f":"SUM(O5:O14)","v":0},{"$f":"SUM(P5:P14)","v":0}]
[null,"Jours de présence au paturage (en UGB)",null,null,null,null,null,null,null,null,null,null,null,null,null,{"$f":"SUM($BL$5:$BL$14)","v":0}]
[]
[null,null,null,null,null,null,null,"Azote (kg N)",null,null,null,"Phosphore (kg P2O5)"]
[null,"VOLAILLES",null," Type production","Présents   / produits","Nb animaux","Nb de bandes","Norme de rejet","Total","Maîtrisable","Non maitrisable","Norme de rejet","Total","Maîtrisable","Non maitrisable"]
[null,null,null,null,{"$f":"IF(ISERROR(VLOOKUP($B20 & \"-\" & D20,Reference_animaux!$O$4:$O$85,1,FALSE)),\"\",VLOOKUP($B20 & \"-\" & D20,Reference_animaux!$O$4:$P$85,2,FALSE))","v":""},null,null,{"$f":"IF(ISERROR(VLOOKUP($B20 & \"-\" & D20,Reference_animaux!O4:W85,1,FALSE)),0,VLOOKUP($B20 & \"-\" & D20,Reference_animaux!O4:W85,3,FALSE))","v":0},{"$f":"H20*$F20*(IF(ISBLANK(G20),1,G20))","v":0},{"$f":"IF(ISERROR(VLOOKUP($B20 & \"-\" & D20,Reference_animaux!O4:W85,1,FALSE)),0,VLOOKUP($B20 & \"-\" & D20,Reference_animaux!O4:W85,5,FALSE))*$F20*(IF(ISBLANK(G20),1,G20))","v":0},{"$f":"IF(ISERROR(VLOOKUP($B20 & \"-\" & D20,Reference_animaux!O4:W85,1,FALSE)),0,VLOOKUP($B20 & \"-\" & D20,Reference_animaux!O4:W85,7,FALSE))*$F20*(IF(ISBLANK(G20),1,G20))","v":0},{"$f":"IF(ISERROR(VLOOKUP($B20 & \"-\" & $D20,Reference_animaux!O4:W85,1,FALSE)),0,VLOOKUP($B20 & \"-\" & $D20,Reference_animaux!O4:W85,4,FALSE))","v":0},{"$f":"$F20*L20*(IF(ISBLANK(G20),1,G20))","v":0},{"$f":"IF(ISERROR(VLOOKUP($B20 & \"-\" & $D20,Reference_animaux!O4:W85,1,FALSE)),0,VLOOKUP($B20 & \"-\" & $D20,Reference_animaux!O4:W85,6,FALSE))*$F20*(IF(ISBLANK(G20),1,G20))","v":0},{"$f":"IF(ISERROR(VLOOKUP($B20 & \"-\" & $D20,Reference_animaux!O4:W85,1,FALSE)),0,VLOOKUP($B20 & \"-\" & $D20,Reference_animaux!O4:W85,8,FALSE))*$F20*(IF(ISBLANK(G20),1,G20))","v":0},null,null,null,null,null,null,null,null,null,null,null,null,null,null,null,null,null,null,null,null,null,null,null,null,null,null,null,null,null,null,null,null,null,null,null,null,null,null,null,null,null,null,null,null,null,null,null,null,{"$f":"P40*G40*30.5","v":0}]
[null,null,null,null,{"$f":"IF(ISERROR(VLOOKUP($B21 & \"-\" & D21,Reference_animaux!$O$4:$O$85,1,FALSE)),\"\",VLOOKUP($B21 & \"-\" & D21,Reference_animaux!$O$4:$P$85,2,FALSE))","v":""},null,null,{"$f":"IF(ISERROR(VLOOKUP($B21 & \"-\" & D21,Reference_animaux!O5:W86,1,FALSE)),0,VLOOKUP($B21 & \"-\" & D21,Reference_animaux!O5:W86,3,FALSE))","v":0},0,{"$f":"IF(ISERROR(VLOOKUP($B21 & \"-\" & D21,Reference_animaux!O5:W86,1,FALSE)),0,VLOOKUP($B21 & \"-\" & D21,Reference_animaux!O5:W86,5,FALSE))*$F21*(IF(ISBLANK(G21),1,G21))","v":0},{"$f":"IF(ISERROR(VLOOKUP($B21 & \"-\" & D21,Reference_animaux!O5:W86,1,FALSE)),0,VLOOKUP($B21 & \"-\" & D21,Reference_animaux!O5:W86,7,FALSE))*$F21*(IF(ISBLANK(G21),1,G21))","v":0},{"$f":"IF(ISERROR(VLOOKUP($B21 & \"-\" & $D21,Reference_animaux!O5:W86,1,FALSE)),0,VLOOKUP($B21 & \"-\" & $D21,Reference_animaux!O5:W86,4,FALSE))","v":0},0,{"$f":"IF(ISERROR(VLOOKUP($B21 & \"-\" & $D21,Reference_animaux!O5:W86,1,FALSE)),0,VLOOKUP($B21 & \"-\" & $D21,Reference_animaux!O5:W86,6,FALSE))*$F21*(IF(ISBLANK(G21),1,G21))","v":0},{"$f":"IF(ISERROR(VLOOKUP($B21 & \"-\" & $D21,Reference_animaux!O5:W86,1,FALSE)),0,VLOOKUP($B21 & \"-\" & $D21,Reference_animaux!O5:W86,8,FALSE))*$F21*(IF(ISBLANK(G21),1,G21))","v":0},null,null,null,null,null,null,null,null,null,null,null,null,null,null,null,null,null,null,null,null,null,null,null,null,null,null,null,null,null,null,null,null,null,null,null,null,null,null,null,null,null,null,null,null,null,null,null,null,0]
[null,null,null,null,{"$f":"IF(ISERROR(VLOOKUP($B22 & \"-\" & D22,Reference_animaux!$O$4:$O$85,1,FALSE)),\"\",VLOOKUP($B22 & \"-\" & D22,Reference_animaux!$O$4:$P$85,2,FALSE))","v":""},null,null,{"$f":"IF(ISERROR(VLOOKUP($B22 & \"-\" & D22,Reference_animaux!O6:W87,1,FALSE)),0,VLOOKUP($B22 & \"-\" & D22,Reference_animaux!O6:W87,3,FALSE))","v":0},0,{"$f":"IF(ISERROR(VLOOKUP($B22 & \"-\" & D22,Reference_animaux!O6:W87,1,FALSE)),0,VLOOKUP($B22 & \"-\" & D22,Reference_animaux!O6:W87,5,FALSE))*$F22*(IF(ISBLANK(G22),1,G22))","v":0},{"$f":"IF(ISERROR(VLOOKUP($B22 & \"-\" & D22,Reference_animaux!O6:W87,1,FALSE)),0,VLOOKUP($B22 & \"-\" & D22,Reference_animaux!O6:W87,7,FALSE))*$F22*(IF(ISBLANK(G22),1,G22))","v":0},{"$f":"IF(ISERROR(VLOOKUP($B22 & \"-\" & $D22,Reference_animaux!O6:W87,1,FALSE)),0,VLOOKUP($B22 & \"-\" & $D22,Reference_animaux!O6:W87,4,FALSE))","v":0},0,{"$f":"IF(ISERROR(VLOOKUP($B22 & \"-\" & $D22,Reference_animaux!O6:W87,1,FALSE)),0,VLOOKUP($B22 & \"-\" & $D22,Reference_animaux!O6:W87,6,FALSE))*$F22*(IF(ISBLANK(G22),1,G22))","v":0},{"$f":"IF(ISERROR(VLOOKUP($B22 & \"-\" & $D22,Reference_animaux!O6:W87,1,FALSE)),0,VLOOKUP($B22 & \"-\" & $D22,Reference_animaux!O6:W87,8,FALSE))*$F22*(IF(ISBLANK(G22),1,G22))","v":0},null,null,null,null,null,null,null,null,null,null,null,null,null,null,null,null,null,null,null,null,null,null,null,null,null,null,null,null,null,null,null,null,null,null,null,null,null,null,null,null,null,null,null,null,null,null,null,null,0]
[null,null,null,null,{"$f":"IF(ISERROR(VLOOKUP($B23 & \"-\" & D23,Reference_animaux!$O$4:$O$85,1,FALSE)),\"\",VLOOKUP($B23 & \"-\" & D23,Reference_animaux!$O$4:$P$85,2,FALSE))","v":""},null,null,{"$f":"IF(ISERROR(VLOOKUP($B23 & \"-\" & D23,Reference_animaux!O7:W88,1,FALSE)),0,VLOOKUP($B23 & \"-\" & D23,Reference_animaux!O7:W88,3,FALSE))","v":0},0,{"$f":"IF(ISERROR(VLOOKUP($B23 & \"-\" & D23,Reference_animaux!O7:W88,1,FALSE)),0,VLOOKUP($B23 & \"-\" & D23,Reference_animaux!O7:W88,5,FALSE))*$F23*(IF(ISBLANK(G23),1,G23))","v":0},{"$f":"IF(ISERROR(VLOOKUP($B23 & \"-\" & D23,Reference_animaux!O7:W88,1,FALSE)),0,VLOOKUP($B23 & \"-\" & D23,Reference_animaux!O7:W88,7,FALSE))*$F23*(IF(ISBLANK(G23),1,G23))","v":0},{"$f":"IF(ISERROR(VLOOKUP($B23 & \"-\" & $D23,Reference_animaux!O7:W88,1,FALSE)),0,VLOOKUP($B23 & \"-\" & $D23,Reference_animaux!O7:W88,4,FALSE))","v":0},0,{"$f":"IF(ISERROR(VLOOKUP($B23 & \"-\" & $D23,Reference_animaux!O7:W88,1,FALSE)),0,VLOOKUP($B23 & \"-\" & $D23,Reference_animaux!O7:W88,6,FALSE))*$F23*(IF(ISBLANK(G23),1,G23))","v":0},{"$f":"IF(ISERROR(VLOOKUP($B23 & \"-\" & $D23,Reference_animaux!O7:W88,1,FALSE)),0,VLOOKUP($B23 & \"-\" & $D23,Reference_animaux!O7:W88,8,FALSE))*$F23*(IF(ISBLANK(G23),1,G23))","v":0},null,null,null,null,null,null,null,null,null,null,null,null,null,null,null,null,null,null,null,null,null,null,null,null,null,null,null,null,null,null,null,null,null,null,null,null,null,null,null,null,null,null,null,null,null,null,null,null,0]
[null,null,null,null,{"$f":"IF(ISERROR(VLOOKUP($B24 & \"-\" & D24,Reference_animaux!$O$4:$O$85,1,FALSE)),\"\",VLOOKUP($B24 & \"-\" & D24,Reference_animaux!$O$4:$P$85,2,FALSE))","v":""},null,null,{"$f":"IF(ISERROR(VLOOKUP($B24 & \"-\" & D24,Reference_animaux!O8:W89,1,FALSE)),0,VLOOKUP($B24 & \"-\" & D24,Reference_animaux!O8:W89,3,FALSE))","v":0},0,{"$f":"IF(ISERROR(VLOOKUP($B24 & \"-\" & D24,Reference_animaux!O8:W89,1,FALSE)),0,VLOOKUP($B24 & \"-\" & D24,Reference_animaux!O8:W89,5,FALSE))*$F24*(IF(ISBLANK(G24),1,G24))","v":0},{"$f":"IF(ISERROR(VLOOKUP($B24 & \"-\" & D24,Reference_animaux!O8:W89,1,FALSE)),0,VLOOKUP($B24 & \"-\" & D24,Reference_animaux!O8:W89,7,FALSE))*$F24*(IF(ISBLANK(G24),1,G24))","v":0},{"$f":"IF(ISERROR(VLOOKUP($B24 & \"-\" & $D24,Reference_animaux!O8:W89,1,FALSE)),0,VLOOKUP($B24 & \"-\" & $D24,Reference_animaux!O8:W89,4,FALSE))","v":0},0,{"$f":"IF(ISERROR(VLOOKUP($B24 & \"-\" & $D24,Reference_animaux!O8:W89,1,FALSE)),0,VLOOKUP($B24 & \"-\" & $D24,Reference_animaux!O8:W89,6,FALSE))*$F24*(IF(ISBLANK(G24),1,G24))","v":0},{"$f":"IF(ISERROR(VLOOKUP($B24 & \"-\" & $D24,Reference_animaux!O8:W89,1,FALSE)),0,VLOOKUP($B24 & \"-\" & $D24,Reference_animaux!O8:W89,8,FALSE))*$F24*(IF(ISBLANK(G24),1,G24))","v":0},null,null,null,null,null,null,null,null,null,null,null,null,null,null,null,null,null,null,null,null,null,null,null,null,null,null,null,null,null,null,null,null,null,null,null,null,null,null,null,null,null,null,null,null,null,null,null,null,0]
[null,null,null,null,{"$f":"IF(ISERROR(VLOOKUP($B25 & \"-\" & D25,Reference_animaux!$O$4:$O$85,1,FALSE)),\"\",VLOOKUP($B25 & \"-\" & D25,Reference_animaux!$O$4:$P$85,2,FALSE))","v":""},null,null,{"$f":"IF(ISERROR(VLOOKUP($B25 & \"-\" & D25,Reference_animaux!O9:W90,1,FALSE)),0,VLOOKUP($B25 & \"-\" & D25,Reference_animaux!O9:W90,3,FALSE))","v":0},0,{"$f":"IF(ISERROR(VLOOKUP($B25 & \"-\" & D25,Reference_animaux!O9:W90,1,FALSE)),0,VLOOKUP($B25 & \"-\" & D25,Reference_animaux!O9:W90,5,FALSE))*$F25*(IF(ISBLANK(G25),1,G25))","v":0},{"$f":"IF(ISERROR(VLOOKUP($B25 & \"-\" & D25,Reference_animaux!O9:W90,1,FALSE)),0,VLOOKUP($B25 & \"-\" & D25,Reference_animaux!O9:W90,7,FALSE))*$F25*(IF(ISBLANK(G25),1,G25))","v":0},{"$f":"IF(ISERROR(VLOOKUP($B25 & \"-\" & $D25,Reference_animaux!O9:W90,1,FALSE)),0,VLOOKUP($B25 & \"-\" & $D25,Reference_animaux!O9:W90,4,FALSE))","v":0},0,{"$f":"IF(ISERROR(VLOOKUP($B25 & \"-\" & $D25,Reference_animaux!O9:W90,1,FALSE)),0,VLOOKUP($B25 & \"-\" & $D25,Reference_animaux!O9:W90,6,FALSE))*$F25*(IF(ISBLANK(G25),1,G25))","v":0},{"$f":"IF(ISERROR(VLOOKUP($B25 & \"-\" & $D25,Reference_animaux!O9:W90,1,FALSE)),0,VLOOKUP($B25 & \"-\" & $D25,Reference_animaux!O9:W90,8,FALSE))*$F25*(IF(ISBLANK(G25),1,G25))","v":0},null,null,null,null,null,null,null,null,null,null,null,null,null,null,null,null,null,null,null,null,null,null,null,null,null,null,null,null,null,null,null,null,null,null,null,null,null,null,null,null,null,null,null,null,null,null,null,null,0]
[null,"Total",null,null,null,null,null,null,{"$f":"SUM(I20:I25)","v":0},{"$f":"SUM(J20:J25)","v":0},{"$f":"SUM(K20:K25)","v":0},null,{"$f":"SUM(M20:M25)","v":0},{"$f":"SUM(N20:N25)","v":0},{"$f":"SUM(O20:O25)","v":0}]
[]
[null,null,null,null,null,null,null,"Azote (kg N)",null,null,null,"Phosphore (kg P2O5)"]
[null,"PORCS","Alimentation","Type de bâtiment",null,"Effectifs","Plein-air (O/N)","par animal","Total","Maîtrisable","Non maitrisable","par animal","Total","Maîtrisable","Non maitrisable"]
[null,null,null,null,null,null,null,{"$f":"IF(ISERROR(VLOOKUP(D30&B30&C30,Reference_animaux!I4:K31,1,FALSE)),0,VLOOKUP(D30&B30&C30,Reference_animaux!I4:K31,2,FALSE))","v":0},{"$f":"$F30*H30","v":0},{"$f":"IF(ISBLANK($G30),I30,IF( $G30 = \"Non\",I30,0))","v":0},{"$f":"I30-J30","v":0},{"$f":"IF(ISERROR(VLOOKUP(D30&B30&C30,Reference_animaux!I4:K31,1,FALSE)),0,VLOOKUP(D30&B30&C30,Reference_animaux!I4:K31,3,FALSE))","v":0},{"$f":"$F30*L30","v":0},{"$f":"IF(ISBLANK($G30),M30,IF( $G30 = \"Non\",M30,0))","v":0},{"$f":"M30-N30","v":0}]
[null,null,null,null,null,null,null,{"$f":"IF(ISERROR(VLOOKUP(D31&B31&C31,Reference_animaux!I5:K32,1,FALSE)),0,VLOOKUP(D31&B31&C31,Reference_animaux!I5:K32,2,FALSE))","v":0},0,0,0,{"$f":"IF(ISERROR(VLOOKUP(D31&B31&C31,Reference_animaux!I5:K32,1,FALSE)),0,VLOOKUP(D31&B31&C31,Reference_animaux!I5:K32,3,FALSE))","v":0},0,0,0]
[null,null,null,null,null,null,null,{"$f":"IF(ISERROR(VLOOKUP(D32&B32&C32,Reference_animaux!I6:K33,1,FALSE)),0,VLOOKUP(D32&B32&C32,Reference_animaux!I6:K33,2,FALSE))","v":0},0,0,0,{"$f":"IF(ISERROR(VLOOKUP(D32&B32&C32,Reference_animaux!I6:K33,1,FALSE)),0,VLOOKUP(D32&B32&C32,Reference_animaux!I6:K33,3,FALSE))","v":0},0,0,0]
[null,null,null,null,null,null,null,{"$f":"IF(ISERROR(VLOOKUP(D33&B33&C33,Reference_animaux!I7:K34,1,FALSE)),0,VLOOKUP(D33&B33&C33,Reference_animaux!I7:K34,2,FALSE))","v":0},0,0,0,{"$f":"IF(ISERROR(VLOOKUP(D33&B33&C33,Reference_animaux!I7:K34,1,FALSE)),0,VLOOKUP(D33&B33&C33,Reference_animaux!I7:K34,3,FALSE))","v":0},0,0,0]
[null,null,null,null,null,null,null,{"$f":"IF(ISERROR(VLOOKUP(D34&B34&C34,Reference_animaux!I8:K35,1,FALSE)),0,VLOOKUP(D34&B34&C34,Reference_animaux!I8:K35,2,FALSE))","v":0},0,0,0,{"$f":"IF(ISERROR(VLOOKUP(D34&B34&C34,Reference_animaux!I8:K35,1,FALSE)),0,VLOOKUP(D34&B34&C34,Reference_animaux!I8:K35,3,FALSE))","v":0},0,0,0]
[null,null,null,null,null,null,null,{"$f":"IF(ISERROR(VLOOKUP(D35&B35&C35,Reference_animaux!I9:K36,1,FALSE)),0,VLOOKUP(D35&B35&C35,Reference_animaux!I9:K36,2,FALSE))","v":0},0,0,0,{"$f":"IF(ISERROR(VLOOKUP(D35&B35&C35,Reference_animaux!I9:K36,1,FALSE)),0,VLOOKUP(D35&B35&C35,Reference_animaux!I9:K36,3,FALSE))","v":0},0,0,0]
[null,"Total",null,null,null,null,null,null,{"$f":"SUM(I30:I35)","v":0},{"$f":"SUM(J30:J35)","v":0},{"$f":"SUM(K30:K35)","v":0},null,{"$f":"SUM(M30:M35)","v":0},{"$f":"SUM(N30:N35)","v":0},{"$f":"SUM(O30:O35)","v":0}]
[]
[null,null,null,null,null,null,null,"Azote (kg N)",null,null,null,"Phosphore (kg P2O5)",null,null,null,"UGB"]
[null,"AUTRES PRODUCTIONS",null,null,null,"Effectifs","Mois au paturage","Norme de rejet","Total","Maîtrisable","Non maitrisable","Norme de rejet","Total","Maîtrisable","Non maitrisable",null,null,null,null,null,null,null,null,null,null,null,null,null,null,null,null,null,null,null,null,null,null,null,null,null,null,null,null,null,null,null,null,null,null,null,null,null,null,null,null,null,null,null,null,null,"N",null,"P"]
[null,null,null,null,null,null,null,{"$f":"IF(ISERROR(VLOOKUP($B40,Reference_animaux!B16:D33,1,FALSE)),0,VLOOKUP($B40,Reference_animaux!B16:D33,2,FALSE))","v":0},{"$f":"$F40*H40","v":0},{"$f":"IF(ISBLANK($G40),I40,I40*(1-$G40/12))","v":0},{"$f":"I40-J40","v":0},{"$f":"IF(ISERROR(VLOOKUP($B40,Reference_animaux!B16:D33,1,FALSE)),0,VLOOKUP($B40,Reference_animaux!B16:D33,3,FALSE))","v":0},{"$f":"$F40*L40","v":0},{"$f":"IF(ISBLANK($G40),M40,M40*(1-$G40/12))","v":0},{"$f":"M40-N40","v":0},{"$f":"IF(ISERROR(VLOOKUP($B40,Reference_animaux!B16:E33,1,FALSE)),0,VLOOKUP($B40,Reference_animaux!B16:E33,4,FALSE)*F40)","v":0},null,null,null,null,null,null,null,null,null,null,null,null,null,null,null,null,null,null,null,null,null,null,null,null,null,null,null,null,null,null,null,null,null,null,null,null,null,null,null,null,null,null,null,null,{"$f":"IF(ISERROR(VLOOKUP($B40,Reference_animaux!$B$16:$B$30,1,FALSE)),0,I40)","v":0},{"$f":"IF(ISERROR(VLOOKUP($B40,Reference_animaux!$B$16:$B$30,1,FALSE)),0,J40)","v":0},{"$f":"IF(ISERROR(VLOOKUP($B40,Reference_animaux!$B$16:$B$30,1,FALSE)),0,M40)","v":0},{"$f":"IF(ISERROR(VLOOKUP($B40,Reference_animaux!$B$16:$B$30,1,FALSE)),0,N40)","v":0}]
[null,null,null,null,null,null,null,{"$f":"IF(ISERROR(VLOOKUP($B41,Reference_animaux!B17:D34,1,FALSE)),0,VLOOKUP($B41,Reference_animaux!B17:D34,2,FALSE))","v":0},0,0,0,{"$f":"IF(ISERROR(VLOOKUP($B41,Reference_animaux!B17:D34,1,FALSE)),0,VLOOKUP($B41,Reference_animaux!B17:D34,3,FALSE))","v":0},0,0,0,{"$f":"IF(ISERROR(VLOOKUP($B41,Reference_animaux!B17:E34,1,FALSE)),0,VLOOKUP($B41,Reference_animaux!B17:E34,4,FALSE)*F41)","v":0},null,null,null,null,null,null,null,null,null,null,null,null,null,null,null,null,null,null,null,null,null,null,null,null,null,null,null,null,null,null,null,null,null,null,null,null,null,null,null,null,null,null,null,null,{"$f":"IF(ISERROR(VLOOKUP($B41,Reference_animaux!$B$16:$B$30,1,FALSE)),0,I41)","v":0},{"$f":"IF(ISERROR(VLOOKUP($B41,Reference_animaux!$B$16:$B$30,1,FALSE)),0,J41)","v":0},{"$f":"IF(ISERROR(VLOOKUP($B41,Reference_animaux!$B$16:$B$30,1,FALSE)),0,M41)","v":0},{"$f":"IF(ISERROR(VLOOKUP($B41,Reference_animaux!$B$16:$B$30,1,FALSE)),0,N41)","v":0}]
[null,null,null,null,null,null,null,{"$f":"IF(ISERROR(VLOOKUP($B42,Reference_animaux!B18:D35,1,FALSE)),0,VLOOKUP($B42,Reference_animaux!B18:D35,2,FALSE))","v":0},0,0,0,{"$f":"IF(ISERROR(VLOOKUP($B42,Reference_animaux!B18:D35,1,FALSE)),0,VLOOKUP($B42,Reference_animaux!B18:D35,3,FALSE))","v":0},0,0,0,{"$f":"IF(ISERROR(VLOOKUP($B42,Reference_animaux!B18:E35,1,FALSE)),0,VLOOKUP($B42,Reference_animaux!B18:E35,4,FALSE)*F42)","v":0},null,null,null,null,null,null,null,null,null,null,null,null,null,null,null,null,null,null,null,null,null,null,null,null,null,null,null,null,null,null,null,null,null,null,null,null,null,null,null,null,null,null,null,null,{"$f":"IF(ISERROR(VLOOKUP($B42,Reference_animaux!$B$16:$B$30,1,FALSE)),0,I42)","v":0},{"$f":"IF(ISERROR(VLOOKUP($B42,Reference_animaux!$B$16:$B$30,1,FALSE)),0,J42)","v":0},{"$f":"IF(ISERROR(VLOOKUP($B42,Reference_animaux!$B$16:$B$30,1,FALSE)),0,M42)","v":0},{"$f":"IF(ISERROR(VLOOKUP($B42,Reference_animaux!$B$16:$B$30,1,FALSE)),0,N42)","v":0}]
[null,null,null,null,null,null,null,{"$f":"IF(ISERROR(VLOOKUP($B43,Reference_animaux!B19:D36,1,FALSE)),0,VLOOKUP($B43,Reference_animaux!B19:D36,2,FALSE))","v":0},0,0,0,{"$f":"IF(ISERROR(VLOOKUP($B43,Reference_animaux!B19:D36,1,FALSE)),0,VLOOKUP($B43,Reference_animaux!B19:D36,3,FALSE))","v":0},0,0,0,{"$f":"IF(ISERROR(VLOOKUP($B43,Reference_animaux!B19:E36,1,FALSE)),0,VLOOKUP($B43,Reference_animaux!B19:E36,4,FALSE)*F43)","v":0},null,null,null,null,null,null,null,null,null,null,null,null,null,null,null,null,null,null,null,null,null,null,null,null,null,null,null,null,null,null,null,null,null,null,null,null,null,null,null,null,null,null,null,null,{"$f":"IF(ISERROR(VLOOKUP($B43,Reference_animaux!$B$16:$B$30,1,FALSE)),0,I43)","v":0},{"$f":"IF(ISERROR(VLOOKUP($B43,Reference_animaux!$B$16:$B$30,1,FALSE)),0,J43)","v":0},{"$f":"IF(ISERROR(VLOOKUP($B43,Reference_animaux!$B$16:$B$30,1,FALSE)),0,M43)","v":0},{"$f":"IF(ISERROR(VLOOKUP($B43,Reference_animaux!$B$16:$B$30,1,FALSE)),0,N43)","v":0}]
[null,null,null,null,null,null,null,{"$f":"IF(ISERROR(VLOOKUP($B44,Reference_animaux!B20:D37,1,FALSE)),0,VLOOKUP($B44,Reference_animaux!B20:D37,2,FALSE))","v":0},0,0,0,{"$f":"IF(ISERROR(VLOOKUP($B44,Reference_animaux!B20:D37,1,FALSE)),0,VLOOKUP($B44,Reference_animaux!B20:D37,3,FALSE))","v":0},0,0,0,{"$f":"IF(ISERROR(VLOOKUP($B44,Reference_animaux!B20:E37,1,FALSE)),0,VLOOKUP($B44,Reference_animaux!B20:E37,4,FALSE)*F44)","v":0},null,null,null,null,null,null,null,null,null,null,null,null,null,null,null,null,null,null,null,null,null,null,null,null,null,null,null,null,null,null,null,null,null,null,null,null,null,null,null,null,null,null,null,null,{"$f":"IF(ISERROR(VLOOKUP($B44,Reference_animaux!$B$16:$B$30,1,FALSE)),0,I44)","v":0},{"$f":"IF(ISERROR(VLOOKUP($B44,Reference_animaux!$B$16:$B$30,1,FALSE)),0,J44)","v":0},{"$f":"IF(ISERROR(VLOOKUP($B44,Reference_animaux!$B$16:$B$30,1,FALSE)),0,M44)","v":0},{"$f":"IF(ISERROR(VLOOKUP($B44,Reference_animaux!$B$16:$B$30,1,FALSE)),0,N44)","v":0}]
[null,null,null,null,null,null,null,{"$f":"IF(ISERROR(VLOOKUP($B45,Reference_animaux!B21:D38,1,FALSE)),0,VLOOKUP($B45,Reference_animaux!B21:D38,2,FALSE))","v":0},0,0,0,{"$f":"IF(ISERROR(VLOOKUP($B45,Reference_animaux!B21:D38,1,FALSE)),0,VLOOKUP($B45,Reference_animaux!B21:D38,3,FALSE))","v":0},0,0,0,{"$f":"IF(ISERROR(VLOOKUP($B45,Reference_animaux!B21:E38,1,FALSE)),0,VLOOKUP($B45,Reference_animaux!B21:E38,4,FALSE)*F45)","v":0},null,null,null,null,null,null,null,null,null,null,null,null,null,null,null,null,null,null,null,null,null,null,null,null,null,null,null,null,null,null,null,null,null,null,null,null,null,null,null,null,null,null,null,null,{"$f":"IF(ISERROR(VLOOKUP($B45,Reference_animaux!$B$16:$B$30,1,FALSE)),0,I45)","v":0},{"$f":"IF(ISERROR(VLOOKUP($B45,Reference_animaux!$B$16:$B$30,1,FALSE)),0,J45)","v":0},{"$f":"IF(ISERROR(VLOOKUP($B45,Reference_animaux!$B$16:$B$30,1,FALSE)),0,M45)","v":0},{"$f":"IF(ISERROR(VLOOKUP($B45,Reference_animaux!$B$16:$B$30,1,FALSE)),0,N45)","v":0}]
[null,"Total",null,null,null,null,null,null,{"$f":"SUM(I40:I45)","v":0},{"$f":"SUM(J40:J45)","v":0},{"$f":"SUM(K40:K45)","v":0},null,{"$f":"SUM(M40:M45)","v":0},{"$f":"SUM(N40:N45)","v":0},{"$f":"SUM(O40:O45)","v":0},{"$f":"SUM(P40:P45)","v":0},null,null,null,null,null,null,null,null,null,null,null,null,null,null,null,null,null,null,null,null,null,null,null,null,null,null,null,null,null,null,null,null,null,null,null,null,null,null,null,null,null,null,null,null,{"$f":"IF(ISERROR(VLOOKUP($B46,Reference_animaux!$B$16:$B$30,1,FALSE)),0,I46)","v":0},{"$f":"IF(ISERROR(VLOOKUP($B46,Reference_animaux!$B$16:$B$30,1,FALSE)),0,J46)","v":0},{"$f":"IF(ISERROR(VLOOKUP($B46,Reference_animaux!$B$16:$B$30,1,FALSE)),0,M46)","v":0},{"$f":"IF(ISERROR(VLOOKUP($B46,Reference_animaux!$B$16:$B$30,1,FALSE)),0,N46)","v":0}]
[null,"Jours de présence au paturage  (en UGB)",null,null,null,null,null,null,null,null,null,null,null,null,null,{"$f":"SUM($BL$20:$BL$25)","v":0}]
[]
[null,null,null,null,null,null,null,null,"Azote (kg N)",null,null,null,"Phosphore (kg P2O5)"]
[null,null,null,null,null,null,null,null,"Total","Maitrisable","Non maitrisable",null,"Total","Maitrisable","Non maitrisable"]
[null,null,null,null,null,"TOTAL ELEVAGE",null,null,{"$f":"I15+I26+I36+I46","v":0},{"$f":"J15+J26+J36+J46","v":0},{"$f":"K15+K26+K36+K46","v":0},null,{"$f":"M15+M26+M36+M46","v":0},{"$f":"N15+N26+N36+N46","v":0},{"$f":"O15+O26+O36+O46","v":0}]
[null,null,null,null,null,null,"Déjections herbivores au pâturage",null,null,null,{"$f":"K15+BI46-BJ46","v":0},null,null,null,{"$f":"O15+BK46-BL46","v":0}]
[null,null,null,null,null,null,"Déjections porcs et volailles sur parcours",null,null,null,{"$f":"K26+K36","v":0},null,null,null,{"$f":"O26+O36","v":0}]

{"sheet":"Effluents à gérer","index":3,"n_rows":78,"n_cols":71,"rows_kept":78,"cut":false,"hidden":false,"merged":[[69,6,69,7],[70,6,70,7],[75,6,75,7],[76,6,76,7],[77,6,77,7],[71,6,71,7],[72,6,72,7],[73,6,73,7],[74,6,74,7],[63,6,63,7],[64,6,64,7],[65,6,65,7],[66,6,66,7],[67,6,67,7],[68,6,68,7],[62,6,62,7],[37,5,37,7],[38,5,38,7],[39,5,39,7],[52,7,52,9],[53,7,53,9],[54,7,54,9],[51,7,51,9],[49,7,49,9],[50,7,50,9],[74,1,74,2],[69,1,69,2],[62,1,62,2],[63,1,63,2],[64,1,64,2],[65,1,65,2],[75,1,75,2],[76,1,76,2],[2,19,3,20],[70,1,70,2],[71,1,71,2],[72,1,72,2],[73,1,73,2],[66,1,66,2],[67,1,67,2],[68,1,68,2],[56,10,56,13],[57,10,57,13],[48,10,48,13],[49,10,49,13],[50,10,50,13],[51,10,51,13],[52,10,52,13],[53,10,53,13],[54,10,54,13],[55,10,55,13],[44,7,44,9],[45,7,45,9],[28,1,28,2],[29,1,29,2],[30,1,30,2],[34,1,34,2],[34,5,35,7],[31,1,31,2],[32,1,32,2],[30,5,33,7],[46,7,46,9],[48,7,48,9],[60,1,61,2],[55,7,55,9],[56,7,56,9],[57,7,57,9],[60,3,61,3],[60,4,61,4],[60,5,61,5],[59,1,59,2],[60,8,61,8],[60,6,61,7],[41,58,41,60],[40,58,40,60],[47,7,47,9],[47,10,47,13],[44,10,44,13],[45,10,45,13],[41,7,41,9],[46,10,46,13],[43,10,43,13],[2,58,2,63],[3,11,4,11],[42,7,42,9],[43,7,43,9],[23,5,28,7],[20,1,20,5],[23,1,23,2],[24,1,24,2],[27,1,27,2],[3,12,4,12],[5,8,5,9],[6,8,6,9],[42,10,42,13],[24,9,24,13],[25,9,25,13],[26,9,26,13],[27,9,27,13],[28,9,28,13],[29,9,29,13],[3,3,3,4],[0,58,0,63],[3,6,4,6],[2,1,2,6],[3,2,4,2],[3,1,4,1],[3,58,3,60],[3,61,3,63],[0,1,0,11],[3,13,4,13],[22,1,22,5],[23,9,23,13],[34,9,34,14],[7,8,7,9],[25,1,25,2],[26,1,26,2],[30,9,30,13],[31,9,31,13],[32,9,32,13]]}
[null,"2) Quantités d'azote et phosphore maîtrisables après importation,  exportation ou traitement ",null,null,null,null,null,null,null,null,null,null,null,null,null,null,null,null,null,null,null,null,null,null,null,null,null,null,null,null,null,null,null,null,null,null,null,null,null,null,null,null,null,null,null,null,null,null,null,null,null,null,null,null,null,null,null,null,"Calculs intermédiaires"]
[null,null,null,null,null,null,null,null,null,null,null,null,null,null,null,null,null,null,null,null,null,null,null,null,null,null,null,null,null,null,null,null,null,null,null,null,null,null,null,null,null,null,null,null,null,null,null,null,null,null,null,null,null,null,null,null,null,58,59,60,61,62,null,64,65,66,67,68,69,70,71]
[null,"Effluents produits sur l'exploitation",null,null,null,null,null,null,null,null,null,null,null,null,null,null,null,null,null,"Liste des effluents pris en charge dans le logiciel"]
[null,"Catégorie animaux générant ce produit","Type d'effluent","Production sur l'exploitation",null,"Pour info","Total azote (Kg N)",null,null,null,null,"Catégorie animaux","Azote des effluents déclarés\n(kg N)","Azote maitrisable produit par le cheptel\n(kg N)"]
[null,null,null,"Tonnage / volume\n(t ou m3)","Teneur en azote\n(kg N /t ou m3)","Teneur standard\n(kg N / t ou m3)",null,null,null,null,null,null,null,null,null,null,null,null,null,{"$f":"Reference_effluents!B2","v":"Produits"},{"$f":"Reference_effluents!D2","v":"Source"},null,null,null,null,null,null,null,null,null,null,null,null,null,null,null,null,null,null,null,null,null,null,null,null,null,null,null,null,null,null,null,null,null,null,null,null,null,"Azote effluents bovins","Azote effluents porcs","Azote effluents volailles","Azote effluents autres",null,"Libelle pour  liste traitement avec teneur","Libelle pour  liste traitement","Teneur","Compatible avec compostage","Libellé pour compostage","Libellé sans teneur",null,"Liste familles animaux"]
[null,null,null,null,null,{"$f":"IF(ISERROR(VLOOKUP($C6,effluents_complet,1,FALSE)),\"\",VLOOKUP($C6,effluents_complet,6,FALSE))","v":""},{"$f":"D6*E6","v":0},null,{"$f":"\"Ecart < \" & Reference_divers!I3 & \"%\"","v":"Ecart < 5%"},null,null,"Bovins",{"$f":"BG$21","v":0},{"$f":"Elevage!J15","v":0},null,null,null,null,null,{"$f":"Reference_effluents!B6","v":"Fumier de chevaux"},{"$f":"Reference_effluents!D6","v":"Autres"},null,null,null,null,null,null,null,null,null,null,null,null,null,null,null,null,null,null,null,null,null,null,null,null,null,null,null,null,null,null,null,null,null,null,null,null,null,{"$f":"IF($B6=$L$6,$G6,0)","v":0},{"$f":"IF($B6=$L$7,$G6,0)","v":0},{"$f":"IF($B6=$L$8,$G6,0)","v":0},{"$f":"IF($B6=$L$9,$G6,0)","v":0},null,{"$f":"IF(BM6=0,\"\",BM6&\" (\"&BN6&\" kg N/t ou m3)\")","v":""},{"$f":"C6","v":0},{"$f":"E6","v":0},{"$f":"IF(ISBLANK(C6),0,IF(ISERROR(VLOOKUP(VLOOKUP(C6,effluents_complet,2,FALSE),Compostage_ST,1,FALSE)),0,1))","v":0},null,null,null,"Porcs"]
[null,null,null,null,null,"",{"$f":"D7*E7","v":0},null,{"$f":"\"Ecart de \" & Reference_divers!I3 & \" à \" & Reference_divers!I4 & \"%\"","v":"Ecart de 5 à 10%"},null,null,"Porcs",{"$f":"BH$21","v":0},{"$f":"Elevage!J36","v":0},null,null,null,null,null,{"$f":"Reference_effluents!B7","v":"Fumier d'ovins, caprins"},{"$f":"Reference_effluents!D7","v":"Autres"},null,null,null,null,null,null,null,null,null,null,null,null,null,null,null,null,null,null,null,null,null,null,null,null,null,null,null,null,null,null,null,null,null,null,null,null,null,0,0,0,0,null,{"$f":"IF(BM7=0,\"\",BM7&\" (\"&BN7&\" kg N/t ou m3)\")","v":""},{"$f":"C7","v":0},0,0,null,null,null,"Volailles"]
[null,null,null,null,null,"",0,null,{"$f":"\"Ecart > \" & Reference_divers!I4 & \"%\"","v":"Ecart > 10%"},null,null,"Volailles",{"$f":"BI$21","v":0},{"$f":"Elevage!J26","v":0},null,null,null,null,null,{"$f":"Reference_effluents!B8","v":"Fumiers de lapins"},{"$f":"Reference_effluents!D8","v":"Autres"},null,null,null,null,null,null,null,null,null,null,null,null,null,null,null,null,null,null,null,null,null,null,null,null,null,null,null,null,null,null,null,null,null,null,null,null,null,0,0,0,0,null,"",{"$f":"C8","v":0},0,0]
[null,null,null,null,null,"",0,null,null,null,null,"Autres",{"$f":"BJ$21","v":0},{"$f":"Elevage!J46","v":0},null,null,null,null,null,{"$f":"Reference_effluents!B9","v":"Lisier de lapins"},{"$f":"Reference_effluents!D9","v":"Autres"},null,null,null,null,null,null,null,null,null,null,null,null,null,null,null,null,null,null,null,null,null,null,null,null,null,null,null,null,null,null,null,null,null,null,null,null,null,0,0,0,0,null,"",{"$f":"C9","v":0},0,0]
[null,null,null,null,null,"",0,null,null,null,null,"Total",{"$f":"SUM(M6:M9)","v":0},{"$f":"SUM(N6:N9)","v":0},null,null,null,null,null,{"$f":"Reference_effluents!B10","v":"Algues vertes ramassée sur plages  "},{"$f":"Reference_effluents!D10","v":"Externe"},null,null,null,null,null,null,null,null,null,null,null,null,null,null,null,null,null,null,null,null,null,null,null,null,null,null,null,null,null,null,null,null,null,null,null,null,null,0,0,0,0,null,"",{"$f":"C10","v":0},0,0]
[null,null,null,null,null,"",0,null,null,null,null,null,null,null,null,null,null,null,null,{"$f":"Reference_effluents!B11","v":"Fumier bovins moins 3 mois"},{"$f":"Reference_effluents!D11","v":"Bovins"},null,null,null,null,null,null,null,null,null,null,null,null,null,null,null,null,null,null,null,null,null,null,null,null,null,null,null,null,null,null,null,null,null,null,null,null,null,0,0,0,0,null,"",0,0,0]
[null,null,null,null,null,"",0,null,null,null,null,null,null,null,null,null,null,null,null,{"$f":"Reference_effluents!B12","v":"Fumier bovins plus 3 mois"},{"$f":"Reference_effluents!D12","v":"Bovins"},null,null,null,null,null,null,null,null,null,null,null,null,null,null,null,null,null,null,null,null,null,null,null,null,null,null,null,null,null,null,null,null,null,null,null,null,null,0,0,0,0,null,"",0,0,0]
[null,null,null,null,null,"",0,null,null,null,null,null,null,null,null,null,null,null,null,{"$f":"Reference_effluents!B18","v":"Lisier de bovins viandes sur caillebotis"},{"$f":"Reference_effluents!D18","v":"Bovins"},null,null,null,null,null,null,null,null,null,null,null,null,null,null,null,null,null,null,null,null,null,null,null,null,null,null,null,null,null,null,null,null,null,null,null,null,null,0,0,0,0,null,"",0,0,0]
[null,null,null,null,null,"",0,null,null,null,null,null,null,null,null,null,null,null,null,{"$f":"Reference_effluents!B19","v":"Lisier de veaux de boucherie"},{"$f":"Reference_effluents!D19","v":"Bovins"},null,null,null,null,null,null,null,null,null,null,null,null,null,null,null,null,null,null,null,null,null,null,null,null,null,null,null,null,null,null,null,null,null,null,null,null,null,0,0,0,0,null,"",0,0,0]
[null,null,null,null,null,"",0,null,null,null,null,null,null,null,null,null,null,null,null,{"$f":"Reference_effluents!B20","v":"Lisier de VL fosse bâtiment"},{"$f":"Reference_effluents!D20","v":"Bovins"},null,null,null,null,null,null,null,null,null,null,null,null,null,null,null,null,null,null,null,null,null,null,null,null,null,null,null,null,null,null,null,null,null,null,null,null,null,0,0,0,0,null,"",0,0,0]
[null,null,null,null,null,"",0,null,null,null,null,null,null,null,null,null,null,null,null,{"$f":"Reference_effluents!B21","v":"Lisier de VL logettes caillebotis"},{"$f":"Reference_effluents!D21","v":"Bovins"},null,null,null,null,null,null,null,null,null,null,null,null,null,null,null,null,null,null,null,null,null,null,null,null,null,null,null,null,null,null,null,null,null,null,null,null,null,0,0,0,0,null,"",0,0,0]
[null,null,null,null,null,"",0,null,null,null,null,null,null,null,null,null,null,null,null,{"$f":"Reference_effluents!B22","v":"Lisier de VL raclage logettes pur"},{"$f":"Reference_effluents!D22","v":"Bovins"},null,null,null,null,null,null,null,null,null,null,null,null,null,null,null,null,null,null,null,null,null,null,null,null,null,null,null,null,null,null,null,null,null,null,null,null,null,0,0,0,0,null,"",0,0,0]
[null,null,null,null,null,"",0,null,null,null,null,null,null,null,null,null,null,null,null,{"$f":"Reference_effluents!B23","v":"Lisier de VL raclé en fosse extérieure"},{"$f":"Reference_effluents!D23","v":"Bovins"},null,null,null,null,null,null,null,null,null,null,null,null,null,null,null,null,null,null,null,null,null,null,null,null,null,null,null,null,null,null,null,null,null,null,null,null,null,0,0,0,0,null,"",0,0,0]
[null,null,null,null,null,"",{"$f":"D19*E19","v":0},null,null,null,null,null,null,null,null,null,null,null,null,{"$f":"Reference_effluents!B24","v":"Purins"},{"$f":"Reference_effluents!D24","v":"Bovins"},null,null,null,null,null,null,null,null,null,null,null,null,null,null,null,null,null,null,null,null,null,null,null,null,null,null,null,null,null,null,null,null,null,null,null,null,null,0,0,0,0,null,"",0,0,0]
[null,null,null,null,null,{"$f":"IF(ISERROR(VLOOKUP($C20,Effluent_teneur,1,FALSE)),\"\",VLOOKUP($C20,Effluent_teneur,6,FALSE))","v":""},{"$f":"D20*E20","v":0},null,null,null,null,null,null,null,null,null,null,null,null,{"$f":"Reference_effluents!B25","v":"Compost boues avec déchets verts de 4 à 10 mois"},{"$f":"Reference_effluents!D25","v":"Compost"},null,null,null,null,null,null,null,null,null,null,null,null,null,null,null,null,null,null,null,null,null,null,null,null,null,null,null,null,null,null,null,null,null,null,null,null,null,0,0,0,0,null,"",0,0,0]
[null,"Total",null,null,null,null,{"$f":"SUM(G6:G20)","v":0},null,null,null,null,null,null,null,null,null,null,null,null,{"$f":"Reference_effluents!B26","v":"Compost boues avec déchets verts de plus 10 mois"},{"$f":"Reference_effluents!D26","v":"Compost"},null,null,null,null,null,null,null,null,null,null,null,null,null,null,null,null,null,null,null,null,null,null,null,null,null,null,null,null,null,null,null,null,null,null,null,null,null,{"$f":"SUM(BG6:BG20)","v":0},{"$f":"SUM(BH6:BH20)","v":0},{"$f":"SUM(BI6:BI20)","v":0},{"$f":"SUM(BJ6:BJ20)","v":0}]
[null,null,null,null,null,null,null,null,null,null,null,null,null,null,null,null,null,null,null,{"$f":"Reference_effluents!B27","v":"Compost urbain ou de déchets verts Avec ou sans algues vertes"},{"$f":"Reference_effluents!D27","v":"Externe"}]
[null,"Azote éliminé par traitement, méthanisation et/ou compostage (volatilisation de l'azote)",null,null,null,null,null,null,null,null,null,null,null,null,null,null,null,null,null,{"$f":"Reference_effluents!B28","v":"Digestat issu de Méthanisation"},{"$f":"Reference_effluents!D28","v":"Compost"}]
[null,"Effluents issus de l'elevage soumis à traitement,\nméthanisation ou compostage",null,"Quantité à traiter\n(t ou m3)","Quantité d'azote (kg)","Traitement ou compostage",null,null,"Réduction d'azote attendue (kg N)","Effluents produits",null,null,null,null,"Quantité\n(t ou m3)","Teneur en azote\n(kg / t ou m3)","% d'azote\nd'origine animale",null,null,{"$f":"Reference_effluents!B29","v":"Compost de fumier de bovin < 3 mois"},{"$f":"Reference_effluents!D29","v":"Fumier de bovins"},null,null,null,null,null,null,null,null,null,null,null,null,null,null,null,null,null,null,null,null,null,null,null,null,null,null,null,null,null,null,null,null,null,null,null,null,null,null,null,null,null,null,"Liste pour  sortie traitement","Liste pour export","Liste pour export avec teneur","Teneur","Azote d'origine animal"]
[null,null,null,null,{"$f":"IF(ISERROR(VLOOKUP(B25,$BL$6:$BN$20,3,FALSE)),0,VLOOKUP(B25,$BL$6:$BN$20,3,FALSE)*D25)","v":0},null,null,null,null,null,null,null,null,null,null,null,{"$f":"IF(BP25=\"\",\"\",IF(BP25=\"O\",100,IF(BP25=\"N\",0,\"?\")))","v":""},null,null,{"$f":"Reference_effluents!B30","v":"Compost de fumier de bovin > 3 mois"},{"$f":"Reference_effluents!D30","v":"Fumier de bovins"},null,null,null,null,null,null,null,null,null,null,null,null,null,null,null,null,null,null,null,null,null,null,null,null,null,null,null,null,null,null,null,null,null,null,null,null,null,null,null,null,null,null,null,"Lisier de porcs moyen non dilué","Lisier de porcs moyen non dilué (4,5 kg N/t ou m3)",4.5,{"$f":"IF(ISERROR(VLOOKUP(J25,Reference_effluents!$B$6:$AB$77,27,FALSE)),\"\",VLOOKUP(J25,Reference_effluents!$B$6:$AB$77,27,FALSE))","v":""}]
[null,null,null,null,{"$f":"IF(ISERROR(VLOOKUP(B26,$BL$6:$BN$20,3,FALSE)),0,VLOOKUP(B26,$BL$6:$BN$20,3,FALSE)*D26)","v":0},null,null,null,null,null,null,null,null,null,null,null,{"$f":"IF(BP26=\"\",\"\",IF(BP26=\"O\",100,IF(BP26=\"N\",0,\"?\")))","v":""},null,null,{"$f":"Reference_effluents!B31","v":"Compost de litière de volaille. avec sciure de plus de 6 mois"},{"$f":"Reference_effluents!D31","v":"Fumier de volailles"},null,null,null,null,null,null,null,null,null,null,null,null,null,null,null,null,null,null,null,null,null,null,null,null,null,null,null,null,null,null,null,null,null,null,null,null,null,null,null,null,null,null,null,"Vieux Compost Lisier de porcs  \"Guernévez\" de plus 10 mois","Vieux Compost Lisier de porcs  \"Guernévez\" de plus 10 mois ( kg N/t ou m3)",null,{"$f":"IF(ISERROR(VLOOKUP(J26,Reference_effluents!$B$6:$AB$77,27,FALSE)),\"\",VLOOKUP(J26,Reference_effluents!$B$6:$AB$77,27,FALSE))","v":""}]
[null,null,null,null,0,null,null,null,null,null,null,null,null,null,null,null,{"$f":"IF(BP27=\"\",\"\",IF(BP27=\"O\",100,IF(BP27=\"N\",0,\"?\")))","v":""},null,null,{"$f":"Reference_effluents!B32","v":"Litière de volaille avec paille de moins de 6 mois"},{"$f":"Reference_effluents!D32","v":"Fumier de volailles"},null,null,null,null,null,null,null,null,null,null,null,null,null,null,null,null,null,null,null,null,null,null,null,null,null,null,null,null,null,null,null,null,null,null,null,null,null,null,null,null,null,null,null,"Digestat issu de Méthanisation","Digestat issu de Méthanisation (2 kg N/t ou m3)",2,{"$f":"IF(ISERROR(VLOOKUP(J27,Reference_effluents!$B$6:$AB$77,27,FALSE)),\"\",VLOOKUP(J27,Reference_effluents!$B$6:$AB$77,27,FALSE))","v":""}]
[null,null,null,null,0,null,null,null,null,null,null,null,null,null,null,null,"",null,null,{"$f":"Reference_effluents!B33","v":"Pintades : Compost de litière de sciure de moins 6 mois "},{"$f":"Reference_effluents!D33","v":"Fumier de volailles"},null,null,null,null,null,null,null,null,null,null,null,null,null,null,null,null,null,null,null,null,null,null,null,null,null,null,null,null,null,null,null,null,null,null,null,null,null,null,null,null,null,null,null,"Compost de refus de tamis (Issus de centrif. du LP) : C/N > 8","Compost de refus de tamis (Issus de centrif. du LP) : C/N > 8 (16,9 kg N/t ou m3)",16.899999999999999,{"$f":"IF(ISERROR(VLOOKUP(J28,Reference_effluents!$B$6:$AB$77,27,FALSE)),\"\",VLOOKUP(J28,Reference_effluents!$B$6:$AB$77,27,FALSE))","v":""}]
[null,null,null,null,0,null,null,null,null,null,null,null,null,null,null,null,"",null,null,{"$f":"Reference_effluents!B34","v":"Poules repro frais : Compost de litière de sciure de moins 6 mois"},{"$f":"Reference_effluents!D34","v":"Fumier de volailles"},null,null,null,null,null,null,null,null,null,null,null,null,null,null,null,null,null,null,null,null,null,null,null,null,null,null,null,null,null,null,null,null,null,null,null,null,null,null,null,null,null,null,null,"Fraction liquide de lisier centrifugé","Fraction liquide de lisier centrifugé (3,4 kg N/t ou m3)",3.4,{"$f":"IF(ISERROR(VLOOKUP(J29,Reference_effluents!$B$6:$AB$77,27,FALSE)),\"\",VLOOKUP(J29,Reference_effluents!$B$6:$AB$77,27,FALSE))","v":""}]
[null,null,null,null,0,null,null,null,null,null,null,null,null,null,null,null,"",null,null,{"$f":"Reference_effluents!B35","v":"poulets label frais : Compost de litière de sciure de moins 6 mois "},{"$f":"Reference_effluents!D35","v":"Fumier de volailles"},null,null,null,null,null,null,null,null,null,null,null,null,null,null,null,null,null,null,null,null,null,null,null,null,null,null,null,null,null,null,null,null,null,null,null,null,null,null,null,null,null,null,null,"Fraction liquide de lisier centrifugé","Fraction liquide de lisier centrifugé (0,2 kg N/t ou m3)",0.2,{"$f":"IF(ISERROR(VLOOKUP(J30,Reference_effluents!$B$6:$AB$77,27,FALSE)),\"\",VLOOKUP(J30,Reference_effluents!$B$6:$AB$77,27,FALSE))","v":""}]
[null,null,null,null,0,"Ecart entre azote global en entrée\net azote global des sous-produits\n=  (1) - (2) -(3)",null,null,null,null,null,null,null,null,null,null,"",null,null,{"$f":"Reference_effluents!B36","v":"Poulets, dindes :  Compost de litière de sciure de moins 6 mois "},{"$f":"Reference_effluents!D36","v":"Fumier de volailles"},null,null,null,null,null,null,null,null,null,null,null,null,null,null,null,null,null,null,null,null,null,null,null,null,null,null,null,null,null,null,null,null,null,null,null,null,null,null,null,null,null,null,null,"Compost de fumier de bovin < 3 mois","Compost de fumier de bovin < 3 mois (6 kg N/t ou m3)",6,{"$f":"IF(ISERROR(VLOOKUP(J31,Reference_effluents!$B$6:$AB$77,27,FALSE)),\"\",VLOOKUP(J31,Reference_effluents!$B$6:$AB$77,27,FALSE))","v":""}]
[null,null,null,null,0,null,null,null,null,null,null,null,null,null,null,null,"",null,null,{"$f":"Reference_effluents!B37","v":"Poulettes frais : Compost de litière de sciure de moins 6 mois"},{"$f":"Reference_effluents!D37","v":"Fumier de volailles"},null,null,null,null,null,null,null,null,null,null,null,null,null,null,null,null,null,null,null,null,null,null,null,null,null,null,null,null,null,null,null,null,null,null,null,null,null,null,null,null,null,null,null,null,null,null,{"$f":"IF(ISERROR(VLOOKUP(J32,Reference_effluents!$B$6:$AB$77,27,FALSE)),\"\",VLOOKUP(J32,Reference_effluents!$B$6:$AB$77,27,FALSE))","v":""}]
[null,null,null,null,0,null,null,null,null,null,null,null,null,null,null,null,"",null,null,{"$f":"Reference_effluents!B38","v":"Vieux Compost de litière de volaille avec paille de plus de 10 mois"},{"$f":"Reference_effluents!D38","v":"Fumier de volailles"},null,null,null,null,null,null,null,null,null,null,null,null,null,null,null,null,null,null,null,null,null,null,null,null,null,null,null,null,null,null,null,null,null,null,null,null,null,null,null,null,null,null,null,null,null,null,{"$f":"IF(ISERROR(VLOOKUP(J33,Reference_effluents!$B$6:$AB$77,27,FALSE)),\"\",VLOOKUP(J33,Reference_effluents!$B$6:$AB$77,27,FALSE))","v":""}]
[null,null,null,null,null,null,null,null,null,null,null,null,null,null,null,null,null,null,null,{"$f":"Reference_effluents!B39","v":"Vieux Compost de litière de volaille avec sciure de plus de 10 mois."},{"$f":"Reference_effluents!D39","v":"Fumier de volailles"},null,null,null,null,null,null,null,null,null,null,null,null,null,null,null,null,null,null,null,null,null,null,null,null,null,null,null,null,null,null,null,null,null,null,null,null,null,null,null,null,null,null,null,null,null,null,{"$f":"IF(ISERROR(VLOOKUP(J34,Reference_effluents!$B$6:$AB$77,27,FALSE)),\"\",VLOOKUP(J34,Reference_effluents!$B$6:$AB$77,27,FALSE))","v":""}]
[null,"Total azote avant traitement, méthanisation ou compostage (kg)",null,null,{"$f":"SUM(E25:E33)","v":0},{"$f":"E35-I35-P35","v":0},null,null,{"$f":"SUM(I25:I33)","v":0},"Total azote après traitement ou compostage (kg)",null,null,null,null,null,{"$f":"O25*P25+O26*P26+O27*P27+O28*P28+O29*P29+O30*P30+O31*P31+O32*P32+O33*P33","v":0},null,null,null,{"$f":"Reference_effluents!B40","v":"Boue issue de station de traitement de lisier"},{"$f":"Reference_effluents!D40","v":"Lisier de porcs"},null,null,null,null,null,null,null,null,null,null,null,null,null,null,null,null,null,null,null,null,null,null,null,null,null,null,null,null,null,null,null,null,null,null,null,null,null,null,null,null,null,null,null,null,null,null,{"$f":"IF(ISERROR(VLOOKUP(J35,Reference_effluents!$B$6:$AB$77,27,FALSE)),\"\",VLOOKUP(J35,Reference_effluents!$B$6:$AB$77,27,FALSE))","v":""}]
[null,null,null,null,"(1)",null,null,null,"(2)",null,null,null,null,null,null,"(3)",null,null,null,{"$f":"Reference_effluents!B41","v":"Compost de Lisier de porcs \"Guernévez\" de 6  à 10 mois"},{"$f":"Reference_effluents!D41","v":"Lisier de porcs"},null,null,null,null,null,null,null,null,null,null,null,null,null,null,null,null,null,null,null,null,null,null,null,null,null,null,null,null,null,null,null,null,null,null,null,null,null,null,null,null,null,null,null,null,null,null,{"$f":"IF(ISERROR(VLOOKUP(J36,Reference_effluents!$B$6:$AB$77,27,FALSE)),\"\",VLOOKUP(J36,Reference_effluents!$B$6:$AB$77,27,FALSE))","v":""}]
[null,null,null,null,null,null,null,null,null,null,null,null,null,null,null,null,null,null,null,{"$f":"Reference_effluents!B42","v":"Compost de lisier de porcs \"Guernévez\" de moins de 6 mois"},{"$f":"Reference_effluents!D42","v":"Lisier de porcs"},null,null,null,null,null,null,null,null,null,null,null,null,null,null,null,null,null,null,null,null,null,null,null,null,null,null,null,null,null,null,null,null,null,null,null,null,null,null,null,null,null,null,null,null,null,null,{"$f":"IF(ISERROR(VLOOKUP(J37,Reference_effluents!$B$6:$AB$77,27,FALSE)),\"\",VLOOKUP(J37,Reference_effluents!$B$6:$AB$77,27,FALSE))","v":""}]
[null,null,null,null,null,{"$f":"\"Ecart < \" & Reference_divers!I3 & \"%\"","v":"Ecart < 5%"},null,null,null,null,null,null,null,null,null,null,null,null,null,{"$f":"Reference_effluents!B43","v":"Compost de refus de tamis (Issus de centrif. du LP) : C/N > 8"},{"$f":"Reference_effluents!D43","v":"Lisier de porcs"},null,null,null,null,null,null,null,null,null,null,null,null,null,null,null,null,null,null,null,null,null,null,null,null,null,null,null,null,null,null,null,null,null,null,null,null,null,null,null,null,null,null,null,null,null,null,{"$f":"IF(ISERROR(VLOOKUP(J38,Reference_effluents!$B$6:$AB$77,27,FALSE)),\"\",VLOOKUP(J38,Reference_effluents!$B$6:$AB$77,27,FALSE))","v":""}]
[null,null,null,null,null,{"$f":"\"Ecart de \" & Reference_divers!I3 & \" à \" & Reference_divers!I4 & \"%\"","v":"Ecart de 5 à 10%"},null,null,null,null,null,null,null,null,null,null,null,null,null,{"$f":"Reference_effluents!B44","v":"Fraction liquide de lisier centrifugé"},{"$f":"Reference_effluents!D44","v":"Lisier de porcs"},null,null,null,null,null,null,null,null,null,null,null,null,null,null,null,null,null,null,null,null,null,null,null,null,null,null,null,null,null,null,null,null,null,null,null,null,null,null,null,null,null,null,null,null,null,null,{"$f":"IF(ISERROR(VLOOKUP(J39,Reference_effluents!$B$6:$AB$77,27,FALSE)),\"\",VLOOKUP(J39,Reference_effluents!$B$6:$AB$77,27,FALSE))","v":""}]
[null,null,null,null,null,{"$f":"\"Ecart > \" & Reference_divers!I4 & \"%\"","v":"Ecart > 10%"},null,null,null,null,null,null,null,null,null,null,null,null,null,{"$f":"Reference_effluents!B45","v":"Refus de tamis issus de centrif. de lisier de porcs"},{"$f":"Reference_effluents!D45","v":"Lisier de porcs"},null,null,null,null,null,null,null,null,null,null,null,null,null,null,null,null,null,null,null,null,null,null,null,null,null,null,null,null,null,null,null,null,null,null,null,null,null,null,null,null,null,null,null,null,null,null,{"$f":"IF(ISERROR(VLOOKUP(J40,Reference_effluents!$B$6:$AB$77,27,FALSE)),\"\",VLOOKUP(J40,Reference_effluents!$B$6:$AB$77,27,FALSE))","v":""}]
[null,null,null,null,null,null,null,null,null,null,null,null,null,null,null,null,null,null,null,{"$f":"Reference_effluents!B46","v":"Vieux Compost de Lisier de pocs avec déchets verts  de plus 10 mois"},{"$f":"Reference_effluents!D46","v":"Lisier de porcs"},null,null,null,null,null,null,null,null,null,null,null,null,null,null,null,null,null,null,null,null,null,null,null,null,null,null,null,null,null,null,null,null,null,null,null,null,null,null,null,null,null,null,null,null,null,null,{"$f":"IF(ISERROR(VLOOKUP(J41,Reference_effluents!$B$6:$AB$77,27,FALSE)),\"\",VLOOKUP(J41,Reference_effluents!$B$6:$AB$77,27,FALSE))","v":""}]
[null,"Exports",null,null,null,null,null,"Imports",null,null,null,null,null,null,null,null,null,null,null,{"$f":"Reference_effluents!B47","v":"Vieux Compost Lisier de porcs  \"Guernévez\" de plus 10 mois"},{"$f":"Reference_effluents!D47","v":"Lisier de porcs"}]
[null,"Nom du tiers","Type d'effluent","Quantité transférée\n(t ou m3)","Teneur en azote\n(kg/t ou m3)","Transfert Azote (kg)",null,"Nom du tiers",null,null,"Type d'effluent ou \nproduit organique d'origine animale",null,null,null,"Quantité importée\n(t ou m3)","Teneur Azote\n(kg/t ou m3)","% d'azote\nd'origine animale",null,null,{"$f":"Reference_effluents!B48","v":"Fumier de porcs de moins de 6 mois"},{"$f":"Reference_effluents!D48","v":"Porcs"}]
[null,null,null,null,{"$f":"IF(ISERROR(VLOOKUP(C44,$BN$25:$BO$41,1,FALSE)),\"\",VLOOKUP(C44,$BN$25:$BO$41,2,FALSE))","v":""},{"$f":"IF(E44<>\"\",D44*E44,\"\")","v":""},null,null,null,null,null,null,null,null,null,null,{"$f":"IF(BP44=\"\",\"\",IF(BP44=\"O\",100,IF(BP44=\"N\",0,\"?\")))","v":""},null,null,{"$f":"Reference_effluents!B49","v":"Fumier de porcs de 6 à 10 mois"},{"$f":"Reference_effluents!D49","v":"Porcs"},null,null,null,null,null,null,null,null,null,null,null,null,null,null,null,null,null,null,null,null,null,null,null,null,null,null,null,null,null,null,null,null,null,null,null,null,null,null,null,null,null,null,null,null,null,null,{"$f":"IF(ISERROR(VLOOKUP(K44,Reference_effluents!$B$6:$AB$77,27,FALSE)),\"\",VLOOKUP(K44,Reference_effluents!$B$6:$AB$77,27,FALSE))","v":""}]
[null,null,null,null,"",{"$f":"IF(E45<>\"\",D45*E45,\"\")","v":""},null,null,null,null,null,null,null,null,null,null,{"$f":"IF(BP45=\"\",\"\",IF(BP45=\"O\",100,IF(BP45=\"N\",0,\"?\")))","v":""},null,null,{"$f":"Reference_effluents!B50","v":"Fumier de porcs de plus de 10 mois"},{"$f":"Reference_effluents!D50","v":"Porcs"},null,null,null,null,null,null,null,null,null,null,null,null,null,null,null,null,null,null,null,null,null,null,null,null,null,null,null,null,null,null,null,null,null,null,null,null,null,null,null,null,null,null,null,null,null,null,{"$f":"IF(ISERROR(VLOOKUP(K45,Reference_effluents!$B$6:$AB$77,27,FALSE)),\"\",VLOOKUP(K45,Reference_effluents!$B$6:$AB$77,27,FALSE))","v":""}]
[null,null,null,null,"",{"$f":"IF(E46<>\"\",D46*E46,\"\")","v":""},null,null,null,null,null,null,null,null,null,null,"",null,null,{"$f":"Reference_effluents!B51","v":"Refus centrifugation"},{"$f":"Reference_effluents!D51","v":"Lisier de porcs"},null,null,null,null,null,null,null,null,null,null,null,null,null,null,null,null,null,null,null,null,null,null,null,null,null,null,null,null,null,null,null,null,null,null,null,null,null,null,null,null,null,null,null,null,null,null,{"$f":"IF(ISERROR(VLOOKUP(K46,Reference_effluents!$B$6:$AB$77,27,FALSE)),\"\",VLOOKUP(K46,Reference_effluents!$B$6:$AB$77,27,FALSE))","v":""}]
[null,null,null,null,"",{"$f":"IF(E47<>\"\",D47*E47,\"\")","v":""},null,null,null,null,null,null,null,null,null,null,"",null,null,{"$f":"Reference_effluents!B52","v":"Lisier de maternité gestantes"},{"$f":"Reference_effluents!D52","v":"Porcs"},null,null,null,null,null,null,null,null,null,null,null,null,null,null,null,null,null,null,null,null,null,null,null,null,null,null,null,null,null,null,null,null,null,null,null,null,null,null,null,null,null,null,null,null,null,null,{"$f":"IF(ISERROR(VLOOKUP(K47,Reference_effluents!$B$6:$AB$77,27,FALSE)),\"\",VLOOKUP(K47,Reference_effluents!$B$6:$AB$77,27,FALSE))","v":""}]
[null,null,null,null,"","",null,null,null,null,null,null,null,null,null,null,"",null,null,{"$f":"Reference_effluents!B53","v":"Lisier de porcs avec déchet verts de 6  à 10 mois"},{"$f":"Reference_effluents!D53","v":"Porcs"},null,null,null,null,null,null,null,null,null,null,null,null,null,null,null,null,null,null,null,null,null,null,null,null,null,null,null,null,null,null,null,null,null,null,null,null,null,null,null,null,null,null,null,null,null,null,{"$f":"IF(ISERROR(VLOOKUP(K48,Reference_effluents!$B$6:$AB$77,27,FALSE)),\"\",VLOOKUP(K48,Reference_effluents!$B$6:$AB$77,27,FALSE))","v":""}]
[null,null,null,null,"","",null,null,null,null,null,null,null,null,null,null,"",null,null,{"$f":"Reference_effluents!B54","v":"Lisier de porcs moyen dilué"},{"$f":"Reference_effluents!D54","v":"Porcs"},null,null,null,null,null,null,null,null,null,null,null,null,null,null,null,null,null,null,null,null,null,null,null,null,null,null,null,null,null,null,null,null,null,null,null,null,null,null,null,null,null,null,null,null,null,null,{"$f":"IF(ISERROR(VLOOKUP(K49,Reference_effluents!$B$6:$AB$77,27,FALSE)),\"\",VLOOKUP(K49,Reference_effluents!$B$6:$AB$77,27,FALSE))","v":""}]
[null,null,null,null,"","",null,null,null,null,null,null,null,null,null,null,"",null,null,{"$f":"Reference_effluents!B55","v":"Lisier de porcs moyen non dilué"},{"$f":"Reference_effluents!D55","v":"Porcs"},null,null,null,null,null,null,null,null,null,null,null,null,null,null,null,null,null,null,null,null,null,null,null,null,null,null,null,null,null,null,null,null,null,null,null,null,null,null,null,null,null,null,null,null,null,null,{"$f":"IF(ISERROR(VLOOKUP(K50,Reference_effluents!$B$6:$AB$77,27,FALSE)),\"\",VLOOKUP(K50,Reference_effluents!$B$6:$AB$77,27,FALSE))","v":""}]
[null,null,null,null,"","",null,null,null,null,null,null,null,null,null,null,"",null,null,{"$f":"Reference_effluents!B56","v":"Lisier de porcs filtré"},{"$f":"Reference_effluents!D56","v":"Porcs"},null,null,null,null,null,null,null,null,null,null,null,null,null,null,null,null,null,null,null,null,null,null,null,null,null,null,null,null,null,null,null,null,null,null,null,null,null,null,null,null,null,null,null,null,null,null,{"$f":"IF(ISERROR(VLOOKUP(K51,Reference_effluents!$B$6:$AB$77,27,FALSE)),\"\",VLOOKUP(K51,Reference_effluents!$B$6:$AB$77,27,FALSE))","v":""}]
[null,null,null,null,"","",null,null,null,null,null,null,null,null,null,null,"",null,null,{"$f":"Reference_effluents!B57","v":"Lisier de prefosse engraissement"},{"$f":"Reference_effluents!D57","v":"Porcs"},null,null,null,null,null,null,null,null,null,null,null,null,null,null,null,null,null,null,null,null,null,null,null,null,null,null,null,null,null,null,null,null,null,null,null,null,null,null,null,null,null,null,null,null,null,null,{"$f":"IF(ISERROR(VLOOKUP(K52,Reference_effluents!$B$6:$AB$77,27,FALSE)),\"\",VLOOKUP(K52,Reference_effluents!$B$6:$AB$77,27,FALSE))","v":""}]
[null,null,null,null,"","",null,null,null,null,null,null,null,null,null,null,"",null,null,{"$f":"Reference_effluents!B58","v":"Lisier d'engraissement concentré"},{"$f":"Reference_effluents!D58","v":"Porcs"},null,null,null,null,null,null,null,null,null,null,null,null,null,null,null,null,null,null,null,null,null,null,null,null,null,null,null,null,null,null,null,null,null,null,null,null,null,null,null,null,null,null,null,null,null,null,{"$f":"IF(ISERROR(VLOOKUP(K53,Reference_effluents!$B$6:$AB$77,27,FALSE)),\"\",VLOOKUP(K53,Reference_effluents!$B$6:$AB$77,27,FALSE))","v":""}]
[null,null,null,null,"","",null,null,null,null,null,null,null,null,null,null,"",null,null,{"$f":"Reference_effluents!B59","v":"Boues bio (trait simple)"},{"$f":"Reference_effluents!D59","v":"Lisier de porcs"},null,null,null,null,null,null,null,null,null,null,null,null,null,null,null,null,null,null,null,null,null,null,null,null,null,null,null,null,null,null,null,null,null,null,null,null,null,null,null,null,null,null,null,null,null,null,{"$f":"IF(ISERROR(VLOOKUP(K54,Reference_effluents!$B$6:$AB$77,27,FALSE)),\"\",VLOOKUP(K54,Reference_effluents!$B$6:$AB$77,27,FALSE))","v":""}]
[null,null,null,null,"","",null,null,null,null,null,null,null,null,null,null,"",null,null,{"$f":"Reference_effluents!B60","v":"Boues bio (avec centrif)"},{"$f":"Reference_effluents!D60","v":"Lisier de porcs"},null,null,null,null,null,null,null,null,null,null,null,null,null,null,null,null,null,null,null,null,null,null,null,null,null,null,null,null,null,null,null,null,null,null,null,null,null,null,null,null,null,null,null,null,null,null,{"$f":"IF(ISERROR(VLOOKUP(K55,Reference_effluents!$B$6:$AB$77,27,FALSE)),\"\",VLOOKUP(K55,Reference_effluents!$B$6:$AB$77,27,FALSE))","v":""}]
[null,null,null,null,"","",null,null,null,null,null,null,null,null,null,null,"",null,null,{"$f":"Reference_effluents!B61","v":"Effluent traité (porc)"},{"$f":"Reference_effluents!D61","v":"Lisier de porcs"},null,null,null,null,null,null,null,null,null,null,null,null,null,null,null,null,null,null,null,null,null,null,null,null,null,null,null,null,null,null,null,null,null,null,null,null,null,null,null,null,null,null,null,null,null,null,{"$f":"IF(ISERROR(VLOOKUP(K56,Reference_effluents!$B$6:$AB$77,27,FALSE)),\"\",VLOOKUP(K56,Reference_effluents!$B$6:$AB$77,27,FALSE))","v":""}]
[null,null,null,null,"","",null,null,null,null,null,null,null,null,null,null,"",null,null,{"$f":"Reference_effluents!B62","v":"Boue de lagunage (C/N > 8)"},{"$f":"Reference_effluents!D62","v":"Externe"},null,null,null,null,null,null,null,null,null,null,null,null,null,null,null,null,null,null,null,null,null,null,null,null,null,null,null,null,null,null,null,null,null,null,null,null,null,null,null,null,null,null,null,null,null,null,{"$f":"IF(ISERROR(VLOOKUP(K57,Reference_effluents!$B$6:$AB$77,27,FALSE)),\"\",VLOOKUP(K57,Reference_effluents!$B$6:$AB$77,27,FALSE))","v":""}]
[null,null,null,null,"","",null,null,null,null,null,null,null,null,null,null,"",null,null,{"$f":"Reference_effluents!B63","v":"Boue urbaine, pateuse chaulée ou séchée ou boue lagunage C/N<8    "},{"$f":"Reference_effluents!D63","v":"Externe"},null,null,null,null,null,null,null,null,null,null,null,null,null,null,null,null,null,null,null,null,null,null,null,null,null,null,null,null,null,null,null,null,null,null,null,null,null,null,null,null,null,null,null,null,null,null,{"$f":"IF(ISERROR(VLOOKUP(K58,Reference_effluents!$B$6:$AB$77,27,FALSE)),\"\",VLOOKUP(K58,Reference_effluents!$B$6:$AB$77,27,FALSE))","v":""}]
[null,null,null,null,null,null,null,null,null,null,null,null,null,null,null,null,null,null,null,{"$f":"Reference_effluents!B64","v":"Boue de STEP ou issue d’IAA Avec C/N <  2, riche en NH4, liquide             "},{"$f":"Reference_effluents!D64","v":"Externe"}]
[null,"Récapitulatif total des effluents à épandre",null,null,null,null,null,null,null,null,null,null,null,null,null,null,null,null,null,{"$f":"Reference_effluents!B65","v":"Boue liquide de STEP ou issue d’IAA"},{"$f":"Reference_effluents!D65","v":"Externe"}]
[null,"Type d'effluent",null,"Tonnage ou volume\n(t ou m3)","Teneur en azote\n(kg / t ou m3)","Total azote\n(kg N)","Total azote d'origine animale\n(kg N)",null,"Total azote d'origine autre\n(kg N)",null,null,null,null,null,null,null,null,null,null,{"$f":"Reference_effluents!B66","v":"Fientes de poules humides  ( < 65 % MS) "},{"$f":"Reference_effluents!D66","v":"Volailles"}]
[null,null,null,null,null,null,null,null,null,null,null,null,null,null,null,null,null,null,null,{"$f":"Reference_effluents!B67","v":"Fientes de poules sèches après pré-sèchage ( > 65 % MS) "},{"$f":"Reference_effluents!D67","v":"Volailles"},null,null,null,null,null,null,null,null,null,null,null,null,null,null,null,null,null,null,null,null,null,null,null,null,null,null,null,null,null,null,null,null,null,null,null,null,"N d'orig.  animale","effluent libellé complet","Libelle sans tenreur","teneur",{"$f":"Reference_cultures!$Q22","v":"PPF Céréales"},{"$f":"Reference_cultures!$Q23","v":"PPF Colza"},{"$f":"Reference_cultures!$Q24","v":"PPF Maïs"},{"$f":"Reference_cultures!$Q25","v":"PPF Dérobée + Maïs"},{"$f":"Reference_cultures!$Q26","v":"PPF Prairies"},{"$f":"Reference_cultures!$Q27","v":"PPF Légumes frais"},{"$f":"Reference_cultures!$Q28","v":"PPF Légumes - industries"},{"$f":"Reference_cultures!$Q29","v":"PPF Autres cultures"},"Solde"]
[null,null,null,null,null,{"$f":"IF(ISBLANK(B63),,IF(B63=\"\",,D63*E63))","v":0},{"$f":"F63*BF63/100","v":0},null,{"$f":"F63-G63","v":0},null,null,null,null,null,null,null,null,null,null,{"$f":"Reference_effluents!B68","v":"Fientes de poules sèches après sèchage rapide ( > 65 % MS) "},{"$f":"Reference_effluents!D68","v":"Volailles"},null,null,null,null,null,null,null,null,null,null,null,null,null,null,null,null,null,null,null,null,null,null,null,null,null,null,null,null,null,null,null,null,null,null,null,null,100,{"$f":"IF(ISBLANK(B63),\"\",B63&\" (\"&E63&\" kg N/t ou m3)\")","v":""},{"$f":"B63","v":0},{"$f":"E63","v":0},0,0,0,0,0,0,0,0,{"$f":"D63-(SUM(BJ63:BQ63))","v":0}]
[null,null,null,null,null,0,0,null,{"$f":"F64-G64","v":0},null,null,null,null,null,null,null,null,null,null,{"$f":"Reference_effluents!B69","v":"Lisier de canards"},{"$f":"Reference_effluents!D69","v":"Volailles"},null,null,null,null,null,null,null,null,null,null,null,null,null,null,null,null,null,null,null,null,null,null,null,null,null,null,null,null,null,null,null,null,null,null,null,null,100,"",0,{"$f":"E64","v":0},0,0,0,0,0,0,0,0,0]
[null,null,null,null,null,0,0,null,0,null,null,null,null,null,null,null,null,null,null,{"$f":"Reference_effluents!B70","v":"Dindes futures repro : Fumier après stockage  (de plus de 4 mois)"},{"$f":"Reference_effluents!D70","v":"Volailles"},null,null,null,null,null,null,null,null,null,null,null,null,null,null,null,null,null,null,null,null,null,null,null,null,null,null,null,null,null,null,null,null,null,null,null,null,50,"",0,0,0,0,0,0,0,0,0,0,0]
[null,null,null,null,null,0,0,null,0,null,null,null,null,null,null,null,null,null,null,{"$f":"Reference_effluents!B71","v":"Dindes repro : Fumier après stockage  (de plus de 4 mois)"},{"$f":"Reference_effluents!D71","v":"Volailles"},null,null,null,null,null,null,null,null,null,null,null,null,null,null,null,null,null,null,null,null,null,null,null,null,null,null,null,null,null,null,null,null,null,null,null,null,100,"",0,0,0,0,0,0,0,0,0,0,0]
[null,null,null,null,null,0,0,null,0,null,null,null,null,null,null,null,null,null,null,{"$f":"Reference_effluents!B72","v":"Litière de volaille. avec paille de 6  à 10 mois"},{"$f":"Reference_effluents!D72","v":"Volailles"},null,null,null,null,null,null,null,null,null,null,null,null,null,null,null,null,null,null,null,null,null,null,null,null,null,null,null,null,null,null,null,null,null,null,null,null,null,"",0,0,0,0,0,0,0,0,0,0,0]
[null,null,null,null,null,0,0,null,0,null,null,null,null,null,null,null,null,null,null,{"$f":"Reference_effluents!B73","v":"Pintades : Fumier après stockage  (de plus de 4 mois)"},{"$f":"Reference_effluents!D73","v":"Volailles"},null,null,null,null,null,null,null,null,null,null,null,null,null,null,null,null,null,null,null,null,null,null,null,null,null,null,null,null,null,null,null,null,null,null,null,null,null,"",0,0,0,0,0,0,0,0,0,0,0]
[null,null,null,null,null,0,0,null,0,null,null,null,null,null,null,null,null,null,null,{"$f":"Reference_effluents!B74","v":"Pintades : Fumier sortie poulailler ( de moins de 4 mois )"},{"$f":"Reference_effluents!D74","v":"Volailles"},null,null,null,null,null,null,null,null,null,null,null,null,null,null,null,null,null,null,null,null,null,null,null,null,null,null,null,null,null,null,null,null,null,null,null,null,null,"",0,0,0,0,0,0,0,0,0,0,0]
[null,null,null,null,null,0,0,null,0,null,null,null,null,null,null,null,null,null,null,{"$f":"Reference_effluents!B75","v":"Poules repro : Fumier après stockage  (de plus de 4 mois)"},{"$f":"Reference_effluents!D75","v":"Volailles"},null,null,null,null,null,null,null,null,null,null,null,null,null,null,null,null,null,null,null,null,null,null,null,null,null,null,null,null,null,null,null,null,null,null,null,null,null,"",0,0,0,0,0,0,0,0,0,0,0]
[null,null,null,null,null,0,0,null,0,null,null,null,null,null,null,null,null,null,null,{"$f":"Reference_effluents!B76","v":"Poules repro frais : Fumier ( de moins de 4 mois )"},{"$f":"Reference_effluents!D76","v":"Volailles"},null,null,null,null,null,null,null,null,null,null,null,null,null,null,null,null,null,null,null,null,null,null,null,null,null,null,null,null,null,null,null,null,null,null,null,null,null,"",0,0,0,0,0,0,0,0,0,0,0]
[null,null,null,null,null,0,0,null,0,null,null,null,null,null,null,null,null,null,null,{"$f":"Reference_effluents!B77","v":"poulets label et bio  : Fumier après stockage  (de plus de 4 mois)"},{"$f":"Reference_effluents!D77","v":"Volailles"},null,null,null,null,null,null,null,null,null,null,null,null,null,null,null,null,null,null,null,null,null,null,null,null,null,null,null,null,null,null,null,null,null,null,null,null,null,"",0,0,0,0,0,0,0,0,0,0,0]
[null,null,null,null,null,0,0,null,0,null,null,null,null,null,null,null,null,null,null,{"$f":"Reference_effluents!B78","v":"poulets label frais : Fumier ( de moins de 4 mois )"},{"$f":"Reference_effluents!D78","v":"Volailles"},null,null,null,null,null,null,null,null,null,null,null,null,null,null,null,null,null,null,null,null,null,null,null,null,null,null,null,null,null,null,null,null,null,null,null,null,null,"",0,0,0,0,0,0,0,0,0,0,0]
[null,null,null,null,null,0,0,null,0,null,null,null,null,null,null,null,null,null,null,{"$f":"Reference_effluents!B79","v":"Poulets, dindes : Fumier après stockage (de plus de 4 mois)"},{"$f":"Reference_effluents!D79","v":"Volailles"},null,null,null,null,null,null,null,null,null,null,null,null,null,null,null,null,null,null,null,null,null,null,null,null,null,null,null,null,null,null,null,null,null,null,null,null,null,"",0,0,0,0,0,0,0,0,0,0,0]
[null,null,null,null,null,0,0,null,0,null,null,null,null,null,null,null,null,null,null,{"$f":"Reference_effluents!B80","v":"Poulets, dindes : fumier sortie poulailler ( de moins de 4 mois)"},{"$f":"Reference_effluents!D80","v":"Volailles"},null,null,null,null,null,null,null,null,null,null,null,null,null,null,null,null,null,null,null,null,null,null,null,null,null,null,null,null,null,null,null,null,null,null,null,null,null,"",0,0,0,0,0,0,0,0,0,0,0]
[null,null,null,null,null,0,0,null,0,null,null,null,null,null,null,null,null,null,null,{"$f":"Reference_effluents!B81","v":"Poulettes : Fumier après stockage  (de plus de 4 mois)"},{"$f":"Reference_effluents!D81","v":"Volailles"},null,null,null,null,null,null,null,null,null,null,null,null,null,null,null,null,null,null,null,null,null,null,null,null,null,null,null,null,null,null,null,null,null,null,null,null,null,"",0,0,0,0,0,0,0,0,0,0,0]
[null,null,null,null,null,0,0,null,0,null,null,null,null,null,null,null,null,null,null,{"$f":"Reference_effluents!B82","v":"Poulettes frais : Fumier ( de moins de 4 mois  )"},{"$f":"Reference_effluents!D82","v":"Volailles"},null,null,null,null,null,null,null,null,null,null,null,null,null,null,null,null,null,null,null,null,null,null,null,null,null,null,null,null,null,null,null,null,null,null,null,null,null,"",0,0,0,0,0,0,0,0,0,0,0]
[null,"Total",null,null,null,{"$f":"SUM(F63:F77)","v":0},{"$f":"SUM(G63:G77)","v":0},null,{"$f":"SUM(I63:I77)","v":0}]

{"sheet":"Cultures et ilots PAC","index":4,"n_rows":141,"n_cols":94,"rows_kept":141,"cut":false,"hidden":false,"merged":[[5,26,6,26],[2,93,3,93],[3,8,3,12],[2,90,2,92],[5,23,5,25],[2,75,2,76],[2,77,2,82],[2,83,2,89],[7,1,7,2],[0,52,1,52],[0,53,1,53],[0,1,0,11],[5,8,5,9],[5,10,5,15],[5,16,5,22],[4,8,4,12],[4,1,4,2],[3,1,3,5]]}
[null,"3) Détail des cultures et des îlots ",null,null,null,null,null,null,null,null,null,null,null,null,null,null,null,null,null,null,null,null,null,null,null,null,null,null,null,null,null,null,null,null,null,null,null,null,null,null,null,null,null,null,null,null,null,null,null,null,null,null,"nb ilot avant","Nb parcelles avant"]
[]
[null,null,null,null,null,null,null,null,null,null,null,null,null,null,null,null,null,null,null,null,null,null,null,null,null,null,null,null,null,null,null,null,null,null,null,null,null,null,null,null,null,null,null,null,null,null,null,null,null,null,null,null,0,0,null,null,null,null,null,null,null,null,null,null,null,null,null,null,null,null,null,null,null,null,null,"Ilot PAC",null,"Parcelle culturale",null,null,null,null,null,"Culture",null,null,null,null,null,null,"Si culture dérobée",null,null,"2ème culture sur cette parcelle ?"]
[null,"Ilots PAC",null,null,null,null,null,null,null,null,null,null,null,null,null,null,null,null,null,null,null,null,null,null,null,null,null,null,null,null,null,null,null,null,null,null,null,null,null,null,null,null,null,null,null,null,null,null,null,null,null,null,null,null,null,null,null,null,null,null,null,null,null,null,null,null,null,null,null,null,null,null,null,null,null,"Nom de l'ilot","N° ilôt","N° parcelle","SAU","SPE","SNE","Type de sol","Profondeur","Famille culturale","Culture","Unité du rendement","Objectif de rendement","Rendt moyen régional\n(Pour info.)","Traitement des pailles ou cannes","Production totale","date de semis","Objectif de rendement (T/ha)","Rendt standard\n(Pour info.)"]
[null,"Nb total d'îlots PAC",null,0,null,null,null,null,"3) Plan cultural",null,null,null,null,null,null,null,null,null,null,null,null,null,null,null,null,null,null,null,null,null,null,null,null,null,null,null,null,null,null,null,null,null,null,null,null,null,null,null,null,null,null,null,{"$f":"IF(ISERROR(VLOOKUP(Q5,Familles_nom,1,FALSE)),\"\",VLOOKUP(Q5,Familles_nom,2,FALSE))","v":""},null,null,null,null,null,null,null,null,null,null,null,null,null,null,null,null,null,null,null,null,null,null,null,null,null,null,null,null,null,null,null,null,{"$f":"IF(ISERROR(VLOOKUP(CG5,Cultures_complet,1,FALSE)),\"\",VLOOKUP(CG5,Cultures_complet,6,FALSE))","v":""},null,{"$f":"IF(ISERROR(VLOOKUP(CG5,Cultures_complet,1,FALSE)),\"\",VLOOKUP(CG5,Cultures_complet,5,FALSE))","v":""},null,{"$f":"CA5*CI5","v":0},null,null,{"$f":"IF(ISERROR(VLOOKUP(CM5,Derobee,5,FALSE)),\"\",VLOOKUP(CM5,Derobee,5,FALSE))","v":""},"Non"]
[null,null,null,null,null,null,null,null,"Ilot PAC",null,"Parcelle culturale",null,null,null,null,null,"Culture",null,null,null,null,null,null,"Si culture dérobée\n(avant la culture principale)",null,null,"Hors dérobée, est-il prévue une 2ème culture sur cette parcelle ?",null,null,null,null,null,null,null,null,null,null,null,null,null,null,null,null,null,null,null,null,null,null,null,null,null,{"$f":"IF(ISERROR(VLOOKUP(Q6,Familles_nom,1,FALSE)),\"\",VLOOKUP(Q6,Familles_nom,2,FALSE))","v":""},null,null,null,null,null,null,null,null,null,null,null,null,null,null,null,null,null,null,null,null,null,null,null,null,null,null,null,null,null,null,"Céréales",null,{"$f":"IF(ISERROR(VLOOKUP(CG6,Cultures_complet,1,FALSE)),\"\",VLOOKUP(CG6,Cultures_complet,6,FALSE))","v":""},null,{"$f":"IF(ISERROR(VLOOKUP(CG6,Cultures_complet,1,FALSE)),\"\",VLOOKUP(CG6,Cultures_complet,5,FALSE))","v":""},null,{"$f":"CA5*CI6","v":0}]
[null,"Nom de l'ilot PAC","N° îlot","Surface totale","Nb parcelles culturales","Cumul SAU\ndes parcelles saisies",null,null,"Nom de l'îlot","N° îlot","N° parcelle","SAU","SPE","SNE","Type de sol","Profondeur","Famille culturale","Culture","Unité du rendement","Objectif de rendement","Rendt moyen régional\n(Pour info.)","Pailles ou cannes exportées (Oui/Non)","Production totale","date de semis","Objectif de rendement (T/ha)","Objectif moyen (pour info.)\n(T/ha)",null,null,null,null,null,null,null,null,null,null,null,null,null,null,null,null,null,null,null,null,null,null,null,null,null,null,"Nom famille court",null,null,null,null,null,null,null,null,null,null,null,null,null,null,null,null,null,null,null,null,null,null,null,null,null,null,null,null,null,null,null,null,{"$f":"IF(ISERROR(VLOOKUP(CG7,Cultures_complet,1,FALSE)),\"\",VLOOKUP($R92,Cultures_complet,6,FALSE))","v":""},null,{"$f":"IF(ISERROR(VLOOKUP(CG7,Cultures_complet,1,FALSE)),\"\",VLOOKUP(CG7,Cultures_complet,5,FALSE))","v":""},null,{"$f":"CA7*CI7","v":0},null,null,{"$f":"IF(ISERROR(VLOOKUP(CM7,Derobee,5,FALSE)),\"\",VLOOKUP(CM7,Derobee,5,FALSE))","v":""},"Non"]
[null,"Total",null,null,null,null,null,null,"Total",null,null,{"$f":"SUM(L5:L7)","v":0},{"$f":"SUM(M5:M7)","v":0},{"$f":"SUM(N5:N7)","v":0},null,null,null,null,null,null,null,null,null,null,null,null,null,null,null,null,null,null,null,null,null,null,null,null,null,null,null,null,null,null,null,null,null,null,null,null,null,null,{"$f":"IF(ISERROR(VLOOKUP(Q8,Familles_nom,1,FALSE)),\"\",VLOOKUP(Q8,Familles_nom,2,FALSE))","v":""},null,null,null,null,null,null,null,null,null,null,null,null,null,null,null,null,null,null,null,null,null,null,"Total",null,null,{"$f":"SUM(CA5:CA7)","v":0},{"$f":"SUM(CB5:CB7)","v":0},{"$f":"SUM(CC5:CC7)","v":0}]
[null,null,null,null,null,null,null,null,null,null,null,null,null,null,null,null,null,null,null,null,null,null,null,null,null,null,null,null,null,null,null,null,null,null,null,null,null,null,null,null,null,null,null,null,null,null,null,null,null,null,null,null,""]
[null,null,null,null,null,null,null,null,null,null,null,null,null,null,null,null,null,null,null,null,null,null,null,null,null,null,null,null,null,null,null,null,null,null,null,null,null,null,null,null,null,null,null,null,null,null,null,null,null,null,null,null,""]
[null,null,null,null,null,null,null,null,null,null,null,null,null,null,null,null,null,null,null,null,null,null,null,null,null,null,null,null,null,null,null,null,null,null,null,null,null,null,null,null,null,null,null,null,null,null,null,null,null,null,null,null,""]
[null,null,null,null,null,null,null,null,null,null,null,null,null,null,null,null,null,null,null,null,null,null,null,null,null,null,null,null,null,null,null,null,null,null,null,null,null,null,null,null,null,null,null,null,null,null,null,null,null,null,null,null,""]
[null,null,null,null,null,null,null,null,null,null,null,null,null,null,null,null,null,null,null,null,null,null,null,null,null,null,null,null,null,null,null,null,null,null,null,null,null,null,null,null,null,null,null,null,null,null,null,null,null,null,null,null,""]
[null,null,null,null,null,null,null,null,null,null,null,null,null,null,null,null,null,null,null,null,null,null,null,null,null,null,null,null,null,null,null,null,null,null,null,null,null,null,null,null,null,null,null,null,null,null,null,null,null,null,null,null,""]
[null,null,null,null,null,null,null,null,null,null,null,null,null,null,null,null,null,null,null,null,null,null,null,null,null,null,null,null,null,null,null,null,null,null,null,null,null,null,null,null,null,null,null,null,null,null,null,null,null,null,null,null,""]
[null,null,null,null,null,null,null,null,null,null,null,null,null,null,null,null,null,null,null,null,null,null,null,null,null,null,null,null,null,null,null,null,null,null,null,null,null,null,null,null,null,null,null,null,null,null,null,null,null,null,null,null,""]
[null,null,null,null,null,null,null,null,null,null,null,null,null,null,null,null,null,null,null,null,null,null,null,null,null,null,null,null,null,null,null,null,null,null,null,null,null,null,null,null,null,null,null,null,null,null,null,null,null,null,null,null,""]
[null,null,null,null,null,null,null,null,null,null,null,null,null,null,null,null,null,null,null,null,null,null,null,null,null,null,null,null,null,null,null,null,null,null,null,null,null,null,null,null,null,null,null,null,null,null,null,null,null,null,null,null,""]
[null,null,null,null,null,null,null,null,null,null,null,null,null,null,null,null,null,null,null,null,null,null,null,null,null,null,null,null,null,null,null,null,null,null,null,null,null,null,null,null,null,null,null,null,null,null,null,null,null,null,null,null,""]
[null,null,null,null,null,null,null,null,null,null,null,null,null,null,null,null,null,null,null,null,null,null,null,null,null,null,null,null,null,null,null,null,null,null,null,null,null,null,null,null,null,null,null,null,null,null,null,null,null,null,null,null,""]
[null,null,null,null,null,null,null,null,null,null,null,null,null,null,null,null,null,null,null,null,null,null,null,null,null,null,null,null,null,null,null,null,null,null,null,null,null,null,null,null,null,null,null,null,null,null,null,null,null,null,null,null,""]
[null,null,null,null,null,null,null,null,null,null,null,null,null,null,null,null,null,null,null,null,null,null,null,null,null,null,null,null,null,null,null,null,null,null,null,null,null,null,null,null,null,null,null,null,null,null,null,null,null,null,null,null,""]
[null,null,null,null,null,null,null,null,null,null,null,null,null,null,null,null,null,null,null,null,null,null,null,null,null,null,null,null,null,null,null,null,null,null,null,null,null,null,null,null,null,null,null,null,null,null,null,null,null,null,null,null,""]
[null,null,null,null,null,null,null,null,null,null,null,null,null,null,null,null,null,null,null,null,null,null,null,null,null,null,null,null,null,null,null,null,null,null,null,null,null,null,null,null,null,null,null,null,null,null,null,null,null,null,null,null,""]
[null,null,null,null,null,null,null,null,null,null,null,null,null,null,null,null,null,null,null,null,null,null,null,null,null,null,null,null,null,null,null,null,null,null,null,null,null,null,null,null,null,null,null,null,null,null,null,null,null,null,null,null,""]
[null,null,null,null,null,null,null,null,null,null,null,null,null,null,null,null,null,null,null,null,null,null,null,null,null,null,null,null,null,null,null,null,null,null,null,null,null,null,null,null,null,null,null,null,null,null,null,null,null,null,null,null,""]
[null,null,null,null,null,null,null,null,null,null,null,null,null,null,null,null,null,null,null,null,null,null,null,null,null,null,null,null,null,null,null,null,null,null,null,null,null,null,null,null,null,null,null,null,null,null,null,null,null,null,null,null,""]
[null,null,null,null,null,null,null,null,null,null,null,null,null,null,null,null,null,null,null,null,null,null,null,null,null,null,null,null,null,null,null,null,null,null,null,null,null,null,null,null,null,null,null,null,null,null,null,null,null,null,null,null,""]
[null,null,null,null,null,null,null,null,null,null,null,null,null,null,null,null,null,null,null,null,null,null,null,null,null,null,null,null,null,null,null,null,null,null,null,null,null,null,null,null,null,null,null,null,null,null,null,null,null,null,null,null,""]
[null,null,null,null,null,null,null,null,null,null,null,null,null,null,null,null,null,null,null,null,null,null,null,null,null,null,null,null,null,null,null,null,null,null,null,null,null,null,null,null,null,null,null,null,null,null,null,null,null,null,null,null,""]
[null,null,null,null,null,null,null,null,null,null,null,null,null,null,null,null,null,null,null,null,null,null,null,null,null,null,null,null,null,null,null,null,null,null,null,null,null,null,null,null,null,null,null,null,null,null,null,null,null,null,null,null,""]
[null,null,null,null,null,null,null,null,null,null,null,null,null,null,null,null,null,null,null,null,null,null,null,null,null,null,null,null,null,null,null,null,null,null,null,null,null,null,null,null,null,null,null,null,null,null,null,null,null,null,null,null,""]
[null,null,null,null,null,null,null,null,null,null,null,null,null,null,null,null,null,null,null,null,null,null,null,null,null,null,null,null,null,null,null,null,null,null,null,null,null,null,null,null,null,null,null,null,null,null,null,null,null,null,null,null,""]
[null,null,null,null,null,null,null,null,null,null,null,null,null,null,null,null,null,null,null,null,null,null,null,null,null,null,null,null,null,null,null,null,null,null,null,null,null,null,null,null,null,null,null,null,null,null,null,null,null,null,null,null,""]
[null,null,null,null,null,null,null,null,null,null,null,null,null,null,null,null,null,null,null,null,null,null,null,null,null,null,null,null,null,null,null,null,null,null,null,null,null,null,null,null,null,null,null,null,null,null,null,null,null,null,null,null,""]
[null,null,null,null,null,null,null,null,null,null,null,null,null,null,null,null,null,null,null,null,null,null,null,null,null,null,null,null,null,null,null,null,null,null,null,null,null,null,null,null,null,null,null,null,null,null,null,null,null,null,null,null,""]
[null,null,null,null,null,null,null,null,null,null,null,null,null,null,null,null,null,null,null,null,null,null,null,null,null,null,null,null,null,null,null,null,null,null,null,null,null,null,null,null,null,null,null,null,null,null,null,null,null,null,null,null,""]
[null,null,null,null,null,null,null,null,null,null,null,null,null,null,null,null,null,null,null,null,null,null,null,null,null,null,null,null,null,null,null,null,null,null,null,null,null,null,null,null,null,null,null,null,null,null,null,null,null,null,null,null,""]
[null,null,null,null,null,null,null,null,null,null,null,null,null,null,null,null,null,null,null,null,null,null,null,null,null,null,null,null,null,null,null,null,null,null,null,null,null,null,null,null,null,null,null,null,null,null,null,null,null,null,null,null,""]
[null,null,null,null,null,null,null,null,null,null,null,null,null,null,null,null,null,null,null,null,null,null,null,null,null,null,null,null,null,null,null,null,null,null,null,null,null,null,null,null,null,null,null,null,null,null,null,null,null,null,null,null,""]
[null,null,null,null,null,null,null,null,null,null,null,null,null,null,null,null,null,null,null,null,null,null,null,null,null,null,null,null,null,null,null,null,null,null,null,null,null,null,null,null,null,null,null,null,null,null,null,null,null,null,null,null,""]
[null,null,null,null,null,null,null,null,null,null,null,null,null,null,null,null,null,null,null,null,null,null,null,null,null,null,null,null,null,null,null,null,null,null,null,null,null,null,null,null,null,null,null,null,null,null,null,null,null,null,null,null,{"$f":"IF(ISERROR(VLOOKUP(Q42,Familles_nom,1,FALSE)),\"\",VLOOKUP(Q42,Familles_nom,2,FALSE))","v":""}]
[null,null,null,null,null,null,null,null,null,null,null,null,null,null,null,null,null,null,null,null,null,null,null,null,null,null,null,null,null,null,null,null,null,null,null,null,null,null,null,null,null,null,null,null,null,null,null,null,null,null,null,null,""]
[null,null,null,null,null,null,null,null,null,null,null,null,null,null,null,null,null,null,null,null,null,null,null,null,null,null,null,null,null,null,null,null,null,null,null,null,null,null,null,null,null,null,null,null,null,null,null,null,null,null,null,null,""]
[null,null,null,null,null,null,null,null,null,null,null,null,null,null,null,null,null,null,null,null,null,null,null,null,null,null,null,null,null,null,null,null,null,null,null,null,null,null,null,null,null,null,null,null,null,null,null,null,null,null,null,null,""]
[null,null,null,null,null,null,null,null,null,null,null,null,null,null,null,null,null,null,null,null,null,null,null,null,null,null,null,null,null,null,null,null,null,null,null,null,null,null,null,null,null,null,null,null,null,null,null,null,null,null,null,null,""]
[null,null,null,null,null,null,null,null,null,null,null,null,null,null,null,null,null,null,null,null,null,null,null,null,null,null,null,null,null,null,null,null,null,null,null,null,null,null,null,null,null,null,null,null,null,null,null,null,null,null,null,null,""]
[null,null,null,null,null,null,null,null,null,null,null,null,null,null,null,null,null,null,null,null,null,null,null,null,null,null,null,null,null,null,null,null,null,null,null,null,null,null,null,null,null,null,null,null,null,null,null,null,null,null,null,null,""]
[null,null,null,null,null,null,null,null,null,null,null,null,null,null,null,null,null,null,null,null,null,null,null,null,null,null,null,null,null,null,null,null,null,null,null,null,null,null,null,null,null,null,null,null,null,null,null,null,null,null,null,null,""]
[null,null,null,null,null,null,null,null,null,null,null,null,null,null,null,null,null,null,null,null,null,null,null,null,null,null,null,null,null,null,null,null,null,null,null,null,null,null,null,null,null,null,null,null,null,null,null,null,null,null,null,null,""]
[null,null,null,null,null,null,null,null,null,null,null,null,null,null,null,null,null,null,null,null,null,null,null,null,null,null,null,null,null,null,null,null,null,null,null,null,null,null,null,null,null,null,null,null,null,null,null,null,null,null,null,null,""]
[null,null,null,null,null,null,null,null,null,null,null,null,null,null,null,null,null,null,null,null,null,null,null,null,null,null,null,null,null,null,null,null,null,null,null,null,null,null,null,null,null,null,null,null,null,null,null,null,null,null,null,null,""]
[null,null,null,null,null,null,null,null,null,null,null,null,null,null,null,null,null,null,null,null,null,null,null,null,null,null,null,null,null,null,null,null,null,null,null,null,null,null,null,null,null,null,null,null,null,null,null,null,null,null,null,null,""]
[null,null,null,null,null,null,null,null,null,null,null,null,null,null,null,null,null,null,null,null,null,null,null,null,null,null,null,null,null,null,null,null,null,null,null,null,null,null,null,null,null,null,null,null,null,null,null,null,null,null,null,null,""]
[null,null,null,null,null,null,null,null,null,null,null,null,null,null,null,null,null,null,null,null,null,null,null,null,null,null,null,null,null,null,null,null,null,null,null,null,null,null,null,null,null,null,null,null,null,null,null,null,null,null,null,null,""]
[null,null,null,null,null,null,null,null,null,null,null,null,null,null,null,null,null,null,null,null,null,null,null,null,null,null,null,null,null,null,null,null,null,null,null,null,null,null,null,null,null,null,null,null,null,null,null,null,null,null,null,null,""]
[null,null,null,null,null,null,null,null,null,null,null,null,null,null,null,null,null,null,null,null,null,null,null,null,null,null,null,null,null,null,null,null,null,null,null,null,null,null,null,null,null,null,null,null,null,null,null,null,null,null,null,null,""]
[null,null,null,null,null,null,null,null,null,null,null,null,null,null,null,null,null,null,null,null,null,null,null,null,null,null,null,null,null,null,null,null,null,null,null,null,null,null,null,null,null,null,null,null,null,null,null,null,null,null,null,null,""]
[null,null,null,null,null,null,null,null,null,null,null,null,null,null,null,null,null,null,null,null,null,null,null,null,null,null,null,null,null,null,null,null,null,null,null,null,null,null,null,null,null,null,null,null,null,null,null,null,null,null,null,null,""]
[null,null,null,null,null,null,null,null,null,null,null,null,null,null,null,null,null,null,null,null,null,null,null,null,null,null,null,null,null,null,null,null,null,null,null,null,null,null,null,null,null,null,null,null,null,null,null,null,null,null,null,null,""]
[null,null,null,null,null,null,null,null,null,null,null,null,null,null,null,null,null,null,null,null,null,null,null,null,null,null,null,null,null,null,null,null,null,null,null,null,null,null,null,null,null,null,null,null,null,null,null,null,null,null,null,null,""]
[null,null,null,null,null,null,null,null,null,null,null,null,null,null,null,null,null,null,null,null,null,null,null,null,null,null,null,null,null,null,null,null,null,null,null,null,null,null,null,null,null,null,null,null,null,null,null,null,null,null,null,null,""]
[null,null,null,null,null,null,null,null,null,null,null,null,null,null,null,null,null,null,null,null,null,null,null,null,null,null,null,null,null,null,null,null,null,null,null,null,null,null,null,null,null,null,null,null,null,null,null,null,null,null,null,null,""]
[null,null,null,null,null,null,null,null,null,null,null,null,null,null,null,null,null,null,null,null,null,null,null,null,null,null,null,null,null,null,null,null,null,null,null,null,null,null,null,null,null,null,null,null,null,null,null,null,null,null,null,null,""]
[null,null,null,null,null,null,null,null,null,null,null,null,null,null,null,null,null,null,null,null,null,null,null,null,null,null,null,null,null,null,null,null,null,null,null,null,null,null,null,null,null,null,null,null,null,null,null,null,null,null,null,null,""]
[null,null,null,null,null,null,null,null,null,null,null,null,null,null,null,null,null,null,null,null,null,null,null,null,null,null,null,null,null,null,null,null,null,null,null,null,null,null,null,null,null,null,null,null,null,null,null,null,null,null,null,null,""]
[null,null,null,null,null,null,null,null,null,null,null,null,null,null,null,null,null,null,null,null,null,null,null,null,null,null,null,null,null,null,null,null,null,null,null,null,null,null,null,null,null,null,null,null,null,null,null,null,null,null,null,null,""]
[null,null,null,null,null,null,null,null,null,null,null,null,null,null,null,null,null,null,null,null,null,null,null,null,null,null,null,null,null,null,null,null,null,null,null,null,null,null,null,null,null,null,null,null,null,null,null,null,null,null,null,null,""]
[null,null,null,null,null,null,null,null,null,null,null,null,null,null,null,null,null,null,null,null,null,null,null,null,null,null,null,null,null,null,null,null,null,null,null,null,null,null,null,null,null,null,null,null,null,null,null,null,null,null,null,null,""]
[null,null,null,null,null,null,null,null,null,null,null,null,null,null,null,null,null,null,null,null,null,null,null,null,null,null,null,null,null,null,null,null,null,null,null,null,null,null,null,null,null,null,null,null,null,null,null,null,null,null,null,null,""]
[null,null,null,null,null,null,null,null,null,null,null,null,null,null,null,null,null,null,null,null,null,null,null,null,null,null,null,null,null,null,null,null,null,null,null,null,null,null,null,null,null,null,null,null,null,null,null,null,null,null,null,null,""]
[null,null,null,null,null,null,null,null,null,null,null,null,null,null,null,null,null,null,null,null,null,null,null,null,null,null,null,null,null,null,null,null,null,null,null,null,null,null,null,null,null,null,null,null,null,null,null,null,null,null,null,null,""]
[null,null,null,null,null,null,null,null,null,null,null,null,null,null,null,null,null,null,null,null,null,null,null,null,null,null,null,null,null,null,null,null,null,null,null,null,null,null,null,null,null,null,null,null,null,null,null,null,null,null,null,null,""]
[null,null,null,null,null,null,null,null,null,null,null,null,null,null,null,null,null,null,null,null,null,null,null,null,null,null,null,null,null,null,null,null,null,null,null,null,null,null,null,null,null,null,null,null,null,null,null,null,null,null,null,null,{"$f":"IF(ISERROR(VLOOKUP(Q74,Familles_nom,1,FALSE)),\"\",VLOOKUP(Q74,Familles_nom,2,FALSE))","v":""}]
[null,null,null,null,null,null,null,null,null,null,null,null,null,null,null,null,null,null,null,null,null,null,null,null,null,null,null,null,null,null,null,null,null,null,null,null,null,null,null,null,null,null,null,null,null,null,null,null,null,null,null,null,""]
[null,null,null,null,null,null,null,null,null,null,null,null,null,null,null,null,null,null,null,null,null,null,null,null,null,null,null,null,null,null,null,null,null,null,null,null,null,null,null,null,null,null,null,null,null,null,null,null,null,null,null,null,""]
[null,null,null,null,null,null,null,null,null,null,null,null,null,null,null,null,null,null,null,null,null,null,null,null,null,null,null,null,null,null,null,null,null,null,null,null,null,null,null,null,null,null,null,null,null,null,null,null,null,null,null,null,""]
[null,null,null,null,null,null,null,null,null,null,null,null,null,null,null,null,null,null,null,null,null,null,null,null,null,null,null,null,null,null,null,null,null,null,null,null,null,null,null,null,null,null,null,null,null,null,null,null,null,null,null,null,""]
[null,null,null,null,null,null,null,null,null,null,null,null,null,null,null,null,null,null,null,null,null,null,null,null,null,null,null,null,null,null,null,null,null,null,null,null,null,null,null,null,null,null,null,null,null,null,null,null,null,null,null,null,""]
[null,null,null,null,null,null,null,null,null,null,null,null,null,null,null,null,null,null,null,null,null,null,null,null,null,null,null,null,null,null,null,null,null,null,null,null,null,null,null,null,null,null,null,null,null,null,null,null,null,null,null,null,{"$f":"IF(ISERROR(VLOOKUP(Q80,Familles_nom,1,FALSE)),\"\",VLOOKUP(Q80,Familles_nom,2,FALSE))","v":""}]
[null,null,null,null,null,null,null,null,null,null,null,null,null,null,null,null,null,null,null,null,null,null,null,null,null,null,null,null,null,null,null,null,null,null,null,null,null,null,null,null,null,null,null,null,null,null,null,null,null,null,null,null,""]
[null,null,null,null,null,null,null,null,null,null,null,null,null,null,null,null,null,null,null,null,null,null,null,null,null,null,null,null,null,null,null,null,null,null,null,null,null,null,null,null,null,null,null,null,null,null,null,null,null,null,null,null,""]
[null,null,null,null,null,null,null,null,null,null,null,null,null,null,null,null,null,null,null,null,null,null,null,null,null,null,null,null,null,null,null,null,null,null,null,null,null,null,null,null,null,null,null,null,null,null,null,null,null,null,null,null,""]
[null,null,null,null,null,null,null,null,null,null,null,null,null,null,null,null,null,null,null,null,null,null,null,null,null,null,null,null,null,null,null,null,null,null,null,null,null,null,null,null,null,null,null,null,null,null,null,null,null,null,null,null,""]
[null,null,null,null,null,null,null,null,null,null,null,null,null,null,null,null,null,null,null,null,null,null,null,null,null,null,null,null,null,null,null,null,null,null,null,null,null,null,null,null,null,null,null,null,null,null,null,null,null,null,null,null,""]
[null,null,null,null,null,null,null,null,null,null,null,null,null,null,null,null,null,null,null,null,null,null,null,null,null,null,null,null,null,null,null,null,null,null,null,null,null,null,null,null,null,null,null,null,null,null,null,null,null,null,null,null,""]
[null,null,null,null,null,null,null,null,null,null,null,null,null,null,null,null,null,null,null,null,null,null,null,null,null,null,null,null,null,null,null,null,null,null,null,null,null,null,null,null,null,null,null,null,null,null,null,null,null,null,null,null,""]
[null,null,null,null,null,null,null,null,null,null,null,null,null,null,null,null,null,null,null,null,null,null,null,null,null,null,null,null,null,null,null,null,null,null,null,null,null,null,null,null,null,null,null,null,null,null,null,null,null,null,null,null,""]
[null,null,null,null,null,null,null,null,null,null,null,null,null,null,null,null,null,null,null,null,null,null,null,null,null,null,null,null,null,null,null,null,null,null,null,null,null,null,null,null,null,null,null,null,null,null,null,null,null,null,null,null,""]
[null,null,null,null,null,null,null,null,null,null,null,null,null,null,null,null,null,null,null,null,null,null,null,null,null,null,null,null,null,null,null,null,null,null,null,null,null,null,null,null,null,null,null,null,null,null,null,null,null,null,null,null,""]
[null,null,null,null,null,null,null,null,null,null,null,null,null,null,null,null,null,null,null,null,null,null,null,null,null,null,null,null,null,null,null,null,null,null,null,null,null,null,null,null,null,null,null,null,null,null,null,null,null,null,null,null,""]
[null,null,null,null,null,null,null,null,null,null,null,null,null,null,null,null,null,null,null,null,null,null,null,null,null,null,null,null,null,null,null,null,null,null,null,null,null,null,null,null,null,null,null,null,null,null,null,null,null,null,null,null,""]
[null,null,null,null,null,null,null,null,null,null,null,null,null,null,null,null,null,null,null,null,null,null,null,null,null,null,null,null,null,null,null,null,null,null,null,null,null,null,null,null,null,null,null,null,null,null,null,null,null,null,null,null,""]
[null,null,null,null,null,null,null,null,null,null,null,null,null,null,null,null,null,null,null,null,null,null,null,null,null,null,null,null,null,null,null,null,null,null,null,null,null,null,null,null,null,null,null,null,null,null,null,null,null,null,null,null,""]
[null,null,null,null,null,null,null,null,null,null,null,null,null,null,null,null,null,null,null,null,null,null,null,null,null,null,null,null,null,null,null,null,null,null,null,null,null,null,null,null,null,null,null,null,null,null,null,null,null,null,null,null,""]
[null,null,null,null,null,null,null,null,null,null,null,null,null,null,null,null,null,null,null,null,null,null,null,null,null,null,null,null,null,null,null,null,null,null,null,null,null,null,null,null,null,null,null,null,null,null,null,null,null,null,null,null,""]
[null,null,null,null,null,null,null,null,null,null,null,null,null,null,null,null,null,null,null,null,null,null,null,null,null,null,null,null,null,null,null,null,null,null,null,null,null,null,null,null,null,null,null,null,null,null,null,null,null,null,null,null,""]
[null,null,null,null,null,null,null,null,null,null,null,null,null,null,null,null,null,null,null,null,null,null,null,null,null,null,null,null,null,null,null,null,null,null,null,null,null,null,null,null,null,null,null,null,null,null,null,null,null,null,null,null,""]
[null,null,null,null,null,null,null,null,null,null,null,null,null,null,null,null,null,null,null,null,null,null,null,null,null,null,null,null,null,null,null,null,null,null,null,null,null,null,null,null,null,null,null,null,null,null,null,null,null,null,null,null,""]
[null,null,null,null,null,null,null,null,null,null,null,null,null,null,null,null,null,null,null,null,null,null,null,null,null,null,null,null,null,null,null,null,null,null,null,null,null,null,null,null,null,null,null,null,null,null,null,null,null,null,null,null,""]
[null,null,null,null,null,null,null,null,null,null,null,null,null,null,null,null,null,null,null,null,null,null,null,null,null,null,null,null,null,null,null,null,null,null,null,null,null,null,null,null,null,null,null,null,null,null,null,null,null,null,null,null,""]
[null,null,null,null,null,null,null,null,null,null,null,null,null,null,null,null,null,null,null,null,null,null,null,null,null,null,null,null,null,null,null,null,null,null,null,null,null,null,null,null,null,null,null,null,null,null,null,null,null,null,null,null,""]
[null,null,null,null,null,null,null,null,null,null,null,null,null,null,null,null,null,null,null,null,null,null,null,null,null,null,null,null,null,null,null,null,null,null,null,null,null,null,null,null,null,null,null,null,null,null,null,null,null,null,null,null,""]
[null,null,null,null,null,null,null,null,null,null,null,null,null,null,null,null,null,null,null,null,null,null,null,null,null,null,null,null,null,null,null,null,null,null,null,null,null,null,null,null,null,null,null,null,null,null,null,null,null,null,null,null,""]
[null,null,null,null,null,null,null,null,null,null,null,null,null,null,null,null,null,null,null,null,null,null,null,null,null,null,null,null,null,null,null,null,null,null,null,null,null,null,null,null,null,null,null,null,null,null,null,null,null,null,null,null,""]
[null,null,null,null,null,null,null,null,null,null,null,null,null,null,null,null,null,null,null,null,null,null,null,null,null,null,null,null,null,null,null,null,null,null,null,null,null,null,null,null,null,null,null,null,null,null,null,null,null,null,null,null,""]
[null,null,null,null,null,null,null,null,null,null,null,null,null,null,null,null,null,null,null,null,null,null,null,null,null,null,null,null,null,null,null,null,null,null,null,null,null,null,null,null,null,null,null,null,null,null,null,null,null,null,null,null,""]
[null,null,null,null,null,null,null,null,null,null,null,null,null,null,null,null,null,null,null,null,null,null,null,null,null,null,null,null,null,null,null,null,null,null,null,null,null,null,null,null,null,null,null,null,null,null,null,null,null,null,null,null,""]
[null,null,null,null,null,null,null,null,null,null,null,null,null,null,null,null,null,null,null,null,null,null,null,null,null,null,null,null,null,null,null,null,null,null,null,null,null,null,null,null,null,null,null,null,null,null,null,null,null,null,null,null,""]
[null,null,null,null,null,null,null,null,null,null,null,null,null,null,null,null,null,null,null,null,null,null,null,null,null,null,null,null,null,null,null,null,null,null,null,null,null,null,null,null,null,null,null,null,null,null,null,null,null,null,null,null,""]
[null,null,null,null,null,null,null,null,null,null,null,null,null,null,null,null,null,null,null,null,null,null,null,null,null,null,null,null,null,null,null,null,null,null,null,null,null,null,null,null,null,null,null,null,null,null,null,null,null,null,null,null,""]
[null,null,null,null,null,null,null,null,null,null,null,null,null,null,null,null,null,null,null,null,null,null,null,null,null,null,null,null,null,null,null,null,null,null,null,null,null,null,null,null,null,null,null,null,null,null,null,null,null,null,null,null,""]
[null,null,null,null,null,null,null,null,null,null,null,null,null,null,null,null,null,null,null,null,null,null,null,null,null,null,null,null,null,null,null,null,null,null,null,null,null,null,null,null,null,null,null,null,null,null,null,null,null,null,null,null,{"$f":"IF(ISERROR(VLOOKUP(Q113,Familles_nom,1,FALSE)),\"\",VLOOKUP(Q113,Familles_nom,2,FALSE))","v":""}]
[null,null,null,null,null,null,null,null,null,null,null,null,null,null,null,null,null,null,null,null,null,null,null,null,null,null,null,null,null,null,null,null,null,null,null,null,null,null,null,null,null,null,null,null,null,null,null,null,null,null,null,null,""]
[null,null,null,null,null,null,null,null,null,null,null,null,null,null,null,null,null,null,null,null,null,null,null,null,null,null,null,null,null,null,null,null,null,null,null,null,null,null,null,null,null,null,null,null,null,null,null,null,null,null,null,null,""]
[null,null,null,null,null,null,null,null,null,null,null,null,null,null,null,null,null,null,null,null,null,null,null,null,null,null,null,null,null,null,null,null,null,null,null,null,null,null,null,null,null,null,null,null,null,null,null,null,null,null,null,null,""]
[null,null,null,null,null,null,null,null,null,null,null,null,null,null,null,null,null,null,null,null,null,null,null,null,null,null,null,null,null,null,null,null,null,null,null,null,null,null,null,null,null,null,null,null,null,null,null,null,null,null,null,null,""]
[null,null,null,null,null,null,null,null,null,null,null,null,null,null,null,null,null,null,null,null,null,null,null,null,null,null,null,null,null,null,null,null,null,null,null,null,null,null,null,null,null,null,null,null,null,null,null,null,null,null,null,null,""]
[null,null,null,null,null,null,null,null,null,null,null,null,null,null,null,null,null,null,null,null,null,null,null,null,null,null,null,null,null,null,null,null,null,null,null,null,null,null,null,null,null,null,null,null,null,null,null,null,null,null,null,null,""]
[null,null,null,null,null,null,null,null,null,null,null,null,null,null,null,null,null,null,null,null,null,null,null,null,null,null,null,null,null,null,null,null,null,null,null,null,null,null,null,null,null,null,null,null,null,null,null,null,null,null,null,null,""]
[null,null,null,null,null,null,null,null,null,null,null,null,null,null,null,null,null,null,null,null,null,null,null,null,null,null,null,null,null,null,null,null,null,null,null,null,null,null,null,null,null,null,null,null,null,null,null,null,null,null,null,null,""]
[null,null,null,null,null,null,null,null,null,null,null,null,null,null,null,null,null,null,null,null,null,null,null,null,null,null,null,null,null,null,null,null,null,null,null,null,null,null,null,null,null,null,null,null,null,null,null,null,null,null,null,null,""]
[null,null,null,null,null,null,null,null,null,null,null,null,null,null,null,null,null,null,null,null,null,null,null,null,null,null,null,null,null,null,null,null,null,null,null,null,null,null,null,null,null,null,null,null,null,null,null,null,null,null,null,null,""]
[null,null,null,null,null,null,null,null,null,null,null,null,null,null,null,null,null,null,null,null,null,null,null,null,null,null,null,null,null,null,null,null,null,null,null,null,null,null,null,null,null,null,null,null,null,null,null,null,null,null,null,null,""]
[null,null,null,null,null,null,null,null,null,null,null,null,null,null,null,null,null,null,null,null,null,null,null,null,null,null,null,null,null,null,null,null,null,null,null,null,null,null,null,null,null,null,null,null,null,null,null,null,null,null,null,null,""]
[null,null,null,null,null,null,null,null,null,null,null,null,null,null,null,null,null,null,null,null,null,null,null,null,null,null,null,null,null,null,null,null,null,null,null,null,null,null,null,null,null,null,null,null,null,null,null,null,null,null,null,null,""]
[null,null,null,null,null,null,null,null,null,null,null,null,null,null,null,null,null,null,null,null,null,null,null,null,null,null,null,null,null,null,null,null,null,null,null,null,null,null,null,null,null,null,null,null,null,null,null,null,null,null,null,null,""]
[null,null,null,null,null,null,null,null,null,null,null,null,null,null,null,null,null,null,null,null,null,null,null,null,null,null,null,null,null,null,null,null,null,null,null,null,null,null,null,null,null,null,null,null,null,null,null,null,null,null,null,null,""]
[null,null,null,null,null,null,null,null,null,null,null,null,null,null,null,null,null,null,null,null,null,null,null,null,null,null,null,null,null,null,null,null,null,null,null,null,null,null,null,null,null,null,null,null,null,null,null,null,null,null,null,null,""]
[null,null,null,null,null,null,null,null,null,null,null,null,null,null,null,null,null,null,null,null,null,null,null,null,null,null,null,null,null,null,null,null,null,null,null,null,null,null,null,null,null,null,null,null,null,null,null,null,null,null,null,null,""]
[null,null,null,null,null,null,null,null,null,null,null,null,null,null,null,null,null,null,null,null,null,null,null,null,null,null,null,null,null,null,null,null,null,null,null,null,null,null,null,null,null,null,null,null,null,null,null,null,null,null,null,null,""]
[null,null,null,null,null,null,null,null,null,null,null,null,null,null,null,null,null,null,null,null,null,null,null,null,null,null,null,null,null,null,null,null,null,null,null,null,null,null,null,null,null,null,null,null,null,null,null,null,null,null,null,null,""]
[null,null,null,null,null,null,null,null,null,null,null,null,null,null,null,null,null,null,null,null,null,null,null,null,null,null,null,null,null,null,null,null,null,null,null,null,null,null,null,null,null,null,null,null,null,null,null,null,null,null,null,null,""]
[null,null,null,null,null,null,null,null,null,null,null,null,null,null,null,null,null,null,null,null,null,null,null,null,null,null,null,null,null,null,null,null,null,null,null,null,null,null,null,null,null,null,null,null,null,null,null,null,null,null,null,null,""]
[null,null,null,null,null,null,null,null,null,null,null,null,null,null,null,null,null,null,null,null,null,null,null,null,null,null,null,null,null,null,null,null,null,null,null,null,null,null,null,null,null,null,null,null,null,null,null,null,null,null,null,null,""]
[null,null,null,null,null,null,null,null,null,null,null,null,null,null,null,null,null,null,null,null,null,null,null,null,null,null,null,null,null,null,null,null,null,null,null,null,null,null,null,null,null,null,null,null,null,null,null,null,null,null,null,null,""]
[null,null,null,null,null,null,null,null,null,null,null,null,null,null,null,null,null,null,null,null,null,null,null,null,null,null,null,null,null,null,null,null,null,null,null,null,null,null,null,null,null,null,null,null,null,null,null,null,null,null,null,null,""]
[null,null,null,null,null,null,null,null,null,null,null,null,null,null,null,null,null,null,null,null,null,null,null,null,null,null,null,null,null,null,null,null,null,null,null,null,null,null,null,null,null,null,null,null,null,null,null,null,null,null,null,null,""]
[null,null,null,null,null,null,null,null,null,null,null,null,null,null,null,null,null,null,null,null,null,null,null,null,null,null,null,null,null,null,null,null,null,null,null,null,null,null,null,null,null,null,null,null,null,null,null,null,null,null,null,null,""]
[null,null,null,null,null,null,null,null,null,null,null,null,null,null,null,null,null,null,null,null,null,null,null,null,null,null,null,null,null,null,null,null,null,null,null,null,null,null,null,null,null,null,null,null,null,null,null,null,null,null,null,null,""]
[null,null,null,null,null,null,null,null,null,null,null,null,null,null,null,null,null,null,null,null,null,null,null,null,null,null,null,null,null,null,null,null,null,null,null,null,null,null,null,null,null,null,null,null,null,null,null,null,null,null,null,null,""]

{"sheet":"Bilan fourrager","index":5,"n_rows":38,"n_cols":13,"rows_kept":38,"cut":false,"hidden":false,"merged":[[10,12,11,12],[6,8,6,12],[7,8,8,8],[7,9,8,9],[9,11,9,12],[7,12,8,12],[7,11,8,11],[10,9,11,9],[10,8,11,8],[36,7,36,8],[35,1,36,3],[35,4,36,4],[35,5,36,5],[35,7,35,8],[10,11,11,11],[20,2,20,3],[22,2,22,3],[23,2,23,3],[30,2,30,3],[21,2,21,3],[28,2,28,3],[29,2,29,3],[37,7,37,8],[16,8,18,12],[33,1,33,3],[21,1,25,1],[24,2,24,3],[25,2,25,3],[26,1,26,3],[28,1,32,1],[31,2,31,3],[32,2,32,3]]}
[null,"4) Bilan fourrager"]
[]
[null,"Besoin fourrager","UGB fourrager","Tonnes de MS/ UGB fourrager","Tonnes de MS"]
[null,"Besoin Fourrager (BF)",{"$f":"Elevage!P15+Elevage!P46","v":0},6.2,{"$f":"C4*D4","v":0}]
[]
[]
[null,"Production fourragère (PF)","Surface\n (ha)","Objectif de rendement","Production Totale (MS)",null,null,null,"Pression au paturage"]
[null,null,null,null,null,null,null,null,"Nb total d'UGB JPP ",{"$f":"Elevage!P16+Elevage!P47","v":0},null,"Rendement moyen prairies (T MS/ha)",0]
[]
[null,null,null,null,null,null,null,null,"Surface Pâturée (ha)",0]
[null,null,null,null,null,null,null,null,"UGB JPP/ ha paturé",{"$f":"IF(J10=0,0,$J$8/J10)","v":0},null,"Préconisations GREN  (JPP/ha)",{"$f":"M8*1000/12","v":0}]
[]
[]
[]
[]
[]
[null,null,null,null,null,null,null,null,"Le dépassement du seuil critique traduit une pratique de surfertilisation avec des apports azotés supérieurs aux capacités d'absorption des prairies."]
[null,"Total",{"$f":"SUM(C8:C17)","v":0},null,{"$f":"SUM(E8:E17)","v":0}]
[]
[]
[null,"Imports et exports de fourrages","Produits",null,"Tonnes de MS"]
[null,"Imports (achats) de fourrages (IF)"]
[]
[]
[]
[]
[null,"Total",null,null,{"$f":"SUM(E22:E26)","v":0}]
[]
[null,"Exports (ventes)  ou stockage de fourrages (EF)"]
[]
[]
[]
[]
[null,"Total",null,null,{"$f":"SUM(E29:E33)","v":0}]
[]
[null,"Bilan fourrager global",null,null,"Tonnes de MS","Ecart / besoins\n(%)",null,"Ecart < 5 %"]
[null,null,null,null,null,null,null,"Ecart entre 5 et 10 %"]
[null,"Bilan fourrager = PF-BF+IF-EF",null,null,{"$f":"E18-E4+E27-E34","v":0},{"$f":"IF(OR(ISBLANK(E4),E4=0),0,E38/E4)","v":0},null,"Ecart > 10 %"]

{"sheet":"Synthèse","index":6,"n_rows":38,"n_cols":53,"rows_kept":38,"cut":false,"hidden":false,"merged":[[27,3,27,4],[28,5,28,9],[30,6,30,7],[31,6,31,7],[28,1,28,4],[32,6,32,7],[15,1,15,2],[13,1,13,2],[17,1,17,2],[14,1,14,2],[16,1,16,2],[25,5,26,5],[25,6,26,6],[25,2,26,2],[18,1,18,2],[25,1,26,1],[19,1,19,2],[0,1,0,5],[6,1,6,2],[7,1,7,2],[8,1,8,2],[4,1,5,2],[4,3,5,3],[4,4,5,4],[25,4,26,4],[9,1,9,2],[10,1,10,2],[11,1,11,2],[12,1,12,2],[4,5,5,5],[4,9,5,12],[6,9,7,12],[10,9,11,12],[4,6,5,6],[4,7,5,7],[12,9,13,12],[8,9,9,12],[18,9,19,12],[25,3,26,3],[14,9,15,12],[16,9,17,12],[25,7,26,7],[25,8,26,8],[25,9,26,9]]}
[null,"5) Synthèse - équilibre de la fertilisation"]
[]
[null,"Effluents à épandre"]
[]
[null,"Type d'effluent",null,"Tonnage/volume\n(t ou M3)","Teneur en azote\n(kg / t ou m3)","Total azote\n(kg N)","Total azote\nd'origine animale\n(kg N)","Total azote\nd'origine autre\n(kg N)",null,"Commentaires"]
[]
[null,{"$f":"IF(ISBLANK('Effluents à gérer'!BG63),\"\",'Effluents à gérer'!BG63)","v":""},null,{"$f":"'Effluents à gérer'!D63","v":0},{"$f":"'Effluents à gérer'!E63","v":0},{"$f":"'Effluents à gérer'!F63","v":0},{"$f":"'Effluents à gérer'!G63","v":0},{"$f":"F7-G7","v":0}]
[null,{"$f":"IF(ISBLANK('Effluents à gérer'!BG64),\"\",'Effluents à gérer'!BG64)","v":""},null,{"$f":"'Effluents à gérer'!D64","v":0},{"$f":"'Effluents à gérer'!E64","v":0},{"$f":"'Effluents à gérer'!F64","v":0},{"$f":"'Effluents à gérer'!G64","v":0},{"$f":"F8-G8","v":0}]
[null,{"$f":"IF(ISBLANK('Effluents à gérer'!BG65),\"\",'Effluents à gérer'!BG65)","v":""},null,{"$f":"'Effluents à gérer'!D65","v":0},{"$f":"'Effluents à gérer'!E65","v":0},{"$f":"'Effluents à gérer'!F65","v":0},{"$f":"'Effluents à gérer'!G65","v":0},0]
[null,{"$f":"IF(ISBLANK('Effluents à gérer'!BG66),\"\",'Effluents à gérer'!BG66)","v":""},null,{"$f":"'Effluents à gérer'!D66","v":0},{"$f":"'Effluents à gérer'!E66","v":0},{"$f":"'Effluents à gérer'!F66","v":0},{"$f":"'Effluents à gérer'!G66","v":0},0]
[null,{"$f":"IF(ISBLANK('Effluents à gérer'!BG67),\"\",'Effluents à gérer'!BG67)","v":""},null,{"$f":"'Effluents à gérer'!D67","v":0},{"$f":"'Effluents à gérer'!E67","v":0},{"$f":"'Effluents à gérer'!F67","v":0},{"$f":"'Effluents à gérer'!G67","v":0},0]
[null,{"$f":"IF(ISBLANK('Effluents à gérer'!BG68),\"\",'Effluents à gérer'!BG68)","v":""},null,{"$f":"'Effluents à gérer'!D68","v":0},{"$f":"'Effluents à gérer'!E68","v":0},{"$f":"'Effluents à gérer'!F68","v":0},{"$f":"'Effluents à gérer'!G68","v":0},0]
[null,{"$f":"IF(ISBLANK('Effluents à gérer'!BG69),\"\",'Effluents à gérer'!BG69)","v":""},null,{"$f":"'Effluents à gérer'!D69","v":0},{"$f":"'Effluents à gérer'!E69","v":0},{"$f":"'Effluents à gérer'!F69","v":0},{"$f":"'Effluents à gérer'!G69","v":0},0]
[null,{"$f":"IF(ISBLANK('Effluents à gérer'!BG70),\"\",'Effluents à gérer'!BG70)","v":""},null,{"$f":"'Effluents à gérer'!D70","v":0},{"$f":"'Effluents à gérer'!E70","v":0},{"$f":"'Effluents à gérer'!F70","v":0},{"$f":"'Effluents à gérer'!G70","v":0},0]
[null,{"$f":"IF(ISBLANK('Effluents à gérer'!BG71),\"\",'Effluents à gérer'!BG71)","v":""},null,{"$f":"'Effluents à gérer'!D71","v":0},{"$f":"'Effluents à gérer'!E71","v":0},{"$f":"'Effluents à gérer'!F71","v":0},{"$f":"'Effluents à gérer'!G71","v":0},0]
[null,{"$f":"IF(ISBLANK('Effluents à gérer'!BG72),\"\",'Effluents à gérer'!BG72)","v":""},null,{"$f":"'Effluents à gérer'!D72","v":0},{"$f":"'Effluents à gérer'!E72","v":0},{"$f":"'Effluents à gérer'!F72","v":0},{"$f":"'Effluents à gérer'!G72","v":0},0]
[null,{"$f":"IF(ISBLANK('Effluents à gérer'!BG73),\"\",'Effluents à gérer'!BG73)","v":""},null,{"$f":"'Effluents à gérer'!D73","v":0},{"$f":"'Effluents à gérer'!E73","v":0},{"$f":"'Effluents à gérer'!F73","v":0},{"$f":"'Effluents à gérer'!G73","v":0},0]
[null,{"$f":"IF(ISBLANK('Effluents à gérer'!BG74),\"\",'Effluents à gérer'!BG74)","v":""},null,{"$f":"'Effluents à gérer'!D74","v":0},{"$f":"'Effluents à gérer'!E74","v":0},{"$f":"'Effluents à gérer'!F74","v":0},{"$f":"'Effluents à gérer'!G74","v":0},0]
[null,{"$f":"IF(ISBLANK('Effluents à gérer'!BG75),\"\",'Effluents à gérer'!BG75)","v":""},null,{"$f":"'Effluents à gérer'!D76","v":0},{"$f":"'Effluents à gérer'!E76","v":0},{"$f":"'Effluents à gérer'!F76","v":0},{"$f":"'Effluents à gérer'!G76","v":0},0]
[null,{"$f":"IF(ISBLANK('Effluents à gérer'!BG76),\"\",'Effluents à gérer'!BG76)","v":""},null,{"$f":"'Effluents à gérer'!D77","v":0},{"$f":"'Effluents à gérer'!E77","v":0},{"$f":"'Effluents à gérer'!F77","v":0},{"$f":"'Effluents à gérer'!G77","v":0},0]
[null,"Total",null,null,null,{"$f":"SUM(F7:F20)","v":0},{"$f":"SUM(G7:G20)","v":0},{"$f":"SUM(H7:H20)","v":0}]
[]
[]
[null,"Assolement global"]
[]
[null,"Cultures","Surface\n (ha)","Rendement moyen d'objectif","Production Totale\n(Qx ou T MS)","Total azote des effluents (kg N)","Total azote d'origine animale (kg N)","Total azote d'origine autre\n(kg N)","Azote minéral\n(kg N)","Azote exporté\n(kg N)"]
[7546.8906500000094,null,null,null,null,null,null,null,null,null,null,null,null,null,null,null,null,null,null,null,null,null,null,null,null,null,null,null,null,null,null,null,null,null,null,null,null,null,null,null,null,null,null,null,null,null,null,null,null,null,null,null,"Rendement si pailles exportées"]
[null,"Total",null,null,null,null,null,null,null,null,null,null,null,null,null,null,null,null,null,null,null,null,null,null,null,null,null,null,null,null,null,null,null,null,null,null,null,null,null,null,null,null,null,null,null,null,null,null,null,null,null,null,1000]
[null,"Reste à épandre",null,null,null,null,null,null,null,null,null,null,null,null,null,null,null,null,null,null,null,null,null,null,null,null,null,null,null,null,null,null,null,null,null,null,null,null,null,null,null,null,null,null,null,null,null,null,null,null,null,null,0]
[null,null,null,null,null,null,null,null,null,null,null,null,null,null,null,null,null,null,null,null,null,null,null,null,null,null,null,null,null,null,null,null,null,null,null,null,null,null,null,null,null,null,null,null,null,null,null,null,null,null,null,null,0]
[null,null,null,null,null,null,{"$f":"\"Solde < \" & Reference_divers!$I$3 & \"% du volume à épandre\"","v":"Solde < 5% du volume à épandre"},null,null,null,null,null,null,null,null,null,null,null,null,null,null,null,null,null,null,null,null,null,null,null,null,null,null,null,null,null,null,null,null,null,null,null,null,null,null,null,null,null,null,null,null,null,0]
[null,null,null,null,null,null,{"$f":"\"Solde entre \" & Reference_divers!$I$3 & \" et \" & Reference_divers!$I$4 & \"% du volume à épandre\"","v":"Solde entre 5 et 10% du volume à épandre"},null,null,null,null,null,null,null,null,null,null,null,null,null,null,null,null,null,null,null,null,null,null,null,null,null,null,null,null,null,null,null,null,null,null,null,null,null,null,null,null,null,null,null,null,null,0]
[null,null,null,null,null,null,{"$f":"\"Solde > \" & Reference_divers!$I$4 & \"% du volume à épandre\"","v":"Solde > 10% du volume à épandre"},null,null,null,null,null,null,null,null,null,null,null,null,null,null,null,null,null,null,null,null,null,null,null,null,null,null,null,null,null,null,null,null,null,null,null,null,null,null,null,null,null,null,null,null,null,0]
[null,null,null,null,null,null,null,null,null,null,null,null,null,null,null,null,null,null,null,null,null,null,null,null,null,null,null,null,null,null,null,null,null,null,null,null,null,null,null,null,null,null,null,null,null,null,null,null,null,null,null,null,0]
[null,null,null,null,null,null,null,null,null,null,null,null,null,null,null,null,null,null,null,null,null,null,null,null,null,null,null,null,null,null,null,null,null,null,null,null,null,null,null,null,null,null,null,null,null,null,null,null,null,null,null,null,0]
[null,null,null,null,null,null,null,null,null,null,null,null,null,null,null,null,null,null,null,null,null,null,null,null,null,null,null,null,null,null,null,null,null,null,null,null,null,null,null,null,null,null,null,null,null,null,null,null,null,null,null,null,0]
[null,null,null,null,null,null,null,null,null,null,null,null,null,null,null,null,null,null,null,null,null,null,null,null,null,null,null,null,null,null,null,null,null,null,null,null,null,null,null,null,null,null,null,null,null,null,null,null,null,null,null,null,0]
[null,null,null,null,null,null,null,null,null,null,null,null,null,null,null,null,null,null,null,null,null,null,null,null,null,null,null,null,null,null,null,null,null,null,null,null,null,null,null,null,null,null,null,null,null,null,null,null,null,null,null,null,0]

{"sheet":"Indicateurs","index":7,"n_rows":100,"n_cols":81,"rows_kept":100,"cut":false,"hidden":false,"merged":[[2,74,2,76],[2,78,2,80],[4,61,5,61],[2,8,2,9],[4,53,4,55],[4,56,4,58],[4,59,5,59],[4,60,5,60],[2,70,2,72],[44,54,45,57],[44,58,44,63],[44,65,45,65],[45,60,45,62],[1,1,2,3],[1,4,1,5],[1,6,1,7],[1,8,1,9],[2,4,2,5],[2,6,2,7],[39,54,40,57],[39,58,39,63],[39,65,40,65],[40,60,40,62],[42,54,43,57],[42,58,42,63],[42,65,43,65],[43,60,43,62],[35,54,36,57],[35,58,35,63],[35,65,36,65],[36,60,36,62],[37,54,38,57],[37,58,37,63],[37,65,38,65],[38,60,38,62],[28,54,29,57],[32,54,33,57],[32,58,32,63],[32,65,33,65],[33,60,33,62],[30,54,31,57],[30,58,30,63],[30,65,31,65],[31,60,31,62],[17,58,18,59],[17,60,18,61],[28,65,29,65],[29,60,29,62],[28,58,28,63],[17,62,18,62],[17,63,18,63],[17,64,18,64],[17,65,18,65],[17,53,18,57],[494,14,495,14],[0,1,0,5],[47,58,47,63],[19,53,19,57],[20,53,20,57],[20,58,20,59],[20,60,20,61],[19,58,19,59],[19,60,19,61],[47,65,48,65],[48,60,48,62],[49,54,50,57],[49,58,49,63],[49,65,50,65],[50,60,50,62],[47,54,48,57]]}
[null,"6) Synthèse - Indicateurs environnementaux"]
[null,"L'exploitation possède au moins une parcelle",null,null,"Dans un Bassin Versant en contentieux",null,"Dans un Territoire MAE",null,"Dans un Zone à «Enjeu Phosphore»"]
[null,null,null,null,"Non",null,"Non",null,"Non",null,null,null,null,null,null,null,null,null,null,null,null,null,null,null,null,null,null,null,null,null,null,null,null,null,null,null,null,null,null,null,null,null,null,null,null,null,null,null,null,null,null,null,null,"Liste des parcelles concernées par un zonage particulier",null,null,null,null,null,null,null,null,null,null,null,null,null,null,null,null,"BV contentieux",null,null,null,"MAE",null,null,null,"Enjeu Phosphore"]
[null,null,null,null,null,null,null,null,null,null,null,null,null,null,null,null,null,null,null,null,null,null,null,null,null,null,null,null,null,null,null,null,null,null,null,null,null,null,null,null,null,null,null,null,null,null,null,null,null,null,null,null,null,null,null,null,null,null,null,null,null,null,null,null,null,null,null,null,null,null,"SAU","SPE","SNE",null,"SAU","SPE","SNE",null,"SAU","SPE","SNE"]
[null,null,null,null,null,null,null,null,null,null,null,null,null,null,null,null,null,null,null,null,null,null,null,null,null,null,null,null,null,null,null,null,null,null,null,null,null,null,null,null,null,null,null,null,null,null,null,null,null,null,null,null,null,"Parcelle culturale",null,null,"Surfaces",null,null,"BV contentieux","MAE","Zone à «Enjeu Phosphore»",null,null,null,null,null,null,null,null,{"$f":"IF($H9=\"Oui\",$E9,0)","v":0},{"$f":"IF($H9=\"Oui\",$F9,0)","v":0},{"$f":"IF($H9=\"Oui\",$G9,0)","v":0},null,{"$f":"IF($I9=\"Oui\",$E9,0)","v":0},{"$f":"IF($I9=\"Oui\",$F9,0)","v":0},{"$f":"IF($I9=\"Oui\",$G9,0)","v":0},null,{"$f":"IF($J9=\"Oui\",$E9,0)","v":0},{"$f":"IF($J9=\"Oui\",$F9,0)","v":0},{"$f":"IF($J9=\"Oui\",$G9,0)","v":0}]
[null,null,null,null,null,null,null,null,null,null,null,null,null,null,null,null,null,null,null,null,null,null,null,null,null,null,null,null,null,null,null,null,null,null,null,null,null,null,null,null,null,null,null,null,null,null,null,null,null,null,null,null,null,"Nom de l'îlot","N° îlot","N° parcelle","SAU","SPE","SNE",null,null,null,null,null,null,null,null,null,null,null,0,0,0,null,0,0,0,null,0,0,0]
[null,null,null,null,null,null,null,null,null,null,null,null,null,null,null,null,null,null,null,null,null,null,null,null,null,null,null,null,null,null,null,null,null,null,null,null,null,null,null,null,null,null,null,null,null,null,null,null,null,null,null,null,null,null,null,null,null,null,null,"Non","Non","Non",null,null,null,null,null,null,null,null,0,0,0,null,0,0,0,null,0,0,0]
[null,null,null,null,null,null,null,null,null,null,null,null,null,null,null,null,null,null,null,null,null,null,null,null,null,null,null,null,null,null,null,null,null,null,null,null,null,null,null,null,null,null,null,null,null,null,null,null,null,null,null,null,null,"Total exploitation",null,null,null,null,null,null,null,null,null,null,null,null,null,null,null,null,0,0,0,null,0,0,0,null,0,0,0]
[null,null,null,null,null,null,null,null,null,null,null,null,null,null,null,null,null,null,null,null,null,null,null,null,null,null,null,null,null,null,null,null,null,null,null,null,null,null,null,null,null,null,null,null,null,null,null,null,null,null,null,null,null,"Total en BV contentieux",null,null,{"$f":"SUM($BS$5:$BS$100)","v":0},{"$f":"SUM($BT$5:$BT$100)","v":0},{"$f":"SUM($BU$5:$BU$100)","v":0},null,null,null,null,null,null,null,null,null,null,null,0,0,0,null,0,0,0,null,0,0,0]
[null,null,null,null,null,null,null,null,null,null,null,null,null,null,null,null,null,null,null,null,null,null,null,null,null,null,null,null,null,null,null,null,null,null,null,null,null,null,null,null,null,null,null,null,null,null,null,null,null,null,null,null,null,"Total en MAE",null,null,{"$f":"SUM($BW$5:$BW$100)","v":0},{"$f":"SUM($BX$5:$BX$100)","v":0},{"$f":"SUM($BY$5:$BY$100)","v":0},null,null,null,null,null,null,null,null,null,null,null,0,0,0,null,0,0,0,null,0,0,0]
[null,null,null,null,null,null,null,null,null,null,null,null,null,null,null,null,null,null,null,null,null,null,null,null,null,null,null,null,null,null,null,null,null,null,null,null,null,null,null,null,null,null,null,null,null,null,null,null,null,null,null,null,null,"Total en Zone à «Enjeu Phosphore»",null,null,{"$f":"SUM($CA$5:$CZ$100)","v":0},{"$f":"SUM($CB$5:$CB$100)","v":0},{"$f":"SUM($CC$5:$CC$100)","v":0},null,null,null,null,null,null,null,null,null,null,null,0,0,0,null,0,0,0,null,0,0,0]
[null,null,null,null,null,null,null,null,null,null,null,null,null,null,null,null,null,null,null,null,null,null,null,null,null,null,null,null,null,null,null,null,null,null,null,null,null,null,null,null,null,null,null,null,null,null,null,null,null,null,null,null,null,null,null,null,null,null,null,null,null,null,null,null,null,null,null,null,null,null,0,0,0,null,0,0,0,null,0,0,0]
[null,null,null,null,null,null,null,null,null,null,null,null,null,null,null,null,null,null,null,null,null,null,null,null,null,null,null,null,null,null,null,null,null,null,null,null,null,null,null,null,null,null,null,null,null,null,null,null,null,null,null,null,null,null,null,null,null,null,null,null,null,null,null,null,null,null,null,null,null,null,0,0,0,null,0,0,0,null,0,0,0]
[null,null,null,null,null,null,null,null,null,null,null,null,null,null,null,null,null,null,null,null,null,null,null,null,null,null,null,null,null,null,null,null,null,null,null,null,null,null,null,null,null,null,null,null,null,null,null,null,null,null,null,null,null,null,null,null,null,null,null,null,null,null,null,null,null,null,null,null,null,null,0,0,0,null,0,0,0,null,0,0,0]
[null,null,null,null,null,null,null,null,null,null,null,null,null,null,null,null,null,null,null,null,null,null,null,null,null,null,null,null,null,null,null,null,null,null,null,null,null,null,null,null,null,null,null,null,null,null,null,null,null,null,null,null,null,null,null,null,null,null,null,null,null,null,null,null,null,null,null,null,null,null,0,0,0,null,0,0,0,null,0,0,0]
[null,null,null,null,null,null,null,null,null,null,null,null,null,null,null,null,null,null,null,null,null,null,null,null,null,null,null,null,null,null,null,null,null,null,null,null,null,null,null,null,null,null,null,null,null,null,null,null,null,null,null,null,null,"Fertilisation en Bassin Versant en contentieux",null,null,null,null,null,null,null,null,null,null,null,null,null,null,null,null,0,0,0,null,0,0,0,null,0,0,0]
[null,null,null,null,null,null,null,null,null,null,null,null,null,null,null,null,null,null,null,null,null,null,null,null,null,null,null,null,null,null,null,null,null,null,null,null,null,null,null,null,null,null,null,null,null,null,null,null,null,null,null,null,null,null,null,null,null,null,null,null,null,null,null,null,null,null,null,null,null,null,0,0,0,null,0,0,0,null,0,0,0]
[null,null,null,null,null,null,null,null,null,null,null,null,null,null,null,null,null,null,null,null,null,null,null,null,null,null,null,null,null,null,null,null,null,null,null,null,null,null,null,null,null,null,null,null,null,null,null,null,null,null,null,null,null,"Cultures",null,null,null,null,"Surface\n (ha)",null,"SPE\n(ha)",null,"Total azote d'origine animale (kg N)","Total azote d'origine autre\n(kg N)","Azote minéral\n(kg N)","Azote exporté par la culture\n(kg N)",null,null,null,null,0,0,0,null,0,0,0,null,0,0,0]
[null,null,null,null,null,null,null,null,null,null,null,null,null,null,null,null,null,null,null,null,null,null,null,null,null,null,null,null,null,null,null,null,null,null,null,null,null,null,null,null,null,null,null,null,null,null,null,null,null,null,null,null,null,null,null,null,null,null,null,null,null,null,null,null,null,null,null,null,null,null,0,0,0,null,0,0,0,null,0,0,0]
[null,null,null,null,null,null,null,null,null,null,null,null,null,null,null,null,null,null,null,null,null,null,null,null,null,null,null,null,null,null,null,null,null,null,null,null,null,null,null,null,null,null,null,null,null,null,null,null,null,null,null,null,null,null,null,null,null,null,0,null,0,null,0,0,0,0,null,null,null,null,0,0,0,null,0,0,0,null,0,0,0]
[null,null,null,null,null,null,null,null,null,null,null,null,null,null,null,null,null,null,null,null,null,null,null,null,null,null,null,null,null,null,null,null,null,null,null,null,null,null,null,null,null,null,null,null,null,null,null,null,null,null,null,null,null,"Total",null,null,null,null,null,null,null,null,null,null,null,null,null,null,null,null,0,0,0,null,0,0,0,null,0,0,0]
[null,null,null,null,null,null,null,null,null,null,null,null,null,null,null,null,null,null,null,null,null,null,null,null,null,null,null,null,null,null,null,null,null,null,null,null,null,null,null,null,null,null,null,null,null,null,null,null,null,null,null,null,null,null,null,null,null,null,null,null,null,null,null,null,null,null,null,null,null,null,0,0,0,null,0,0,0,null,0,0,0]
[null,null,null,null,null,null,null,null,null,null,null,null,null,null,null,null,null,null,null,null,null,null,null,null,null,null,null,null,null,null,null,null,null,null,null,null,null,null,null,null,null,null,null,null,null,null,null,null,null,null,null,null,null,null,null,null,null,null,null,null,null,null,null,null,null,null,null,null,null,null,0,0,0,null,0,0,0,null,0,0,0]
[null,null,null,null,null,null,null,null,null,null,null,null,null,null,null,null,null,null,null,null,null,null,null,null,null,null,null,null,null,null,null,null,null,null,null,null,null,null,null,null,null,null,null,null,null,null,null,null,null,null,null,null,null,null,null,null,null,null,null,null,null,null,null,null,null,null,null,null,null,null,0,0,0,null,0,0,0,null,0,0,0]
[null,null,null,null,null,null,null,null,null,null,null,null,null,null,null,null,null,null,null,null,null,null,null,null,null,null,null,null,null,null,null,null,null,null,null,null,null,null,null,null,null,null,null,null,null,null,null,null,null,null,null,null,null,null,null,null,null,null,null,null,null,null,null,null,null,null,null,null,null,null,0,0,0,null,0,0,0,null,0,0,0]
[null,null,null,null,null,null,null,null,null,null,null,null,null,null,null,null,null,null,null,null,null,null,null,null,null,null,null,null,null,null,null,null,null,null,null,null,null,null,null,null,null,null,null,null,null,null,null,null,null,null,null,null,null,"Calcul des ratios pour l'exploitation",null,null,null,null,null,null,null,null,null,null,null,null,null,null,null,null,0,0,0,null,0,0,0,null,0,0,0]
[null,null,null,null,null,null,null,null,null,null,null,null,null,null,null,null,null,null,null,null,null,null,null,null,null,null,null,null,null,null,null,null,null,null,null,null,null,null,null,null,null,null,null,null,null,null,null,null,null,null,null,null,null,null,null,null,null,null,null,null,null,null,null,null,null,null,null,null,null,null,0,0,0,null,0,0,0,null,0,0,0]
[null,null,null,null,null,null,null,null,null,null,null,null,null,null,null,null,null,null,null,null,null,null,null,null,null,null,null,null,null,null,null,null,null,null,null,null,null,null,null,null,null,null,null,null,null,null,null,null,null,null,null,null,null,"Sur l'ensemble de l'exploitation",null,null,null,null,null,null,null,null,null,null,null,null,null,null,null,null,0,0,0,null,0,0,0,null,0,0,0]
[null,null,null,null,null,null,null,null,null,null,null,null,null,null,null,null,null,null,null,null,null,null,null,null,null,null,null,null,null,null,null,null,null,null,null,null,null,null,null,null,null,null,null,null,null,null,null,null,null,null,null,null,null,null,"Balance globale azotée",null,null,null,"Total apport N organique + Total apport N niméral  - Export par culture",null,null,null,null,null,null,{"$f":"IF(BM30=0,0,BM29/BM30)","v":0},null,null,null,null,0,0,0,null,0,0,0,null,0,0,0]
[null,null,null,null,null,null,null,null,null,null,null,null,null,null,null,null,null,null,null,null,null,null,null,null,null,null,null,null,null,null,null,null,null,null,null,null,null,null,null,null,null,null,null,null,null,null,null,null,null,null,null,null,null,null,null,null,null,null,null,null,"SAU totale",null,null,null,null,null,null,null,null,null,0,0,0,null,0,0,0,null,0,0,0]
[null,null,null,null,null,null,null,null,null,null,null,null,null,null,null,null,null,null,null,null,null,null,null,null,null,null,null,null,null,null,null,null,null,null,null,null,null,null,null,null,null,null,null,null,null,null,null,null,null,null,null,null,null,null,"Azote total",null,null,null,"Total apport N organique  + Total apport N minéral",null,null,null,null,null,null,{"$f":"IF(BM32=0,0,BM31/BM32)","v":0},null,null,null,null,0,0,0,null,0,0,0,null,0,0,0]
[null,null,null,null,null,null,null,null,null,null,null,null,null,null,null,null,null,null,null,null,null,null,null,null,null,null,null,null,null,null,null,null,null,null,null,null,null,null,null,null,null,null,null,null,null,null,null,null,null,null,null,null,null,null,null,null,null,null,null,null,"SAU totale",null,null,null,null,null,null,null,null,null,0,0,0,null,0,0,0,null,0,0,0]
[null,null,null,null,null,null,null,null,null,null,null,null,null,null,null,null,null,null,null,null,null,null,null,null,null,null,null,null,null,null,null,null,null,null,null,null,null,null,null,null,null,null,null,null,null,null,null,null,null,null,null,null,null,null,"Seuil des «170 Kg»",null,null,null,"Total N organique  d'origine animale( Issu de l'exploit. + Imports - Exports)",null,null,null,null,null,null,{"$f":"IF(BM34=0,0,BM33/BM34)","v":0},null,null,null,null,0,0,0,null,0,0,0,null,0,0,0]
[null,null,null,null,null,null,null,null,null,null,null,null,null,null,null,null,null,null,null,null,null,null,null,null,null,null,null,null,null,null,null,null,null,null,null,null,null,null,null,null,null,null,null,null,null,null,null,null,null,null,null,null,null,null,null,null,null,null,null,null,"SAU totale",null,null,null,null,null,null,null,null,null,0,0,0,null,0,0,0,null,0,0,0]
[null,null,null,null,null,null,null,null,null,null,null,null,null,null,null,null,null,null,null,null,null,null,null,null,null,null,null,null,null,null,null,null,null,null,null,null,null,null,null,null,null,null,null,null,null,null,null,null,null,null,null,null,null,"En Bassin Versant en contentieux",null,null,null,null,null,null,null,null,null,null,null,null,null,null,null,null,0,0,0,null,0,0,0,null,0,0,0]
[null,null,null,null,null,null,null,null,null,null,null,null,null,null,null,null,null,null,null,null,null,null,null,null,null,null,null,null,null,null,null,null,null,null,null,null,null,null,null,null,null,null,null,null,null,null,null,null,null,null,null,null,null,null,"Azote total",null,null,null,"Total apport N organique  + Total apport N minéral",null,null,null,null,null,null,{"$f":"IF(BM37=0,0,BM36/BM37)","v":0},null,null,null,null,{"$f":"IF($H169=\"Oui\",$E169,0)","v":0},{"$f":"IF($H169=\"Oui\",$F169,0)","v":0},{"$f":"IF($H169=\"Oui\",$G169,0)","v":0},null,0,0,0,null,{"$f":"IF($J169=\"Oui\",$E169,0)","v":0},{"$f":"IF($J169=\"Oui\",$F169,0)","v":0},{"$f":"IF($J169=\"Oui\",$G169,0)","v":0}]
[null,null,null,null,null,null,null,null,null,null,null,null,null,null,null,null,null,null,null,null,null,null,null,null,null,null,null,null,null,null,null,null,null,null,null,null,null,null,null,null,null,null,null,null,null,null,null,null,null,null,null,null,null,null,null,null,null,null,null,null,"SAU en BV contentieux",null,null,null,null,null,null,null,null,null,0,0,0,null,{"$f":"IF($I41=\"Oui\",$E41,0)","v":0},{"$f":"IF($I41=\"Oui\",$F41,0)","v":0},{"$f":"IF($I41=\"Oui\",$G41,0)","v":0},null,0,0,0]
[null,null,null,null,null,null,null,null,null,null,null,null,null,null,null,null,null,null,null,null,null,null,null,null,null,null,null,null,null,null,null,null,null,null,null,null,null,null,null,null,null,null,null,null,null,null,null,null,null,null,null,null,null,null,"Azote total sur les légumes\n(culture principale)",null,null,null,"Total apport N organique  + Total apport N minéral",null,null,null,null,null,null,{"$f":"IF(BM39=0,0,BM38/BM39)","v":0},null,null,null,null,0,0,0,null,0,0,0,null,0,0,0]
[null,null,null,null,null,null,null,null,null,null,null,null,null,null,null,null,null,null,null,null,null,null,null,null,null,null,null,null,null,null,null,null,null,null,null,null,null,null,null,null,null,null,null,null,null,null,null,null,null,null,null,null,null,null,null,null,null,null,null,null,"SAU en légumes en BV contentieux",null,null,null,null,null,null,null,null,null,0,0,0,null,0,0,0,null,0,0,0]
[null,null,null,null,null,null,null,null,null,null,null,null,null,null,null,null,null,null,null,null,null,null,null,null,null,null,null,null,null,null,null,null,null,null,null,null,null,null,null,null,null,null,null,null,null,null,null,null,null,null,null,null,null,null,"Azote total sur les autres cultures\n(culture principale)",null,null,null,"Total(apport N organique) + Total(apport N niméral)",null,null,null,null,null,null,{"$f":"IF(BM41=0,0,BM40/BM41)","v":0},null,null,null,null,0,0,0,null,0,0,0,null,0,0,0]
[null,null,null,null,null,null,null,null,null,null,null,null,null,null,null,null,null,null,null,null,null,null,null,null,null,null,null,null,null,null,null,null,null,null,null,null,null,null,null,null,null,null,null,null,null,null,null,null,null,null,null,null,null,null,null,null,null,null,null,null,"SAU hors légumes en BV contentieux",null,null,null,null,null,null,null,null,null,0,0,0,null,0,0,0,null,0,0,0]
[null,null,null,null,null,null,null,null,null,null,null,null,null,null,null,null,null,null,null,null,null,null,null,null,null,null,null,null,null,null,null,null,null,null,null,null,null,null,null,null,null,null,null,null,null,null,null,null,null,null,null,null,null,"En Territoire MAE",null,null,null,null,null,null,null,null,null,null,null,null,null,null,null,null,0,0,0,null,0,0,0,null,0,0,0]
[null,null,null,null,null,null,null,null,null,null,null,null,null,null,null,null,null,null,null,null,null,null,null,null,null,null,null,null,null,null,null,null,null,null,null,null,null,null,null,null,null,null,null,null,null,null,null,null,null,null,null,null,null,null,"Azote total",null,null,null,"Total apport N organique  + Total apport N minéral",null,null,null,null,null,null,{"$f":"IF(BM44=0,0,BM43/BM44)","v":0},null,null,null,null,0,0,0,null,0,0,0,null,0,0,0]
[null,null,null,null,null,null,null,null,null,null,null,null,null,null,null,null,null,null,null,null,null,null,null,null,null,null,null,null,null,null,null,null,null,null,null,null,null,null,null,null,null,null,null,null,null,null,null,null,null,null,null,null,null,null,null,null,null,null,null,null,"SAU en MAE",null,null,null,null,null,null,null,null,null,0,0,0,null,0,0,0,null,0,0,0]
[null,null,null,null,null,null,null,null,null,null,null,null,null,null,null,null,null,null,null,null,null,null,null,null,null,null,null,null,null,null,null,null,null,null,null,null,null,null,null,null,null,null,null,null,null,null,null,null,null,null,null,null,null,null,"Seuil",null,null,null,"Total N organique  d'origine animale( Issu de l'exploit. + Imports - Exports)",null,null,null,null,null,null,{"$f":"IF(BM46=0,0,BM45/BM46)","v":0},null,null,null,null,0,0,0,null,0,0,0,null,0,0,0]
[null,null,null,null,null,null,null,null,null,null,null,null,null,null,null,null,null,null,null,null,null,null,null,null,null,null,null,null,null,null,null,null,null,null,null,null,null,null,null,null,null,null,null,null,null,null,null,null,null,null,null,null,null,null,null,null,null,null,null,null,"SAU en MAE",null,null,null,null,null,null,null,null,null,0,0,0,null,0,0,0,null,0,0,0]
[null,null,null,null,null,null,null,null,null,null,null,null,null,null,null,null,null,null,null,null,null,null,null,null,null,null,null,null,null,null,null,null,null,null,null,null,null,null,null,null,null,null,null,null,null,null,null,null,null,null,null,null,null,"En Zone à «Enjeu Phosphore»",null,null,null,null,null,null,null,null,null,null,null,null,null,null,null,null,0,0,0,null,0,0,0,null,0,0,0]
[null,null,null,null,null,null,null,null,null,null,null,null,null,null,null,null,null,null,null,null,null,null,null,null,null,null,null,null,null,null,null,null,null,null,null,null,null,null,null,null,null,null,null,null,null,null,null,null,null,null,null,null,null,null,"Azote total",null,null,null,"Total apport N organique  + Total apport N minéral",null,null,null,null,null,null,{"$f":"IF(BM49=0,0,BM48/BM49)","v":0},null,null,null,null,0,0,0,null,0,0,0,null,0,0,0]
[null,null,null,null,null,null,null,null,null,null,null,null,null,null,null,null,null,null,null,null,null,null,null,null,null,null,null,null,null,null,null,null,null,null,null,null,null,null,null,null,null,null,null,null,null,null,null,null,null,null,null,null,null,null,null,null,null,null,null,null,"SAU en MAE",null,null,null,null,null,null,null,null,null,0,0,0,null,0,0,0,null,0,0,0]
[null,null,null,null,null,null,null,null,null,null,null,null,null,null,null,null,null,null,null,null,null,null,null,null,null,null,null,null,null,null,null,null,null,null,null,null,null,null,null,null,null,null,null,null,null,null,null,null,null,null,null,null,null,null,"Seuil des «170 kg»",null,null,null,"Total N organique  d'origine animale( Issu de l'exploit. + Imports - Exports)",null,null,null,null,null,null,{"$f":"IF(BM51=0,0,BM50/BM51)","v":0},null,null,null,null,0,0,0,null,0,0,0,null,0,0,0]
[null,null,null,null,null,null,null,null,null,null,null,null,null,null,null,null,null,null,null,null,null,null,null,null,null,null,null,null,null,null,null,null,null,null,null,null,null,null,null,null,null,null,null,null,null,null,null,null,null,null,null,null,null,null,null,null,null,null,null,null,"SAU en MAE",null,null,null,null,null,null,null,null,null,0,0,0,null,0,0,0,null,0,0,0]
[null,null,null,null,null,null,null,null,null,null,null,null,null,null,null,null,null,null,null,null,null,null,null,null,null,null,null,null,null,null,null,null,null,null,null,null,null,null,null,null,null,null,null,null,null,null,null,null,null,null,null,null,null,null,null,null,null,null,null,null,null,null,null,null,null,null,null,null,null,null,0,0,0,null,0,0,0,null,0,0,0]
[null,null,null,null,null,null,null,null,null,null,null,null,null,null,null,null,null,null,null,null,null,null,null,null,null,null,null,null,null,null,null,null,null,null,null,null,null,null,null,null,null,null,null,null,null,null,null,null,null,null,null,null,null,null,null,null,null,null,null,null,null,null,null,null,null,null,null,null,null,null,0,0,0,null,0,0,0,null,0,0,0]
[null,null,null,null,null,null,null,null,null,null,null,null,null,null,null,null,null,null,null,null,null,null,null,null,null,null,null,null,null,null,null,null,null,null,null,null,null,null,null,null,null,null,null,null,null,null,null,null,null,null,null,null,null,null,null,null,null,null,null,null,null,null,null,null,null,null,null,null,null,null,0,0,0,null,0,0,0,null,0,0,0]
[null,null,null,null,null,null,null,null,null,null,null,null,null,null,null,null,null,null,null,null,null,null,null,null,null,null,null,null,null,null,null,null,null,null,null,null,null,null,null,null,null,null,null,null,null,null,null,null,null,null,null,null,null,null,null,null,null,null,null,null,null,null,null,null,null,null,null,null,null,null,0,0,0,null,0,0,0,null,0,0,0]
[null,null,null,null,null,null,null,null,null,null,null,null,null,null,null,null,null,null,null,null,null,null,null,null,null,null,null,null,null,null,null,null,null,null,null,null,null,null,null,null,null,null,null,null,null,null,null,null,null,null,null,null,null,null,null,null,null,null,null,null,null,null,null,null,null,null,null,null,null,null,0,0,0,null,0,0,0,null,0,0,0]
[null,null,null,null,null,null,null,null,null,null,null,null,null,null,null,null,null,null,null,null,null,null,null,null,null,null,null,null,null,null,null,null,null,null,null,null,null,null,null,null,null,null,null,null,null,null,null,null,null,null,null,null,null,null,null,null,null,null,null,null,null,null,null,null,null,null,null,null,null,null,0,0,0,null,0,0,0,null,0,0,0]
[null,null,null,null,null,null,null,null,null,null,null,null,null,null,null,null,null,null,null,null,null,null,null,null,null,null,null,null,null,null,null,null,null,null,null,null,null,null,null,null,null,null,null,null,null,null,null,null,null,null,null,null,null,null,null,null,null,null,null,null,null,null,null,null,null,null,null,null,null,null,0,0,0,null,0,0,0,null,0,0,0]
[null,null,null,null,null,null,null,null,null,null,null,null,null,null,null,null,null,null,null,null,null,null,null,null,null,null,null,null,null,null,null,null,null,null,null,null,null,null,null,null,null,null,null,null,null,null,null,null,null,null,null,null,null,null,null,null,null,null,null,null,null,null,null,null,null,null,null,null,null,null,0,0,0,null,0,0,0,null,0,0,0]
[null,null,null,null,null,null,null,null,null,null,null,null,null,null,null,null,null,null,null,null,null,null,null,null,null,null,null,null,null,null,null,null,null,null,null,null,null,null,null,null,null,null,null,null,null,null,null,null,null,null,null,null,null,null,null,null,null,null,null,null,null,null,null,null,null,null,null,null,null,null,0,0,0,null,0,0,0,null,0,0,0]
[null,null,null,null,null,null,null,null,null,null,null,null,null,null,null,null,null,null,null,null,null,null,null,null,null,null,null,null,null,null,null,null,null,null,null,null,null,null,null,null,null,null,null,null,null,null,null,null,null,null,null,null,null,null,null,null,null,null,null,null,null,null,null,null,null,null,null,null,null,null,0,0,0,null,0,0,0,null,0,0,0]
[null,null,null,null,null,null,null,null,null,null,null,null,null,null,null,null,null,null,null,null,null,null,null,null,null,null,null,null,null,null,null,null,null,null,null,null,null,null,null,null,null,null,null,null,null,null,null,null,null,null,null,null,null,null,null,null,null,null,null,null,null,null,null,null,null,null,null,null,null,null,0,0,0,null,0,0,0,null,0,0,0]
[null,null,null,null,null,null,null,null,null,null,null,null,null,null,null,null,null,null,null,null,null,null,null,null,null,null,null,null,null,null,null,null,null,null,null,null,null,null,null,null,null,null,null,null,null,null,null,null,null,null,null,null,null,null,null,null,null,null,null,null,null,null,null,null,null,null,null,null,null,null,0,0,0,null,0,0,0,null,0,0,0]
[null,null,null,null,null,null,null,null,null,null,null,null,null,null,null,null,null,null,null,null,null,null,null,null,null,null,null,null,null,null,null,null,null,null,null,null,null,null,null,null,null,null,null,null,null,null,null,null,null,null,null,null,null,null,null,null,null,null,null,null,null,null,null,null,null,null,null,null,null,null,0,0,0,null,0,0,0,null,0,0,0]
[null,null,null,null,null,null,null,null,null,null,null,null,null,null,null,null,null,null,null,null,null,null,null,null,null,null,null,null,null,null,null,null,null,null,null,null,null,null,null,null,null,null,null,null,null,null,null,null,null,null,null,null,null,null,null,null,null,null,null,null,null,null,null,null,null,null,null,null,null,null,0,0,0,null,0,0,0,null,0,0,0]
[null,null,null,null,null,null,null,null,null,null,null,null,null,null,null,null,null,null,null,null,null,null,null,null,null,null,null,null,null,null,null,null,null,null,null,null,null,null,null,null,null,null,null,null,null,null,null,null,null,null,null,null,null,null,null,null,null,null,null,null,null,null,null,null,null,null,null,null,null,null,0,0,0,null,0,0,0,null,0,0,0]
[null,null,null,null,null,null,null,null,null,null,null,null,null,null,null,null,null,null,null,null,null,null,null,null,null,null,null,null,null,null,null,null,null,null,null,null,null,null,null,null,null,null,null,null,null,null,null,null,null,null,null,null,null,null,null,null,null,null,null,null,null,null,null,null,null,null,null,null,null,null,0,0,0,null,0,0,0,null,0,0,0]
[null,null,null,null,null,null,null,null,null,null,null,null,null,null,null,null,null,null,null,null,null,null,null,null,null,null,null,null,null,null,null,null,null,null,null,null,null,null,null,null,null,null,null,null,null,null,null,null,null,null,null,null,null,null,null,null,null,null,null,null,null,null,null,null,null,null,null,null,null,null,{"$f":"IF($H201=\"Oui\",$E201,0)","v":0},{"$f":"IF($H201=\"Oui\",$F201,0)","v":0},{"$f":"IF($H201=\"Oui\",$G201,0)","v":0},null,0,0,0,null,{"$f":"IF($J201=\"Oui\",$E201,0)","v":0},{"$f":"IF($J201=\"Oui\",$F201,0)","v":0},{"$f":"IF($J201=\"Oui\",$G201,0)","v":0}]
[null,null,null,null,null,null,null,null,null,null,null,null,null,null,null,null,null,null,null,null,null,null,null,null,null,null,null,null,null,null,null,null,null,null,null,null,null,null,null,null,null,null,null,null,null,null,null,null,null,null,null,null,null,null,null,null,null,null,null,null,null,null,null,null,null,null,null,null,null,null,0,0,0,null,{"$f":"IF($I73=\"Oui\",$E73,0)","v":0},{"$f":"IF($I73=\"Oui\",$F73,0)","v":0},{"$f":"IF($I73=\"Oui\",$G73,0)","v":0},null,0,0,0]
[null,null,null,null,null,null,null,null,null,null,null,null,null,null,null,null,null,null,null,null,null,null,null,null,null,null,null,null,null,null,null,null,null,null,null,null,null,null,null,null,null,null,null,null,null,null,null,null,null,null,null,null,null,null,null,null,null,null,null,null,null,null,null,null,null,null,null,null,null,null,0,0,0,null,0,0,0,null,0,0,0]
[null,null,null,null,null,null,null,null,null,null,null,null,null,null,null,null,null,null,null,null,null,null,null,null,null,null,null,null,null,null,null,null,null,null,null,null,null,null,null,null,null,null,null,null,null,null,null,null,null,null,null,null,null,null,null,null,null,null,null,null,null,null,null,null,null,null,null,null,null,null,0,0,0,null,0,0,0,null,0,0,0]
[null,null,null,null,null,null,null,null,null,null,null,null,null,null,null,null,null,null,null,null,null,null,null,null,null,null,null,null,null,null,null,null,null,null,null,null,null,null,null,null,null,null,null,null,null,null,null,null,null,null,null,null,null,null,null,null,null,null,null,null,null,null,null,null,null,null,null,null,null,null,0,0,0,null,0,0,0,null,0,0,0]
[null,null,null,null,null,null,null,null,null,null,null,null,null,null,null,null,null,null,null,null,null,null,null,null,null,null,null,null,null,null,null,null,null,null,null,null,null,null,null,null,null,null,null,null,null,null,null,null,null,null,null,null,null,null,null,null,null,null,null,null,null,null,null,null,null,null,null,null,null,null,0,0,0,null,0,0,0,null,0,0,0]
[null,null,null,null,null,null,null,null,null,null,null,null,null,null,null,null,null,null,null,null,null,null,null,null,null,null,null,null,null,null,null,null,null,null,null,null,null,null,null,null,null,null,null,null,null,null,null,null,null,null,null,null,null,null,null,null,null,null,null,null,null,null,null,null,null,null,null,null,null,null,0,0,0,null,0,0,0,null,0,0,0]
[null,null,null,null,null,null,null,null,null,null,null,null,null,null,null,null,null,null,null,null,null,null,null,null,null,null,null,null,null,null,null,null,null,null,null,null,null,null,null,null,null,null,null,null,null,null,null,null,null,null,null,null,null,null,null,null,null,null,null,null,null,null,null,null,null,null,null,null,null,null,0,0,0,null,0,0,0,null,0,0,0]
[null,null,null,null,null,null,null,null,null,null,null,null,null,null,null,null,null,null,null,null,null,null,null,null,null,null,null,null,null,null,null,null,null,null,null,null,null,null,null,null,null,null,null,null,null,null,null,null,null,null,null,null,null,null,null,null,null,null,null,null,null,null,null,null,null,null,null,null,null,null,0,0,0,null,0,0,0,null,0,0,0]
[null,null,null,null,null,null,null,null,null,null,null,null,null,null,null,null,null,null,null,null,null,null,null,null,null,null,null,null,null,null,null,null,null,null,null,null,null,null,null,null,null,null,null,null,null,null,null,null,null,null,null,null,null,null,null,null,null,null,null,null,null,null,null,null,null,null,null,null,null,null,0,0,0,null,0,0,0,null,0,0,0]
[null,null,null,null,null,null,null,null,null,null,null,null,null,null,null,null,null,null,null,null,null,null,null,null,null,null,null,null,null,null,null,null,null,null,null,null,null,null,null,null,null,null,null,null,null,null,null,null,null,null,null,null,null,null,null,null,null,null,null,null,null,null,null,null,null,null,null,null,null,null,0,0,0,null,0,0,0,null,0,0,0]
[null,null,null,null,null,null,null,null,null,null,null,null,null,null,null,null,null,null,null,null,null,null,null,null,null,null,null,null,null,null,null,null,null,null,null,null,null,null,null,null,null,null,null,null,null,null,null,null,null,null,null,null,null,null,null,null,null,null,null,null,null,null,null,null,null,null,null,null,null,null,0,0,0,null,0,0,0,null,0,0,0]
[null,null,null,null,null,null,null,null,null,null,null,null,null,null,null,null,null,null,null,null,null,null,null,null,null,null,null,null,null,null,null,null,null,null,null,null,null,null,null,null,null,null,null,null,null,null,null,null,null,null,null,null,null,null,null,null,null,null,null,null,null,null,null,null,null,null,null,null,null,null,0,0,0,null,0,0,0,null,0,0,0]
[null,null,null,null,null,null,null,null,null,null,null,null,null,null,null,null,null,null,null,null,null,null,null,null,null,null,null,null,null,null,null,null,null,null,null,null,null,null,null,null,null,null,null,null,null,null,null,null,null,null,null,null,null,null,null,null,null,null,null,null,null,null,null,null,null,null,null,null,null,null,0,0,0,null,0,0,0,null,0,0,0]
[null,null,null,null,null,null,null,null,null,null,null,null,null,null,null,null,null,null,null,null,null,null,null,null,null,null,null,null,null,null,null,null,null,null,null,null,null,null,null,null,null,null,null,null,null,null,null,null,null,null,null,null,null,null,null,null,null,null,null,null,null,null,null,null,null,null,null,null,null,null,0,0,0,null,0,0,0,null,0,0,0]
[null,null,null,null,null,null,null,null,null,null,null,null,null,null,null,null,null,null,null,null,null,null,null,null,null,null,null,null,null,null,null,null,null,null,null,null,null,null,null,null,null,null,null,null,null,null,null,null,null,null,null,null,null,null,null,null,null,null,null,null,null,null,null,null,null,null,null,null,null,null,0,0,0,null,0,0,0,null,0,0,0]
[null,null,null,null,null,null,null,null,null,null,null,null,null,null,null,null,null,null,null,null,null,null,null,null,null,null,null,null,null,null,null,null,null,null,null,null,null,null,null,null,null,null,null,null,null,null,null,null,null,null,null,null,null,null,null,null,null,null,null,null,null,null,null,null,null,null,null,null,null,null,0,0,0,null,0,0,0,null,0,0,0]
[null,null,null,null,null,null,null,null,null,null,null,null,null,null,null,null,null,null,null,null,null,null,null,null,null,null,null,null,null,null,null,null,null,null,null,null,null,null,null,null,null,null,null,null,null,null,null,null,null,null,null,null,null,null,null,null,null,null,null,null,null,null,null,null,null,null,null,null,null,null,0,0,0,null,0,0,0,null,0,0,0]
[null,null,null,null,null,null,null,null,null,null,null,null,null,null,null,null,null,null,null,null,null,null,null,null,null,null,null,null,null,null,null,null,null,null,null,null,null,null,null,null,null,null,null,null,null,null,null,null,null,null,null,null,null,null,null,null,null,null,null,null,null,null,null,null,null,null,null,null,null,null,0,0,0,null,0,0,0,null,0,0,0]
[null,null,null,null,null,null,null,null,null,null,null,null,null,null,null,null,null,null,null,null,null,null,null,null,null,null,null,null,null,null,null,null,null,null,null,null,null,null,null,null,null,null,null,null,null,null,null,null,null,null,null,null,null,null,null,null,null,null,null,null,null,null,null,null,null,null,null,null,null,null,0,0,0,null,0,0,0,null,0,0,0]
[null,null,null,null,null,null,null,null,null,null,null,null,null,null,null,null,null,null,null,null,null,null,null,null,null,null,null,null,null,null,null,null,null,null,null,null,null,null,null,null,null,null,null,null,null,null,null,null,null,null,null,null,null,null,null,null,null,null,null,null,null,null,null,null,null,null,null,null,null,null,0,0,0,null,0,0,0,null,0,0,0]
[null,null,null,null,null,null,null,null,null,null,null,null,null,null,null,null,null,null,null,null,null,null,null,null,null,null,null,null,null,null,null,null,null,null,null,null,null,null,null,null,null,null,null,null,null,null,null,null,null,null,null,null,null,null,null,null,null,null,null,null,null,null,null,null,null,null,null,null,null,null,0,0,0,null,0,0,0,null,0,0,0]
[null,null,null,null,null,null,null,null,null,null,null,null,null,null,null,null,null,null,null,null,null,null,null,null,null,null,null,null,null,null,null,null,null,null,null,null,null,null,null,null,null,null,null,null,null,null,null,null,null,null,null,null,null,null,null,null,null,null,null,null,null,null,null,null,null,null,null,null,null,null,0,0,0,null,0,0,0,null,0,0,0]
[null,null,null,null,null,null,null,null,null,null,null,null,null,null,null,null,null,null,null,null,null,null,null,null,null,null,null,null,null,null,null,null,null,null,null,null,null,null,null,null,null,null,null,null,null,null,null,null,null,null,null,null,null,null,null,null,null,null,null,null,null,null,null,null,null,null,null,null,null,null,0,0,0,null,0,0,0,null,0,0,0]
[null,null,null,null,null,null,null,null,null,null,null,null,null,null,null,null,null,null,null,null,null,null,null,null,null,null,null,null,null,null,null,null,null,null,null,null,null,null,null,null,null,null,null,null,null,null,null,null,null,null,null,null,null,null,null,null,null,null,null,null,null,null,null,null,null,null,null,null,null,null,0,0,0,null,0,0,0,null,0,0,0]
[null,null,null,null,null,null,null,null,null,null,null,null,null,null,null,null,null,null,null,null,null,null,null,null,null,null,null,null,null,null,null,null,null,null,null,null,null,null,null,null,null,null,null,null,null,null,null,null,null,null,null,null,null,null,null,null,null,null,null,null,null,null,null,null,null,null,null,null,null,null,0,0,0,null,0,0,0,null,0,0,0]
[null,null,null,null,null,null,null,null,null,null,null,null,null,null,null,null,null,null,null,null,null,null,null,null,null,null,null,null,null,null,null,null,null,null,null,null,null,null,null,null,null,null,null,null,null,null,null,null,null,null,null,null,null,null,null,null,null,null,null,null,null,null,null,null,null,null,null,null,null,null,0,0,0,null,0,0,0,null,0,0,0]
[null,null,null,null,null,null,null,null,null,null,null,null,null,null,null,null,null,null,null,null,null,null,null,null,null,null,null,null,null,null,null,null,null,null,null,null,null,null,null,null,null,null,null,null,null,null,null,null,null,null,null,null,null,null,null,null,null,null,null,null,null,null,null,null,null,null,null,null,null,null,0,0,0,null,0,0,0,null,0,0,0]
[null,null,null,null,null,null,null,null,null,null,null,null,null,null,null,null,null,null,null,null,null,null,null,null,null,null,null,null,null,null,null,null,null,null,null,null,null,null,null,null,null,null,null,null,null,null,null,null,null,null,null,null,null,null,null,null,null,null,null,null,null,null,null,null,null,null,null,null,null,null,0,0,0,null,0,0,0,null,0,0,0]
[null,null,null,null,null,null,null,null,null,null,null,null,null,null,null,null,null,null,null,null,null,null,null,null,null,null,null,null,null,null,null,null,null,null,null,null,null,null,null,null,null,null,null,null,null,null,null,null,null,null,null,null,null,null,null,null,null,null,null,null,null,null,null,null,null,null,null,null,null,null,0,0,0,null,0,0,0,null,0,0,0]
[null,null,null,null,null,null,null,null,null,null,null,null,null,null,null,null,null,null,null,null,null,null,null,null,null,null,null,null,null,null,null,null,null,null,null,null,null,null,null,null,null,null,null,null,null,null,null,null,null,null,null,null,null,null,null,null,null,null,null,null,null,null,null,null,null,null,null,null,null,null,0,0,0,null,0,0,0,null,0,0,0]
[null,null,null,null,null,null,null,null,null,null,null,null,null,null,null,null,null,null,null,null,null,null,null,null,null,null,null,null,null,null,null,null,null,null,null,null,null,null,null,null,null,null,null,null,null,null,null,null,null,null,null,null,null,null,null,null,null,null,null,null,null,null,null,null,null,null,null,null,null,null,0,0,0,null,0,0,0,null,0,0,0]
[null,null,null,null,null,null,null,null,null,null,null,null,null,null,null,null,null,null,null,null,null,null,null,null,null,null,null,null,null,null,null,null,null,null,null,null,null,null,null,null,null,null,null,null,null,null,null,null,null,null,null,null,null,null,null,null,null,null,null,null,null,null,null,null,null,null,null,null,null,null,{"$f":"IF($H233=\"Oui\",$E233,0)","v":0},{"$f":"IF($H233=\"Oui\",$F233,0)","v":0},{"$f":"IF($H233=\"Oui\",$G233,0)","v":0},null,0,0,0,null,{"$f":"IF($J233=\"Oui\",$E233,0)","v":0},{"$f":"IF($J233=\"Oui\",$F233,0)","v":0},{"$f":"IF($J233=\"Oui\",$G233,0)","v":0}]

{"sheet":"Synthèse_CF","index":8,"n_rows":38,"n_cols":53,"rows_kept":38,"cut":false,"hidden":true,"merged":[[30,6,30,7],[31,6,31,7],[32,6,32,7],[27,3,27,4],[28,1,28,4],[28,5,28,9],[10,9,11,12],[12,9,13,12],[14,9,15,12],[8,9,9,12],[4,6,5,6],[4,7,5,7],[4,9,5,12],[6,9,7,12],[16,9,17,12],[0,1,0,5],[6,1,6,2],[7,1,7,2],[8,1,8,2],[4,1,5,2],[4,3,5,3],[4,4,5,4],[4,5,5,5],[13,1,13,2],[14,1,14,2],[16,1,16,2],[9,1,9,2],[10,1,10,2],[11,1,11,2],[12,1,12,2],[15,1,15,2],[17,1,17,2],[25,3,26,3],[25,1,26,1],[19,1,19,2],[25,2,26,2],[18,1,18,2],[18,9,19,12],[25,4,26,4],[25,8,26,8],[25,9,26,9],[25,7,26,7],[25,6,26,6],[25,5,26,5]]}
[null,"5) Synthèse - équilibre de la fertilisation"]
[]
[null,"Effluents à épandre"]
[]
[null,"Type d'effluent",null,"Tonnage/volume\n(t ou M3)","Teneur en azote\n(kg / t ou m3)","Total azote\n(kg N)","Total azote\nd'origine animale\n(kg N)","Total azote\nd'origine autre\n(kg N)",null,"Commentaires"]
[]
[null,{"$f":"IF(ISBLANK('Effluents à gérer'!BG63),\"\",'Effluents à gérer'!BG63)","v":""},null,{"$f":"'Effluents à gérer'!D63","v":0},{"$f":"'Effluents à gérer'!E63","v":0},{"$f":"'Effluents à gérer'!F63","v":0},{"$f":"'Effluents à gérer'!G63","v":0},{"$f":"F7-G7","v":0}]
[null,{"$f":"IF(ISBLANK('Effluents à gérer'!BG64),\"\",'Effluents à gérer'!BG64)","v":""},null,{"$f":"'Effluents à gérer'!D64","v":0},{"$f":"'Effluents à gérer'!E64","v":0},{"$f":"'Effluents à gérer'!F64","v":0},{"$f":"'Effluents à gérer'!G64","v":0},0]
[null,{"$f":"IF(ISBLANK('Effluents à gérer'!BG65),\"\",'Effluents à gérer'!BG65)","v":""},null,{"$f":"'Effluents à gérer'!D65","v":0},{"$f":"'Effluents à gérer'!E65","v":0},{"$f":"'Effluents à gérer'!F65","v":0},{"$f":"'Effluents à gérer'!G65","v":0},0]
[null,{"$f":"IF(ISBLANK('Effluents à gérer'!BG66),\"\",'Effluents à gérer'!BG66)","v":""},null,{"$f":"'Effluents à gérer'!D66","v":0},{"$f":"'Effluents à gérer'!E66","v":0},{"$f":"'Effluents à gérer'!F66","v":0},{"$f":"'Effluents à gérer'!G66","v":0},0]
[null,{"$f":"IF(ISBLANK('Effluents à gérer'!BG67),\"\",'Effluents à gérer'!BG67)","v":""},null,{"$f":"'Effluents à gérer'!D67","v":0},{"$f":"'Effluents à gérer'!E67","v":0},{"$f":"'Effluents à gérer'!F67","v":0},{"$f":"'Effluents à gérer'!G67","v":0},0]
[null,{"$f":"IF(ISBLANK('Effluents à gérer'!BG68),\"\",'Effluents à gérer'!BG68)","v":""},null,{"$f":"'Effluents à gérer'!D68","v":0},{"$f":"'Effluents à gérer'!E68","v":0},{"$f":"'Effluents à gérer'!F68","v":0},{"$f":"'Effluents à gérer'!G68","v":0},0]
[null,{"$f":"IF(ISBLANK('Effluents à gérer'!BG69),\"\",'Effluents à gérer'!BG69)","v":""},null,{"$f":"'Effluents à gérer'!D69","v":0},{"$f":"'Effluents à gérer'!E69","v":0},{"$f":"'Effluents à gérer'!F69","v":0},{"$f":"'Effluents à gérer'!G69","v":0},0]
[null,{"$f":"IF(ISBLANK('Effluents à gérer'!BG70),\"\",'Effluents à gérer'!BG70)","v":""},null,{"$f":"'Effluents à gérer'!D70","v":0},{"$f":"'Effluents à gérer'!E70","v":0},{"$f":"'Effluents à gérer'!F70","v":0},{"$f":"'Effluents à gérer'!G70","v":0},0]
[null,{"$f":"IF(ISBLANK('Effluents à gérer'!BG71),\"\",'Effluents à gérer'!BG71)","v":""},null,{"$f":"'Effluents à gérer'!D71","v":0},{"$f":"'Effluents à gérer'!E71","v":0},{"$f":"'Effluents à gérer'!F71","v":0},{"$f":"'Effluents à gérer'!G71","v":0},0]
[null,{"$f":"IF(ISBLANK('Effluents à gérer'!BG72),\"\",'Effluents à gérer'!BG72)","v":""},null,{"$f":"'Effluents à gérer'!D72","v":0},{"$f":"'Effluents à gérer'!E72","v":0},{"$f":"'Effluents à gérer'!F72","v":0},{"$f":"'Effluents à gérer'!G72","v":0},0]
[null,{"$f":"IF(ISBLANK('Effluents à gérer'!BG73),\"\",'Effluents à gérer'!BG73)","v":""},null,{"$f":"'Effluents à gérer'!D73","v":0},{"$f":"'Effluents à gérer'!E73","v":0},{"$f":"'Effluents à gérer'!F73","v":0},{"$f":"'Effluents à gérer'!G73","v":0},0]
[null,{"$f":"IF(ISBLANK('Effluents à gérer'!BG74),\"\",'Effluents à gérer'!BG74)","v":""},null,{"$f":"'Effluents à gérer'!D74","v":0},{"$f":"'Effluents à gérer'!E74","v":0},{"$f":"'Effluents à gérer'!F74","v":0},{"$f":"'Effluents à gérer'!G74","v":0},0]
[null,{"$f":"IF(ISBLANK('Effluents à gérer'!BG75),\"\",'Effluents à gérer'!BG75)","v":""},null,{"$f":"'Effluents à gérer'!D76","v":0},{"$f":"'Effluents à gérer'!E76","v":0},{"$f":"'Effluents à gérer'!F76","v":0},{"$f":"'Effluents à gérer'!G76","v":0},0]
[null,{"$f":"IF(ISBLANK('Effluents à gérer'!BG76),\"\",'Effluents à gérer'!BG76)","v":""},null,{"$f":"'Effluents à gérer'!D77","v":0},{"$f":"'Effluents à gérer'!E77","v":0},{"$f":"'Effluents à gérer'!F77","v":0},{"$f":"'Effluents à gérer'!G77","v":0},0]
[null,"Total",null,null,null,{"$f":"SUM(F7:F20)","v":0},{"$f":"SUM(G7:G20)","v":0},{"$f":"SUM(H7:H20)","v":0}]
[]
[]
[null,"Assolement global"]
[]
[null,"Cultures","Surface\n (ha)","Rendement moyen d'objectif","Production Totale\n(Qx ou T MS)","Total azote des effluents (kg N)","Total azote d'origine animale (kg N)","Total azote d'origine autre\n(kg N)","Azote minéral\n(kg N)","Azote exporté\n(kg N)"]
[7546.8906500000094,null,null,null,null,null,null,null,null,null,null,null,null,null,null,null,null,null,null,null,null,null,null,null,null,null,null,null,null,null,null,null,null,null,null,null,null,null,null,null,null,null,null,null,null,null,null,null,null,null,null,null,"Rendement si pailles exportées"]
[null,"Total",null,null,null,null,null,null,null,null,null,null,null,null,null,null,null,null,null,null,null,null,null,null,null,null,null,null,null,null,null,null,null,null,null,null,null,null,null,null,null,null,null,null,null,null,null,null,null,null,null,null,808.35]
[null,"Reste à épandre",null,null,null,null,null,null,null,null,null,null,null,null,null,null,null,null,null,null,null,null,null,null,null,null,null,null,null,null,null,null,null,null,null,null,null,null,null,null,null,null,null,null,null,null,null,null,null,null,null,null,1286.25]
[null,null,null,null,null,null,null,null,null,null,null,null,null,null,null,null,null,null,null,null,null,null,null,null,null,null,null,null,null,null,null,null,null,null,null,null,null,null,null,null,null,null,null,null,null,null,null,null,null,null,null,null,53821.68]
[null,null,null,null,null,null,{"$f":"\"Solde < \" & Reference_divers!$I$3 & \"% du volume à épandre\"","v":"Solde < 5% du volume à épandre"},null,null,null,null,null,null,null,null,null,null,null,null,null,null,null,null,null,null,null,null,null,null,null,null,null,null,null,null,null,null,null,null,null,null,null,null,null,null,null,null,null,null,null,null,null,64.5]
[null,null,null,null,null,null,{"$f":"\"Solde entre \" & Reference_divers!$I$3 & \" et \" & Reference_divers!$I$4 & \"% du volume à épandre\"","v":"Solde entre 5 et 10% du volume à épandre"},null,null,null,null,null,null,null,null,null,null,null,null,null,null,null,null,null,null,null,null,null,null,null,null,null,null,null,null,null,null,null,null,null,null,null,null,null,null,null,null,null,null,null,null,null,962.4]
[null,null,null,null,null,null,{"$f":"\"Solde > \" & Reference_divers!$I$4 & \"% du volume à épandre\"","v":"Solde > 10% du volume à épandre"},null,null,null,null,null,null,null,null,null,null,null,null,null,null,null,null,null,null,null,null,null,null,null,null,null,null,null,null,null,null,null,null,null,null,null,null,null,null,null,null,null,null,null,null,null,469.6]
[null,null,null,null,null,null,null,null,null,null,null,null,null,null,null,null,null,null,null,null,null,null,null,null,null,null,null,null,null,null,null,null,null,null,null,null,null,null,null,null,null,null,null,null,null,null,null,null,null,null,null,null,0]
[null,null,null,null,null,null,null,null,null,null,null,null,null,null,null,null,null,null,null,null,null,null,null,null,null,null,null,null,null,null,null,null,null,null,null,null,null,null,null,null,null,null,null,null,null,null,null,null,null,null,null,null,0]
[null,null,null,null,null,null,null,null,null,null,null,null,null,null,null,null,null,null,null,null,null,null,null,null,null,null,null,null,null,null,null,null,null,null,null,null,null,null,null,null,null,null,null,null,null,null,null,null,null,null,null,null,0]
[null,null,null,null,null,null,null,null,null,null,null,null,null,null,null,null,null,null,null,null,null,null,null,null,null,null,null,null,null,null,null,null,null,null,null,null,null,null,null,null,null,null,null,null,null,null,null,null,null,null,null,null,0]
[null,null,null,null,null,null,null,null,null,null,null,null,null,null,null,null,null,null,null,null,null,null,null,null,null,null,null,null,null,null,null,null,null,null,null,null,null,null,null,null,null,null,null,null,null,null,null,null,null,null,null,null,0]

{"sheet":"Notice_CF","index":9,"n_rows":120,"n_cols":11,"rows_kept":120,"cut":false,"hidden":true,"merged":[[87,7,109,12],[118,0,118,12],[65,7,67,12],[78,7,80,12],[72,7,75,12],[99,2,99,5],[100,3,103,4],[104,3,107,4],[108,2,108,5],[82,3,85,4],[112,1,112,4],[113,1,113,4],[114,1,114,4],[115,1,115,4],[87,3,90,4],[91,3,94,4],[111,1,111,4],[109,1,109,5],[65,1,86,1],[65,2,76,2],[77,2,77,4],[78,2,85,2],[86,2,86,4],[87,1,108,1],[87,2,98,2],[65,3,68,4],[60,3,60,5],[62,3,62,5],[63,3,63,5],[62,1,63,2],[61,1,61,5],[110,1,110,4],[69,3,72,4],[73,3,76,4],[78,3,81,4],[139,2,140,2],[12,1,12,11],[53,1,54,2],[53,3,53,4],[54,3,54,4],[46,1,46,2],[49,1,49,12],[53,7,60,12],[48,4,48,12],[24,1,24,12],[135,2,138,2],[132,7,134,12],[123,1,123,2],[134,1,134,2],[129,1,129,2],[130,2,132,2],[126,7,127,12],[128,7,131,12],[120,2,121,2],[122,7,125,12],[124,2,127,2],[47,1,47,2],[55,1,58,2],[55,3,55,4],[59,1,60,2],[56,3,58,4],[64,1,64,5],[59,3,59,5],[35,1,35,12],[36,1,36,2],[36,3,36,12],[30,1,30,3],[38,8,38,12],[32,0,32,12],[142,1,142,2],[100,2,107,2],[95,3,98,4],[138,7,140,12],[20,1,20,12],[34,1,34,12],[29,1,29,2],[51,1,51,12],[30,4,30,12],[41,1,41,2],[1,3,4,8],[1,10,1,12],[3,10,3,12],[5,3,5,8],[148,7,151,12],[45,1,45,2],[50,1,50,12],[143,2,147,2],[61,7,64,12],[142,7,143,12],[42,1,42,2],[25,1,25,2],[26,1,26,2],[26,4,26,12],[27,4,27,12],[27,1,27,2],[37,7,37,12],[28,4,28,12],[25,4,25,12],[41,4,47,12],[29,4,29,12],[6,3,6,8],[22,0,22,12],[28,1,28,2],[7,1,8,11],[14,0,14,12],[16,1,16,12],[10,1,10,2],[11,1,11,2],[18,0,19,12]]}
[]
[null,null,null,"EQUI-FERTI (*)\n2013/2014"]
[]
[null,null,null,null,null,null,null,null,null,null,"Version n° 1d5 du 06/02/2014"]
[]
[null,null,null,"Cahier de fertilisation"]
[null,null,null,"(*) Marque déposée à l'INPI - 2013"]
[null,"Notice d'utilisation"]
[]
[]
[null,"ATTENTION :",null,null,"Assurez-vous que les macros sont bien activées."]
[null,"Pour vérifier :",null,null,"Dans le menu «Outils» / «Macro» / «Sécurité…» choisir l'option \"Niveau de sécurité moyen\""]
[]
[]
["Présentation générale :"]
[]
[null,"Reportez-vous à la notice du fichier PPF"]
[]
["Ergonomie :"]
[]
[null,"Reportez-vous à la notice du fichier PPF"]
[]
["Contraintes techniques :"]
[]
["*","Le logiciel a été développé sous Microsoft Excel 2003. Il est compatible avec des versions plus récentes  (2007 et 2010),\n                                              mais il n'est pas compatible avec la version 2000."]
["*","Blocages :",null,null,"En cas de plantage avec affichage d'un mesage d'erreur, il est possible que les calculs et contrôles ne s'exécutent plus. Dans ce cas, il faut cliquer sur le bouton en haut de chaque page « Cliquer en cas de plantage » pour relancer les calculs."]
["*","Impressions :",null,null,"Il est possible d'imprimer différents documents à l'aide des boutons présents sur la présente feuille. En cliquant sur ces boutions, le logiciel présente un aprecu des documents à imprimer. Il est alors possible de modifier éventuellement, si nécessaire, "]
[null," - Notice d'utilisation : ",null,null,"Ce bouton permet d'imprimer la présente notice d'utilisation"]
[null," - Volet recapitulatif :",null,null,"Cer bouton permet d'imprimer les feuilles de présentation générale et de synthèse : « Idenitifcation», «Elevage», «Effluents à gérer», «Cultures et îlots PAC», «Bilan fourrager», et «Synthèse»."]
[null," - Volet CF : ",null,null,"Ce bouton permet d'imprimer l'ensemble des feuilles du cahier de fertilisation de chaque parcelle."]
[null," - Objectifs de rendement : ",null,null,"Ce bouton permet d'imprimer le tableau des objectifs de rendements. Ce tableau n'est disponible qu'en impression papier, il n'est pas visible dans le logiciel.\nCe tableau qui est destiné à présenter l'ensemble des potentiels de rendement de chaque parcell"]
[]
["Conseils d'utlisation :"]
[]
["*","Organisation générale du logiciel :"]
[null,"Le logiciel présente les feuilles ou onglets suivants :"]
[null,"* Identification :",null,"Cette feuille présente la notice d'utilsation du logiciel.\nElle comporte également le menu de gestion qui donne accès aux impressions :"]
[null,null,null,null,null,null,null,"\n\nCliquer pour accéder au menu ci-dessous\n\nModule d'administration du logiciel (accès avec mot de passe)"]
[null,null,null,null,null,null,null,null,"\nLe menu des outils a cet aspect lorsque le fichier est vierge\n\n\nCliquer pour d'afficher les tableaux de référence du GREN qui servent de base aux calculs\n\nCliquer pour imprimer ces tableaux\n\n\nCliquer pour imprimer un cahier de fertilisation vierge : il contient la liste des cultures, mais pas les apports déja réalisés.\n\nCliquer pour imprimer la présente notice\n\nCliquer pour imprimer les feuilles de description de l'exploitation (cheptel, gestion des effluents, parcellaire, bilan fourrager, synthèse et indicateurs environnementaux.\n\nCliquer pour imprimer les feuilles de détail du cahier de fertilisation (CF)\n\nCliquer pour imprimer le tableau des objectifs de rendements"]
[]
[]
[null,"* Identification :",null,null,"L'ensemble de ces feuilles sont gérées de façon tout à fait identique à celles du PPF. En effet, il est possible que certaines des prévisions du PPF ne soient pas respectées pour différentes raisons (technique, climatiques, financières, …). Il faut donc pouvoir mettre en conformité les paramètres du CF  avec la réalité de l'exploitation."]
[null,"* Elevage :"]
[]
[null,"NB : dans la feuille \"élevage\", les colonnes de droite indiquent les quantités de phospore produites. Ces données ne sont pas utlisées dans la suite du logiciel et sont fournies à titre d'informations et peuvent servir à s'assurer de l'équilibre de la fer"]
[null,"* Effluents à gérer :"]
[null,"* Cultures et îlots PAC:"]
[null,"* Bilan fourrager :"]
[]
["*","Feuilles de saisie du Cahier de Fertilisation :"]
[null,"La légende occupe les colonnes de gauche qui sont figées. Chaque colonne de droite correspond à une parcelle culturale.\nLes feuilles de saisie des CF sont disposées selon une trame commune qui reprend les éléments suivants :\n"]
[]
[]
[null,"Ilot",null,"Nom",null,null,null,"Identification de la parcelle et de la culture : \nLes informations de ce blocs proviennent de la feuille «Cultures et îlots PAC». Elle ne sont pas modifiables directement dans la feuille PPF (Cf. fichier PPF)"]
[null,null,null,"Numéro"]
[null,"Parcelle culturale",null,"N° parcelle"]
[null,null,null,"Surfaces",null,"SAU"]
[null,null,null,null,null,"SPE"]
[null,null,null,null,null,"SNE"]
[null,"Culture",null,"Intitulé"]
[null,null,null,"Objectif de rendement"]
[null,"Dose à apporter Prévisionnelle (kg N/ha)",null,null,null,null,null,"Il est possible d'apporter des corrections par rapport au PPF :\n    - Le RSH peut être modifié en raison d'informations plus précise ou postérieures au PPF\n    - Il est possible d'apporter une correction sur la dose à apporter en fonction d'outils ou de\n      la conduite de la culture. Dans ce cas il faut indiquer en + ou en -, la valeur de la \n      correction"]
[null,"Correction",null,"RSH (reliquat sortie d'hiver)"]
[null,null,null,"Correction liée aux outils de pilotage"]
[null,"Dose à apporter corrigée (kg N/ha)"]
[null,"Apports au semis","Apports de matières organiques \n(au semis)","Apport 1",null,"Type",null,"Pour chaque apport, il faut indiquer le type, la date et la quantité de l'apport organique sur la culture"]
[null,null,null,null,null,"date d'apport"]
[null,null,null,null,null,"Quantité  / ha"]
[null,null,null,null,null,"Valeur N (kg/ha)"]
[null,null,null,"Apport 2",null,"Type"]
[null,null,null,null,null,"date d'apport"]
[null,null,null,null,null,"Quantité  / ha"]
[null,null,null,null,null,"Valeur N (kg/ha)",null,"Apports de fertilisants au semis :\nLes informations de ce bloc concernent les apports au semis de la culture ou de la dérobée qui précède la culture."]
[null,null,null,"Apport 3",null,"Type"]
[null,null,null,null,null,"date d'apport"]
[null,null,null,null,null,"Quantité  / ha"]
[null,null,null,null,null,"Valeur N (kg/ha)"]
[null,null,"N efficace total des Matières organiques au semis (kg N/ha)"]
[null,null,"Apport N minéral prévisionnel (au semis)","Apport 1",null,"Type",null,"Pour chaque apport, il faut indiquer le type, la date, la quantité et la teneur en azote de l'apport minéral sur la culture"]
[null,null,null,null,null,"date d'apport"]
[null,null,null,null,null,"Quantité  / ha"]
[null,null,null,null,null,"teneur en N (%)"]
[null,null,null,"Apport 2",null,"Type"]
[null,null,null,null,null,"date d'apport"]
[null,null,null,null,null,"Quantité  / ha"]
[null,null,null,null,null,"teneur en N (%)"]
[null,null,"Total apport N minéral(kg/ha)"]
[null,"Apports prévisionnels sur la culture","Apports prévisionnel de matières organiques","Apport 1",null,"Type",null,"Apports prévisionnels sur la culture :\nLa somme des apports doit correspondre à la «dose à apporter», sans la dépasser.\nCes apports concernent les apports de matières organiques et dans ce cas ils sont débités des effluents disponibles sur l'exploitation "]
[null,null,null,null,null,"Date d'apport"]
[null,null,null,null,null,"Quantité  / ha"]
[null,null,null,null,null,"Valeur N (kg/ha)"]
[null,null,null,"Apport 2",null,"Type"]
[null,null,null,null,null,"date d'apport"]
[null,null,null,null,null,"Quantité  / ha"]
[null,null,null,null,null,"Valeur N (kg/ha)"]
[null,null,null,"Apport 3",null,"Type"]
[null,null,null,null,null,"date d'apport"]
[null,null,null,null,null,"Quantité  / ha"]
[null,null,null,null,null,"Valeur N (kg/ha)"]
[null,null,"N efficace total des Matières organiques"]
[null,null,"Apport N minéral prévisionnel","Apport 1",null,"Type"]
[null,null,null,null,null,"date d'apport"]
[null,null,null,null,null,"Quantité / ha"]
[null,null,null,null,null,"teneur en azote (%)"]
[null,null,null,"Apport 2",null,"Type"]
[null,null,null,null,null,"date d'apport"]
[null,null,null,null,null,"Quantité / ha"]
[null,null,null,null,null,"teneur en azote (%)"]
[null,null,"Apport total N minéral"]
[null,"Ecart entre besoins et fertilisation (kg N/ha)"]
[null,"Date de récolte"]
[null,"Rendement réalisé"]
[null,"Modalités de gestion de l'inter-culture"]
[null,"Modalités de gestion des CIPAN"]
[null,"Modalités de gestion des dérobées"]
[null,"Culture suivante"]
[]
[]
["Si vous constatez un dsyfonctionnement de ce logiciel, vous pouvez le signaler sur le site de la DRAAF de Bretagne : "]
[null,null,null,"http://www.draaf.bretagne.agriculture.gouv.fr/Foire-aux-questions"]

{"sheet":"Reference_effluents","index":10,"n_rows":82,"n_cols":49,"rows_kept":82,"cut":false,"hidden":true,"merged":[[1,27,4,27],[1,39,2,42],[1,31,2,34],[3,29,4,29],[3,30,4,30],[3,31,3,34],[1,2,4,2],[1,3,4,3],[1,4,4,4],[1,29,2,30],[3,9,3,10],[3,11,3,12],[2,15,2,16],[3,15,3,16],[2,13,2,14],[3,13,3,14],[2,11,2,12],[2,17,2,18],[44,35,45,35],[42,29,45,29],[42,30,43,35],[44,30,45,30],[44,31,45,31],[44,32,45,32],[44,33,45,33],[44,34,45,34],[3,5,3,8],[3,17,3,18],[3,21,3,22],[1,1,4,1],[1,5,2,8],[2,21,2,22],[1,9,1,26],[2,19,2,20],[3,19,3,20],[2,9,2,10],[3,48,4,48],[2,23,2,24],[3,23,3,24],[3,25,3,26],[2,25,2,26],[1,43,2,46],[3,35,3,38],[3,39,3,42],[3,43,3,46],[1,35,2,38]]}
[null,1,2,3,4,5,6,7,8,9,10,11,12,13,14,15,16,17,18,19,20,21,22,23,24,25,26]
[null,"Produits","Type  de produits","Source","Type de période","Composition",null,null,null,"Coefficient d'efficacité",null,null,null,null,null,null,null,null,null,null,null,null,null,null,null,null,null,"Effluent d'origine animale (calcul des 170Kg/ha)",null,"Contribution des apports des années antérieures\n(kg N/ha)",null,"Céréales",null,null,null,"Colza",null,null,null,"Maïs",null,null,null,"Prairies"]
[null,null,null,null,null,null,null,null,null,"Céréales",null,"Colza",null,"Mais",null,"Prairies",null,"Epinards",null,"Haricots",null,"PDT",null,"Chou",null,"Cult Légumière"]
[null,null,null,null,null,"kg par t ou m3",null,null,null,"Période d’apport",null,"Période d’apport",null,"Période d’apport",null,"Période d’apport",null,"Période d’apport",null,"Période d’apport",null,"Période d’apport",null,"Période d’apport",null,"Période d’apport",null,null,null,"Effluents","quantité\n(t ou m3/ha)","Fréquence",null,null,null,"Fréquence",null,null,null,"Fréquence",null,null,null,"Fréquence",null,null,null,null,"Engrais minéraux"]
[null,null,null,null,null,"% MS","Azote","P2O5","K2O","Print.","Aut.","Print.","Fin été","Print.","Aut.","Print.","Aut.","Print.","Eté","Print.","Aut.","Print.","Aut.","Print.","Eté","Print.","Eté",null,null,null,null,"tous les ans","2 années sur 3","tous les 2 ans","tous les 3 ans et +","tous les ans","2 années sur 3","tous les 2 ans","tous les 3 ans et +","tous les ans","2 années sur 3","tous les 2 ans","tous les 3 ans et +","tous les ans","2 années sur 3","tous les 2 ans","tous les 3 ans et +"]
[null,"Fumier de chevaux","Fumier autres","Autres","type I",54,6,3,10,0.1,0.1,0.2,0.2,0.25,"T",0.1,"D",0.2,0.2,0.2,"T",0.25,"T","T",0.2,0.1,0.2,"O",null,"Fumier bovin (t)",30,50,35,25,15,40,25,20,10,70,45,35,20,165,110,83,50,null,"Ammonitrate"]
[null,"Fumier d'ovins, caprins","Fumier autres","Autres","type I","30 à 45",6,4,10,0.1,0.1,0.2,0.2,0.25,"T",0.1,"D",0.2,0.2,0.2,"T",0.25,"T","T",0.2,0.1,0.2,"O",null,"Lisier bovin (m3)",40,25,15,10,5,20,15,10,5,35,25,20,15,120,80,60,36,null,"Nitrate d'ammonium"]
[null,"Fumiers de lapins","Fumier autres","Autres","type I",null,8,12.5,7.1,0.1,0.1,0.2,0.2,0.25,"T",0.1,"D",0.2,0.2,0.2,"T",0.25,"T","T",0.2,0.1,0.2,"O",null,"Fumier volaille (t)",10,40,25,20,10,25,15,10,5,45,30,25,15,250,167,125,75,null,"Nitrate de chaux"]
[null,"Lisier de lapins","Lisier autres","Autres","type II","20 à 25",4,5.5,4.5999999999999996,0.45,"I",0.5,0.5,0.6,"T",0.6,0.6,0.4,0.45,0.55000000000000004,"T",0.6,"T","T",0.5,0.4,0.5,"O",null,"Lisier volaille (m3)",15,15,10,5,0,10,5,5,0,20,15,10,0,105,70,53,32,null,"Solution azotée"]
[null,"Algues vertes ramassée sur plages  ","AV","Externe","type I",null,null,null,null,0.15,0.1,0.1,0.2,0.25,"T",0.1,"D",0.2,0.2,0.2,"T",0.25,"T","T",0.2,0.1,0.2,"N",null,"Lisier porc (m3)",40,20,15,10,5,20,15,10,5,30,20,15,10,150,100,75,45,null,"Sulfate d'ammonium"]
[null,"Fumier bovins moins 3 mois","Fumier de bovins","Bovins","type I",33,6.5,4,9,0.15,0.1,0.15,0.2,0.25,"T",0.1,"D",0.1,0.1,0.1,"T",0.1,"T","T",0.1,0.05,0.1,"O",null,"Fumier porc (t)",30,25,20,15,10,15,10,5,0,35,25,20,15,120,80,60,36,null,"Urée"]
[null,"Fumier bovins plus 3 mois","Fumier de bovins","Bovins","type I",33,6.5,4,9,0.15,0.05,0.15,0.2,0.25,"T",0.1,"D",0.1,0.1,0.1,"T",0.1,"T","T",0.1,0.05,0.1,"O",null,"Compost lisier porc (t)",30,60,40,30,20,45,30,20,15,80,50,40,25,180,120,90,54,null,"Autres"]
[null,"Fumier d'aire paillée vaches","Fumier de bovins","Bovins","type I",25,5.5,2.5,8,0.15,0.1,0.15,0.2,0.25,"T",0.1,"D",0.2,0.2,0.2,"T",0.25,"T","T",0.2,0.1,0.2,"O",null,"Compost fumier bovin (t)",15,35,25,20,10,25,20,10,5,50,30,25,15,163,108,81,49]
[null,"Fumier de bovins viandes","Fumier de bovins","Bovins","type I",24,5,3,4,0.15,0.1,0.15,0.2,0.25,"T",0.1,"D",0.2,0.2,0.2,"T",0.25,"T","T",0.2,0.1,0.2,"O",null,"Compost fumier volailles (t)",8,70,45,35,25,55,35,25,20,100,65,50,30,160,107,80,48]
[null,"Fumier de logettes paillées vaches","Fumier de bovins","Bovins","type I",19,4.2,2,4,0.15,0.1,0.15,0.2,0.25,"T",0.1,"D",0.2,0.2,0.2,"T",0.25,"T","T",0.2,0.1,0.2,"O",null,"Compost mûr de déchets verts (t)",30,90,60,45,30,70,45,35,20,125,80,60,40,240,160,120,72]
[null,"Fumier de raclage d'aire d'exercice paillée","Fumier de bovins","Bovins","type I",null,5,2.5,4,0.15,0.1,0.15,0.2,0.25,"T",0.1,"D",0.2,0.2,0.2,"T",0.25,"T","T",0.2,0.1,0.2,"O"]
[null,"Eaux blanches + eaux vertes","Lisier de bovins","Bovins","type II",1,0.4,0.2,0.5,0.45,"I",0.45,0.45,0.5,"T",0.55000000000000004,0.55000000000000004,0.4,0.45,0.45,"T",0.45,"T","T",0.45,0.4,0.45,"O"]
[null,"Lisier de bovins viandes sur caillebotis","Lisier de bovins","Bovins","type II",12,5,3,4,0.45,"I",0.45,0.45,0.5,"T",0.55000000000000004,0.55000000000000004,0.4,0.45,0.45,"T",0.45,"T","T",0.45,0.4,0.45,"O"]
[null,"Lisier de veaux de boucherie","Lisier de bovins","Bovins","type II",2,2.5,1.5,3,0.6,"I",0.6,0.65,0.7,"T",0.65,0.65,0.6,0.65,0.6,"T",0.65,"T","T",0.7,0.6,0.7,"O"]
[null,"Lisier de VL fosse bâtiment","Lisier de bovins","Bovins","type II",12,5,2.5,6,0.45,"I",0.45,0.45,0.5,"T",0.55000000000000004,0.55000000000000004,0.4,0.45,0.45,"T",0.45,"T","T",0.45,0.4,0.45,"O"]
[null,"Lisier de VL logettes caillebotis","Lisier de bovins","Bovins","type II",10,4,1.6,4,0.45,"I",0.45,0.45,0.5,"T",0.55000000000000004,0.55000000000000004,0.4,0.45,0.45,"T",0.45,"T","T",0.45,0.4,0.45,"O"]
[null,"Lisier de VL raclage logettes pur","Lisier de bovins","Bovins","type II",10,3.2,1.3,3.2,0.45,"I",0.45,0.45,0.5,"T",0.55000000000000004,0.55000000000000004,0.4,0.45,0.45,"T",0.45,"T","T",0.45,0.4,0.45,"O"]
[null,"Lisier de VL raclé en fosse extérieure","Lisier de bovins","Bovins","type II",7,2.8,1.5,2.7,0.45,"I",0.45,0.45,0.5,"T",0.55000000000000004,0.55000000000000004,0.4,0.45,0.45,"T",0.45,"T","T",0.45,0.4,0.45,"O"]
[null,"Purins","Lisier de bovins","Bovins","type II",2.5,2,0.9,5.7,0.45,"I",0.45,0.45,0.5,"T",0.55000000000000004,0.55000000000000004,0.4,0.45,0.45,"T",0.45,"T","T",0.45,0.4,0.45,"O"]
[null,"Compost boues avec déchets verts de 4 à 10 mois","Compostage ou ST","Compost","type I",null,null,null,null,0.15,0.1,0.1,0.2,0.25,"T",0.1,"D",0.2,0.2,0.2,"T",0.25,"T","T","I","I","I","N"]
[null,"Compost boues avec déchets verts de plus 10 mois","Compostage ou ST","Compost","type I",null,null,null,null,0.05,0.05,0.1,0.1,0.1,"T",0.1,"D",0.1,0.1,0.1,"T",0.1,"T","T","I","I","I","N"]
[null,"Compost urbain ou de déchets verts Avec ou sans algues vertes","Compostage ou ST","Externe","type I",null,null,null,null,0.05,0.05,0.05,0.1,0.1,"T",0.1,"D",0.1,0.1,0.1,"T",0.1,"T","T",0.1,0.05,0.1,"N"]
[null,"Digestat issu de Méthanisation","Compostage ou ST","Compost","type II",null,null,null,null,0.75,"I",0.75,0.8,0.85,"T",0.8,0.8,0.75,0.8,0.75,"T",0.8,"T","T",0.85,0.65,0.85,"O/N"]
[null,"Compost de fumier de bovin < 3 mois","Compostage ou ST","Fumier de bovins","type I",null,5.2,null,null,0.1,0.1,0.1,0.1,0.2,"T",0.1,"D",0.1,0.1,0.1,"T",0.1,"T","T",0.1,0.05,0.1,"O"]
[null,"Compost de fumier de bovin > 3 mois","Compostage ou ST","Fumier de bovins","type I",null,5.2,null,null,0.05,0.05,0.1,0.1,0.1,"T",0.1,"D",0.1,0.1,0.1,"T",0.1,"T","T",0.1,0.05,0.1,"O"]
[null,"Compost de litière de volaille. avec sciure de plus de 6 mois","Compostage ou ST","Fumier de volailles","type I",65,20,24,19,0.3,"I",0.3,0.35,0.45,"T",0.4,"D",0.3,0.35,0.3,"T",0.4,"T","T",0.4,0.3,0.4,"O"]
[null,"Litière de volaille avec paille de moins de 6 mois","Compostage ou ST","Fumier de volailles","type I",65,20,24,19,0.3,"I",0.3,0.35,0.45,"T",0.4,"D",0.3,0.35,0.3,"T",0.4,"T","T",0.4,0.3,0.4,"O"]
[null,"Pintades : Compost de litière de sciure de moins 6 mois ","Compostage ou ST","Fumier de volailles","type I B",70,32,25,20,0.45,"I",0.45,0.55000000000000004,0.65,"T",0.5,0.5,0.5,0.55000000000000004,0.5,"T",0.55000000000000004,"T","T",0.55000000000000004,0.45,0.55000000000000004,"O"]
[null,"Poules repro frais : Compost de litière de sciure de moins 6 mois","Compostage ou ST","Fumier de volailles","type I B",null,22,40,25,0.45,"I",0.45,0.55000000000000004,0.65,"T",0.4,0.4,0.5,0.55000000000000004,0.5,"T",0.55000000000000004,"T","T",0.55000000000000004,0.45,0.55000000000000004,"O"]
[null,"poulets label frais : Compost de litière de sciure de moins 6 mois ","Compostage ou ST","Fumier de volailles","type I B",70,20,18,15,0.45,"I",0.45,0.55000000000000004,0.65,"T",0.4,0.4,0.5,0.55000000000000004,0.5,"T",0.55000000000000004,"T","T",0.55000000000000004,0.45,0.55000000000000004,"O"]
[null,"Poulets, dindes :  Compost de litière de sciure de moins 6 mois ","Compostage ou ST","Fumier de volailles","type I B","65 à 70",30,27,20,0.45,"I",0.45,0.55000000000000004,0.65,"T",0.4,0.4,0.5,0.55000000000000004,0.5,"T",0.55000000000000004,"T","T",0.55000000000000004,0.45,0.55000000000000004,"O"]
[null,"Poulettes frais : Compost de litière de sciure de moins 6 mois","Compostage ou ST","Fumier de volailles","type I B",75,25,25,18,0.45,"I",0.45,0.55000000000000004,0.65,"T",0.4,0.4,0.5,0.55000000000000004,0.5,"T",0.55000000000000004,"T","T",0.55000000000000004,0.45,0.55000000000000004,"O"]
[null,"Vieux Compost de litière de volaille avec paille de plus de 10 mois","Compostage ou ST","Fumier de volailles","type I",65,20,24,19,0.05,0.05,0.05,0.1,0.1,"T",0.1,"D",0.1,0.1,0.1,"T",0.1,"T","T",0.1,0.05,0.1,"O"]
[null,"Vieux Compost de litière de volaille avec sciure de plus de 10 mois.","Compostage ou ST","Fumier de volailles","type I",65,20,24,19,0.05,0.05,0.05,0.2,0.25,"T",0.1,"D",0.2,0.2,0.2,"T",0.25,"T","T",0.2,0.1,0.2,"O"]
[null,"Boue issue de station de traitement de lisier","Compostage ou ST","Lisier de porcs","type II","< 8",2,1.5,0.25,"0.4","I","0.4",0.45,0.5,"T",0.55000000000000004,0.55000000000000004,0.4,0.45,0.45,"T",0.45,"T","T","I","I","I","O"]
[null,"Compost de Lisier de porcs \"Guernévez\" de 6  à 10 mois","Compostage ou ST","Lisier de porcs","type I",null,"5,5 à 13","8,4 à 14","8 à 20",0.1,0.1,0.1,0.2,0.25,"T",0.1,"D",0.2,0.2,0.2,"T",0.25,"T","T",0.2,0.1,0.2,"O"]
[null,"Compost de lisier de porcs \"Guernévez\" de moins de 6 mois","Compostage ou ST","Lisier de porcs","type I",28,8,7.5,12.5,0.3,0.2,0.35,0.35,0.45,"T",0.4,"D",0.3,0.35,0.3,"T",0.45,"T","T",0.4,0.3,0.4,"O"]
[null,"Compost de refus de tamis (Issus de centrif. du LP) : C/N > 8","Compostage ou ST","Lisier de porcs","type I",null,"5,5 à 13","8,4 à 14","8 à 20",0.1,0.1,0.1,0.2,0.25,"T",0.1,"D",0.2,0.2,0.2,"T",0.25,"T","T",0.2,0.1,0.2,"O",null,"Legumes industrie","Contribution des apports organiques des années antérieures (kg N/ha)"]
[null,"Fraction liquide de lisier centrifugé","Compostage ou ST","Lisier de porcs","type II",3,3.5,2.2000000000000002,2.9,0.6,"I",0.6,0.65,0.7,"T",0.65,0.65,0.6,0.65,0.6,"T",0.65,"T","T",0.7,0.6,0.7,"O"]
[null,"Refus de tamis issus de centrif. de lisier de porcs","Compostage ou ST","Lisier de porcs","type I",24,5,3,4,0.15,0.1,0.15,0.2,0.25,"T",0.1,"D",0.2,0.2,0.2,"T",0.25,"T","T",0.2,0.1,0.2,"O",null,null,"Bovins sur fumier + hors-sol","Bovins sur lisier + hors-sol","Bovins sur fumier","Hors-sol","Bovin sur lisier","Pas de déjection"]
[null,"Vieux Compost de Lisier de pocs avec déchets verts  de plus 10 mois","Compostage ou ST","Lisier de porcs","type I",null,"5,5 à 13","8,4 à 14","8 à 20",0.05,0.05,0.05,0.1,0.1,"T",0.1,"D",0.1,0.1,0.1,"T",0.1,"T","T",0.1,0.05,0.1,"O"]
[null,"Vieux Compost Lisier de porcs  \"Guernévez\" de plus 10 mois","Compostage ou ST","Lisier de porcs","type I",null,"5,5 à 13","8,4 à 14","8 à 20",0.05,0.05,0.05,0.1,0.1,"T",0.1,"D",0.1,0.1,0.1,"T",0.1,"T","T",0.1,0.05,0.1,"O",null,"Grosses carottes",30,25,25,25,15,0]
[null,"Fumier de porcs de moins de 6 mois","Fumier de porcs","Porcs","type I",28,8,7.5,12.5,0.3,0.2,0.35,0.35,0.45,"T",0.4,"D",0.3,0.35,0.3,"T",0.45,"T","T",0.4,0.3,0.4,"O",null,"Jeunes carottes",15,10,10,10,5,0]
[null,"Fumier de porcs de 6 à 10 mois","Fumier de porcs","Porcs","type I",null,"5,5 à 13","8,4 à 14","8 à 20",0.1,0.1,0.1,0.2,0.25,"T",0.1,"D",0.2,0.2,0.2,"T",0.25,"T","T",0.2,0.1,0.2,"O",null,"Flageolets",15,10,10,10,10,0]
[null,"Fumier de porcs de plus de 10 mois","Fumier de porcs","Porcs","type I",null,"5,5 à 13","8,4 à 14","8 à 20",0.05,0.05,0.05,0.1,0.1,"T",0.1,"D",0.1,0.1,0.1,"T",0.1,"T","T",0.1,0.05,0.1,"O",null,"Gros haricots industrie",15,10,10,10,10,0]
[null,"Refus centrifugation","Compostage ou ST","Lisier de porcs","type I",null,15,null,null,0.1,"I",0.15,0.2,0.25,"T",0.1,"D",0.2,0.25,0.2,"T",0.25,"T","T",0.2,0.15,0.2,"O",null,"Haricots très fins et extra fins",10,10,10,10,5,0]
[null,"Lisier de maternité gestantes","Lisier de porcs","Porcs","type II",3,2.2999999999999998,1.7,1.7,0.6,"I",0.6,0.65,0.7,"T",0.65,0.65,0.6,0.65,0.6,"T",0.65,"T","T",0.7,0.6,0.7,"O",null,"Epinards d'automne",10,5,5,5,5,0]
[null,"Lisier de porcs avec déchet verts de 6  à 10 mois","Lisier de porcs","Porcs","type I",null,"5,5 à 13","8,4 à 14","8 à 20",0.1,0.1,0.1,0.2,0.25,"T",0.1,"D",0.2,0.2,0.2,"T",0.25,"T","T",0.2,0.1,0.2,"O",null,"Epinards de printemps et d'hiver",10,5,5,5,5,0]
[null,"Lisier de porcs moyen dilué","Lisier de porcs","Porcs","type II",3,3.5,2.2000000000000002,2.9,0.6,"I",0.6,0.65,0.7,"T",0.65,0.65,0.6,0.65,0.6,"T",0.65,"T","T",0.7,0.6,0.7,"O"]
[null,"Lisier de porcs moyen non dilué","Lisier de porcs","Porcs","type II",5,4.4000000000000004,2.8,3.3,0.6,"I",0.6,0.65,0.7,"T",0.65,0.65,0.6,0.65,0.6,"T",0.65,"T","T",0.7,0.6,0.7,"O"]
[null,"Lisier de porcs filtré","Lisier de porcs","Porcs","type II",null,3.5,null,null,0.7,"I",0.7,0.75,0.78,"T",0.75,0.75,0.75,0.75,0.75,"T",0.75,"T","T",0.75,0.7,0.75,"O"]
[null,"Lisier de prefosse engraissement","Lisier de porcs","Porcs","type II",7,6.1,3.8,4.5,0.6,"I",0.6,0.65,0.7,"T",0.65,0.65,0.6,0.65,0.6,"T",0.65,"T","T",0.7,0.6,0.7,"O"]
[null,"Lisier d'engraissement concentré","Lisier de porcs","Porcs","type II",8,7.9,4.9000000000000004,5.8,0.6,"I",0.6,0.65,0.7,"T",0.65,0.65,0.6,0.65,0.6,"T",0.65,"T","T",0.7,0.6,0.7,"O"]
[null,"Boues bio (trait simple)","Compostage ou ST","Lisier de porcs","type II",null,3,null,null,0.3,"I",0.3,0.35,0.4,"T",0.4,0.4,0.3,0.35,0.3,"T",0.35,"T","T",0.35,0.3,0.35,"O"]
[null,"Boues bio (avec centrif)","Compostage ou ST","Lisier de porcs","type II",null,2.5,null,null,0.35,"I",0.35,0.4,0.5,"T",0.5,0.5,0.35,0.4,0.35,"T",0.4,"T","T",0.45,0.35,0.45,"O"]
[null,"Effluent traité (porc)","Compostage ou ST","Lisier de porcs","type II",null,0.2,null,null,0.5,"I",0.55000000000000004,0.6,0.65,"T",0.65,0.65,0.5,0.6,0.5,"T",0.6,"T","T",0.6,0.5,0.6,"O"]
[null,"Boue de lagunage (C/N > 8)","Boues","Externe","type I",null,null,null,null,0.1,0.1,0.1,0.1,0.2,"T",0.1,"D","0.1","0.1","0.1","T","0.1","T","T","I","I","I","N"]
[null,"Boue urbaine, pateuse chaulée ou séchée ou boue lagunage C/N<8    ","Boues","Externe","type II","< 8",4.5,3.6,0.3,0.2,"I",0.2,0.2,0.35,"T",0.1,0.1,0.2,0.2,0.2,"T",0.25,"T","T","I","I","I","N"]
[null,"Boue de STEP ou issue d’IAA Avec C/N <  2, riche en NH4, liquide             ","Boues","Externe","type II","< 8",2,1.5,0.25,"0.6","I","0.6",0.6,0.7,"T",0.65,0.65,0.6,0.65,0.6,"T",0.65,"T","T","I","I","I","N"]
[null,"Boue liquide de STEP ou issue d’IAA","Boues","Externe","type II","< 8",2,1.5,0.25,"0.4","I","0.4",0.45,0.5,"T",0.55000000000000004,0.55000000000000004,0.4,0.45,0.45,"T",0.45,"T","T","I","I","I","N"]
[null,"Fientes de poules humides  ( < 65 % MS) ","Fientes de poules","Volailles","type II",25,15,14,12,0.45,"I",0.5,0.55000000000000004,0.65,"T",0.6,0.6,0.5,0.55000000000000004,0.5,"T",0.6,"T","T",0.55000000000000004,0.45,0.55000000000000004,"O"]
[null,"Fientes de poules sèches après pré-sèchage ( > 65 % MS) ","Fientes de poules","Volailles","type I B",40,30,36,24,0.45,"I",0.55000000000000004,0.55000000000000004,0.65,"T",0.6,0.4,0.5,0.55000000000000004,0.5,"T",0.6,"T","T",0.55000000000000004,0.45,0.55000000000000004,"O"]
[null,"Fientes de poules sèches après sèchage rapide ( > 65 % MS) ","Fientes de poules","Volailles","type I B",80,40,38,25,0.45,"I",0.55000000000000004,0.55000000000000004,0.65,"T",0.6,0.6,0.5,0.55000000000000004,0.5,"T",0.6,"T","T",0.55000000000000004,0.45,0.55000000000000004,"O"]
[null,"Lisier de canards","Lisier de volailles","Volailles","type II","10 à 15",6,6,4,0.5,"I",0.5,0.65,0.65,"T",0.6,0.6,0.6,0.65,0.6,"T",0.65,"T","T",0.65,0.5,0.6,"O"]
[null,"Dindes futures repro : Fumier après stockage  (de plus de 4 mois)","Fumier de volailles","Volailles","type I B",null,11,18,13,0.35,"I",0.3,0.35,0.45,"T",0.4,0.6,0.4,0.35,0.3,"T",0.4,"T","T",0.35,0.3,0.35,"O"]
[null,"Dindes repro : Fumier après stockage  (de plus de 4 mois)","Fumier de volailles","Volailles","type I B",null,13,24,18,0.35,"I",0.3,0.35,0.45,"T",0.4,0.6,0.4,0.35,0.3,"T",0.4,"T","T",0.35,0.3,0.35,"O"]
[null,"Litière de volaille. avec paille de 6  à 10 mois","Fumier de volailles","Volailles","type I",65,20,24,19,0.2,0.1,0.2,0.2,0.25,"T",0.1,"D",0.2,0.2,0.2,"T",0.25,"T","T",0.2,0.1,0.2,"O"]
[null,"Pintades : Fumier après stockage  (de plus de 4 mois)","Fumier de volailles","Volailles","type I B",null,24,23,18,0.35,"I",0.3,0.35,0.45,"T",0.4,0.4,0.4,0.35,0.3,"T",0.4,"T","T",0.35,0.3,0.35,"O"]
[null,"Pintades : Fumier sortie poulailler ( de moins de 4 mois )","Fumier de volailles","Volailles","type I B",70,32,25,20,0.45,"I",0.45,0.55000000000000004,0.65,"T",0.5,0.5,0.5,0.55000000000000004,0.5,"T",0.6,"T","T",0.55000000000000004,0.45,0.55000000000000004,"O"]
[null,"Poules repro : Fumier après stockage  (de plus de 4 mois)","Fumier de volailles","Volailles","type I B",null,18,30,21,0.35,"I",0.3,0.35,0.45,"T",0.4,0.4,0.4,0.35,0.3,"T",0.4,"T","T",0.35,0.3,0.35,"O"]
[null,"Poules repro frais : Fumier ( de moins de 4 mois )","Fumier de volailles","Volailles","type I B",null,22,40,25,0.45,"I",0.45,0.55000000000000004,0.65,"T",0.5,0.5,0.5,0.55000000000000004,0.5,"T",0.6,"T","T",0.55000000000000004,0.45,0.55000000000000004,"O"]
[null,"poulets label et bio  : Fumier après stockage  (de plus de 4 mois)","Fumier de volailles","Volailles","type I B","55 à 60",15,17,14,0.35,"I",0.3,0.35,0.45,"T",0.4,0.4,0.4,0.35,0.3,"T",0.4,"T","T",0.35,0.3,0.35,"O"]
[null,"poulets label frais : Fumier ( de moins de 4 mois )","Fumier de volailles","Volailles","type I B",70,20,18,15,0.45,"I",0.45,0.55000000000000004,0.65,"T",0.5,0.5,0.5,0.55000000000000004,0.5,"T",0.6,"T","T",0.55000000000000004,0.45,0.55000000000000004,"O"]
[null,"Poulets, dindes : Fumier après stockage (de plus de 4 mois)","Fumier de volailles","Volailles","type I B","50 à 55",22,23,18,0.35,"I",0.3,0.35,0.45,"T",0.4,0.4,0.4,0.35,0.3,"T",0.4,"T","T",0.35,0.3,0.35,"O"]
[null,"Poulets, dindes : fumier sortie poulailler ( de moins de 4 mois)","Fumier de volailles","Volailles","type I B","65 à 70",30,27,20,0.45,"I",0.45,0.55000000000000004,0.65,"T",0.5,0.5,0.5,0.55000000000000004,0.5,"T",0.6,"T","T",0.55000000000000004,0.45,0.55000000000000004,"O"]
[null,"Poulettes : Fumier après stockage  (de plus de 4 mois)","Fumier de volailles","Volailles","type I B",null,18,20,15,0.35,"I",0.3,0.35,0.45,"T",0.4,0.4,0.4,0.35,0.3,"T",0.4,"T","T",0.35,0.3,0.35,"O"]
[null,"Poulettes frais : Fumier ( de moins de 4 mois  )","Fumier de volailles","Volailles","type I B",75,25,25,18,0.45,"I",0.45,0.55000000000000004,0.65,"T",0.5,0.5,0.5,0.55000000000000004,0.5,"T",0.6,"T","T",0.55000000000000004,0.45,0.55000000000000004,"O"]

{"sheet":"Reference_cultures","index":11,"n_rows":98,"n_cols":40,"rows_kept":98,"cut":false,"hidden":true,"merged":[[1,12,1,13],[7,20,8,21],[7,23,8,23],[2,29,3,29],[13,26,15,26],[19,31,21,37],[2,28,3,28],[2,32,3,32],[2,30,3,30],[2,31,3,31],[19,28,21,28],[19,29,21,29],[19,30,21,30],[19,19,20,19],[19,18,20,18],[7,17,8,17],[30,15,31,15],[7,15,8,15],[19,15,20,15],[7,16,8,16],[19,16,20,16],[19,17,20,17]]}
[]
[null,1,2,3,4,5,6,7,8,9,10,11,"Phosphore"]
[null,"Culture","Famille","grille","famille de coef d'efficacité","Rendement","Unité du rendement","Besoin azote","Export","Export Grain + paille","dose pivot","Dose plafond","Export","Export Grain + paille",null,"Cultures intermédiaires","mois de semis","Famille","grille","famille de coef d'efficacité","Rendement","Unité du rendement","Besoin azote","Export","dose pivot","Dose plafond",null,null,"Précedent cultural","Contribution céréales","Contribution colza","Contribution Mais","Contribution légumes",null,null,null,null,null,null,"Fourrages importés"]
[null,"Autre culture","Autres","Autres","Mais",null,null,null,null,null,null,100,null,null,null,"dérobées semées en juillet","Juil.","Cultures intermédiaires","Dérobée+maïs","Mais",4,"T MS/ha",25,25,0,60,null,null,null,null,null,null,null,null,null,null,null,null,null,"Herbe enrubannée"]
[null,"Celeri branche","Légumes industrie","Autres","Haricots",500,"Q/ha",null,90,null,null,300,null,null,null,"dérobées semées en août","Août","Cultures intermédiaires","Dérobée+maïs","Mais",3,"T MS/ha",25,25,0,40,null,null,"Betteraves feuilles enfouies",20,20,20,20,null,null,null,null,null,null,"Ensilage d'herbe"]
[null,"Fraises","Autres","Autres","Cult Légumière",100,"Q/ha",null,50,null,null,80,null,null,null,"dérobées semées après le 31 août","Sept. ou +","Cultures intermédiaires","Dérobée+maïs","Mais",2.5,"T MS/ha",25,25,0,0,null,null,"Betteraves feuilles non enfouies",0,0,0,0,null,null,null,null,null,null,"Foin"]
[null,"Taillis courte rotation","Autres","Autres","Mais",null,null,null,null,null,50,80,null,null,null,null,null,null,null,null,null,null,null,null,null,null,null,null,"Céréales pailles exportées ou brulées",0,0,0,0,null,null,null,null,null,null,"Luzerne"]
[null,"Miscanthus récolte février mars","Autres","Autres","Mais",null,null,null,null,null,0,50,null,null,null,"Familles","Nom","Fourrages",null,null,"Plafond appport au semis",null,null,"Si prairie : age",null,null,null,null,"Céréales pailles enfouies",-20,-20,0,-20,null,null,null,null,null,null,"Maïs ensilage"]
[null,"vergers","Autres","Autres","Mais",null,null,null,null,null,100,150,null,null,null,null,null,null,null,null,null,null,null,null,null,null,null,null,"Jachères (1-3 ans) ou légumineuses fourragères","I",30,"I",30,null,null,null,null,null,null,"Paille"]
[null,"Avoine de printemps","Céréales","Céréales","Céréales",50,"Q/ha",2.2000000000000002,1.9,2.5,null,null,null,null,null,"Céréales","Céréales",0,null,null,"Colza",65,null,"6 -18 mois",null,null,null,null,"Colza, pomme de terre, haricots, pois ",20,20,20,20,null,null,null,null,null,null,"Divers"]
[null,"Avoine d'hiver","Céréales","Céréales","Céréales",51,"Q/ha",2.2000000000000002,1.9,2.5,null,null,null,null,null,"Fourrages de printemps","Fourrages",1,null,null,null,null,null,"2-3 ans",null,null,null,null,"Tournesol",0,"I",0,0]
[null,"Blé tendre d'hiver","Céréales","Céréales","Céréales",71,"Q/ha",3,1.9,2.5,null,null,null,null,null,"Oléo-protéagineux","OP",0,null,null,null,null,null,"4-5 ans",null,null,null,null,"Légumineuses fourragères (luzerne, trèfle …) ",30,"I","?",30]
[null,"Blé tendre de printemps","Céréales","Céréales","Céréales",66,"Q/ha",3,1.9,2.5,null,null,null,null,null,"Prairies","Prairies",1,null,null,null,null,null,"6-10 ans",null,null,null,null,"Maïs ensilage",0,"I",0,0]
[null,"Maïs grain","Céréales","Mais","Mais",85,"Q/ha",2.2999999999999998,1.5,2.2000000000000002,null,null,null,null,null,"Légumes industrie","LégumesI",0,null,null,null,null,null,"> 10 ans",null,null,null,null,"Maïs grain",-10,"I",-10,-10]
[null,"Maïs semence","Céréales","Mais","Mais",37,"Q/ha",2.2999999999999998,1.5,2.2000000000000002,null,null,null,null,null,"Légumes frais","LégumesF",0,null,null,null,null,null,null,null,null,null,null,"Choux fleurs d'hiver ",40,"I",60,40]
[null,"Meteil à base de céréales","Céréales","Céréales","Céréales",46,"Q/ha",2.5,1.9,2.5,null,null,null,null,null,"Autres","Autres_cult",0,null,null,null,null,null,null,null,null,null,null,"Prairie","I","I","I","I"]
[null,"Méteil mélange céréales légumineuses (<30 %)","Céréales","Autres","Céréales",null,"Q/ha",null,1.9,2.5,0,50]
[null,"Méteil mélange céréales légumineuses (>30%)","Céréales","Autres","Céréales",null,"Q/ha",null,1.9,2.5,0,0,null,null,null,"Cultures intermédiaires","CI",1]
[null,"Orge et escourgeon d'hiver","Céréales","Céréales","Céréales",64.099999999999994,"Q/ha",2.5,1.5,2.1]
[null,"Orge et escourgeon de printemps","Céréales","Céréales","Céréales",58.575000000000003,"Q/ha",2.4,1.5,2.1,null,null,null,null,null,"Grilles","Nom onglets","Ordre","Azote non valorisable","Nom onglets",null,null,null,null,null,null,null,null,"culture","Dose pivot (kg N/ha)","Rendement référence","Précédent"]
[null,"Sarrasin","Céréales","Autres","Céréales",20,"Q/ha",2.9,2.1,2.1,0,50]
[null,"Seigle","Céréales","Céréales","Céréales",46,"Q/ha",2.2999999999999998,1.4,2,null,null,null,null,null,"Céréales","PPF Céréales",1,30,"CF Céréales"]
[null,"Triticale","Céréales","Céréales","Céréales",61.674999999999997,"Q/ha",2.6,1.9,2.5,null,null,null,null,null,"Colza","PPF Colza",2,30,"CF Colza",null,null,null,null,null,null,null,null,"Grosses carottes",150,80,"Pâture","Epinards","Sol nu","RGI, CIPAN, autres"]
[null,"Betterave fourragère","Fourrages de printemps","Mais","Mais",15,"T MS/ha",17,16,16,null,null,null,null,null,"Mais","PPF Maïs",3,30,"CF Maïs",null,null,null,null,null,null,null,null,"Jeunes carottes",110,45,"Pâture","Sol nu","RGI, CIPAN, autres"]
[null,"Maïs ensilage (<=14 tMS/ha)","Fourrages de printemps","Mais","Mais",12.1,"T MS/ha",14,12.5,null,null,null,null,null,null,"Dérobée+maïs","PPF Dérobée + Maïs",4,30,"CF Dérobée + Maïs",null,null,null,null,null,null,null,null,"Epinards d'automne",200,20,"Epinards","Pois","Haricots","Carottes","Choux","Céréales"]
[null,"Maïs ensilage (>14 tMS/ha)","Fourrages de printemps","Mais","Mais",15,"T MS/ha",13,12.5,null,null,null,null,null,null,"Prairies","PPF Prairies",5,null,"CF Prairies",null,null,null,null,null,null,null,null,"Epinards de printemps et d'hiver",250,30,"Pâture","Sol nu","RGI, CIPAN, autres"]
[null,"Mélange céréales immatures","Fourrages de printemps","Céréales","Céréales",10,"T MS/ha",16,1.9,2.5,null,null,null,null,null,"Légumes frais","PPF Légumes frais",6,null,"CF Légumes frais",null,null,null,null,null,null,null,null,"Flageolets",180,6.5,"Pâture","Epinards","Pois","Sol nu","RGI, CIPAN, autres"]
[null,"Protéagineux fourragers","Fourrages de printemps","Autres","Céréales",10,"T MS/ha",0,3.6,5,0,0,null,null,null,"Légumes industrie","PPF Légumes - industries",7,null,"CF Légumes - industries",null,null,null,null,null,null,null,null,"Gros haricots",180,18,"Pâture","Epinards","Pois","Sol nu","RGI, CIPAN, autres"]
[null,"Sorgho","Fourrages de printemps","Mais","Mais",6.1,"T MS/ha",15,14.5,14.5,null,null,null,null,null,"Autres","PPF Autres cultures",8,null,"CF Autres cultures",null,null,null,null,null,null,null,null,"Haricots très fins et extra fins",160,12,"Pâture","Epinards","Pois","Carottes","Choux","Sol nu","RGI, CIPAN, autres"]
[null,"Ail (en sec)","Légumes frais","Légumes frais","Cult Légumière",42,"Q/ha",null,90]
[null,"Ail (en vert) *","Légumes frais","Légumes frais","Cult Légumière",117,"Q/ha",null,90,null,null,null,null,null,null,"Famille coef efficacité"]
[null,"Artichaut 2e année","Légumes frais","Légumes frais","Mais",52.6,"Q/ha",2,54]
[null,"Artichaut 3e année","Légumes frais","Légumes frais","Mais",52.6,"Q/ha",2,54,null,null,null,null,null,null,"Céréales"]
[null,"Artichaut drageon","Légumes frais","Légumes frais","Mais",52.6,"Q/ha",2,36,null,null,null,null,null,null,"Mais"]
[null,"Aubergines","Légumes frais","Légumes frais","Cult Légumière",212,"Q/ha",null,75,null,null,null,null,null,null,"Colza"]
[null,"Betteraves potagères","Légumes frais","Légumes frais","Cult Légumière",479,"Q/ha",null,80,null,null,null,null,null,null,"Prairies"]
[null,"Brocoli d’automne","Légumes frais","Légumes frais","Chou",null,null,2.4,60,null,null,null,null,null,null,"Cult Légumière"]
[null,"Brocoli de printemps","Légumes frais","Légumes frais","Chou",null,null,2.4,50,null,null,null,null,null,null,"Chou"]
[null,"Carotte d’automne","Légumes frais","Légumes frais","Chou",459,"Q/ha",2.6,80,null,null,null,null,null,null,"PDT"]
[null,"Carotte petite","Légumes frais","Légumes frais","Cult Légumière",null,null,null,45,null,null,null,null,null,null,"Haricots"]
[null,"Céleri rave d'automne","Légumes frais","Légumes frais","Chou",393,"Q/ha",2.2999999999999998,100,null,null,null,null,null,null,"Epinards"]
[null,"Chicorées frisées","Légumes frais","Légumes frais","Cult Légumière",221.9,"Q/ha",null,115]
[null,"Chicorées scaroles","Légumes frais","Légumes frais","Cult Légumière",263,"Q/ha",null,115]
[null,"Chou pommé","Légumes frais","Légumes frais","Chou",null,null,2.5,115]
[null,"Chou-fleur d’automne","Légumes frais","Légumes frais","Chou",152,"Q/ha",null,60]
[null,"Chou-fleur d'été","Légumes frais","Légumes frais","Chou",152,"Q/ha",null,45]
[null,"Chou-fleur d’hiver","Légumes frais","Légumes frais","Chou",152,"Q/ha",null,87]
[null,"Chou-fleur tardif","Légumes frais","Légumes frais","Chou",152,"Q/ha",null,87]
[null,"Choux de Bruxelles","Légumes frais","Légumes frais","Chou",100,"Q/ha",null,70]
[null,"Courgette d’automne","Légumes frais","Légumes frais","Cult Légumière",398,"Q/ha",null,75]
[null,"Echalote","Légumes frais","Légumes frais","Cult Légumière",226.9,"Q/ha",null,92]
[null,"Endives racines","Légumes frais","Légumes frais","Chou",148,"Q/ha",null,85]
[null,"Fenouil","Légumes frais","Légumes frais","Chou",null,null,null,40]
[null,"Haricot coco","Légumes frais","Légumes frais","Haricots",null,null,null,65,null,180]
[null,"Haricot legume frais","Légumes frais","Légumes frais","Cult Légumière",null,null,null,40]
[null,"Laitue de printemps","Légumes frais","Légumes frais","Cult Légumière",257,"Q/ha",2.2000000000000002,72]
[null,"Laitue d’été et d’automne","Légumes frais","Légumes frais","Cult Légumière",257,"Q/ha",2.2000000000000002,72]
[null,"Oignon d’automne","Légumes frais","Légumes frais","Chou",null,null,null,130]
[null,"Oignon rosé","Légumes frais","Légumes frais","Chou",null,null,null,92]
[null,"Panais","Légumes frais","Légumes frais","Chou",null,null,2.6,80]
[null,"Poireau d’automne","Légumes frais","Légumes frais","Chou",251,"Q/ha",null,165]
[null,"Poireau d’été","Légumes frais","Légumes frais","Cult Légumière",251,"Q/ha",null,165]
[null,"Poireau d’hiver","Légumes frais","Légumes frais","Chou",251,"Q/ha",null,165]
[null,"Pomme de terre précoce","Légumes frais","Légumes frais","PDT",null,null,null,115]
[null,"Pomme de terre semences","Légumes frais","Légumes frais","PDT",null,null,null,70]
[null,"Pomme de terre très précoce","Légumes frais","Légumes frais","Cult Légumière",null,null,null,70]
[null,"Pommes de terre de consommation","Légumes frais","Légumes frais","PDT",null,null,null,175]
[null,"Radis","Légumes frais","Autres","Cult Légumière",176,"Q/ha",null,50,null,null,50]
[null,"Salsifis et scorsonères","Légumes frais","Légumes frais","Cult Légumière",161,"Q/ha",null,120]
[null,"Grosses carottes","Légumes industrie","Légumes industrie","Haricots",462,"Q/ha",null,135,null,150]
[null,"Jeunes carottes","Légumes industrie","Légumes industrie","Haricots",null,null,null,80,null,110]
[null,"Epinards d'automne","Légumes industrie","Légumes industrie","Epinards",210.8,"Q/ha",null,95,null,200]
[null,"Epinards de printemps et d'hiver","Légumes industrie","Légumes industrie","Epinards",210.8,"Q/ha",null,115,null,250]
[null,"Flageolets","Légumes industrie","Légumes industrie","Haricots",null,null,null,70,null,180]
[null,"Gros haricots","Légumes industrie","Légumes industrie","Haricots",117,"Q/ha",null,50,null,180]
[null,"Haricots très fins et extra fins","Légumes industrie","Légumes industrie","Haricots",117,"Q/ha",null,40,null,160]
[null,"Persil","Légumes industrie","Légumes industrie","Epinards",88,"Q/ha",null,95,null,200]
[null,"Petits pois","Légumes industrie","Autres","Haricots",null,null,null,70,null,30,50]
[null,"Chanvre","Oléo-protéagineux","Autres","Mais",8,"T MS/ha",14,60,null,40,80]
[null,"Féveroles","Oléo-protéagineux","Autres","Mais",35.774999999999999,"Q/ha",null,3.8,null,null,20]
[null,"Légumineuses fourragères ( trèfle violet etc..)","Oléo-protéagineux","Autres","Mais",10,"T MS/ha",0,35,null,0,0]
[null,"Lin (fibre)","Oléo-protéagineux","Autres","Mais",null,null,null,3.5,null,0,50]
[null,"Lin (graine)","Oléo-protéagineux","Autres","Mais",21,"Q/ha",4.5,3.5,null,50,80]
[null,"Lupin de printemps","Oléo-protéagineux","Autres","Mais",32,"Q/ha",0,5.0999999999999996,6.1,0,0]
[null,"Lupin d'automne","Oléo-protéagineux","Autres","Céréales",32,"Q/ha",0,5.0999999999999996,6.1,0,0]
[null,"Pois de printemps","Oléo-protéagineux","Autres","Mais",43,"Q/ha",0,3.6,5,0,0]
[null,"Pois d'hiver","Oléo-protéagineux","Autres","Céréales",43,"Q/ha",0,3.7,5,0,0]
[null,"Protéagineux autres","Oléo-protéagineux","Autres","Céréales",null,null,0,3.6,5,0,0]
[null,"Soja","Oléo-protéagineux","Autres","Mais",28.916666666666668,"Q/ha",0,6.1,7.1,0,0]
[null,"Vesces","Oléo-protéagineux","Autres","Céréales",null,null,0,null,null,0,0]
[null,"Colza (hiver)","Oléo-protéagineux","Colza","Colza",33,"Q/ha",6.5,3.5,7]
[null,"Colza (printemps)","Oléo-protéagineux","Colza","Colza",30,"Q/ha",6.5,3.5,7]
[null,"Tournesol","Oléo-protéagineux","Autres","Mais",23,"Q/ha",4.5,1.9,3.7,null,50]
[null,"Luzerne","Oléo-protéagineux","Autres","Mais",8.5,"T MS/ha",35,35,null,null,200]
[null,"Prairie temporaire pâturage rapide dominant ","Prairies","Prairies","Prairies",8,"T MS/ha",30,30]
[null,"Prairie temporaire pâturage lent ou prairie mixte (pâturage + ensilage)  ","Prairies","Prairies","Prairies",7.5,"T MS/ha",25,25]
[null,"Prairie - foin précoce et foin de repousse","Prairies","Prairies","Prairies",5.5,"T MS/ha",20,20]
[null,"Prairies  peu productives - foin tardif de 1er cycle","Prairies","Prairies","Prairies",4.5,"T MS/ha",15,15]

{"sheet":"Reference_animaux","index":12,"n_rows":85,"n_cols":38,"rows_kept":85,"cut":false,"hidden":true,"merged":[[1,16,1,17],[1,18,1,19],[1,1,2,1],[1,2,1,3],[1,4,2,4],[1,6,2,6],[1,8,2,8],[1,9,1,10],[1,12,2,12],[1,13,2,13],[1,14,2,14],[1,15,2,15],[1,20,1,21],[1,24,2,24],[1,26,2,26],[1,28,2,28],[1,34,1,37],[2,34,2,37],[1,33,2,33],[1,29,1,31]]}
[]
[null,"Herbivores","kg N/animal/an",null,"UGB",null,"Porcins",null,"Recherche","kg N/animal/an",null,null,"Volailles ","Type de production","texte pour recherche\n(traitement informatique)","rejet par animal","total (g N/an./an)",null,"batiment (g N/an./an)",null,"Parcours (g N/an./an)",null,"Nb bandes/an",null,"Type de production",null,"Volailles ",null,"Temps passé en mois à l'ext. des batiments inférieur à : ","Production laitière en kg inférieure à :",null,null,null,"Volailles","Type de production"]
[null,null,"AZOTE","P2O5",null,null,null,null,null,"AZOTE","P2O5",null,null,null,null,null,"AZOTE","P2O5","AZOTE","P2O5","AZOTE","P2O5","(pour les effectifs présents)",null,null,null,null,null,null,6000,8000,">8000",null,null,"Liste de validation"]
[null,"vaches laitières","85",38,{"$f":"IF($BH$4<$BC$4,$BC$8,IF($BH$4<$BD$4,$BD$8,$BE$8))","v":0},null,"Engraissement (produits)",null,"LisierEngraissement (produits)Standard",3.25,2.1,null,"Caille","Standard",{"$f":"M4 & \"-\" & N4","v":"Caille-Standard"},"produit",1.4999999999999999E-2,1.2999999999999999E-2,1.4999999999999999E-2,1.2999999999999999E-2,0,0,null,null,"Standard",null,"Caille",null,4,75,83,91,null,"Caille","Standard","Label"]
[null,"Vaches nourrices",68,39,0.85,null,"Post-sevrage (produits)",null,"Litière – PAILLE avec compostageEngraissement (produits)Standard",1.63,2.1,null,"Caille","Label",{"$f":"M5 & \"-\" & N5","v":"Caille-Label"},"produit",1.2E-2,1.4E-2,0.01,1.0999999999999999E-2,3.0000000000000001E-3,4.0000000000000001E-3,null,null,"Label",null,"Caille future repro",null,7,92,101,111,null,"Caille future repro","Standard"]
[null,"vaches de réforme",40.5,25,0.6,null,"Truies/verrats (présents)",null,"Litière – PAILLE sans compostageEngraissement (produits)Standard",2.33,2.1,null,"Caille future repro","Standard","Caille future repro-Standard","produit",8.9999999999999993E-3,8.9999999999999993E-3,8.9999999999999993E-3,8.9999999999999993E-3,0,0,null,null,"Bio",null,"Caille œufs et repro",null,">7",104,115,126,null,"Caille œufs et repro","Standard"]
[null,"Génisses de 2 ans et plus",54,25,0.7,null,null,null,"Litière – SCIURE avec compostageEngraissement (produits)Standard",1.23,2.1,null,"Caille œufs et repro","Standard","Caille œufs et repro-Standard","présent*",4.5999999999999999E-2,4.8000000000000001E-2,4.5999999999999999E-2,4.8000000000000001E-2,0,0,2,null,"Foie gras",null,"Canard barbarie (mixte)",null,"UGB VL",0.95,1.05,1.1499999999999999,null,"Canard barbarie (mixte)","Standard"]
[null,"Génises de 1 à 2 ans",42.5,18,0.6,null,"Logement",null,"Litière – SCIURE sans compostageEngraissement (produits)Standard",1.37,2.1,null,"Canard barbarie (mixte)","Standard","Canard barbarie (mixte)-Standard","produit",7.1999999999999995E-2,0.107,7.1999999999999995E-2,0.107,0,0,null,null,"Plein Air",null,"Canard Colvert (lâchage)",null,null,null,null,null,null,"Canard Colvert (lâchage)","Standard"]
[null,"Génisses de moins d'1 an ",25,7,0.3,null,"Lisier",null,"LisierPost-sevrage (produits)Standard",0.44,0.31,null,"Canard Colvert (lâchage)","Standard","Canard Colvert (lâchage)-Standard","produit",4.9000000000000002E-2,5.3999999999999999E-2,2.3E-2,2.1999999999999999E-2,2.7E-2,3.3000000000000002E-2,null,null,null,null,"Canard Colvert (pour tir)",null,null,null,null,null,null,"Canard Colvert (pour tir)","Standard"]
[null,"Bovins mâles de 2 ans et plus",73,34,0.8,null,"Litière – PAILLE avec compostage",null,"Litière – PAILLE avec compostagePost-sevrage (produits)Standard",0.22,0.31,null,"Canard Colvert (pour tir)","Standard","Canard Colvert (pour tir)-Standard","produit",0.104,0.114,4.8000000000000001E-2,4.5999999999999999E-2,5.6000000000000001E-2,6.8000000000000005E-2,null,null,null,null,"Canard colvert repro",null,null,null,null,null,null,"Canard colvert repro","Standard"]
[null,"Bovins viande de 1 à 2ans",40.5,25,0.6,null,"Litière – PAILLE sans compostage",null,"Litière – PAILLE sans compostagePost-sevrage (produits)Standard",0.31,0.31,null,"Canard colvert repro","Standard","Canard colvert repro-Standard","présent*",0.47,0.56599999999999995,4.4999999999999998E-2,5.7000000000000002E-2,0.42499999999999999,0.50900000000000001,1,null,null,null,"Canard de barbarie ",null,null,null,null,null,null,"Canard de barbarie ","Standard"]
[null,"Bovins de moins d'1 an (croissance)",25,7,0.3,null,"Litière – SCIURE avec compostage",null,"Litière – SCIURE avec compostagePost-sevrage (produits)Standard",0.17,0.31,null,"Canard de barbarie ","Standard","Canard de barbarie -Standard","produit",8.5000000000000006E-2,0.127,8.5000000000000006E-2,0.127,0,0,null,null,null,null,"Canard mul. PAG ext.",null,null,null,null,null,null,"Canard mul. PAG ext.","Foie gras"]
[null,"Bovins de moins d'1 an (engraissement)",20,7,0.3,null,"Litière – SCIURE sans compostage",null,"Litière – SCIURE sans compostagePost-sevrage (produits)Standard",0.19,0.31,null,"Canard mul. PAG ext.","Foie gras","Canard mul. PAG ext.-Foie gras","produit",0.112,0.16600000000000001,2.4E-2,3.3000000000000002E-2,8.8999999999999996E-2,0.13300000000000001,null,null,null,null,"Canard mul. PAG int.",null,null,null,null,null,null,"Canard mul. PAG int.","Foie gras"]
[null,"Broutards de moins d'un an (engraissement)",27,18,0.3,null,null,null,"LisierTruies/verrats (présents)Standard",17.5,14,null,"Canard mul. PAG int.","Foie gras","Canard mul. PAG int.-Foie gras","produit",0.122,0.16300000000000001,6.3E-2,8.2000000000000003E-2,5.8999999999999997E-2,8.2000000000000003E-2,null,null,null,null,"Canard mulard gras",null,null,null,null,null,null,"Canard mulard gras","Foie gras"]
[null,"Veaux de boucherie (places)",6.3,3,null,null,"Alimentation",null,"Litière – PAILLE avec compostageTruies/verrats (présents)Standard",11.8,14,null,"Canard mulard gras","Foie gras","Canard mulard gras-Foie gras","produit",4.7E-2,5.5E-2,4.7E-2,5.5E-2,0,0,null,null,null,null,"Canard pékin",null,null,null,null,null,null,"Canard pékin","Standard"]
[null,"Chèvres (y compris réforme)",10,6,0.1,null,"Standard",null,"Litière – PAILLE sans compostageTruies/verrats (présents)Standard",14.3,14,null,"Canard pékin","Standard","Canard pékin-Standard","produit",7.0000000000000007E-2,9.1999999999999998E-2,7.0000000000000007E-2,9.1999999999999998E-2,0,0,null,null,null,null,"Cane barbarie fut.repro",null,null,null,null,null,null,"Cane barbarie fut.repro","Standard"]
[null,"Chevrettes pour la souche",5,3,0.05,null,"Biphase",null,"LisierEngraissement (produits)Biphase",2.7,1.45,null,"Cane barbarie fut.repro","Standard","Cane barbarie fut.repro-Standard","produit",0.186,0.112,0.186,0.112,0,0,null,null,null,null,"Cane barbarie repro",null,null,null,null,null,null,"Cane barbarie repro","Standard"]
[null,"Chevraux engraissés (produits)",3,1.8,0,null,null,null,"Litière – PAILLE avec compostageEngraissement (produits)Biphase",1.35,1.45,null,"Cane barbarie repro","Standard","Cane barbarie repro-Standard","présent*",0.79400000000000004,0.94899999999999995,0.79400000000000004,0.94899999999999995,0,0,0.8,null,null,null,"Cane pékin future repro",null,null,null,null,null,null,"Cane pékin future repro","Standard"]
[null,"Brebis mères nourrices (y compris réforme)",10,6,0.1,null,null,null,"Litière – PAILLE sans compostageEngraissement (produits)Biphase",1.93,1.45,null,"Cane pékin future repro","Standard","Cane pékin future repro-Standard","produit",0.22700000000000001,9.0999999999999998E-2,0.22700000000000001,9.0999999999999998E-2,0,0,null,null,null,null,"Cane pékin repro-chair",null,null,null,null,null,null,"Cane pékin repro-chair","Standard"]
[null,"Brebis mères laitières (y compris réforme)",10,6,0.1,null,null,null,"Litière – SCIURE avec compostageEngraissement (produits)Biphase",1.02,1.45,null,"Cane pékin repro-chair","Standard","Cane pékin repro-chair-Standard","présent*",0.58599999999999997,0.71799999999999997,0.58599999999999997,0.71799999999999997,0,0,1.1000000000000001,null,null,null,"Cane pékin repro-œuf",null,null,null,null,null,null,"Cane pékin repro-œuf","Standard"]
[null,"Agnelles pour la souche",5,3,0.05,null,null,null,"Litière – SCIURE sans compostageEngraissement (produits)Biphase",1.1399999999999999,1.45,null,"Cane pékin repro-œuf","Standard","Cane pékin repro-œuf-Standard","présent",0.48899999999999999,0.59899999999999998,0.48899999999999999,0.59899999999999998,0,0,1,null,null,null,"Cane repro - gras",null,null,null,null,null,null,"Cane repro - gras","Standard"]
[null,"Agneaux engraissés (produits)",1.5,1.8,0.03,null,null,null,"LisierPost-sevrage (produits)Biphase",0.4,0.25,null,"Cane repro - gras","Standard","Cane repro - gras-Standard","présent",0.70199999999999996,0.68600000000000005,0.70199999999999996,0.68600000000000005,0,0,1,null,null,null,"Canette de barbarie",null,null,null,null,null,null,"Canette de barbarie","Standard","Label"]
[null,"Autres ovins (y compris béliers)",9.9,6,0.1,null,null,null,"Litière – PAILLE avec compostagePost-sevrage (produits)Biphase",0.2,0.25,null,"Canette de barbarie","Standard","Canette de barbarie-Standard","produit",4.5999999999999999E-2,7.0000000000000007E-2,4.5999999999999999E-2,7.0000000000000007E-2,0,0,null,null,null,null,"Canette mulard à rôtir",null,null,null,null,null,null,"Canette mulard à rôtir","Standard"]
[null,"Juments et ponettes poulinières (réforme exclue)",37,22,0.6,null,null,null,"Litière – PAILLE sans compostagePost-sevrage (produits)Biphase",0.28999999999999998,0.25,null,"Canette de barbarie","Label","Canette de barbarie-Label","produit",6.2E-2,8.8999999999999996E-2,3.6999999999999998E-2,5.2999999999999999E-2,2.5000000000000001E-2,3.5000000000000003E-2,null,null,null,null,"canette pékin",null,null,null,null,null,null,"canette pékin","Standard"]
[null,"Juments et ponettes poulinières (réforme exclue) races lourdes",44,26,0.7,null,null,null,"Litière – SCIURE avec compostagePost-sevrage (produits)Biphase",0.15,0.25,null,"Canette mulard à rôtir","Standard","Canette mulard à rôtir-Standard","produit",8.7999999999999995E-2,0.128,8.7999999999999995E-2,0.128,0,0,null,null,null,null,"Chapon",null,null,null,null,null,null,"Chapon","Standard","Label"]
[null,"Chevaux de selle et de course",44,26,0.6,null,null,null,"Litière – SCIURE sans compostagePost-sevrage (produits)Biphase",0.17,0.25,null,"canette pékin","Standard","canette pékin-Standard","produit",5.1999999999999998E-2,6.9000000000000006E-2,5.1999999999999998E-2,6.9000000000000006E-2,0,0,null,null,null,null,"Chapon de pintade",null,null,null,null,null,null,"Chapon de pintade","Label"]
[null,"chevaux et poneys (y compris réforme) : trait, boucherie, maigre",51,30,0.6,null,null,null,"LisierTruies/verrats (présents)Biphase",14.5,11,null,"Chapon","Standard","Chapon-Standard","produit",0.14199999999999999,0.17599999999999999,0.113,0.13200000000000001,2.9000000000000001E-2,4.3999999999999997E-2,null,null,null,null,"Coquelet",null,null,null,null,null,null,"Coquelet","Standard"]
[null,"Poulains de 6 mois à 1an ",18,5,0.25,null,null,null,"Litière – PAILLE avec compostageTruies/verrats (présents)Biphase",9.8000000000000007,11,null,"Chapon","Label","Chapon-Label","produit",0.14399999999999999,0.16,0.114,0.12,0.03,0.04,null,null,null,null,"Dinde à rôtir",null,null,null,null,null,null,"Dinde à rôtir","Standard","Label","Bio"]
[null,"Poulains de 1 à 2 ans ",37,16,0.5,null,null,null,"Litière – PAILLE sans compostageTruies/verrats (présents)Biphase",11.8,11,null,"Chapon de pintade","Label","Chapon de pintade-Label","produit",0.125,0.14299999999999999,9.9000000000000005E-2,0.107,2.5999999999999999E-2,3.5999999999999997E-2,null,null,null,null,"Dinde découpe (mixte)",null,null,null,null,null,null,"Dinde découpe (mixte)","Label","Bio"]
[null,"Anes, mulets et bardots",40,null,null,null,null,null,"Litière – SCIURE avec compostageTruies/verrats (présents)Biphase",0,0,null,"Coquelet","Standard","Coquelet-Standard","produit",1.2999999999999999E-2,1.2999999999999999E-2,1.2999999999999999E-2,1.2999999999999999E-2,0,0,null,null,null,null,"Dinde future repro",null,null,null,null,null,null,"Dinde future repro","Standard"]
[null,"Lapines (élevages naisseurs-engraisseurs)","3,24",4.444E-3,0,null,null,null,"Litière – SCIURE sans compostageTruies/verrats (présents)Biphase",0,0,null,"Dinde à rôtir","Standard","Dinde à rôtir-Standard","produit",8.5000000000000006E-2,8.3000000000000004E-2,8.5000000000000006E-2,8.3000000000000004E-2,0,0,null,null,null,null,"Dinde lourde",null,null,null,null,null,null,"Dinde lourde","Standard"]
[null,"Lapines (élevages naisseurs)",1.34,1.7700000000000001E-3,0,null,null,null,null,null,null,null,"Dinde à rôtir","Bio","Dinde à rôtir-Bio","produit",8.2000000000000003E-2,9.0999999999999998E-2,6.5000000000000002E-2,6.9000000000000006E-2,1.7000000000000001E-2,2.3E-2,null,null,null,null,"Dinde médium",null,null,null,null,null,null,"Dinde médium","Standard"]
[null,"Lapins (produits)",4.3999999999999997E-2,6.0999999999999999E-5,0,null,null,null,null,null,null,null,"Dinde à rôtir","Label","Dinde à rôtir-Label","produit",0.08,9.0999999999999998E-2,6.4000000000000001E-2,6.8000000000000005E-2,1.7000000000000001E-2,2.3E-2,null,null,null,null,"Dinde repro",null,null,null,null,null,null,"Dinde repro","Standard"]
[null,null,null,null,null,null,null,null,null,null,null,null,"Dinde découpe (mixte)","Bio","Dinde découpe (mixte)-Bio","produit",0.20799999999999999,0.23300000000000001,0.16500000000000001,0.17399999999999999,4.2999999999999997E-2,5.8000000000000003E-2,null,null,null,null,"Faisan (22 semaines)",null,null,null,null,null,null,"Faisan (22 semaines)","Standard"]
[null,null,null,null,null,null,null,null,null,null,null,null,"Dinde découpe (mixte)","Label","Dinde découpe (mixte)-Label","produit",0.20799999999999999,0.23300000000000001,0.16500000000000001,0.17399999999999999,4.2999999999999997E-2,5.8000000000000003E-2,null,null,null,null,"Faisan (62 semaines)",null,null,null,null,null,null,"Faisan (62 semaines)","Standard"]
[null,null,null,null,null,null,null,null,null,null,null,null,"Dinde future repro","Standard","Dinde future repro-Standard","produit",0.58799999999999997,0.84,0.58799999999999997,0.84,0,0,null,null,null,null,"Faisan repro",null,null,null,null,null,null,"Faisan repro","Standard"]
[null,null,null,null,null,null,null,null,null,null,null,null,"Dinde lourde","Standard","Dinde lourde-Standard","produit",0.34100000000000003,0.38500000000000001,0.34100000000000003,0.38500000000000001,0,0,null,null,null,null,"Mini chapon",null,null,null,null,null,null,"Mini chapon","Label"]
[null,null,null,null,null,null,null,null,null,null,null,null,"Dinde médium","Standard","Dinde médium-Standard","produit",0.22700000000000001,0.23799999999999999,0.22700000000000001,0.23799999999999999,0,0,null,null,null,null,"Oie à rotir",null,null,null,null,null,null,"Oie à rotir","Standard","Label"]
[null,null,null,null,null,null,null,null,null,null,null,null,"Dinde repro","Standard","Dinde repro-Standard","présent*",0.60299999999999998,1.008,0.60299999999999998,1.008,0,0,1.6,null,null,null,"Oie future repro-chair",null,null,null,null,null,null,"Oie future repro-chair","Standard"]
[null,null,null,null,null,null,null,null,null,null,null,null,"Faisan (22 semaines)","Standard","Faisan (22 semaines)-Standard","produit",8.5000000000000006E-2,0.114,3.9E-2,4.4999999999999998E-2,4.5999999999999999E-2,6.8000000000000005E-2,null,null,null,null,"Oie future repro-grasse",null,null,null,null,null,null,"Oie future repro-grasse","Standard"]
[null,null,null,null,null,null,null,null,null,null,null,null,"Faisan (62 semaines)","Standard","Faisan (62 semaines)-Standard","produit",0.29899999999999999,0.40600000000000003,3.6999999999999998E-2,4.1000000000000002E-2,0.26200000000000001,0.36499999999999999,null,null,null,null,"Oie grasse",null,null,null,null,null,null,"Oie grasse","Foie gras"]
[null,null,null,null,null,null,null,null,null,null,null,null,"Faisan repro","Standard","Faisan repro-Standard","présent*",0.28499999999999998,0.39200000000000002,2.7E-2,3.9E-2,0.25700000000000001,0.35299999999999998,1,null,null,null,"Oie PAG",null,null,null,null,null,null,"Oie PAG","Foie gras"]
[null,null,null,null,null,null,null,null,null,null,null,null,"Mini chapon","Label","Mini chapon-Label","produit",0.13400000000000001,0.14799999999999999,0.107,0.111,2.8000000000000001E-2,3.6999999999999998E-2,null,null,null,null,"Oie repro - chair",null,null,null,null,null,null,"Oie repro - chair","Standard"]
[null,null,null,null,null,null,null,null,null,null,null,null,"Oie à rotir","Standard","Oie à rotir-Standard","produit",0.30499999999999999,0.34699999999999998,0.17100000000000001,0.17399999999999999,0.13400000000000001,0.17399999999999999,null,null,null,null,"Oie repro - grasse",null,null,null,null,null,null,"Oie repro - grasse","Standard"]
[null,null,null,null,null,null,null,null,null,null,null,null,"Oie à rotir","Label","Oie à rotir-Label","produit",0.30499999999999999,0.34699999999999998,0.17100000000000001,0.17399999999999999,0.13400000000000001,0.17399999999999999,null,null,null,null,"Perdrix ( 60 semaines)",null,null,null,null,null,null,"Perdrix ( 60 semaines)","Standard"]
[null,null,null,null,null,null,null,null,null,null,null,null,"Oie future repro-chair","Standard","Oie future repro-chair-Standard","produit",0.58399999999999996,0.41299999999999998,0.58399999999999996,0.41299999999999998,0,0,null,null,null,null,"Perdrix (15 semaines)",null,null,null,null,null,null,"Perdrix (15 semaines)","Standard"]
[null,null,null,null,null,null,null,null,null,null,null,null,"Oie future repro-grasse","Standard","Oie future repro-grasse-Standard","produit",1.139,0.45,1.139,0.45,0,0,null,null,null,null,"Perdrix repro",null,null,null,null,null,null,"Perdrix repro","Standard"]
[null,null,null,null,null,null,null,null,null,null,null,null,"Oie grasse","Foie gras","Oie grasse-Foie gras","produit",7.0999999999999994E-2,0.104,7.0999999999999994E-2,0.104,0,0,null,null,null,null,"Pigeon (par couple)",null,null,null,null,null,null,"Pigeon (par couple)","Standard"]
[null,null,null,null,null,null,null,null,null,null,null,null,"Oie PAG","Foie gras","Oie PAG-Foie gras","produit",0.16800000000000001,0.222,8.6999999999999994E-2,0.111,8.2000000000000003E-2,0.111,null,null,null,null,"Pintade",null,null,null,null,null,null,"Pintade","Standard","Label"]
[null,null,null,null,null,null,null,null,null,null,null,null,"Oie repro - chair","Standard","Oie repro - chair-Standard","présent",0.65500000000000003,0.76300000000000001,0.65500000000000003,0.76300000000000001,0,0,1,null,null,null,"Pintade (bât. fixes)",null,null,null,null,null,null,"Pintade (bât. fixes)","Bio"]
[null,null,null,null,null,null,null,null,null,null,null,null,"Oie repro - grasse","Standard","Oie repro - grasse-Standard","présent",0.80600000000000005,0.57199999999999995,0.80600000000000005,0.57199999999999995,0,0,1,null,null,null,"Pintade (cabanes mob.)",null,null,null,null,null,null,"Pintade (cabanes mob.)","Bio"]
[null,null,null,null,null,null,null,null,null,null,null,null,"Perdrix ( 60 semaines)","Standard","Perdrix ( 60 semaines)-Standard","produit",0.186,0.22700000000000001,2.3E-2,2.3E-2,0.16300000000000001,0.20399999999999999,null,null,null,null,"Pintade future repro",null,null,null,null,null,null,"Pintade future repro","Standard"]
[null,null,null,null,null,null,null,null,null,null,null,null,"Perdrix (15 semaines)","Standard","Perdrix (15 semaines)-Standard","produit",3.4000000000000002E-2,0.04,1.6E-2,1.6E-2,1.7999999999999999E-2,2.4E-2,null,null,null,null,"Pintade repro",null,null,null,null,null,null,"Pintade repro","Standard"]
[null,null,null,null,null,null,null,null,null,null,null,null,"Perdrix repro","Standard","Perdrix repro-Standard","présent*",0.18099999999999999,0.224,1.7000000000000001E-2,2.1999999999999999E-2,0.16400000000000001,0.20200000000000001,1,null,null,null,"Poularde",null,null,null,null,null,null,"Poularde","Label"]
[null,null,null,null,null,null,null,null,null,null,null,null,"Pigeon (par couple)","Standard","Pigeon (par couple)-Standard","produit",0.33100000000000002,0.69,0.33100000000000002,0.69,0,0,null,null,null,null,"Poule pond. - séchoir",null,null,null,null,null,null,"Poule pond. - séchoir","Standard"]
[null,null,null,null,null,null,null,null,null,null,null,null,"Pintade","Standard","Pintade-Standard","produit",5.1999999999999998E-2,5.1999999999999998E-2,5.1999999999999998E-2,5.1999999999999998E-2,0,0,null,null,null,null,"Poule pond.- fosse prof.",null,null,null,null,null,null,"Poule pond.- fosse prof.","Standard"]
[null,null,null,null,null,null,null,null,null,null,null,null,"Pintade","Label","Pintade-Label","produit",6.9000000000000006E-2,8.6999999999999994E-2,5.5E-2,6.5000000000000002E-2,1.4E-2,2.1999999999999999E-2,null,null,null,null,"Poule pond. standard",null,null,null,null,null,null,"Poule pond. standard","Standard"]
[null,null,null,null,null,null,null,null,null,null,null,null,"Pintade (bât. fixes)","Bio","Pintade (bât. fixes)-Bio","produit",5.8000000000000003E-2,7.3999999999999996E-2,4.5999999999999999E-2,5.5E-2,1.2E-2,1.7999999999999999E-2,null,null,null,null,"Poule pond.repro-chair",null,null,null,null,null,null,"Poule pond.repro-chair","Standard","Label"]
[null,null,null,null,null,null,null,null,null,null,null,null,"Pintade (cabanes mob.)","Bio","Pintade (cabanes mob.)-Bio","produit",5.6000000000000001E-2,7.2999999999999995E-2,3.6999999999999998E-2,4.3999999999999997E-2,1.9E-2,2.9000000000000001E-2,null,null,null,null,"Poule pond.repro-ponte",null,null,null,null,null,null,"Poule pond.repro-ponte","Standard"]
[null,null,null,null,null,null,null,null,null,null,null,null,"Pintade future repro","Standard","Pintade future repro-Standard","produit",0.09,0.13700000000000001,0.09,0.13700000000000001,0,0,null,null,null,null,"Poule pondeuse ",null,null,null,null,null,null,"Poule pondeuse ","Label","Bio","Plein Air","Sol"]
[null,null,null,null,null,null,null,null,null,null,null,null,"Pintade repro","Standard","Pintade repro-Standard","présent",0.22,0.439,0.22,0.439,0,0,1,null,null,null,"Poulet (bâtiments fixes)",null,null,null,null,null,null,"Poulet (bâtiments fixes)","Label","Bio"]
[null,null,null,null,null,null,null,null,null,null,null,null,"Poularde","Label","Poularde-Label","produit",8.5999999999999993E-2,0.10199999999999999,6.8000000000000005E-2,7.6999999999999999E-2,1.7999999999999999E-2,2.5999999999999999E-2,null,null,null,null,"Poulet (cabanes mob.)",null,null,null,null,null,null,"Poulet (cabanes mob.)","Label","Bio"]
[null,null,null,null,null,null,null,null,null,null,null,null,"Poule pond. - séchoir","Standard","Poule pond. - séchoir-Standard","présent",0.40100000000000002,0.307,0.40100000000000002,0.307,0,0,1,null,null,null,"Poulet léger",null,null,null,null,null,null,"Poulet léger","Standard"]
[null,null,null,null,null,null,null,null,null,null,null,null,"Poule pond.- fosse prof.","Standard","Poule pond.- fosse prof.-Standard","présent",0.24199999999999999,0.307,0.24199999999999999,0.307,0,0,1,null,null,null,"Poulet lourd",null,null,null,null,null,null,"Poulet lourd","Standard"]
[null,null,null,null,null,null,null,null,null,null,null,null,"Poule pond. standard","Standard","Poule pond. standard-Standard","présent",0.34899999999999998,0.307,0.34899999999999998,0.307,0,0,1,null,null,null,"Poulet standard",null,null,null,null,null,null,"Poulet standard","Standard"]
[null,null,null,null,null,null,null,null,null,null,null,null,"Poule pond.repro-chair","Standard","Poule pond.repro-chair-Standard","présent",0.44900000000000001,0.59099999999999997,0.44900000000000001,0.59099999999999997,0,0,1,null,null,null,"Poulette (œufs)",null,null,null,null,null,null,"Poulette (œufs)","Standard","Plein Air","Label","Bio"]
[null,null,null,null,null,null,null,null,null,null,null,null,"Poule pond.repro-chair","Label","Poule pond.repro-chair-Label","présent",0.44900000000000001,0.59099999999999997,0.44900000000000001,0.59099999999999997,0,0,1,null,null,null,"Poulette fut.repro-ponte",null,null,null,null,null,null,"Poulette fut.repro-ponte","Standard"]
[null,null,null,null,null,null,null,null,null,null,null,null,"Poule pond.repro-ponte","Standard","Poule pond.repro-ponte-Standard","présent",0.313,0.437,0.313,0.437,0,0,1]
[null,null,null,null,null,null,null,null,null,null,null,null,"Poule pondeuse ","Label",{"$f":"M69 & \"-\" & N69","v":"Poule pondeuse -Label"},"présent",0.375,0.32600000000000001,0.29699999999999999,0.24399999999999999,7.8E-2,8.1000000000000003E-2,1]
[null,null,null,null,null,null,null,null,null,null,null,null,"Poule pondeuse ","Bio","Poule pondeuse -Bio","présent",0.34599999999999997,0.30399999999999999,0.27500000000000002,0.22800000000000001,7.1999999999999995E-2,7.5999999999999998E-2,1]
[null,null,null,null,null,null,null,null,null,null,null,null,"Poule pondeuse ","Plein Air","Poule pondeuse -Plein Air","présent",0.35399999999999998,0.311,0.28100000000000003,0.23400000000000001,7.2999999999999995E-2,7.8E-2,1]
[null,null,null,null,null,null,null,null,null,null,null,null,"Poule pondeuse ","Sol","Poule pondeuse -Sol","présent",0.35899999999999999,0.29699999999999999,0.35899999999999999,0.29699999999999999,0,0,1]
[null,null,null,null,null,null,null,null,null,null,null,null,"Poulet (bâtiments fixes)","Bio","Poulet (bâtiments fixes)-Bio","produit",6.2E-2,7.0999999999999994E-2,4.9000000000000002E-2,5.2999999999999999E-2,1.2999999999999999E-2,1.7999999999999999E-2]
[null,null,null,null,null,null,null,null,null,null,null,null,"Poulet (bâtiments fixes)","Label","Poulet (bâtiments fixes)-Label","produit",5.7000000000000002E-2,0.06,4.4999999999999998E-2,4.4999999999999998E-2,1.2E-2,1.4999999999999999E-2]
[null,null,null,null,null,null,null,null,null,null,null,null,"Poulet (cabanes mob.)","Bio","Poulet (cabanes mob.)-Bio","produit",5.5E-2,6.6000000000000003E-2,3.5999999999999997E-2,3.9E-2,1.9E-2,2.5999999999999999E-2]
[null,null,null,null,null,null,null,null,null,null,null,null,"Poulet (cabanes mob.)","Label","Poulet (cabanes mob.)-Label","produit",5.6000000000000001E-2,6.2E-2,3.6999999999999998E-2,3.6999999999999998E-2,1.9E-2,2.5000000000000001E-2]
[null,null,null,null,null,null,null,null,null,null,null,null,"Poulet léger","Standard","Poulet léger-Standard","produit",2.1999999999999999E-2,2.1000000000000001E-2,2.1999999999999999E-2,2.1000000000000001E-2,0,0]
[null,null,null,null,null,null,null,null,null,null,null,null,"Poulet lourd","Standard","Poulet lourd-Standard","produit",4.1000000000000002E-2,3.7999999999999999E-2,4.1000000000000002E-2,3.7999999999999999E-2,0,0]
[null,null,null,null,null,null,null,null,null,null,null,null,"Poulet standard","Standard","Poulet standard-Standard","produit",0.03,2.5000000000000001E-2,0.03,2.5000000000000001E-2,0,0]
[null,null,null,null,null,null,null,null,null,null,null,null,"Poulette (œufs) - cage","Standard","Poulette (œufs) - cage-Standard","produit",8.1000000000000003E-2,6.8000000000000005E-2,8.1000000000000003E-2,6.8000000000000005E-2,0,0]
[null,null,null,null,null,null,null,null,null,null,null,null,"Poulette (œufs)","Standard","Poulette (œufs)-Standard","produit",8.3000000000000004E-2,6.9000000000000006E-2,8.3000000000000004E-2,6.9000000000000006E-2,0,0]
[null,null,null,null,null,null,null,null,null,null,null,null,"Poulette (œufs)","Plein Air","Poulette (œufs)-Plein Air","produit",8.1000000000000003E-2,6.8000000000000005E-2,8.1000000000000003E-2,6.8000000000000005E-2,0,0]
[null,null,null,null,null,null,null,null,null,null,null,null,"Poulette (œufs)","Label","Poulette (œufs)-Label","produit",8.1000000000000003E-2,6.8000000000000005E-2,8.1000000000000003E-2,6.8000000000000005E-2,0,0]
[null,null,null,null,null,null,null,null,null,null,null,null,"Poulette (œufs)","Bio","Poulette (œufs)-Bio","produit",8.1000000000000003E-2,6.8000000000000005E-2,8.1000000000000003E-2,6.8000000000000005E-2,0,0]
[null,null,null,null,null,null,null,null,null,null,null,null,"Poulette fut.repro-ponte","Standard","Poulette fut.repro-ponte-Standard","produit",8.5000000000000006E-2,7.0999999999999994E-2,8.5000000000000006E-2,7.0999999999999994E-2,0,0]

{"sheet":"Reference_divers","index":13,"n_rows":20,"n_cols":24,"rows_kept":20,"cut":false,"hidden":true,"merged":[[4,23,5,23],[1,1,1,2],[4,20,5,20],[4,21,5,21],[4,22,5,22]]}
[]
[null,"Mois",null,null,"Oui/Non",null,"Ecart  Apport-besoins ( kg N/ha)",null,"Ecart total effluents (%)",null,"Tolérance BF (%)",null,"type de sol",null,"Profondeur",null,"Effluent disponible <=",null,"Bilan fourrager :\nT MS/UGB",null,null,"Zonage 1","Zonage 2","Zonage 3"]
[null,"Janv",1,null,"Oui",null,-20,null,5,null,5,null,"Sol sain",null,"<30 cm",null,0,null,6.2,null,"Libellé court zonage","BV contentieux","MAE","Enjeu Phosphore"]
[null,"Févr",2,null,"Non",null,1,null,10,null,10,null,"Faible à moyenne hydromorphie",null,"30 à 60 cm",null,50,null,null,null,"Libellé long zonage","Bassin Versant en contentieux","Territoire MAE","Zone à «Enjeu Phosphore»"]
[null,"Mars",3,null,null,null,null,null,null,null,null,null,"Hydromorphie marquée",null,"> 60 cm",null,"+",null,null,null,"Libelle dans cultures et ilots","Dans un Bassin Versant\nen contentieux","Concernée par une MAE\n(Mesure agroenvironnementale)","Dans une Zone à \n\"Enjeu Phosphore\""]
[null,"Avr",4]
[null,"Mai",5]
[null,"Juin",6]
[null,"Juil",7]
[null,"Août",8]
[null,"Sept",9]
[null,"Oct",10]
[null,"Nov",11]
[null,"Déc",12]
[null,"Janv",13]
[null,"Févr",14]
[null,"Mars",15]
[null,"Avr",16]
[null,"Mai",17]
[null,"Juin",18]

{"sheet":"0PPF Céréales","index":14,"n_rows":62,"n_cols":71,"rows_kept":62,"cut":false,"hidden":true,"merged":[[30,2,30,4],[17,2,17,4],[15,3,16,3],[13,2,16,2],[18,3,21,3],[10,1,10,4],[11,1,11,4],[12,2,12,4],[2,69,2,70],[2,52,2,55],[3,3,3,4],[2,3,2,4],[14,3,14,4],[47,3,50,3],[22,3,25,3],[32,3,32,4],[33,1,33,4],[47,2,58,2],[31,3,31,4],[31,2,32,2],[26,3,29,3],[12,1,32,1],[13,3,13,4],[0,2,0,5],[2,1,3,2],[4,1,7,2],[5,3,7,3],[4,3,4,4],[34,2,45,2],[8,1,9,2],[8,3,8,4],[9,3,9,4],[18,2,29,2],[61,1,61,4],[34,3,37,3],[38,3,41,3],[42,3,45,3],[59,2,59,4],[46,2,46,4],[55,3,58,3],[34,1,59,1],[60,1,60,4],[51,3,54,3]]}
[null,null,"8) Plan Prévisionnel de Fumure\n    «Grille Céréales »"]
[]
[null,"Ilot",null,"Nom",null,null,null,null,null,null,null,null,null,null,null,null,null,null,null,null,null,null,null,null,null,null,null,null,null,null,null,null,null,null,null,null,null,null,null,null,null,null,null,null,null,null,null,null,null,null,"Effluents","quantité","Fréquence",null,null,null,null,"Si prairie :\nage","100% pâture","1 fauche + pâture","2 fauches + pâture","100% fauche",null,"Système de Cultures","kg N/ha",null,"Précedent cultural","Contribution",null,"RSH par défaut"]
[null,null,null,"Numéro",null,null,null,null,null,null,null,null,null,null,null,null,null,null,null,null,null,null,null,null,null,null,null,null,null,null,null,null,null,null,null,null,null,null,null,null,null,null,null,null,null,null,null,null,null,null,null,null,"tous les ans","2 années sur 3","tous les 2 ans","tous les 3 ans et +",null,"6 -18 mois",10,5,0,0,null,"Cas particulier sans cipan et sans canne de maïs",50,null,"Betteraves feuilles enfouies",20,null,22,40]
[null,"Parcelle culturale",null,"N° parcelle",null,null,null,null,null,null,null,null,null,null,null,null,null,null,null,null,null,null,null,null,null,null,null,null,null,null,null,null,null,null,null,null,null,null,null,null,null,null,null,null,null,null,null,null,null,null,"Fumier bovin (t)",30,50,35,25,15,null,"2-3 ans",30,25,20,10,null,"Rotation maïs ensilage et céréales (cipan)",60,null,"Betteraves feuilles non enfouies",0,null,29,30]
[null,null,null,"Surfaces","SAU",null,null,null,null,null,null,null,null,null,null,null,null,null,null,null,null,null,null,null,null,null,null,null,null,null,null,null,null,null,null,null,null,null,null,null,null,null,null,null,null,null,null,null,null,null,"Lisier bovin (m3)",40,25,15,10,5,null,"4-5 ans",50,40,35,20,null,"Rotation maïs grain et céréales (cipan)",65,null,"Céréales pailles exportées ou brulées",0,null,35,50]
[null,null,null,null,"SPE",null,null,null,null,null,null,null,null,null,null,null,null,null,null,null,null,null,null,null,null,null,null,null,null,null,null,null,null,null,null,null,null,null,null,null,null,null,null,null,null,null,null,null,null,null,"Fumier volaille (t)",10,40,25,20,10,null,"6-10 ans",60,50,40,20,null,"3 années de prairie sur 10",65,null,"Céréales pailles enfouies",-20,null,56,40]
[null,null,null,null,"SNE",null,null,null,null,null,null,null,null,null,null,null,null,null,null,null,null,null,null,null,null,null,null,null,null,null,null,null,null,null,null,null,null,null,null,null,null,null,null,null,null,null,null,null,null,null,"Lisier volaille (m3)",15,15,10,5,0,null,"> 10 ans",70,60,50,30,null,"5 années de prairie sur 10",70,null,"Colza, pomme de terre, haricots, pois ",20,null,"Défaut",50]
[null,"Culture",null,"Intitulé",null,null,null,null,null,null,null,null,null,null,null,null,null,null,null,null,null,null,null,null,null,null,null,null,null,null,null,null,null,null,null,null,null,null,null,null,null,null,null,null,null,null,null,null,null,null,"Lisier porc (m3)",30,15,10,5,0,null,null,null,null,null,null,null,"8 années de prairie sur 10",80,null,"Tournesol ",0]
[null,null,null,"Objectif de rendement",null,null,null,null,null,null,null,null,null,null,null,null,null,null,null,null,null,null,null,null,null,null,null,null,null,null,null,null,null,null,null,null,null,null,null,null,null,null,null,null,null,null,null,null,null,null,"Fumier porc (t)",30,25,20,15,10,null,null,null,null,null,null,null,"Endiviers et terrede St Malo",50,null,"Légumineuses fourragères (luzerne, trèfle …) ",30]
[null,"Azote non valorisable (forfait kg N/ha)",null,null,null,{"$f":"Reference_cultures!$S$22","v":30},null,null,null,null,null,null,null,null,null,null,null,null,null,null,null,null,null,null,null,null,null,null,null,null,null,null,null,null,null,null,null,null,null,null,null,null,null,null,null,null,null,null,null,null,"Compost lisier porc (t)",30,60,40,30,20,null,null,null,null,null,null,null,"Légumes céréales ou lég. Industries",70,null,"Maïs ensilage",0]
[null,"Besoins de la culture",null,null,null,{"$f":"F10*(IF(ISERROR(VLOOKUP(F9,Cultures_complet,1,FALSE)),0,VLOOKUP(F9,Cultures_complet,7,FALSE)))+F11","v":30},null,null,null,null,null,null,null,null,null,null,null,null,null,null,null,null,null,null,null,null,null,null,null,null,null,null,null,null,null,null,null,null,null,null,null,null,null,null,null,null,null,null,null,null,"Compost fumier bovin ou boues STEP + déchets verts (t)",15,35,25,20,10,null,null,null,null,null,null,null,"Légumes frais 100 %",80,null,"Maïs grain",-10]
[null,"Restitutions du sol","Reliquat sortie d'hiver (RSH)",null,null,null,null,null,null,null,null,null,null,null,null,null,null,null,null,null,null,null,null,null,null,null,null,null,null,null,null,null,null,null,null,null,null,null,null,null,null,null,null,null,null,null,null,null,null,null,"Compost fumier volailles (t)",8,70,45,35,25,null,null,null,null,null,null,null,null,null,null,"Choux fleurs d'hiver ",40]
[null,null,"Précédent cultural","CIPAN",null,null,null,null,null,null,null,null,null,null,null,null,null,null,null,null,null,null,null,null,null,null,null,null,null,null,null,null,null,null,null,null,null,null,null,null,null,null,null,null,null,null,null,null,null,null,"Compost OM ou compost mûr de déchets verts (t)",30,90,60,45,30,null,null,null,null,null,null,null,null,null,null,"Prairie"]
[null,null,null,"Culture précédente",null,null,null,null,null,null,null,null,null,null,null,null,null,null,null,null,null,null,null,null,null,null,null,null,null,null,null,null,null,null,null,null,null,null,null,null,null,null,null,null,null,null,null,null,null,null,null,null,null,null,null,null,null,null,null,null,null,null,null,null,null,null,"CIPAN",20]
[null,null,null,"Si prairie","Age"]
[null,null,null,null,"Type d'exploit."]
[null,null,"Effets des précédents",null,null,{"$f":"IF(F14=\"Oui\",$BP$15,(IF(ISERROR(VLOOKUP(F15,$BO$4:$BO$14,1,FALSE)),0,IF(F15=$BO$14,IF(OR(ISERROR(MATCH(F16,$BF$4:$BF$8,0)),ISERROR(MATCH(F17,$BG$3:$BJ$3,0))),0,OFFSET($BG$4,(MATCH(F16,$BF$4:$BF$8,0)-1),MATCH(F17,$BG$3:$BJ$3,0)-1,1,1)),VLOOKUP(F15,$BO$4:$BP$13,2,FALSE)))))","v":0}]
[null,null,"Apports antérieurs de matières organiques\n(Combinaisons possibles\n sur 3 ans)","Apport 1","Type"]
[null,null,null,null,"Fréquence"]
[null,null,null,null,"Quantité  / ha"]
[null,null,null,null,"Valeur N (kg/ha)",{"$f":"IF(OR(ISERROR(VLOOKUP(F19,$AY$5:$AY$14,1,FALSE)),ISERROR(HLOOKUP(F20,$BA$4:$BD$4,1,FALSE))),0,OFFSET($BA$5,(MATCH(F19,$AY$5:$AY$14,0)-1),MATCH(F20,$BA$4:$BD$4,0)-1,1,1)*F21/VLOOKUP(F19,$AY$5:$AZ$14,2,FALSE))","v":0}]
[null,null,null,"Apport 2","Type"]
[null,null,null,null,"Fréquence"]
[null,null,null,null,"Quantité  / ha"]
[null,null,null,null,"Valeur N (kg/ha)",{"$f":"IF(OR(ISERROR(VLOOKUP(F23,$AY$5:$AY$14,1,FALSE)),ISERROR(HLOOKUP(F24,$BA$4:$BD$4,1,FALSE))),0,OFFSET($BA$5,(MATCH(F23,$AY$5:$AY$14,0)-1),MATCH(F24,$BA$4:$BD$4,0)-1,1,1)*F25/VLOOKUP(F23,$AY$5:$AZ$14,2,FALSE))","v":0}]
[null,null,null,"Apport 3","Type"]
[null,null,null,null,"Fréquence"]
[null,null,null,null,"Quantité  / ha"]
[null,null,null,null,"Valeur N (kg/ha)",{"$f":"IF(OR(ISERROR(VLOOKUP(F27,$AY$5:$AY$14,1,FALSE)),ISERROR(HLOOKUP(F28,$BA$4:$BD$4,1,FALSE))),0,OFFSET($BA$5,(MATCH(F27,$AY$5:$AY$14,0)-1),MATCH(F28,$BA$4:$BD$4,0)-1,1,1)*F29/VLOOKUP(F27,$AY$5:$AZ$14,2,FALSE))","v":0}]
[null,null,"Total contribution apports organiques antérieurs (kgN/ha)",null,null,{"$f":"F22+F26+F30","v":0}]
[null,null,"Fournitures par le sol","Système de cultures"]
[null,null,null,"Mh du sol",null,{"$f":"IF(ISERROR(VLOOKUP(F32,$BL$4:$BM$12,2,FALSE)),0,VLOOKUP(F32,$BL$4:$BM$12,2,FALSE))","v":0}]
[null,"Dose à apporter (kg N/ha)",null,null,null,{"$f":"IF((F12-(F13+F18+F31+F33))>0,(F12-(F13+F18+F31+F33)),0)","v":30}]
[null,"Apports prévisionnels sur la culture","Apports prévisionnels de matières organiques","Apport 1","Type"]
[null,null,null,null,"Date d'apport"]
[null,null,null,null,"Quantité  / ha"]
[null,null,null,null,"Valeur N (kg/ha)",0]
[null,null,null,"Apport 2","Type"]
[null,null,null,null,"Date d'apport"]
[null,null,null,null,"Quantité  / ha"]
[null,null,null,null,"Valeur N (kg/ha)"]
[null,null,null,"Apport 3","Type"]
[null,null,null,null,"Date d'apport"]
[null,null,null,null,"Quantité  / ha"]
[null,null,null,null,"Valeur N (kg/ha)"]
[null,null,"N efficace total des Matières organiques",null,null,{"$f":"F38+F42+F46","v":0}]
[null,null,"Apport N minéral prévisionnel","Apport 1","Type"]
[null,null,null,null,"Date d'apport"]
[null,null,null,null,"Quantité / ha"]
[null,null,null,null,"Teneur en azote (%)"]
[null,null,null,"Apport 2","Type"]
[null,null,null,null,"Date d'apport"]
[null,null,null,null,"Quantité / ha"]
[null,null,null,null,"Teneur en azote (%)"]
[null,null,null,"Apport 3","Type"]
[null,null,null,null,"Date d'apport"]
[null,null,null,null,"Quantité / ha"]
[null,null,null,null,"Teneur en azote (%)"]
[null,null,"Apport total N minéral",null,null,{"$f":"(F50*F51+F54*F55+F58*F59)/100","v":0}]
[null,"Ecart entre besoins et fertilisation (kg N/ha)",null,null,null,{"$f":"IF(ISBLANK(F9),0,((F47+F60)-F34))","v":0}]
[null,"Culture suivante"]

{"sheet":"0CF Céréales","index":15,"n_rows":47,"n_cols":6,"rows_kept":47,"cut":false,"hidden":true,"merged":[[8,1,9,2],[8,3,8,4],[9,3,9,4],[14,2,25,2],[10,1,10,4],[14,1,39,1],[22,3,25,3],[35,3,38,3],[31,3,34,3],[11,3,11,4],[0,2,0,5],[2,1,3,2],[4,1,7,2],[5,3,7,3],[4,3,4,4],[3,3,3,4],[2,3,2,4],[42,1,42,4],[43,1,43,4],[44,1,44,4],[39,2,39,4],[45,1,45,4],[46,1,46,4],[40,1,40,4],[12,3,12,4],[11,1,12,2],[41,1,41,4],[13,1,13,4],[26,2,26,4],[27,3,30,3],[27,2,38,2],[14,3,17,3],[18,3,21,3]]}
[null,null,"8) Cahiers de Fertilisation\n    «Grille Céréales »"]
[]
[null,"Ilot",null,"Nom"]
[null,null,null,"Numéro"]
[null,"Parcelle culturale",null,"N° parcelle"]
[null,null,null,"Surfaces","SAU"]
[null,null,null,null,"SPE"]
[null,null,null,null,"SNE"]
[null,"Culture",null,"Intitulé"]
[null,null,null,"Objectif de rendement"]
[null,"Dose à apporter Prévisionnelle (kg N/ha)",null,null,null,0]
[null,"Correction",null,"RSH (reliquat sortie d'hiver)"]
[null,null,null,"Correction liée aux outils de pilotage"]
[null,"Dose à apporter corrigée (kg N/ha)",null,null,null,{"$f":"F11+F12+F13","v":0}]
[null,"Apports effectifs sur la culture","Apports effectifs de matières organiques","Apport 1","Type"]
[null,null,null,null,"Date d'apport"]
[null,null,null,null,"Quantité  / ha"]
[null,null,null,null,"Valeur N (kg/ha)",0]
[null,null,null,"Apport 2","Type"]
[null,null,null,null,"Date d'apport"]
[null,null,null,null,"Quantité  / ha"]
[null,null,null,null,"Valeur N (kg/ha)",0]
[null,null,null,"Apport 3","Type"]
[null,null,null,null,"Date d'apport"]
[null,null,null,null,"Quantité  / ha"]
[null,null,null,null,"Valeur N (kg/ha)",0]
[null,null,"N efficace total des Matières organiques",null,null,{"$f":"F18+F22+FF26","v":0}]
[null,null,"Apport N minéral effectif","Apport 1","Type"]
[null,null,null,null,"Date d'apport"]
[null,null,null,null,"Quantité / ha"]
[null,null,null,null,"Teneur en azote (%)"]
[null,null,null,"Apport 2","Type"]
[null,null,null,null,"Date d'apport"]
[null,null,null,null,"Quantité / ha"]
[null,null,null,null,"Teneur en azote (%)"]
[null,null,null,"Apport 3","Type"]
[null,null,null,null,"Date d'apport"]
[null,null,null,null,"Quantité / ha"]
[null,null,null,null,"Teneur en azote (%)"]
[null,null,"Apport total N minéral",null,null,{"$f":"(F30*F31+F34*F35+F38*F39)/100","v":0}]
[null,"Ecart entre besoins et fertilisation (kg N/ha)",null,null,null,{"$f":"IF(ISBLANK(F14),0,((F27+F40)-F14))","v":0}]
[null,"Date de récolte"]
[null,"Rendement réalisé"]
[null,"Modalités de gestion de l'inter-culture"]
[null,"Modalités de gestion des CIPAN"]
[null,"Modalités de gestion des dérobées"]
[null,"Culture suivante"]

{"sheet":"0PPF Colza","index":16,"n_rows":82,"n_cols":80,"rows_kept":82,"cut":false,"hidden":true,"merged":[[14,2,25,2],[2,1,3,2],[8,1,11,2],[5,3,7,3],[10,3,11,3],[8,3,8,4],[4,1,7,2],[37,2,37,4],[0,2,0,5],[2,3,2,4],[31,3,34,3],[14,3,17,3],[18,3,21,3],[2,77,4,77],[2,75,4,75],[2,76,4,76],[3,3,3,4],[4,3,4,4],[2,63,2,64],[2,55,2,58],[5,77,8,77],[42,3,45,3],[46,3,49,3],[50,3,53,3],[9,3,9,4],[13,1,13,4],[12,1,12,4],[35,2,35,4],[27,3,30,3],[37,1,56,1],[55,2,56,2],[54,2,54,4],[38,2,40,2],[38,3,38,4],[56,3,56,4],[55,3,55,4],[62,3,65,3],[66,3,69,3],[57,1,57,4],[14,1,36,1],[22,3,25,3],[36,2,36,4],[26,2,26,4],[27,2,34,2],[39,3,40,3],[42,2,53,2],[81,1,81,4],[79,2,79,4],[71,2,78,2],[71,3,74,3],[75,3,78,3],[58,1,79,1],[70,2,70,4],[80,1,80,4],[58,2,69,2],[58,3,61,3]]}
[null,null,"8) Plan Prévisionnel de Fumure\n    « Grille Colza »"]
[]
[null,"Ilot",null,"Nom",null,null,null,null,null,null,null,null,null,null,null,null,null,null,null,null,null,null,null,null,null,null,null,null,null,null,null,null,null,null,null,null,null,null,null,null,null,null,null,null,null,null,null,null,null,null,null,null,null,"Effluents","quantité","Fréquence",null,null,null,null,"Précedent cultural","Contribution",null,null,null,null,"Si prairie : age","100% pâture","1 fauche + pâture","2 fauches + pâture","100% fauche",null,"Système de Cultures","kg N/ha",null,"Dév. Végétatif","Azote absorbé","Estimation par pesée : coef =Nabs/maitière fraiche en kg/m2"]
[null,null,null,"Numéro",null,null,null,null,null,null,null,null,null,null,null,null,null,null,null,null,null,null,null,null,null,null,null,null,null,null,null,null,null,null,null,null,null,null,null,null,null,null,null,null,null,null,null,null,null,null,null,null,null,null,null,"tous les ans","2 années sur 3","tous les 2 ans","tous les 3 ans et +",null,"Betteraves feuilles enfouies",20,null,null,null,null,"6 -18 mois",10,5,0,0,null,"Cas particulier sans cipan et sans canne de maïs",40]
[null,"Parcelle culturale",null,"N° parcelle",null,null,null,null,null,null,null,null,null,null,null,null,null,null,null,null,null,null,null,null,null,null,null,null,null,null,null,null,null,null,null,null,null,null,null,null,null,null,null,null,null,null,null,null,null,null,null,null,null,"Fumier bovin (t)",30,40,25,20,10,null,"Betteraves feuilles non enfouies",0,null,null,null,null,"2-3 ans",25,20,15,10,null,"Rotation maïs ensilage et céréales (cipan)",50,null,null,null,null,null,"RSH par défaut"]
[null,null,null,"Surfaces","SAU",null,null,null,null,null,null,null,null,null,null,null,null,null,null,null,null,null,null,null,null,null,null,null,null,null,null,null,null,null,null,null,null,null,null,null,null,null,null,null,null,null,null,null,null,null,null,null,null,"Lisier bovin (m3)",40,20,15,10,5,null,"Céréales pailles exportées ou brulées",0,null,null,null,null,"4-5 ans",40,35,30,15,null,"Rotation maïs grain et céréales (cipan)",55,null,"+",30,65,null,10]
[null,null,null,null,"SPE",null,null,null,null,null,null,null,null,null,null,null,null,null,null,null,null,null,null,null,null,null,null,null,null,null,null,null,null,null,null,null,null,null,null,null,null,null,null,null,null,null,null,null,null,null,null,null,null,"Fumier volaille (t)",10,25,15,10,5,null,"Céréales pailles enfouies",-20,null,null,null,null,"6-10 ans",50,40,30,20,null,"3 années de prairie sur 10",55,null,"++",50]
[null,null,null,null,"SNE",null,null,null,null,null,null,null,null,null,null,null,null,null,null,null,null,null,null,null,null,null,null,null,null,null,null,null,null,null,null,null,null,null,null,null,null,null,null,null,null,null,null,null,null,null,null,null,null,"Lisier volaille (m3)",15,10,5,5,0,null,"Jachères (1-3 ans) ou légumineuses fourragères",30,null,null,null,null,"> 10 ans",60,50,40,25,null,"5 années de prairie sur 10",60,null,"+++",100]
[null,"Culture\n",null,"Intitulé",null,null,null,null,null,null,null,null,null,null,null,null,null,null,null,null,null,null,null,null,null,null,null,null,null,null,null,null,null,null,null,null,null,null,null,null,null,null,null,null,null,null,null,null,null,null,null,null,null,"Lisier porc (m3)",30,20,15,10,5,null,"Colza, pomme de terre, haricots, pois ",20,null,null,null,null,null,null,null,null,null,null,"8 années de prairie sur 10",70,null,"++++",150]
[null,null,null,"Objectif de rendement",null,null,null,null,null,null,null,null,null,null,null,null,null,null,null,null,null,null,null,null,null,null,null,null,null,null,null,null,null,null,null,null,null,null,null,null,null,null,null,null,null,null,null,null,null,null,null,null,null,"Fumier porc (t)",30,15,10,5,0,null,"Prairie",null,null,null,null,null,null,null,null,null,null,null,"Endiviers et terrede St Malo",40]
[null,null,null,"Développement  végétatif","Estimation",null,null,null,null,null,null,null,null,null,null,null,null,null,null,null,null,null,null,null,null,null,null,null,null,null,null,null,null,null,null,null,null,null,null,null,null,null,null,null,null,null,null,null,null,null,null,null,null,"Compost lisier porc (t)",30,45,30,20,15,null,null,null,null,null,null,null,null,null,null,null,null,null,"Légumes céréales ou lég. Industries",50]
[null,null,null,null,"Estim. par pesée",null,null,null,null,null,null,null,null,null,null,null,null,null,null,null,null,null,null,null,null,null,null,null,null,null,null,null,null,null,null,null,null,null,null,null,null,null,null,null,null,null,null,null,null,null,null,null,null,"Compost fumier bovin ou boues STEP + déchets verts (t)",15,25,20,10,5,null,null,null,null,null,null,null,null,null,null,null,null,null,"Légumes frais 100 %",70]
[null,"Azote non valorisable (forfait kg N/ha)",null,null,null,{"$f":"Reference_cultures!$S$23","v":30},null,null,null,null,null,null,null,null,null,null,null,null,null,null,null,null,null,null,null,null,null,null,null,null,null,null,null,null,null,null,null,null,null,null,null,null,null,null,null,null,null,null,null,null,null,null,null,"Compost fumier volailles (t)",8,55,35,25,20]
[null,"Besoins de la culture",null,null,null,{"$f":"IF(ISERROR(VLOOKUP(F9,Cultures_complet,7,FALSE)),0,F10*VLOOKUP(F9,Cultures_complet,7,FALSE)+F13)","v":0},null,null,null,null,null,null,null,null,null,null,null,null,null,null,null,null,null,null,null,null,null,null,null,null,null,null,null,null,null,null,null,null,null,null,null,null,null,null,null,null,null,null,null,null,null,null,null,"Compost OM ou compost mûr de déchets verts (t)",30,70,45,35,20]
[null,"Apports au semis","Apports de matières organiques \n(au semis)","Apport de matières organiques","Type"]
[null,null,null,null,"Date d'apport"]
[null,null,null,null,"Quantité  / ha"]
[null,null,null,null,"Valeur N (kg/ha)"]
[null,null,null,"Apport de matières organiques","Type"]
[null,null,null,null,"Date d'apport"]
[null,null,null,null,"Quantité  / ha"]
[null,null,null,null,"Valeur N (kg/ha)"]
[null,null,null,"Apport de matières organiques","Type"]
[null,null,null,null,"Date d'apport"]
[null,null,null,null,"Quantité  / ha"]
[null,null,null,null,"Valeur N (kg/ha)"]
[null,null,"N efficace total des Matières organiques au semis (kg N/ha)",null,null,{"$f":"F18+F22+F26","v":0}]
[null,null,"Apport N minéral prévisionnel (au semis)","Apport d'azote minéral","Type"]
[null,null,null,null,"Date d'apport"]
[null,null,null,null,"Quantité  / ha"]
[null,null,null,null,"Teneur en N (%)"]
[null,null,null,"Apport d'azote minéral","Type"]
[null,null,null,null,"Date d'apport"]
[null,null,null,null,"Quantité  / ha"]
[null,null,null,null,"Teneur en N (%)"]
[null,null,"Total apport N minéral(kg/ha)",null,null,{"$f":"((F30*F31)+(F34*F35))/100","v":0}]
[null,null,"Azote déjà prélevé (Nabs)",null,null,{"$f":"IF(ISBLANK(F12),IF(ISERROR(VLOOKUP(F11,$BX$6:$BY$9,1,FALSE)),0,VLOOKUP(F11,$BX$6:$BY$9,2,FALSE)),F12*$BZ$6)","v":0}]
[null,"Restitutions du sol","Reliquat sortie d'hiver (RSH)"]
[null,null,"Précédent cultural","Culture précédente"]
[null,null,null,"Si prairie","Age"]
[null,null,null,null,"Type d'exploit."]
[null,null,"Effets des précédents",null,null,{"$f":"(IF(ISERROR(VLOOKUP(F39,$BI$4:$BJ$10,2,FALSE)),0,VLOOKUP(F39,$BI$4:$BJ$10,2,FALSE)) )+ (IF(ISERROR(MATCH(F41,$BP$3:$BS$3,0)),0,OFFSET($BP$4,(MATCH(F40,$BO$4:$BO$8,0)-1),MATCH(F41,$BP$3:$BS$3,0)-1,1,1)))","v":0}]
[null,null,"Apports antérieurs de matières organiques\n(Combinaisons possibles\n sur 3 ans)","Apport 1","Type"]
[null,null,null,null,"Fréquence"]
[null,null,null,null,"Quantité  / ha"]
[null,null,null,null,"Valeur N (kg/ha)",{"$f":"IF(OR(ISERROR(MATCH(F43,$BB$5:$BB$14,0)),ISERROR(MATCH(F44,$BD$4:$BG$4,0))),0,OFFSET($BD$5,(MATCH(F43,$BB$5:$BB$14,0)-1),MATCH(F44,$BD$4:$BG$4,0)-1,1,1)/VLOOKUP(F43,$BB$5:$BC$14,2,FALSE) * F45)","v":0}]
[null,null,null,"Apport 2","Type"]
[null,null,null,null,"Fréquence"]
[null,null,null,null,"Quantité  / ha"]
[null,null,null,null,"Valeur N (kg/ha)",{"$f":"IF(ISERROR(MATCH(F47,$BB$5:$BB$14,0)),0,OFFSET($BD$5,(MATCH(F47,$BB$5:$BB$14,0)-1),MATCH(F48,$BD$4:$BG$4,0)-1,1,1)/VLOOKUP(F47,$BB$5:$BC$14,2,FALSE) * F49)","v":0}]
[null,null,null,"Apport 3","Type"]
[null,null,null,null,"Fréquence"]
[null,null,null,null,"Quantité  / ha"]
[null,null,null,null,"Valeur N (kg/ha)",{"$f":"IF(ISERROR(MATCH(F51,$BB$5:$BB$14,0)),0,OFFSET($BD$5,(MATCH(F51,$BB$5:$BB$14,0)-1),MATCH(F52,$BD$4:$BG$4,0)-1,1,1)/VLOOKUP(F51,$BB$5:$BC$14,2,FALSE) * F53)","v":0}]
[null,null,"Total contribution apports organiques antérieurs (kgN/ha)",null,null,{"$f":"F46+F50+F54","v":0}]
[null,null,"Fournitures par le sol","Système de cultures"]
[null,null,null,"Mh du sol",null,{"$f":"IF(ISERROR(VLOOKUP(F56,$BU$4:$BV$12,2,FALSE)),0,VLOOKUP(F56,$BU$4:$BV$12,2,FALSE))","v":0}]
[null,"Dose à apporter (kg N/ha)",null,null,null,{"$f":"IF((F14-(F37+F38+F42+F55+F57)),(F14-(F37+F38+F42+F55+F57)),0)","v":0}]
[null,"Apports prévisionnels sur la culture","Apports prévisionnels de matières organiques","Apport 1","Type"]
[null,null,null,null,"Date d'apport"]
[null,null,null,null,"Quantité  / ha"]
[null,null,null,null,"Valeur N (kg/ha)"]
[null,null,null,"Apport 2","Type"]
[null,null,null,null,"Date d'apport"]
[null,null,null,null,"Quantité  / ha"]
[null,null,null,null,"Valeur N (kg/ha)"]
[null,null,null,"Apport 3","Type"]
[null,null,null,null,"Date d'apport"]
[null,null,null,null,"Quantité  / ha"]
[null,null,null,null,"Valeur N (kg/ha)"]
[null,null,"N efficace total des Matières organiques",null,null,{"$f":"F62+F66+F70","v":0}]
[null,null,"Apport N minéral prévisionnel","Apport 1","Type"]
[null,null,null,null,"Date d'apport"]
[null,null,null,null,"Quantité / ha"]
[null,null,null,null,"Teneur en azote (%)"]
[null,null,null,"Apport 2","Type"]
[null,null,null,null,"Date d'apport"]
[null,null,null,null,"Quantité / ha"]
[null,null,null,null,"Teneur en azote (%)"]
[null,null,"Apport total N minéral",null,null,{"$f":"(F74*F75+F78*F79)/100","v":0}]
[null,"Ecart entre besoins et fertilisation (kg N/ha)",null,null,null,{"$f":"IF(ISBLANK(F9),0,((F71+F80)-F58))","v":0}]
[null,"Culture suivante"]

{"sheet":"0CF Colza","index":17,"n_rows":67,"n_cols":80,"rows_kept":67,"cut":false,"hidden":true,"merged":[[5,77,8,77],[13,1,14,2],[0,2,0,5],[2,3,2,4],[2,1,3,2],[8,1,11,2],[4,1,7,2],[5,3,7,3],[8,3,8,4],[12,1,12,4],[2,77,4,77],[2,75,4,75],[2,76,4,76],[3,3,3,4],[4,3,4,4],[2,63,2,64],[2,55,2,58],[16,2,27,2],[16,1,37,1],[38,3,41,3],[42,3,45,3],[14,3,14,4],[46,3,49,3],[16,3,19,3],[20,3,23,3],[9,3,9,4],[37,2,37,4],[29,3,32,3],[10,3,11,3],[24,3,27,3],[28,2,28,4],[33,3,36,3],[15,1,15,4],[29,2,36,2],[13,3,13,4],[66,1,66,4],[61,1,61,4],[64,1,64,4],[65,1,65,4],[63,1,63,4],[62,1,62,4],[60,1,60,4],[38,1,59,1],[59,2,59,4],[51,2,58,2],[51,3,54,3],[55,3,58,3],[50,2,50,4],[38,2,49,2]]}
[null,null,"8) Cahiers de Fertilisation\n    « Grille Colza »"]
[]
[null,"Ilot",null,"Nom",null,null,null,null,null,null,null,null,null,null,null,null,null,null,null,null,null,null,null,null,null,null,null,null,null,null,null,null,null,null,null,null,null,null,null,null,null,null,null,null,null,null,null,null,null,null,null,null,null,"Effluents","quantité","Fréquence",null,null,null,null,"Précedent cultural","Contribution",null,null,null,null,"Si prairie : age","100% pâture","1 fauche + pâture","2 fauches + pâture","100% fauche",null,"Système de Cultures","kg N/ha",null,"Dév. Végétatif","Azote absorbé","Estimation par pesée : coef =Nabs/maitière fraiche en kg/m2"]
[null,null,null,"Numéro",null,null,null,null,null,null,null,null,null,null,null,null,null,null,null,null,null,null,null,null,null,null,null,null,null,null,null,null,null,null,null,null,null,null,null,null,null,null,null,null,null,null,null,null,null,null,null,null,null,null,null,"tous les ans","2 années sur 3","tous les 2 ans","tous les 3 ans et +",null,"Betteraves feuilles enfouies",20,null,null,null,null,"6 -18 mois",10,5,0,0,null,"Cas particulier sans cipan et sans canne de maïs",40]
[null,"Parcelle culturale",null,"N° parcelle",null,null,null,null,null,null,null,null,null,null,null,null,null,null,null,null,null,null,null,null,null,null,null,null,null,null,null,null,null,null,null,null,null,null,null,null,null,null,null,null,null,null,null,null,null,null,null,null,null,"Fumier bovin (t)",30,40,25,20,10,null,"Betteraves feuilles non enfouies",0,null,null,null,null,"2-3 ans",25,20,15,10,null,"Rotation maïs ensilage et céréales (cipan)",50,null,null,null,null,null,"RSH par défaut"]
[null,null,null,"Surfaces","SAU",null,null,null,null,null,null,null,null,null,null,null,null,null,null,null,null,null,null,null,null,null,null,null,null,null,null,null,null,null,null,null,null,null,null,null,null,null,null,null,null,null,null,null,null,null,null,null,null,"Lisier bovin (m3)",40,20,15,10,5,null,"Céréales pailles exportées ou brulées",0,null,null,null,null,"4-5 ans",40,35,30,15,null,"Rotation maïs grain et céréales (cipan)",55,null,"+",30,65,null,10]
[null,null,null,null,"SPE",null,null,null,null,null,null,null,null,null,null,null,null,null,null,null,null,null,null,null,null,null,null,null,null,null,null,null,null,null,null,null,null,null,null,null,null,null,null,null,null,null,null,null,null,null,null,null,null,"Fumier volaille (t)",10,25,15,10,5,null,"Céréales pailles enfouies",-20,null,null,null,null,"6-10 ans",50,40,30,20,null,"3 années de prairie sur 10",55,null,"++",50]
[null,null,null,null,"SNE",null,null,null,null,null,null,null,null,null,null,null,null,null,null,null,null,null,null,null,null,null,null,null,null,null,null,null,null,null,null,null,null,null,null,null,null,null,null,null,null,null,null,null,null,null,null,null,null,"Lisier volaille (m3)",15,10,5,5,0,null,"Jachères (1-3 ans) ou légumineuses fourragères",30,null,null,null,null,"> 10 ans",60,50,40,25,null,"5 années de prairie sur 10",60,null,"+++",100]
[null,"Culture\n",null,"Intitulé",null,null,null,null,null,null,null,null,null,null,null,null,null,null,null,null,null,null,null,null,null,null,null,null,null,null,null,null,null,null,null,null,null,null,null,null,null,null,null,null,null,null,null,null,null,null,null,null,null,"Lisier porc (m3)",30,20,15,10,5,null,"Colza, pomme de terre, haricots, pois ",20,null,null,null,null,null,null,null,null,null,null,"8 années de prairie sur 10",70,null,"++++",150]
[null,null,null,"Objectif de rendement",null,null,null,null,null,null,null,null,null,null,null,null,null,null,null,null,null,null,null,null,null,null,null,null,null,null,null,null,null,null,null,null,null,null,null,null,null,null,null,null,null,null,null,null,null,null,null,null,null,"Fumier porc (t)",30,15,10,5,0,null,"Prairie",null,null,null,null,null,null,null,null,null,null,null,"Endiviers et terrede St Malo",40]
[null,null,null,"Développement  végétatif","Estimation",null,null,null,null,null,null,null,null,null,null,null,null,null,null,null,null,null,null,null,null,null,null,null,null,null,null,null,null,null,null,null,null,null,null,null,null,null,null,null,null,null,null,null,null,null,null,null,null,"Compost lisier porc (t)",30,45,30,20,15,null,null,null,null,null,null,null,null,null,null,null,null,null,"Légumes céréales ou lég. Industries",50]
[null,null,null,null,"Estim. par pesée",null,null,null,null,null,null,null,null,null,null,null,null,null,null,null,null,null,null,null,null,null,null,null,null,null,null,null,null,null,null,null,null,null,null,null,null,null,null,null,null,null,null,null,null,null,null,null,null,"Compost fumier bovin ou boues STEP + déchets verts (t)",15,25,20,10,5,null,null,null,null,null,null,null,null,null,null,null,null,null,"Légumes frais 100 %",70]
[null,"Dose à apporter Prévisionnelle (kg N/ha)",null,null,null,0]
[null,"Correction",null,"RSH (reliquat sortie d'hiver)"]
[null,null,null,"Correction liée aux outils de pilotage"]
[null,"Dose à apporter corrigée (kg N/ha)",null,null,null,{"$f":"F13+F14+F15","v":0}]
[null,"Apports au semis","Apports de matières organiques \n(au semis)","Apport 1","Type"]
[null,null,null,null,"Date d'apport"]
[null,null,null,null,"Quantité  / ha"]
[null,null,null,null,"Valeur N (kg/ha)"]
[null,null,null,"Apport 2","Type"]
[null,null,null,null,"Date d'apport"]
[null,null,null,null,"Quantité  / ha"]
[null,null,null,null,"Valeur N (kg/ha)"]
[null,null,null,"Apport 2","Type"]
[null,null,null,null,"Date d'apport"]
[null,null,null,null,"Quantité  / ha"]
[null,null,null,null,"Valeur N (kg/ha)"]
[null,null,"N efficace total des Matières organiques au semis (kg N/ha)",null,null,{"$f":"F20+F24+F28","v":0}]
[null,null,"Apport N minéral prévisionnel (au semis)","Apport 1","Type"]
[null,null,null,null,"Date d'apport"]
[null,null,null,null,"Quantité  / ha"]
[null,null,null,null,"Teneur en N (%)"]
[null,null,null,"Apport 2","Type"]
[null,null,null,null,"Date d'apport"]
[null,null,null,null,"Quantité  / ha"]
[null,null,null,null,"Teneur en N (%)"]
[null,null,"Total apport N minéral(kg/ha)",null,null,{"$f":"((F32*F33)+(F36*F37))/100","v":0}]
[null,"Apports effectifs sur la culture","Apports effectifs de matières organiques","Apport 1","Type"]
[null,null,null,null,"Date d'apport"]
[null,null,null,null,"Quantité  / ha"]
[null,null,null,null,"Valeur N (kg/ha)",0]
[null,null,null,"Apport 2","Type"]
[null,null,null,null,"Date d'apport"]
[null,null,null,null,"Quantité  / ha"]
[null,null,null,null,"Valeur N (kg/ha)",0]
[null,null,null,"Apport 3","Type"]
[null,null,null,null,"Date d'apport"]
[null,null,null,null,"Quantité  / ha"]
[null,null,null,null,"Valeur N (kg/ha)",0]
[null,null,"N efficace total des Matières organiques",null,null,{"$f":"F42+F46+F50","v":0}]
[null,null,"Apport N minéral effectif","Apport 1","Type"]
[null,null,null,null,"Date d'apport"]
[null,null,null,null,"Quantité / ha"]
[null,null,null,null,"Teneur en azote (%)"]
[null,null,null,"Apport 2","Type"]
[null,null,null,null,"Date d'apport"]
[null,null,null,null,"Quantité / ha"]
[null,null,null,null,"Teneur en azote (%)"]
[null,null,"Apport total N minéral",null,null,{"$f":"(F54*F55+F58*F59)/100","v":0}]
[null,"Ecart entre besoins et fertilisation (kg N/ha)",null,null,null,{"$f":"IF(ISBLANK(F16),0,((F51+F60)-F16))","v":0}]
[null,"Date de récolte"]
[null,"Rendement réalisé"]
[null,"Modalités de gestion de l'inter-culture"]
[null,"Modalités de gestion des CIPAN"]
[null,"Modalités de gestion des dérobées"]
[null,"Culture suivante"]

{"sheet":"0PPF Maïs","index":18,"n_rows":61,"n_cols":73,"rows_kept":61,"cut":false,"hidden":true,"merged":[[12,1,35,1],[17,2,18,3],[4,3,4,4],[5,3,7,3],[13,2,16,2],[13,3,13,4],[33,2,35,2],[14,3,14,4],[15,3,16,3],[28,3,31,3],[2,71,2,72],[2,54,2,57],[3,3,3,4],[8,66,9,66],[8,64,9,64],[8,65,9,65],[8,62,9,62],[8,63,9,63],[9,3,9,4],[24,3,27,3],[54,3,57,3],[37,3,40,3],[41,3,44,3],[49,2,49,4],[50,2,57,2],[45,3,48,3],[37,2,48,2],[33,3,34,4],[0,2,0,5],[37,1,58,1],[20,2,31,2],[2,1,3,2],[4,1,7,2],[8,1,9,2],[8,3,8,4],[2,3,2,4],[10,1,10,4],[50,3,53,3],[60,1,60,4],[11,1,11,4],[36,1,36,4],[32,2,32,4],[12,2,12,4],[19,2,19,4],[59,1,59,4],[58,2,58,4],[35,3,35,4],[20,3,23,3]]}
[null,null,"8) Plan Prévisionnel de Fumure\n    « Grille Maïs »",null,null,null,null,null,null,null,null,null,null,null,null,null,null,null,null,null,null,null,null,null,null,null,null,null,null,null,null,null,null,null,null,null,null,null,null,null,null,null,null,null,null,null,null,null,null,null,null,null,null,null,null,null,null,null,null,"BH",null,null,"BK",null,null,null,"BO",null,"BQ",null,null,"BT"]
[]
[null,"Ilot",null,"Nom",null,null,null,null,null,null,null,null,null,null,null,null,null,null,null,null,null,null,null,null,null,null,null,null,null,null,null,null,null,null,null,null,null,null,null,null,null,null,null,null,null,null,null,null,null,null,null,null,"Effluents","quantité","Fréquence",null,null,null,null,"Précedent cultural","Contribution",null,"Si prairie :\nage","100% pâture","1 fauche + pâture","2 fauches + pâture","100% fauche",null,"Système de Cultures","kg N/ha",null,"RSH par défaut"]
[null,null,null,"Numéro",null,null,null,null,null,null,null,null,null,null,null,null,null,null,null,null,null,null,null,null,null,null,null,null,null,null,null,null,null,null,null,null,null,null,null,null,null,null,null,null,null,null,null,null,null,null,null,null,null,null,"tous les ans","2 années sur 3","tous les 2 ans","tous les 3 ans et +",null,"Betteraves feuilles enfouies",20,null,"6 -18 mois",30,25,20,10,null,"Rotation maïs ensilage et céréales (cipan)",80,null,"Si CIPAN",10]
[null,"Parcelle culturale",null,"N° parcelle",null,null,null,null,null,null,null,null,null,null,null,null,null,null,null,null,null,null,null,null,null,null,null,null,null,null,null,null,null,null,null,null,null,null,null,null,null,null,null,null,null,null,null,null,null,null,null,null,"Fumier bovin (t)",30,70,45,35,20,null,"Betteraves feuilles non enfouies",0,null,"2-3 ans",80,70,55,30,null,"Rotation maïs grain et céréales (cipan)",90,null,"Sinon",0]
[null,null,null,"Surfaces","SAU",null,null,null,null,null,null,null,null,null,null,null,null,null,null,null,null,null,null,null,null,null,null,null,null,null,null,null,null,null,null,null,null,null,null,null,null,null,null,null,null,null,null,null,null,null,null,null,"Lisier bovin (m3)",40,35,25,20,15,null,"Céréales pailles exportées ou brulées",0,null,"4-5 ans",135,110,95,55,null,"3 années de prairie sur 10",90]
[null,null,null,null,"SPE",null,null,null,null,null,null,null,null,null,null,null,null,null,null,null,null,null,null,null,null,null,null,null,null,null,null,null,null,null,null,null,null,null,null,null,null,null,null,null,null,null,null,null,null,null,null,null,"Fumier volaille (t)",10,45,30,25,15,null,"Céréales pailles enfouies",0,null,"6-10 ans",175,140,120,70,null,"5 années de prairie sur 10",100]
[null,null,null,null,"SNE",null,null,null,null,null,null,null,null,null,null,null,null,null,null,null,null,null,null,null,null,null,null,null,null,null,null,null,null,null,null,null,null,null,null,null,null,null,null,null,null,null,null,null,null,null,null,null,"Lisier volaille (m3)",15,20,15,10,0,null,"Colza, pomme de terre, haricots, pois ",20,null,"> 10 ans",200,160,140,80,null,"8 années de prairie sur 10",110]
[null,"Culture",null,"Intitulé",null,null,null,null,null,null,null,null,null,null,null,null,null,null,null,null,null,null,null,null,null,null,null,null,null,null,null,null,null,null,null,null,null,null,null,null,null,null,null,null,null,null,null,null,null,null,null,null,"Lisier porc (m3)",30,20,15,10,0,null,"Tournesol ",0,null,"Si prairie N-2 :\nage","100% pâture","1 fauche + pâture","2 fauches + pâture","100% fauche",null,"Endiviers et terrede St Malo",70]
[null,null,null,"Objectif de rendement",null,null,null,null,null,null,null,null,null,null,null,null,null,null,null,null,null,null,null,null,null,null,null,null,null,null,null,null,null,null,null,null,null,null,null,null,null,null,null,null,null,null,null,null,null,null,null,null,"Fumier porc (t)",30,35,25,20,15,null,"Légumineuses fourragères (luzerne, trèfle …) ",0,null,null,null,null,null,null,null,"Légumes céréales ou lég. Industries",100]
[null,"Azote non valorisable (forfait kg N/ha)",null,null,null,{"$f":"Reference_cultures!$S$24","v":30},null,null,null,null,null,null,null,null,null,null,null,null,null,null,null,null,null,null,null,null,null,null,null,null,null,null,null,null,null,null,null,null,null,null,null,null,null,null,null,null,null,null,null,null,null,null,"Compost lisier porc (t)",30,80,50,40,25,null,"Maïs ensilage",0,null,"6 -18 mois",0,0,0,0,null,"Légumes frais 100 %",110]
[null,"Besoins de la culture",null,null,null,{"$f":"F10*(IF(ISERROR(VLOOKUP(F9,Cultures_complet,1,FALSE)),0,VLOOKUP(F9,Cultures_complet,7,FALSE)))+F11","v":30},null,null,null,null,null,null,null,null,null,null,null,null,null,null,null,null,null,null,null,null,null,null,null,null,null,null,null,null,null,null,null,null,null,null,null,null,null,null,null,null,null,null,null,null,null,null,"Compost fumier bovin ou boues STEP + déchets verts (t)",20,65,40,30,20,null,"Maïs grain",-10,null,"2-3 ans",0,0,0,0]
[null,"Restitutions du sol","Reliquat sortie d'hiver (RSH)",null,null,0,null,null,null,null,null,null,null,null,null,null,null,null,null,null,null,null,null,null,null,null,null,null,null,null,null,null,null,null,null,null,null,null,null,null,null,null,null,null,null,null,null,null,null,null,null,null,"Compost fumier volailles (t)",8,100,65,50,30,null,"Choux fleurs d'hiver ",60,null,"4-5 ans",35,30,25,0]
[null,null,"Précédent cultural","CIPAN",null,null,null,null,null,null,null,null,null,null,null,null,null,null,null,null,null,null,null,null,null,null,null,null,null,null,null,null,null,null,null,null,null,null,null,null,null,null,null,null,null,null,null,null,null,null,null,null,"Compost OM ou compost mûr de déchets verts (t)",30,125,80,60,40,null,"Prairie",null,null,"6-10 ans",45,35,30,0]
[null,null,null,"Culture précédente",null,null,null,null,null,null,null,null,null,null,null,null,null,null,null,null,null,null,null,null,null,null,null,null,null,null,null,null,null,null,null,null,null,null,null,null,null,null,null,null,null,null,null,null,null,null,null,null,null,null,null,null,null,null,null,"CIPAN",20,null,"> 10 ans",45,40,30,0]
[null,null,null,"Si prairie","Age"]
[null,null,null,null,"Type d'exploit."]
[null,null,"Si prairie retournée 2 années auparavant",null,"Age"]
[null,null,null,null,"Type d'exploit."]
[null,null,"Effets des précédents",null,null,{"$f":"IF(F14=\"Oui\",$BI$15,IF(F15=$BH$14,IF(ISERROR(MATCH(F17,$BL$3:$BO$3,0)),0,OFFSET($BL$4,(MATCH(F16,$BK$4:$BK$8,0)-1),MATCH(F17,$BL$3:$BO$3,0)-1,1,1)),IF(ISERROR(VLOOKUP(F15,$BH$4:$BI$13,2,FALSE)),0,VLOOKUP(F15,$BH$4:$BI$13,2,FALSE))))+IF(ISERROR(MATCH(F19,$BL$3:$BO$3,0)),0,OFFSET($BL$11,(MATCH(F18,$BK$11:$BK$15,0)-1),MATCH(F19,$BL$3:$BO$3,0)-1,1,1))","v":0}]
[null,null,"Apports antérieurs de matières organiques\n(Combinaisons possibles\n sur 3 ans)","Apport 1","Type"]
[null,null,null,null,"Fréquence"]
[null,null,null,null,"Quantité  / ha"]
[null,null,null,null,"Valeur N (kg/ha)",{"$f":"IF(OR(ISERROR(VLOOKUP(F21,$BA$5:$BA$14,1,FALSE)),ISERROR(HLOOKUP(F22,$BC$4:$BF$4,1,FALSE))),0,OFFSET($BC$5,(MATCH(F21,$BA$5:$BA$14,0)-1),MATCH(F22,$BC$4:$BF$4,0)-1,1,1)*F23/VLOOKUP(F21,$BA$5:$BB$14,2,FALSE))","v":0}]
[null,null,null,"Apport 2","Type"]
[null,null,null,null,"Fréquence"]
[null,null,null,null,"Quantité  / ha"]
[null,null,null,null,"Valeur N (kg/ha)",{"$f":"IF(OR(ISERROR(VLOOKUP(F25,$BA$5:$BA$14,1,FALSE)),ISERROR(HLOOKUP(F26,$BC$4:$BF$4,1,FALSE))),0,OFFSET($BC$5,(MATCH(F25,$BA$5:$BA$14,0)-1),MATCH(F26,$BC$4:$BF$4,0)-1,1,1)*F27/VLOOKUP(F25,$BA$5:$BB$14,2,FALSE))","v":0}]
[null,null,null,"Apport 3","Type"]
[null,null,null,null,"Fréquence"]
[null,null,null,null,"Quantité  / ha"]
[null,null,null,null,"Valeur N (kg/ha)",{"$f":"IF(OR(ISERROR(VLOOKUP(F29,$BA$5:$BA$14,1,FALSE)),ISERROR(HLOOKUP(F30,$BC$4:$BF$4,1,FALSE))),0,OFFSET($BC$5,(MATCH(F29,$BA$5:$BA$14,0)-1),MATCH(F30,$BC$4:$BF$4,0)-1,1,1)*F31/VLOOKUP(F29,$BA$5:$BB$14,2,FALSE))","v":0}]
[null,null,"Total contribution apports organiques antérieurs (kgN/ha)",null,null,{"$f":"F24+F28+F32","v":0}]
[null,null,"Fournitures par le sol","Système de cultures"]
[]
[null,null,null,"Mh du sol",null,{"$f":"IF(ISERROR(VLOOKUP(F34,$BQ$4:$BQ$11,1,FALSE)),0,VLOOKUP(F34,$BQ$4:$BR$11,2,FALSE))","v":0}]
[null,"Dose à apporter (kg N/ha)",null,null,null,{"$f":"IF((F12-(F20+F33+F13+F36))>0,(F12-(F20+F33+F13+F36)),0)","v":30}]
[null,"Apports prévisionnels sur la culture","Apports prévisionnels de matières organiques","Apport 1","Type"]
[null,null,null,null,"Date d'apport"]
[null,null,null,null,"Quantité  / ha"]
[null,null,null,null,"Valeur N (kg/ha)"]
[null,null,null,"Apport 2","Type"]
[null,null,null,null,"Date d'apport"]
[null,null,null,null,"Quantité  / ha"]
[null,null,null,null,"Valeur N (kg/ha)"]
[null,null,null,"Apport 3","Type"]
[null,null,null,null,"Date d'apport"]
[null,null,null,null,"Quantité  / ha"]
[null,null,null,null,"Valeur N (kg/ha)"]
[null,null,"N efficace total des Matières organiques",null,null,{"$f":"F41+F45+F49","v":0}]
[null,null,"Apport N minéral prévisionnel","Apport 1","Type"]
[null,null,null,null,"Date d'apport"]
[null,null,null,null,"Quantité / ha"]
[null,null,null,null,"Teneur en azote (%)"]
[null,null,null,"Apport 2","Type"]
[null,null,null,null,"Date d'apport"]
[null,null,null,null,"Quantité / ha"]
[null,null,null,null,"Teneur en azote (%)"]
[null,null,"Apport total N minéral",null,null,{"$f":"(F53*F54+F57*F58)/100","v":0}]
[null,"Ecart entre besoins et fertilisation (kg N/ha)",null,null,null,{"$f":"IF(ISBLANK(F9),0,((F50+F59)-F37))","v":0}]
[null,"Culture suivante"]

{"sheet":"0CF Maïs","index":19,"n_rows":43,"n_cols":73,"rows_kept":43,"cut":false,"hidden":true,"merged":[[4,3,4,4],[5,3,7,3],[2,71,2,72],[2,54,2,57],[3,3,3,4],[8,66,9,66],[8,64,9,64],[8,65,9,65],[8,62,9,62],[8,63,9,63],[9,3,9,4],[31,3,34,3],[14,3,17,3],[18,3,21,3],[26,2,26,4],[27,2,34,2],[22,3,25,3],[14,2,25,2],[11,3,11,4],[0,2,0,5],[14,1,35,1],[2,1,3,2],[4,1,7,2],[8,1,9,2],[8,3,8,4],[2,3,2,4],[27,3,30,3],[11,1,12,2],[12,3,12,4],[42,1,42,4],[37,1,37,4],[10,1,10,4],[13,1,13,4],[38,1,38,4],[39,1,39,4],[40,1,40,4],[41,1,41,4],[35,2,35,4],[36,1,36,4]]}
[null,null,"8) Cahiers de Fertilisation\n    « Grille Maïs »",null,null,null,null,null,null,null,null,null,null,null,null,null,null,null,null,null,null,null,null,null,null,null,null,null,null,null,null,null,null,null,null,null,null,null,null,null,null,null,null,null,null,null,null,null,null,null,null,null,null,null,null,null,null,null,null,"BH",null,null,"BK",null,null,null,"BO",null,"BQ",null,null,"BT"]
[]
[null,"Ilot",null,"Nom",null,null,null,null,null,null,null,null,null,null,null,null,null,null,null,null,null,null,null,null,null,null,null,null,null,null,null,null,null,null,null,null,null,null,null,null,null,null,null,null,null,null,null,null,null,null,null,null,"Effluents","quantité","Fréquence",null,null,null,null,"Précedent cultural","Contribution",null,"Si prairie :\nage","100% pâture","1 fauche + pâture","2 fauches + pâture","100% fauche",null,"Système de Cultures","kg N/ha",null,"RSH par défaut"]
[null,null,null,"Numéro",null,null,null,null,null,null,null,null,null,null,null,null,null,null,null,null,null,null,null,null,null,null,null,null,null,null,null,null,null,null,null,null,null,null,null,null,null,null,null,null,null,null,null,null,null,null,null,null,null,null,"tous les ans","2 années sur 3","tous les 2 ans","tous les 3 ans et +",null,"Betteraves feuilles enfouies",20,null,"6 -18 mois",30,25,20,10,null,"Cas particulier sans cipan et sans canne de maïs",70,null,"Si CIPAN",10]
[null,"Parcelle culturale",null,"N° parcelle",null,null,null,null,null,null,null,null,null,null,null,null,null,null,null,null,null,null,null,null,null,null,null,null,null,null,null,null,null,null,null,null,null,null,null,null,null,null,null,null,null,null,null,null,null,null,null,null,"Fumier bovin (t)",30,70,45,35,20,null,"Betteraves feuilles non enfouies",0,null,"2-3 ans",80,70,55,30,null,"Rotation maïs ensilage et céréales (cipan)",80,null,"Sinon",0]
[null,null,null,"Surfaces","SAU",null,null,null,null,null,null,null,null,null,null,null,null,null,null,null,null,null,null,null,null,null,null,null,null,null,null,null,null,null,null,null,null,null,null,null,null,null,null,null,null,null,null,null,null,null,null,null,"Lisier bovin (m3)",40,35,25,20,15,null,"Céréales pailles exportées ou brulées",0,null,"4-5 ans",135,110,95,55,null,"Rotation maïs grain et céréales (cipan)",90]
[null,null,null,null,"SPE",null,null,null,null,null,null,null,null,null,null,null,null,null,null,null,null,null,null,null,null,null,null,null,null,null,null,null,null,null,null,null,null,null,null,null,null,null,null,null,null,null,null,null,null,null,null,null,"Fumier volaille (t)",10,45,30,25,15,null,"Céréales pailles enfouies",0,null,"6-10 ans",175,140,120,70,null,"3 années de prairie sur 10",90]
[null,null,null,null,"SNE",null,null,null,null,null,null,null,null,null,null,null,null,null,null,null,null,null,null,null,null,null,null,null,null,null,null,null,null,null,null,null,null,null,null,null,null,null,null,null,null,null,null,null,null,null,null,null,"Lisier volaille (m3)",15,20,15,10,0,null,"Colza, pomme de terre, haricots, pois ",20,null,"> 10 ans",200,160,140,80,null,"5 années de prairie sur 10",100]
[null,"Culture",null,"Intitulé",null,null,null,null,null,null,null,null,null,null,null,null,null,null,null,null,null,null,null,null,null,null,null,null,null,null,null,null,null,null,null,null,null,null,null,null,null,null,null,null,null,null,null,null,null,null,null,null,"Lisier porc (m3)",30,20,15,10,0,null,"Tournesol ",0,null,"Si prairie N-2 :\nage","100% pâture","1 fauche + pâture","2 fauches + pâture","100% fauche",null,"8 années de prairie sur 10",110]
[null,null,null,"Objectif de rendement",null,null,null,null,null,null,null,null,null,null,null,null,null,null,null,null,null,null,null,null,null,null,null,null,null,null,null,null,null,null,null,null,null,null,null,null,null,null,null,null,null,null,null,null,null,null,null,null,"Fumier porc (t)",30,35,25,20,15,null,"Légumineuses fourragères (luzerne, trèfle …) ",0,null,null,null,null,null,null,null,"Endiviers et terrede St Malo",70]
[null,"Dose à apporter Prévisionnelle (kg N/ha)",null,null,null,0,null,null,null,null,null,null,null,null,null,null,null,null,null,null,null,null,null,null,null,null,null,null,null,null,null,null,null,null,null,null,null,null,null,null,null,null,null,null,null,null,null,null,null,null,null,null,"Compost fumier volailles (t)",8,100,65,50,30,null,"Choux fleurs d'hiver ",60,null,"4-5 ans",35,30,25,0]
[null,"Correction",null,"RSH (reliquat sortie d'hiver)",null,null,null,null,null,null,null,null,null,null,null,null,null,null,null,null,null,null,null,null,null,null,null,null,null,null,null,null,null,null,null,null,null,null,null,null,null,null,null,null,null,null,null,null,null,null,null,null,"Compost OM ou compost mûr de déchets verts (t)",30,125,80,60,40,null,"Prairie",null,null,"6-10 ans",45,35,30,0]
[null,null,null,"Correction liée aux outils de pilotage",null,null,null,null,null,null,null,null,null,null,null,null,null,null,null,null,null,null,null,null,null,null,null,null,null,null,null,null,null,null,null,null,null,null,null,null,null,null,null,null,null,null,null,null,null,null,null,null,null,null,null,null,null,null,null,"CIPAN",20,null,"> 10 ans",45,40,30,0]
[null,"Dose à apporter corrigée (kg N/ha)",null,null,null,{"$f":"F11+F12+F13","v":0}]
[null,"Apports effectifs sur la culture","Apports effectifs de matières organiques","Apport 1","Type"]
[null,null,null,null,"Date d'apport"]
[null,null,null,null,"Quantité  / ha"]
[null,null,null,null,"Valeur N (kg/ha)",0,null,null,null,null,null,null,null,null,null,null,null,null,null,null,null,null,null,null,null,null,null,null,null,null,null,null,null,null,null,null,null,null,null,null,null,null,null,null,null,null,null,null,null,null,null,null,null,null,null,null,null,null,null,null,null,null,null,null,null,null,null,null,"Abattement / date destruction couvert hivernal","kg N/ha"]
[null,null,null,"Apport 2","Type",null,null,null,null,null,null,null,null,null,null,null,null,null,null,null,null,null,null,null,null,null,null,null,null,null,null,null,null,null,null,null,null,null,null,null,null,null,null,null,null,null,null,null,null,null,null,null,null,null,null,null,null,null,null,null,null,null,null,null,null,null,null,null,"Janv",0]
[null,null,null,null,"Date d'apport",null,null,null,null,null,null,null,null,null,null,null,null,null,null,null,null,null,null,null,null,null,null,null,null,null,null,null,null,null,null,null,null,null,null,null,null,null,null,null,null,null,null,null,null,null,null,null,null,null,null,null,null,null,null,null,null,null,null,null,null,null,null,null,"15 févr",0]
[null,null,null,null,"Quantité  / ha",null,null,null,null,null,null,null,null,null,null,null,null,null,null,null,null,null,null,null,null,null,null,null,null,null,null,null,null,null,null,null,null,null,null,null,null,null,null,null,null,null,null,null,null,null,null,null,null,null,null,null,null,null,null,null,null,null,null,null,null,null,null,null,"15 mars",-10]
[null,null,null,null,"Valeur N (kg/ha)",0,null,null,null,null,null,null,null,null,null,null,null,null,null,null,null,null,null,null,null,null,null,null,null,null,null,null,null,null,null,null,null,null,null,null,null,null,null,null,null,null,null,null,null,null,null,null,null,null,null,null,null,null,null,null,null,null,null,null,null,null,null,null,"25 mars",-20]
[null,null,null,"Apport 3","Type",null,null,null,null,null,null,null,null,null,null,null,null,null,null,null,null,null,null,null,null,null,null,null,null,null,null,null,null,null,null,null,null,null,null,null,null,null,null,null,null,null,null,null,null,null,null,null,null,null,null,null,null,null,null,null,null,null,null,null,null,null,null,null,"15 avr",-30]
[null,null,null,null,"Date d'apport"]
[null,null,null,null,"Quantité  / ha"]
[null,null,null,null,"Valeur N (kg/ha)",0]
[null,null,"N efficace total des Matières organiques",null,null,{"$f":"F18+F22+F26","v":0}]
[null,null,"Apport N minéral effectif","Apport 1","Type",null,null,null,null,null,null,null,null,null,null,null,null,0]
[null,null,null,null,"Date d'apport"]
[null,null,null,null,"Quantité / ha"]
[null,null,null,null,"Teneur en azote (%)"]
[null,null,null,"Apport 2","Type"]
[null,null,null,null,"Date d'apport"]
[null,null,null,null,"Quantité / ha"]
[null,null,null,null,"Teneur en azote (%)"]
[null,null,"Apport total N minéral effectif",null,null,{"$f":"(F30*F31+F34*F35)/100","v":0}]
[null,"Ecart entre besoins et fertilisation (kg N/ha)",null,null,null,{"$f":"IF(ISBLANK(F14),0,((F27+F36)-F14))","v":0}]
[null,"Date de récolte"]
[null,"Rendement réalisé"]
[null,"Modalités de gestion de l'inter-culture"]
[null,"Modalités de gestion des CIPAN"]
[null,"Modalités de gestion des dérobées"]
[null,"Culture suivante"]

{"sheet":"0PPF Dérobée + Maïs","index":20,"n_rows":83,"n_cols":76,"rows_kept":83,"cut":false,"hidden":true,"merged":[[59,2,70,2],[59,3,62,3],[80,2,80,4],[72,3,75,3],[76,3,79,3],[71,2,71,4],[67,3,70,3],[82,1,82,4],[9,3,9,4],[72,2,79,2],[40,3,40,4],[41,3,41,4],[81,1,81,4],[35,2,35,4],[18,3,21,3],[22,3,25,3],[11,1,11,4],[3,55,3,58],[2,1,3,2],[4,1,7,2],[8,1,9,2],[2,3,2,4],[3,3,3,4],[4,3,4,4],[5,3,7,3],[8,3,8,4],[37,1,57,1],[9,63,9,64],[3,53,4,53],[3,54,4,54],[56,2,57,2],[14,2,25,2],[14,3,17,3],[36,2,36,4],[31,3,34,3],[43,2,54,2],[0,2,0,5],[12,2,13,2],[12,3,12,4],[13,3,13,4],[10,1,10,4],[12,1,36,1],[26,2,26,4],[43,3,46,3],[47,3,50,3],[51,3,54,3],[55,2,55,4],[27,2,34,2],[27,3,30,3],[37,2,37,4],[40,2,41,2],[38,2,39,2],[38,3,38,4],[39,3,39,4],[58,1,58,4],[59,1,80,1],[57,3,57,4],[42,2,42,4],[63,3,66,3],[56,3,56,4]]}
[null,null,"8) Plan Prévisionnel de Fumure\n    « grille Dérobée + maïs »"]
[]
[null,"Ilot",null,"Nom"]
[null,null,null,"Numéro",null,null,null,null,null,null,null,null,null,null,null,null,null,null,null,null,null,null,null,null,null,null,null,null,null,null,null,null,null,null,null,null,null,null,null,null,null,null,null,null,null,null,null,null,null,null,null,null,null,"Effluents","quantité","Fréquence",null,null,null,null,"Précedent cultural","Contribution",null,null,null,null,"Si prairie N-1 : age","100% pâture","1 fauche + pâture","2 fauches + pâture","100% fauche",null,"Système de Cultures","kg N/ha",null,"RSH"]
[null,"Parcelle culturale",null,"N° parcelle",null,null,null,null,null,null,null,null,null,null,null,null,null,null,null,null,null,null,null,null,null,null,null,null,null,null,null,null,null,null,null,null,null,null,null,null,null,null,null,null,null,null,null,null,null,null,null,null,null,null,null,"tous les ans","2 années sur 3","tous les 2 ans","tous les 3 ans et +",null,"Betteraves feuilles enfouies",20,null,null,null,null,"6 -18 mois",30,25,20,10,null,"Rotation maïs ensilage et céréales (cipan)",80,null,10]
[null,null,null,"Surfaces","SAU",null,null,null,null,null,null,null,null,null,null,null,null,null,null,null,null,null,null,null,null,null,null,null,null,null,null,null,null,null,null,null,null,null,null,null,null,null,null,null,null,null,null,null,null,null,null,null,null,"Fumier bovin (t)",30,70,45,35,20,null,"Betteraves feuilles non enfouies",0,null,null,null,null,"2-3 ans",80,70,55,30,null,"Rotation maïs grain et céréales (cipan)",90]
[null,null,null,null,"SPE",null,null,null,null,null,null,null,null,null,null,null,null,null,null,null,null,null,null,null,null,null,null,null,null,null,null,null,null,null,null,null,null,null,null,null,null,null,null,null,null,null,null,null,null,null,null,null,null,"Lisier bovin (m3)",40,35,25,20,15,null,"Céréales pailles exportées ou brulées",0,null,null,null,null,"4-5 ans",135,110,95,55,null,"3 années de prairie sur 10",90]
[null,null,null,null,"SNE",null,null,null,null,null,null,null,null,null,null,null,null,null,null,null,null,null,null,null,null,null,null,null,null,null,null,null,null,null,null,null,null,null,null,null,null,null,null,null,null,null,null,null,null,null,null,null,null,"Fumier volaille (t)",10,45,30,25,15,null,"Céréales pailles enfouies",0,null,"Dérobée",25,null,"6-10 ans",175,140,120,70,null,"5 années de prairie sur 10",100]
[null,"Culture",null,"Intitulé",null,null,null,null,null,null,null,null,null,null,null,null,null,null,null,null,null,null,null,null,null,null,null,null,null,null,null,null,null,null,null,null,null,null,null,null,null,null,null,null,null,null,null,null,null,null,null,null,null,"Lisier volaille (m3)",15,20,15,10,0,null,"Colza, pomme de terre, haricots, pois ",20,null,null,null,null,"> 10 ans",200,160,140,80,null,"8 années de prairie sur 10",110]
[null,null,null,"Objectif de rendement",null,null,null,null,null,null,null,null,null,null,null,null,null,null,null,null,null,null,null,null,null,null,null,null,null,null,null,null,null,null,null,null,null,null,null,null,null,null,null,null,null,null,null,null,null,null,null,null,null,"Lisier porc (m3)",30,20,15,10,0,null,"Tournesol ",0,null,"Couvert végétal",null,null,null,null,null,null,null,null,"Endiviers et terrede St Malo",70]
[null,"Azote non valorisable (forfait kg N/ha)",null,null,null,{"$f":"Reference_cultures!$S$25","v":30},null,null,null,null,null,null,null,null,null,null,null,null,null,null,null,null,null,null,null,null,null,null,null,null,null,null,null,null,null,null,null,null,null,null,null,null,null,null,null,null,null,null,null,null,null,null,null,"Fumier porc (t)",30,35,25,20,15,null,"Légumineuses fourragères (luzerne, trèfle …) ","?",null,"Couvert faible",15,null,"Si prairie N-2 : age","100% pâture","1 fauche + pâture","2 fauches + pâture","100% fauche",null,"Légumes céréales ou lég. Industries",100]
[null,"Besoins de la culture",null,null,null,{"$f":"F10*(IF(ISERROR(VLOOKUP(F9,Cultures_complet,1,FALSE)),0,VLOOKUP(F9,Cultures_complet,7,FALSE)))+F11","v":30},null,null,null,null,null,null,null,null,null,null,null,null,null,null,null,null,null,null,null,null,null,null,null,null,null,null,null,null,null,null,null,null,null,null,null,null,null,null,null,null,null,null,null,null,null,null,null,"Compost lisier porc (t)",30,80,50,40,25,null,"Jachères, culltures intermédiaires avant céréales ",30,null,"Couvert moyen",45,null,"6 -18 mois",0,0,0,0,null,"Légumes frais 100 %",110]
[null,"Apports sur la dérobée","Dérobée","Couvert végétal",null,null,null,null,null,null,null,null,null,null,null,null,null,null,null,null,null,null,null,null,null,null,null,null,null,null,null,null,null,null,null,null,null,null,null,null,null,null,null,null,null,null,null,null,null,null,null,null,null,"Compost fumier bovin ou boues STEP + déchets verts (t)",20,65,40,30,20,null,"Maïs ensilage",0,null,"Couvert fort",65,null,"2-3 ans",0,0,0,0]
[null,null,null,"Objectif de rendement",null,null,null,null,null,null,null,null,null,null,null,null,null,null,null,null,null,null,null,null,null,null,null,null,null,null,null,null,null,null,null,null,null,null,null,null,null,null,null,null,null,null,null,null,null,null,null,null,null,"Compost fumier volailles (t)",8,100,65,50,30,null,"Maïs grain",-10,null,"Par défaut",50,null,"4-5 ans",35,30,25,0]
[null,null,"Apports de matières organiques \nau semis de la dérobée","Apport de matières organiques","Type","",null,null,null,null,null,null,null,null,null,null,null,null,null,null,null,null,null,null,null,null,null,null,null,null,null,null,null,null,null,null,null,null,null,null,null,null,null,null,null,null,null,null,null,null,null,null,null,"Compost OM ou compost mûr de déchets verts (t)",30,125,80,60,40,null,"Choux fleurs d'hiver ",60,null,null,null,null,"6-10 ans",45,35,30,0]
[null,null,null,null,"Date d'apport",null,null,null,null,null,null,null,null,null,null,null,null,null,null,null,null,null,null,null,null,null,null,null,null,null,null,null,null,null,null,null,null,null,null,null,null,null,null,null,null,null,null,null,null,null,null,null,null,null,null,null,null,null,null,null,"Prairie",null,null,null,null,null,"> 10 ans",45,40,30,0]
[null,null,null,null,"Quantité  / ha"]
[null,null,null,null,"Valeur N (kg/ha)"]
[null,null,null,"Apport de matières organiques","Type"]
[null,null,null,null,"Date d'apport"]
[null,null,null,null,"Quantité  / ha"]
[null,null,null,null,"Valeur N (kg/ha)",null,null,null,null,null,null,null,null,null,null,null,null,null,null,null,null,null,null,null,null,null,null,null,null,null,null,null,null,null,null,null,null,null,null,null,null,null,null,null,null,null,null,null,null,null,null,null,null,null,null,null,null,null,null,null,null,null,null,null,null,null,null,null,null,null,null,null,"Abattement / date destruction couvert hivernal","kg N/ha"]
[null,null,null,"Apport de matières organiques","Type",null,null,null,null,null,null,null,null,null,null,null,null,null,null,null,null,null,null,null,null,null,null,null,null,null,null,null,null,null,null,null,null,null,null,null,null,null,null,null,null,null,null,null,null,null,null,null,null,null,null,null,null,null,null,null,null,null,null,null,null,null,null,null,null,null,null,null,null,0]
[null,null,null,null,"Date d'apport",null,null,null,null,null,null,null,null,null,null,null,null,null,null,null,null,null,null,null,null,null,null,null,null,null,null,null,null,null,null,null,null,null,null,null,null,null,null,null,null,null,null,null,null,null,null,null,null,null,null,null,null,null,null,null,null,null,null,null,null,null,null,null,null,null,null,null,"2012-02-15",0]
[null,null,null,null,"Quantité  / ha",null,null,null,null,null,null,null,null,null,null,null,null,null,null,null,null,null,null,null,null,null,null,null,null,null,null,null,null,null,null,null,null,null,null,null,null,null,null,null,null,null,null,null,null,null,null,null,null,null,null,null,null,null,null,null,null,null,null,null,null,null,null,null,null,null,null,null,"2012-03-15",-10]
[null,null,null,null,"Valeur N (kg/ha)",null,null,null,null,null,null,null,null,null,null,null,null,null,null,null,null,null,null,null,null,null,null,null,null,null,null,null,null,null,null,null,null,null,null,null,null,null,null,null,null,null,null,null,null,null,null,null,null,null,null,null,null,null,null,null,null,null,null,null,null,null,null,null,null,null,null,null,"2012-03-25",-20]
[null,null,"N efficace total des Matières organiques au semis (kg N/ha)",null,null,null,null,null,null,null,null,null,null,null,null,null,null,null,null,null,null,null,null,null,null,null,null,null,null,null,null,null,null,null,null,null,null,null,null,null,null,null,null,null,null,null,null,null,null,null,null,null,null,null,null,null,null,null,null,null,null,null,null,null,null,null,null,null,null,null,null,null,"2012-04-15",-30]
[null,null,"Apport N minéral \nau semis de la dérobée","Apport d'azote minéral","Type"]
[null,null,null,null,"Date d'apport"]
[null,null,null,null,"Quantité  / ha"]
[null,null,null,null,"Teneur en N (%)"]
[null,null,null,"Apport d'azote minéral","Type"]
[null,null,null,null,"Date d'apport"]
[null,null,null,null,"Quantité  / ha"]
[null,null,null,null,"Teneur en N (%)"]
[null,null,"Total apport N minéral(kg/ha)",null,null,{"$f":"((F30*F31)+(F34*F35))/100","v":0}]
[null,null,"Reste des besoins de la dérobée",null,null,{"$f":"(F14*$BM$8) - (IF(ISERROR(VLOOKUP(F13,$BL$11:$BM$13,1,FALSE)),$BM$14,VLOOKUP(F13,$BL$11:$BM$13,2,FALSE)))","v":-50}]
[null,"Restitutions du sol","Reliquat sortie d'hiver (RSH)",null,null,{"$f":"$BX$5","v":10}]
[null,null,"Si prairie\nl'année précédente","Age"]
[null,null,null,"Type d'exploitation"]
[null,null,"Si prairie retournée\n2 années auparavant","Age"]
[null,null,null,"Type d'exploitation"]
[null,null,"Effet des précédents",null,null,{"$f":"IF(ISERROR(MATCH(F40,$BP$4:$BS$4,0)),0,OFFSET($BP$5,MATCH(F39,$BO$5:$BO$9,0)-1,MATCH(F40,$BP$4:$BS$4,0)-1,1,1))+IF(ISERROR(MATCH(F42,$BP$4:$BS$4,0)),0,OFFSET($BP$12,MATCH(F41,$BO$12:$BO$16,0)-1,MATCH(F42,$BP$4:$BS$4,0)-1,1,1))","v":0}]
[null,null,"Apports antérieurs de matières organiques\n(Combinaisons possibles\n sur 3 ans)","Apport 1","Type"]
[null,null,null,null,"Fréquence"]
[null,null,null,null,"Quantité  / ha"]
[null,null,null,null,"Valeur N (kg/ha)",{"$f":"IF(OR(ISERROR(VLOOKUP(F44,$BB$6:$BB$15,1,FALSE)),ISERROR(HLOOKUP(F45,$BD$5:$BG$5,1,FALSE))),0,OFFSET($BD$6,(MATCH(F44,$BB$6:$BB$15,0)-1),MATCH(F45,$BD$5:$BG$5,0)-1,1,1)*F46/VLOOKUP(F44,$BB$6:$BC$15,2,FALSE))","v":0}]
[null,null,null,"Apport 2","Type"]
[null,null,null,null,"Fréquence"]
[null,null,null,null,"Quantité  / ha"]
[null,null,null,null,"Valeur N (kg/ha)",{"$f":"IF(OR(ISERROR(VLOOKUP(F48,$BB$6:$BB$15,1,FALSE)),ISERROR(HLOOKUP(F49,$BD$5:$BG$5,1,FALSE))),0,OFFSET($BD$6,(MATCH(F48,$BB$6:$BB$15,0)-1),MATCH(F49,$BD$5:$BG$5,0)-1,1,1)*F50/VLOOKUP(F48,$BB$6:$BC$15,2,FALSE))","v":0}]
[null,null,null,"Apport 3","Type"]
[null,null,null,null,"Fréquence"]
[null,null,null,null,"Quantité  / ha"]
[null,null,null,null,"Valeur N (kg/ha)",{"$f":"IF(OR(ISERROR(VLOOKUP(F52,$BB$6:$BB$15,1,FALSE)),ISERROR(HLOOKUP(F53,$BD$5:$BG$5,1,FALSE))),0,OFFSET($BD$6,(MATCH(F52,$BB$6:$BB$15,0)-1),MATCH(F53,$BD$5:$BG$5,0)-1,1,1)*F54/VLOOKUP(F52,$BB$6:$BC$15,2,FALSE))","v":0}]
[null,null,"Total contribution apports organiques antérieurs (kgN/ha)",null,null,{"$f":"F47+F51+F55","v":0}]
[null,null,"Fournitures par le sol","Système de cultures"]
[null,null,null,"Mh du sol",null,{"$f":"IF(ISERROR(VLOOKUP(F57,$BU$5:$BV$12,2,FALSE)),0,VLOOKUP(F57,$BU$5:$BV$12,2,FALSE))","v":0}]
[null,"Dose à apporter (kg N/ha)",null,null,null,{"$f":"IF(((F12+F37)-(F43+F56+F38+F58))>0,((F12+F37)-(F43+F56+F38+F58)),0)","v":0}]
[null,"Apports prévisionnels sur la culture","Apports prévisionnels de matières organiques","Apport 1","Type"]
[null,null,null,null,"Date d'apport"]
[null,null,null,null,"Quantité  / ha"]
[null,null,null,null,"Valeur N (kg/ha)"]
[null,null,null,"Apport 2","Type"]
[null,null,null,null,"Date d'apport"]
[null,null,null,null,"Quantité  / ha"]
[null,null,null,null,"Valeur N (kg/ha)"]
[null,null,null,"Apport 3","Type"]
[null,null,null,null,"Date d'apport"]
[null,null,null,null,"Quantité  / ha"]
[null,null,null,null,"Valeur N (kg/ha)"]
[null,null,"N efficace total des Matières organiques",null,null,{"$f":"F63+F67+F71","v":0}]
[null,null,"Apport N minéral prévisionnel","Apport 1","Type"]
[null,null,null,null,"Date d'apport"]
[null,null,null,null,"Quantité / ha"]
[null,null,null,null,"Teneur en azote (%)"]
[null,null,null,"Apport 2","Type"]
[null,null,null,null,"Date d'apport"]
[null,null,null,null,"Quantité / ha"]
[null,null,null,null,"Teneur en azote (%)"]
[null,null,"Apport total N minéral",null,null,{"$f":"(F75*F76+F79*F80)/100","v":0}]
[null,"Ecart entre besoins et fertilisation (kg N/ha)",null,null,null,{"$f":"(F72+F81)-F59","v":0}]
[null,"Culture suivante"]

{"sheet":"0CF Dérobée + Maïs","index":21,"n_rows":65,"n_cols":76,"rows_kept":65,"cut":false,"hidden":true,"merged":[[44,3,47,3],[49,2,56,2],[31,3,34,3],[53,3,56,3],[48,2,48,4],[27,2,34,2],[49,3,52,3],[40,3,43,3],[27,3,30,3],[36,3,39,3],[35,2,35,4],[9,63,9,64],[26,2,26,4],[14,3,17,3],[22,3,25,3],[11,1,12,2],[11,3,11,4],[12,3,12,4],[14,1,35,1],[3,55,3,58],[2,1,3,2],[4,1,7,2],[18,3,21,3],[2,3,2,4],[10,1,10,4],[13,1,13,4],[3,53,4,53],[3,54,4,54],[14,2,25,2],[0,2,0,5],[3,3,3,4],[8,1,9,2],[4,3,4,4],[8,3,8,4],[5,3,7,3],[9,3,9,4],[63,1,63,4],[36,1,57,1],[64,1,64,4],[59,1,59,4],[60,1,60,4],[61,1,61,4],[62,1,62,4],[58,1,58,4],[57,2,57,4],[36,2,47,2]]}
[null,null,"8) Cahiers de Fertilisation\n    « grille Dérobée + maïs »"]
[]
[null,"Ilot",null,"Nom"]
[null,null,null,"Numéro",null,null,null,null,null,null,null,null,null,null,null,null,null,null,null,null,null,null,null,null,null,null,null,null,null,null,null,null,null,null,null,null,null,null,null,null,null,null,null,null,null,null,null,null,null,null,null,null,null,"Effluents","quantité","Fréquence",null,null,null,null,"Précedent cultural","Contribution",null,null,null,null,"Si prairie N-1 : age","100% pâture","1 fauche + pâture","2 fauches + pâture","100% fauche",null,"Système de Cultures","kg N/ha",null,"RSH"]
[null,"Parcelle culturale",null,"N° parcelle",null,null,null,null,null,null,null,null,null,null,null,null,null,null,null,null,null,null,null,null,null,null,null,null,null,null,null,null,null,null,null,null,null,null,null,null,null,null,null,null,null,null,null,null,null,null,null,null,null,null,null,"tous les ans","2 années sur 3","tous les 2 ans","tous les 3 ans et +",null,"Betteraves feuilles enfouies",20,null,null,null,null,"6 -18 mois",30,25,20,10,null,"Rotation maïs ensilage et céréales (cipan)",80,null,10]
[null,null,null,"Surfaces","SAU",null,null,null,null,null,null,null,null,null,null,null,null,null,null,null,null,null,null,null,null,null,null,null,null,null,null,null,null,null,null,null,null,null,null,null,null,null,null,null,null,null,null,null,null,null,null,null,null,"Fumier bovin (t)",30,70,45,35,20,null,"Betteraves feuilles non enfouies",0,null,null,null,null,"2-3 ans",80,70,55,30,null,"Rotation maïs grain et céréales (cipan)",90]
[null,null,null,null,"SPE",null,null,null,null,null,null,null,null,null,null,null,null,null,null,null,null,null,null,null,null,null,null,null,null,null,null,null,null,null,null,null,null,null,null,null,null,null,null,null,null,null,null,null,null,null,null,null,null,"Lisier bovin (m3)",40,35,25,20,15,null,"Céréales pailles exportées ou brulées",0,null,null,null,null,"4-5 ans",135,110,95,55,null,"3 années de prairie sur 10",90]
[null,null,null,null,"SNE",null,null,null,null,null,null,null,null,null,null,null,null,null,null,null,null,null,null,null,null,null,null,null,null,null,null,null,null,null,null,null,null,null,null,null,null,null,null,null,null,null,null,null,null,null,null,null,null,"Fumier volaille (t)",10,45,30,25,15,null,"Céréales pailles enfouies",0,null,"Dérobée",25,null,"6-10 ans",175,140,120,70,null,"5 années de prairie sur 10",100]
[null,"Culture",null,"Intitulé",null,null,null,null,null,null,null,null,null,null,null,null,null,null,null,null,null,null,null,null,null,null,null,null,null,null,null,null,null,null,null,null,null,null,null,null,null,null,null,null,null,null,null,null,null,null,null,null,null,"Lisier volaille (m3)",15,20,15,10,0,null,"Colza, pomme de terre, haricots, pois ",20,null,null,null,null,"> 10 ans",200,160,140,80,null,"8 années de prairie sur 10",110]
[null,null,null,"Objectif de rendement",null,null,null,null,null,null,null,null,null,null,null,null,null,null,null,null,null,null,null,null,null,null,null,null,null,null,null,null,null,null,null,null,null,null,null,null,null,null,null,null,null,null,null,null,null,null,null,null,null,"Lisier porc (m3)",30,20,15,10,0,null,"Tournesol ",0,null,"Couvert végétal",null,null,null,null,null,null,null,null,"Endiviers et terrede St Malo",70]
[null,"Dose à apporter Prévisionnelle (kg N/ha)",null,null,null,0]
[null,"Correction",null,"RSH (reliquat sortie d'hiver)",null,null,null,null,null,null,null,null,null,null,null,null,null,null,null,null,null,null,null,null,null,null,null,null,null,null,null,null,null,null,null,null,null,null,null,null,null,null,null,null,null,null,null,null,null,null,null,null,null,"Compost OM ou compost mûr de déchets verts (t)",30,125,80,60,40,null,"Choux fleurs d'hiver ",60,null,null,null,null,"6-10 ans",45,35,30,0]
[null,null,null,"Correction liée aux outils de pilotage",null,null,null,null,null,null,null,null,null,null,null,null,null,null,null,null,null,null,null,null,null,null,null,null,null,null,null,null,null,null,null,null,null,null,null,null,null,null,null,null,null,null,null,null,null,null,null,null,null,null,null,null,null,null,null,null,"Prairie",null,null,null,null,null,"> 10 ans",45,40,30,0]
[null,"Dose à apporter corrigée (kg N/ha)",null,null,null,{"$f":"F11+F12-F13","v":0}]
[null,"Apports sur la dérobée","Apports de matières organiques \nau semis de la dérobée","Apport 1","Type"]
[null,null,null,null,"Date d'apport"]
[null,null,null,null,"Quantité  / ha"]
[null,null,null,null,"Valeur N (kg/ha)",0,null,null,null,null,null,null,null,null,null,null,null,null,null,null,null,null,null,null,null,null,null,null,null,null,null,null,null,null,null,null,null,null,null,null,null,null,null,null,null,null,null,null,null,null,null,null,null,null,null,null,null,null,null,null,null,null,null,null,null,null,null,null,null,null,null,null,"Abattement / date destruction couvert hivernal","kg N/ha"]
[null,null,null,"Apport 2","Type",null,null,null,null,null,null,null,null,null,null,null,null,null,null,null,null,null,null,null,null,null,null,null,null,null,null,null,null,null,null,null,null,null,null,null,null,null,null,null,null,null,null,null,null,null,null,null,null,null,null,null,null,null,null,null,null,null,null,null,null,null,null,null,null,null,null,null,null,0]
[null,null,null,null,"Date d'apport",null,null,null,null,null,null,null,null,null,null,null,null,null,null,null,null,null,null,null,null,null,null,null,null,null,null,null,null,null,null,null,null,null,null,null,null,null,null,null,null,null,null,null,null,null,null,null,null,null,null,null,null,null,null,null,null,null,null,null,null,null,null,null,null,null,null,null,"2012-02-15",0]
[null,null,null,null,"Quantité  / ha",null,null,null,null,null,null,null,null,null,null,null,null,null,null,null,null,null,null,null,null,null,null,null,null,null,null,null,null,null,null,null,null,null,null,null,null,null,null,null,null,null,null,null,null,null,null,null,null,null,null,null,null,null,null,null,null,null,null,null,null,null,null,null,null,null,null,null,"2012-03-15",-10]
[null,null,null,null,"Valeur N (kg/ha)",0,null,null,null,null,null,null,null,null,null,null,null,null,null,null,null,null,null,null,null,null,null,null,null,null,null,null,null,null,null,null,null,null,null,null,null,null,null,null,null,null,null,null,null,null,null,null,null,null,null,null,null,null,null,null,null,null,null,null,null,null,null,null,null,null,null,null,"2012-03-25",-20]
[null,null,null,"Apport 3","Type",null,null,null,null,null,null,null,null,null,null,null,null,null,null,null,null,null,null,null,null,null,null,null,null,null,null,null,null,null,null,null,null,null,null,null,null,null,null,null,null,null,null,null,null,null,null,null,null,null,null,null,null,null,null,null,null,null,null,null,null,null,null,null,null,null,null,null,"2012-04-15",-30]
[null,null,null,null,"Date d'apport"]
[null,null,null,null,"Quantité  / ha"]
[null,null,null,null,"Valeur N (kg/ha)",0]
[null,null,"N efficace total des Matières organiques au semis (kg N/ha)",null,null,{"$f":"F18+F22+F26","v":0}]
[null,null,"Apport N minéral \nau semis de la dérobée","Apport 1","Type"]
[null,null,null,null,"Date d'apport"]
[null,null,null,null,"Quantité  / ha"]
[null,null,null,null,"Teneur en N (%)"]
[null,null,null,"Apport 2","Type"]
[null,null,null,null,"Date d'apport"]
[null,null,null,null,"Quantité  / ha"]
[null,null,null,null,"Teneur en N (%)"]
[null,null,"Total apport N minéral(kg/ha)",null,null,{"$f":"((F30*F31)+(F34*F35))/100","v":0}]
[null,"Apports effectifs sur la culture","Apports effectifs de matières organiques","Apport 1","Type"]
[null,null,null,null,"Date d'apport"]
[null,null,null,null,"Quantité  / ha"]
[null,null,null,null,"Valeur N (kg/ha)",0]
[null,null,null,"Apport 2","Type"]
[null,null,null,null,"Date d'apport"]
[null,null,null,null,"Quantité  / ha"]
[null,null,null,null,"Valeur N (kg/ha)",0]
[null,null,null,"Apport 3","Type"]
[null,null,null,null,"Date d'apport"]
[null,null,null,null,"Quantité  / ha"]
[null,null,null,null,"Valeur N (kg/ha)",0]
[null,null,"N efficace total des Matières organiques",null,null,{"$f":"F40+F44+F48","v":0}]
[null,null,"Apport N minéral effectif","Apport 1","Type"]
[null,null,null,null,"Date d'apport"]
[null,null,null,null,"Quantité / ha"]
[null,null,null,null,"Teneur en azote (%)"]
[null,null,null,"Apport 2","Type"]
[null,null,null,null,"Date d'apport"]
[null,null,null,null,"Quantité / ha"]
[null,null,null,null,"Teneur en azote (%)"]
[null,null,"Apport total N minéral",null,null,{"$f":"(F52*F53+F56*F57)/100","v":0}]
[null,"Ecart entre besoins et fertilisation (kg N/ha)",null,null,null,{"$f":"IF(ISBLANK(F14),0,((F49+F58)-F14))","v":0}]
[null,"Date de récolte"]
[null,"Rendement réalisé"]
[null,"Modalités de gestion de l'inter-culture"]
[null,"Modalités de gestion des CIPAN"]
[null,"Modalités de gestion des dérobées"]
[null,"Culture suivante"]

{"sheet":"0PPF Prairies","index":22,"n_rows":57,"n_cols":133,"rows_kept":57,"cut":false,"hidden":true,"merged":[[27,3,27,4],[33,3,36,3],[41,2,41,4],[37,3,40,3],[29,2,40,2],[29,3,32,3],[28,1,28,4],[24,2,27,2],[24,3,24,4],[26,3,26,4],[11,2,22,2],[0,2,0,5],[8,1,9,2],[9,3,9,4],[11,1,27,1],[11,3,14,3],[15,3,18,3],[19,3,22,3],[23,2,23,4],[25,3,25,4],[2,106,3,106],[19,107,19,110],[1,132,3,132],[1,121,2,121],[2,107,2,110],[13,112,13,113],[5,132,6,132],[1,117,1,119],[8,130,8,131],[1,122,1,129],[1,116,2,116],[19,106,20,106],[10,1,10,4],[2,3,2,4],[3,3,3,4],[5,3,7,3],[2,1,3,2],[4,1,7,2],[4,3,4,4],[8,3,8,4],[56,1,56,4],[42,3,45,3],[46,3,49,3],[54,2,54,4],[55,1,55,4],[50,3,53,3],[29,1,54,1],[42,2,53,2]]}
[null,null,"8) Plan Prévisionnel de Fumure\n « Grille Prairies »"]
[null,null,null,null,null,null,null,null,null,null,null,null,null,null,null,null,null,null,null,null,null,null,null,null,null,null,null,null,null,null,null,null,null,null,null,null,null,null,null,null,null,null,null,null,null,null,null,null,null,null,null,null,null,null,null,null,null,null,null,null,null,null,null,null,null,null,null,null,null,null,null,null,null,null,null,null,null,null,null,null,null,null,null,null,null,null,null,null,null,null,null,null,null,null,null,null,null,null,null,null,null,null,null,null,null,null,null,null,null,null,null,null,null,null,null,null,"Potentiel de pousse","Entretien azoté antérieur",null,null,null,"taux légumineuse","Production prairie (t MS/ha)",null,null,null,null,null,null,null,null,null,"Coefficient apparent d'utilisation\n(CAU)"]
[null,"Ilot",null,"Nom",null,null,null,null,null,null,null,null,null,null,null,null,null,null,null,null,null,null,null,null,null,null,null,null,null,null,null,null,null,null,null,null,null,null,null,null,null,null,null,null,null,null,null,null,null,null,null,null,null,null,null,null,null,null,null,null,null,null,null,null,null,null,null,null,null,null,null,null,null,null,null,null,null,null,null,null,null,null,null,null,null,null,null,null,null,null,null,null,null,null,null,null,null,null,null,null,null,null,null,null,null,"Apport azote organique","quantité","Fréquence",null,null,null,null,"Mode d'exploitation dominant","Export kgN /t MS","note",null,null,"Fort","Moyen","Faible",null,null,5,6,7,8,9,10,11,12]
[null,null,null,"Numéro",null,null,null,null,null,null,null,null,null,null,null,null,null,null,null,null,null,null,null,null,null,null,null,null,null,null,null,null,null,null,null,null,null,null,null,null,null,null,null,null,null,null,null,null,null,null,null,null,null,null,null,null,null,null,null,null,null,null,null,null,null,null,null,null,null,null,null,null,null,null,null,null,null,null,null,null,null,null,null,null,null,null,null,null,null,null,null,null,null,null,null,null,null,null,null,null,null,null,null,null,null,"Effluents",null,"tous les ans","2 années sur 3","tous les 2 ans","tous les 3 ans et +",null,{"$f":"Reference_cultures!B95","v":"Prairie temporaire pâturage rapide dominant "},30,99,null,5,85,70,65,null,"Sans",0,0,0,0,0,0,0,0]
[null,"Parcelle culturale",null,"N° parcelle",null,null,null,null,null,null,null,null,null,null,null,null,null,null,null,null,null,null,null,null,null,null,null,null,null,null,null,null,null,null,null,null,null,null,null,null,null,null,null,null,null,null,null,null,null,null,null,null,null,null,null,null,null,null,null,null,null,null,null,null,null,null,null,null,null,null,null,null,null,null,null,null,null,null,null,null,null,null,null,null,null,null,null,null,null,null,null,null,null,null,null,null,null,null,null,null,null,null,null,null,null,"Fumier bovin (t)",30,165,110,83,50,null,{"$f":"Reference_cultures!B96","v":"Prairie temporaire pâturage lent ou prairie mixte (pâturage + ensilage)  "},25,9,null,6,100,80,70,null,"Faible (<10%)",0,0,0,0,0,0,0,0,null,null,0.7]
[null,null,null,"Surfaces","SAU",null,null,null,null,null,null,null,null,null,null,null,null,null,null,null,null,null,null,null,null,null,null,null,null,null,null,null,null,null,null,null,null,null,null,null,null,null,null,null,null,null,null,null,null,null,null,null,null,null,null,null,null,null,null,null,null,null,null,null,null,null,null,null,null,null,null,null,null,null,null,null,null,null,null,null,null,null,null,null,null,null,null,null,null,null,null,null,null,null,null,null,null,null,null,null,null,null,null,null,null,"Lisier bovin (m3)",40,120,80,60,36,null,{"$f":"Reference_cultures!B97","v":"Prairie - foin précoce et foin de repousse"},20,4,null,7,115,90,75,null,"Moyen (10 à 30%)",30,40,45,50,55,60,67,75,null,null,"Plafond  fertilisation (kgN/ha)"]
[null,null,null,null,"SPE",null,null,null,null,null,null,null,null,null,null,null,null,null,null,null,null,null,null,null,null,null,null,null,null,null,null,null,null,null,null,null,null,null,null,null,null,null,null,null,null,null,null,null,null,null,null,null,null,null,null,null,null,null,null,null,null,null,null,null,null,null,null,null,null,null,null,null,null,null,null,null,null,null,null,null,null,null,null,null,null,null,null,null,null,null,null,null,null,null,null,null,null,null,null,null,null,null,null,null,null,"Fumier volaille (t)",10,250,167,125,75,null,{"$f":"Reference_cultures!B98","v":"Prairies  peu productives - foin tardif de 1er cycle"},15,4,null,8,130,100,80,null,"Moyen (Trèfle blanc)",40,50,55,65,70,80,87,95]
[null,null,null,null,"SNE",null,null,null,null,null,null,null,null,null,null,null,null,null,null,null,null,null,null,null,null,null,null,null,null,null,null,null,null,null,null,null,null,null,null,null,null,null,null,null,null,null,null,null,null,null,null,null,null,null,null,null,null,null,null,null,null,null,null,null,null,null,null,null,null,null,null,null,null,null,null,null,null,null,null,null,null,null,null,null,null,null,null,null,null,null,null,null,null,null,null,null,null,null,null,null,null,null,null,null,null,"Lisier volaille (m3)",15,105,70,53,32,null,null,null,null,null,9,145,110,85,null,"Elevé (>30%)",50,50,50,50,50,50,50,50,null,null,50]
[null,"Culture",null,"Mode d'exploitation dominant",null,null,null,null,null,null,null,null,null,null,null,null,null,null,null,null,null,null,null,null,null,null,null,null,null,null,null,null,null,null,null,null,null,null,null,null,null,null,null,null,null,null,null,null,null,null,null,null,null,null,null,null,null,null,null,null,null,null,null,null,null,null,null,null,null,null,null,null,null,null,null,null,null,null,null,null,null,null,null,null,null,null,null,null,null,null,null,null,null,null,null,null,null,null,null,null,null,null,null,null,null,"Lisier porc (m3)",30,150,100,75,45,null,null,null,null,null,10,160,120,90,null,null,null,null,null,null,null,null,null,null,"Global",null,250]
[null,null,null,"Objectif de rendement",null,null,null,null,null,null,null,null,null,null,null,null,null,null,null,null,null,null,null,null,null,null,null,null,null,null,null,null,null,null,null,null,null,null,null,null,null,null,null,null,null,null,null,null,null,null,null,null,null,null,null,null,null,null,null,null,null,null,null,null,null,null,null,null,null,null,null,null,null,null,null,null,null,null,null,null,null,null,null,null,null,null,null,null,null,null,null,null,null,null,null,null,null,null,null,null,null,null,null,null,null,"Fumier porc (t)",30,120,80,60,36,null,null,null,null,null,11,175,130,95]
[null,"Azote exporté (kg/ha)",null,null,null,{"$f":"F10*(IF(ISERROR(VLOOKUP(F9,$DI$4:$DJ$7,1,FALSE)),0,VLOOKUP(F9,$DI$4:$DJ$7,2,FALSE)))","v":0},null,null,null,null,null,null,null,null,null,null,null,null,null,null,null,null,null,null,null,null,null,null,null,null,null,null,null,null,null,null,null,null,null,null,null,null,null,null,null,null,null,null,null,null,null,null,null,null,null,null,null,null,null,null,null,null,null,null,null,null,null,null,null,null,null,null,null,null,null,null,null,null,null,null,null,null,null,null,null,null,null,null,null,null,null,null,null,null,null,null,null,null,null,null,null,null,null,null,null,"Compost lisier porc (t)",30,180,120,90,54,null,null,null,null,null,12,190,140,100]
[null,"Restitutions du sol","Apports antérieurs de matières organiques\n(Combinaisons possibles\n sur 3 ans)","Apport 1","Type",null,null,null,null,null,null,null,null,null,null,null,null,null,null,null,null,null,null,null,null,null,null,null,null,null,null,null,null,null,null,null,null,null,null,null,null,null,null,null,null,null,null,null,null,null,null,null,null,null,null,null,null,null,null,null,null,null,null,null,null,null,null,null,null,null,null,null,null,null,null,null,null,null,null,null,null,null,null,null,null,null,null,null,null,null,null,null,null,null,null,null,null,null,null,null,null,null,null,null,null,"Compost fumier bovin (t)",25,163,108,81,49,null,null,null,null,null,"Formule de calcul","=85+(15*(rdt-5))","=70+(10*(rdt-5)","=65+(5*(rdt-5)",null,null,null,null,null,null,null,null,null,"Note",4.0999999999999996,9.1,99]
[null,null,null,null,"Fréquence",null,null,null,null,null,null,null,null,null,null,null,null,null,null,null,null,null,null,null,null,null,null,null,null,null,null,null,null,null,null,null,null,null,null,null,null,null,null,null,null,null,null,null,null,null,null,null,null,null,null,null,null,null,null,null,null,null,null,null,null,null,null,null,null,null,null,null,null,null,null,null,null,null,null,null,null,null,null,null,null,null,null,null,null,null,null,null,null,null,null,null,null,null,null,null,null,null,null,null,null,"Compost fumier volailles (t)",8,160,107,80,48,null,null,null,null,null,null,85,70,65,null,null,null,null,null,null,null,null,null,"Entretien","faible","Moyen","Fort"]
[null,null,null,null,"Quantité  / ha",null,null,null,null,null,null,null,null,null,null,null,null,null,null,null,null,null,null,null,null,null,null,null,null,null,null,null,null,null,null,null,null,null,null,null,null,null,null,null,null,null,null,null,null,null,null,null,null,null,null,null,null,null,null,null,null,null,null,null,null,null,null,null,null,null,null,null,null,null,null,null,null,null,null,null,null,null,null,null,null,null,null,null,null,null,null,null,null,null,null,null,null,null,null,null,null,null,null,null,null,"Compost mûr de déchets verts (t)",30,240,160,120,72,null,null,null,null,null,null,15,10,5]
[null,null,null,null,"Valeur N (kg/ha)",{"$f":"IF(OR(ISERROR(VLOOKUP(F12,$DB$5:$DB$14,1,FALSE)),ISERROR(HLOOKUP(F13,$DD$4:$DG$4,1,FALSE))),0,OFFSET($DD$5,(MATCH(F12,$DB$5:$DB$14,0)-1),MATCH(F13,$DD$4:$DG$4,0)-1,1,1))","v":0},null,null,null,null,null,null,null,null,null,null,null,null,null,null,null,null,null,null,null,null,null,null,null,null,null,null,null,null,null,null,null,null,null,null,null,null,null,null,null,null,null,null,null,null,null,null,null,null,null,null,null,null,null,null,null,null,null,null,null,null,null,null,null,null,null,null,null,null,null,null,null,null,null,null,null,null,null,null,null,null,null,null,null,null,null,null,null,null,null,null,null,null,null,null,null,null,null,null,null,"Compost mûr de déchets verts (t)",30,240,160,120,72,null,null,null,null,null,null,15,10,5]
[null,null,null,"Apport 2","Type"]
[null,null,null,null,"Fréquence"]
[null,null,null,null,"Quantité  / ha"]
[null,null,null,null,"Valeur N (kg/ha)",{"$f":"IF(OR(ISERROR(VLOOKUP(F16,$DB$5:$DB$14,1,FALSE)),ISERROR(HLOOKUP(F17,$DD$4:$DG$4,1,FALSE))),0,OFFSET($DD$5,(MATCH(F16,$DB$5:$DB$14,0)-1),MATCH(F17,$DD$4:$DG$4,0)-1,1,1))","v":0}]
[null,null,null,"Apport 3","Type",null,null,null,null,null,null,null,null,null,null,null,null,null,null,null,null,null,null,null,null,null,null,null,null,null,null,null,null,null,null,null,null,null,null,null,null,null,null,null,null,null,null,null,null,null,null,null,null,null,null,null,null,null,null,null,null,null,null,null,null,null,null,null,null,null,null,null,null,null,null,null,null,null,null,null,null,null,null,null,null,null,null,null,null,null,null,null,null,null,null,null,null,null,null,null,null,null,null,null,null,"Note","quantité","Fréquence"]
[null,null,null,null,"Fréquence",null,null,null,null,null,null,null,null,null,null,null,null,null,null,null,null,null,null,null,null,null,null,null,null,null,null,null,null,null,null,null,null,null,null,null,null,null,null,null,null,null,null,null,null,null,null,null,null,null,null,null,null,null,null,null,null,null,null,null,null,null,null,null,null,null,null,null,null,null,null,null,null,null,null,null,null,null,null,null,null,null,null,null,null,null,null,null,null,null,null,null,null,null,null,null,null,null,null,null,null,"Effluents",null,"tous les ans","2 années sur 3","tous les 2 ans","tous les 3 ans et +"]
[null,null,null,null,"Quantité  / ha",null,null,null,null,null,null,null,null,null,null,null,null,null,null,null,null,null,null,null,null,null,null,null,null,null,null,null,null,null,null,null,null,null,null,null,null,null,null,null,null,null,null,null,null,null,null,null,null,null,null,null,null,null,null,null,null,null,null,null,null,null,null,null,null,null,null,null,null,null,null,null,null,null,null,null,null,null,null,null,null,null,null,null,null,null,null,null,null,null,null,null,null,null,null,null,null,null,null,null,null,"Fumier bovin (t)",30,14,9,7,4]
[null,null,null,null,"Valeur N (kg/ha)",{"$f":"IF(OR(ISERROR(VLOOKUP(F20,$DB$5:$DB$14,1,FALSE)),ISERROR(HLOOKUP(F21,$DD$4:$DG$4,1,FALSE))),0,OFFSET($DD$5,(MATCH(F20,$DB$5:$DB$14,0)-1),MATCH(F21,$DD$4:$DG$4,0)-1,1,1))","v":0},null,null,null,null,null,null,null,null,null,null,null,null,null,null,null,null,null,null,null,null,null,null,null,null,null,null,null,null,null,null,null,null,null,null,null,null,null,null,null,null,null,null,null,null,null,null,null,null,null,null,null,null,null,null,null,null,null,null,null,null,null,null,null,null,null,null,null,null,null,null,null,null,null,null,null,null,null,null,null,null,null,null,null,null,null,null,null,null,null,null,null,null,null,null,null,null,null,null,null,"Lisier bovin (m3)",40,7,5,4,3]
[null,null,"Total contribution apports organiques antérieurs (kgN/ha)",null,null,{"$f":"F15+F19+F23","v":0},null,null,null,null,null,null,null,null,null,null,null,null,null,null,null,null,null,null,null,null,null,null,null,null,null,null,null,null,null,null,null,null,null,null,null,null,null,null,null,null,null,null,null,null,null,null,null,null,null,null,null,null,null,null,null,null,null,null,null,null,null,null,null,null,null,null,null,null,null,null,null,null,null,null,null,null,null,null,null,null,null,null,null,null,null,null,null,null,null,null,null,null,null,null,null,null,null,null,null,"Fumier volaille (t)",10,9,6,5,3]
[null,null,"Fourniture par le sol","1ère année d'implantation de la prairie",null,null,null,null,null,null,null,null,null,null,null,null,null,null,null,null,null,null,null,null,null,null,null,null,null,null,null,null,null,null,null,null,null,null,null,null,null,null,null,null,null,null,null,null,null,null,null,null,null,null,null,null,null,null,null,null,null,null,null,null,null,null,null,null,null,null,null,null,null,null,null,null,null,null,null,null,null,null,null,null,null,null,null,null,null,null,null,null,null,null,null,null,null,null,null,null,null,null,null,null,null,"Lisier volaille (m3)",15,4,3,2,0]
[null,null,null,"Taux de légumineuses pondéré annuel",null,null,null,null,null,null,null,null,null,null,null,null,null,null,null,null,null,null,null,null,null,null,null,null,null,null,null,null,null,null,null,null,null,null,null,null,null,null,null,null,null,null,null,null,null,null,null,null,null,null,null,null,null,null,null,null,null,null,null,null,null,null,null,null,null,null,null,null,null,null,null,null,null,null,null,null,null,null,null,null,null,null,null,null,null,null,null,null,null,null,null,null,null,null,null,null,null,null,null,null,null,"Lisier porc (m3)",30,6,4,3,2]
[null,null,null,"Entretien azoté antérieur",null,null,null,null,null,null,null,null,null,null,null,null,null,null,null,null,null,null,null,null,null,null,null,null,null,null,null,null,null,null,null,null,null,null,null,null,null,null,null,null,null,null,null,null,null,null,null,null,null,null,null,null,null,null,null,null,null,null,null,null,null,null,null,null,null,null,null,null,null,null,null,null,null,null,null,null,null,null,null,null,null,null,null,null,null,null,null,null,null,null,null,null,null,null,null,null,null,null,null,null,null,"Fumier porc (t)",30,7,5,4,3]
[null,null,null,"Total (Kg N/ha)",null,null,null,null,null,null,null,null,null,null,null,null,null,null,null,null,null,null,null,null,null,null,null,null,null,null,null,null,null,null,null,null,null,null,null,null,null,null,null,null,null,null,null,null,null,null,null,null,null,null,null,null,null,null,null,null,null,null,null,null,null,null,null,null,null,null,null,null,null,null,null,null,null,null,null,null,null,null,null,null,null,null,null,null,null,null,null,null,null,null,null,null,null,null,null,null,null,null,null,null,null,"Compost lisier porc (t)",30,16,10,8,5]
[null,"Dose à apporter (kg N/ha)",null,null,null,{"$f":"IF((IF((IF(F26=$DR$8,IF($EC$8<(F11-F28)/$EC$5,$EC$8,(F11-F28)/$EC$5),(F11-F28)/$EC$5))>0,(IF(F26=$DR$8,IF($EC$8<(F11-F28)/$EC$5,$EC$8,(F11-F28)/$EC$5),(F11-F28)/$EC$5)),0))>$EC$9,$EC$9,IF((IF(F26=$DR$8,IF($EC$8<(F11-F28)/$EC$5,$EC$8,(F11-F28)/$EC$5),(F11-F28)/$EC$5))>0,(IF(F26=$DR$8,IF($EC$8<(F11-F28)/$EC$5,$EC$8,(F11-F28)/$EC$5),(F11-F28)/$EC$5)),0))","v":0},null,null,null,null,null,null,null,null,null,null,null,null,null,null,null,null,null,null,null,null,null,null,null,null,null,null,null,null,null,null,null,null,null,null,null,null,null,null,null,null,null,null,null,null,null,null,null,null,null,null,null,null,null,null,null,null,null,null,null,null,null,null,null,null,null,null,null,null,null,null,null,null,null,null,null,null,null,null,null,null,null,null,null,null,null,null,null,null,null,null,null,null,null,null,null,null,null,null,null,"Compost fumier bovin (t)",25,16,10,8,5]
[null,"Apports prévisionnels sur la culture","Apports prévisionnels de matières organiques","Apport 1","Type",null,null,null,null,null,null,null,null,null,null,null,null,null,null,null,null,null,null,null,null,null,null,null,null,null,null,null,null,null,null,null,null,null,null,null,null,null,null,null,null,null,null,null,null,null,null,null,null,null,null,null,null,null,null,null,null,null,null,null,null,null,null,null,null,null,null,null,null,null,null,null,null,null,null,null,null,null,null,null,null,null,null,null,null,null,null,null,null,null,null,null,null,null,null,null,null,null,null,null,null,"Compost fumier volailles (t)",8,20,13,10,6]
[null,null,null,null,"Date d'apport",null,null,null,null,null,null,null,null,null,null,null,null,null,null,null,null,null,null,null,null,null,null,null,null,null,null,null,null,null,null,null,null,null,null,null,null,null,null,null,null,null,null,null,null,null,null,null,null,null,null,null,null,null,null,null,null,null,null,null,null,null,null,null,null,null,null,null,null,null,null,null,null,null,null,null,null,null,null,null,null,null,null,null,null,null,null,null,null,null,null,null,null,null,null,null,null,null,null,null,null,"Compost mûr de déchets verts (t)",30,25,16,12,8]
[null,null,null,null,"Quantité  / ha"]
[null,null,null,null,"Valeur N (kg/ha)"]
[null,null,null,"Apport 2","Type"]
[null,null,null,null,"Date d'apport"]
[null,null,null,null,"Quantité  / ha"]
[null,null,null,null,"Valeur N (kg/ha)"]
[null,null,null,"Apport 3","Type"]
[null,null,null,null,"Date d'apport"]
[null,null,null,null,"Quantité  / ha"]
[null,null,null,null,"Valeur N (kg/ha)"]
[null,null,"N efficace total des Matières organiques",null,null,{"$f":"F33+F37+F41","v":0}]
[null,null,"Apport N minéral prévisionnel","Apport 1","Type"]
[null,null,null,null,"Date d'apport"]
[null,null,null,null,"Quantité / ha"]
[null,null,null,null,"Teneur en azote (%)"]
[null,null,null,"Apport 2","Type"]
[null,null,null,null,"Date d'apport"]
[null,null,null,null,"Quantité / ha"]
[null,null,null,null,"Teneur en azote (%)"]
[null,null,null,"Apport 3","Type"]
[null,null,null,null,"Date d'apport"]
[null,null,null,null,"Quantité / ha"]
[null,null,null,null,"Teneur en azote (%)"]
[null,null,"Apport total N minéral",null,null,{"$f":"(F45*F46+F49*F50+F53*F54)/100","v":0}]
[null,"Ecart entre besoins et fertilisation (kg N/ha)",null,null,null,{"$f":"(F42+F55)-F29","v":0}]
[null,"Culture suivante"]

{"sheet":"0CF Prairies","index":23,"n_rows":46,"n_cols":6,"rows_kept":46,"cut":false,"hidden":true,"merged":[[12,1,12,4],[34,3,37,3],[4,1,7,2],[4,3,4,4],[10,1,10,4],[11,1,11,4],[0,2,0,5],[8,1,9,2],[9,3,9,4],[2,3,2,4],[3,3,3,4],[5,3,7,3],[2,1,3,2],[45,1,45,4],[40,1,40,4],[44,1,44,4],[8,3,8,4],[26,3,29,3],[30,3,33,3],[17,3,20,3],[25,2,25,4],[21,3,24,3],[13,2,24,2],[41,1,41,4],[42,1,42,4],[43,1,43,4],[38,2,38,4],[13,1,38,1],[26,2,37,2],[13,3,16,3],[39,1,39,4]]}
[null,null,"8) Cahiers de Fertilisation\n « Grille Prairies »"]
[]
[null,"Ilot",null,"Nom"]
[null,null,null,"Numéro"]
[null,"Parcelle culturale",null,"N° parcelle"]
[null,null,null,"Surfaces","SAU"]
[null,null,null,null,"SPE"]
[null,null,null,null,"SNE"]
[null,"Culture",null,"Mode d'exploitation dominant"]
[null,null,null,"Objectif de rendement"]
[null,"Dose à apporter prévisionnelle (kg N/ha)",null,null,null,0]
[null,"Correction liée aux outils de pilotage (kg N/ha)"]
[null,"Dose à apporter corrigée (kg N/ha)",null,null,null,{"$f":"F11+F12","v":0}]
[null,"Apports effectifs sur la culture","Apports effectifs de matières organiques","Apport 1","Type"]
[null,null,null,null,"Date d'apport"]
[null,null,null,null,"Quantité  / ha"]
[null,null,null,null,"Valeur N (kg/ha)",0]
[null,null,null,"Apport 2","Type"]
[null,null,null,null,"Date d'apport"]
[null,null,null,null,"Quantité  / ha"]
[null,null,null,null,"Valeur N (kg/ha)",0]
[null,null,null,"Apport 3","Type"]
[null,null,null,null,"Date d'apport"]
[null,null,null,null,"Quantité  / ha"]
[null,null,null,null,"Valeur N (kg/ha)",0]
[null,null,"N efficace total des Matières organiques",null,null,{"$f":"F17+F21+F25","v":0}]
[null,null,"Apport N minéral effectif","Apport 1","Type"]
[null,null,null,null,"Date d'apport"]
[null,null,null,null,"Quantité / ha"]
[null,null,null,null,"Teneur en azote (%)"]
[null,null,null,"Apport 2","Type"]
[null,null,null,null,"Date d'apport"]
[null,null,null,null,"Quantité / ha"]
[null,null,null,null,"Teneur en azote (%)"]
[null,null,null,"Apport 3","Type"]
[null,null,null,null,"Date d'apport"]
[null,null,null,null,"Quantité / ha"]
[null,null,null,null,"Teneur en azote (%)"]
[null,null,"Apport total N minéral",null,null,{"$f":"(F29*F30+F33*F34)/100","v":0}]
[null,"Ecart entre besoins et fertilisation (kg N/ha)",null,null,null,{"$f":"IF(ISBLANK(F13),0,((F26+F39)-F13))","v":0}]
[null,"Date de récolte"]
[null,"Rendement réalisé"]
[null,"Modalités de gestion de l'inter-culture"]
[null,"Modalités de gestion des CIPAN"]
[null,"Modalités de gestion des dérobées"]
[null,"Culture suivante"]

{"sheet":"0PPF Légumes frais","index":24,"n_rows":65,"n_cols":75,"rows_kept":65,"cut":false,"hidden":true,"merged":[[1,71,1,74],[1,58,2,58],[1,59,1,62],[1,63,1,66],[1,67,1,70],[62,2,62,4],[37,2,48,2],[37,3,40,3],[50,3,53,3],[54,3,57,3],[37,1,62,1],[50,2,61,2],[3,3,3,4],[2,1,3,2],[2,3,2,4],[11,3,11,4],[12,3,12,4],[27,3,30,3],[49,2,49,4],[14,2,25,2],[41,3,44,3],[45,3,48,3],[4,3,4,4],[5,3,7,3],[8,3,8,4],[9,3,9,4],[35,2,35,4],[26,2,26,4],[14,3,17,3],[18,3,21,3],[22,3,25,3],[27,2,34,2],[0,2,0,5],[10,3,10,4],[64,1,64,4],[14,1,35,1],[36,1,36,4],[4,1,7,2],[8,1,9,2],[63,1,63,4],[10,1,12,2],[13,1,13,4],[31,3,34,3],[58,3,61,3]]}
[null,null,"8) Plan Prévisionnel de Fumure\n   « grille Légumes de plein champ »"]
[null,null,null,null,null,null,null,null,null,null,null,null,null,null,null,null,null,null,null,null,null,null,null,null,null,null,null,null,null,null,null,null,null,null,null,null,null,null,null,null,null,null,null,null,null,null,null,null,null,null,null,null,null,null,null,null,null,null,"Culture",{"$f":"BB4","v":"Système légumes exclusif ou mixte (légumes avec 20% de céréales)"},null,null,null,{"$f":"BB5","v":"Système endivier ou sol très pauvre en MO (< 2%)"},null,null,null,{"$f":"BB4","v":"Système légumes exclusif ou mixte (légumes avec 20% de céréales)"},null,null,null,{"$f":"BB5","v":"Système endivier ou sol très pauvre en MO (< 2%)"}]
[null,"Ilot",null,"Nom",null,null,null,null,null,null,null,null,null,null,null,null,null,null,null,null,null,null,null,null,null,null,null,null,null,null,null,null,null,null,null,null,null,null,null,null,null,null,null,null,null,null,null,null,null,null,null,null,null,"Système / sol",null,"Précédents",null,null,null,{"$f":"$BD$6","v":"Riche"},{"$f":"$BD$5","v":"Moyennement riche"},{"$f":"$BD$4","v":"Pauvre"},"En cours",{"$f":"$BD$6","v":"Riche"},{"$f":"$BD$5","v":"Moyennement riche"},{"$f":"$BD$4","v":"Pauvre"},"En cours",{"$f":"$BD$6","v":"Riche"},{"$f":"$BD$5","v":"Moyennement riche"},{"$f":"$BD$4","v":"Pauvre"},"En cours",{"$f":"$BD$6","v":"Riche"},{"$f":"$BD$5","v":"Moyennement riche"},{"$f":"$BD$4","v":"Pauvre"},"En cours"]
[null,null,null,"Numéro",null,null,null,null,null,null,null,null,null,null,null,null,null,null,null,null,null,null,null,null,null,null,null,null,null,null,null,null,null,null,null,null,null,null,null,null,null,null,null,null,null,null,null,null,null,null,null,null,null,"Système légumes exclusif ou mixte (légumes avec 20% de céréales)",null,"Pauvre",null,null,"Ail (en sec)","0/20","40/60","60/80",0,"20/40","50/70","70/100",0,20,"60","80","0","40","70",100,"0"]
[null,"Parcelle culturale",null,"N° parcelle",null,null,null,null,null,null,null,null,null,null,null,null,null,null,null,null,null,null,null,null,null,null,null,null,null,null,null,null,null,null,null,null,null,null,null,null,null,null,null,null,null,null,null,null,null,null,null,null,null,"Système endivier ou sol très pauvre en MO (< 2%)",null,"Moyennement riche",null,null,"Ail (en vert) *","0/20","40/60","60/80",0,"20/40","50/70","70/100",0,20,"60","80","0","40","70",100,"0"]
[null,null,null,"Surfaces","SAU",null,null,null,null,null,null,null,null,null,null,null,null,null,null,null,null,null,null,null,null,null,null,null,null,null,null,null,null,null,null,null,null,null,null,null,null,null,null,null,null,null,null,null,null,null,null,null,null,null,null,"Riche",null,null,"Artichaut drageon","20/50","50/70","70/100",0,50,"50/70","70/110",0,50,"70",100,"0","50","70",110,"0"]
[null,null,null,null,"SPE",null,null,null,null,null,null,null,null,null,null,null,null,null,null,null,null,null,null,null,null,null,null,null,null,null,null,null,null,null,null,null,null,null,null,null,null,null,null,null,null,null,null,null,null,null,null,null,null,null,null,null,null,null,"Artichaut 2e année",0,0,0,"60/100",0,0,0,"80/110",0,"0","0",100,"0","0","0",110]
[null,null,null,null,"SNE",null,null,null,null,null,null,null,null,null,null,null,null,null,null,null,null,null,null,null,null,null,null,null,null,null,null,null,null,null,null,null,null,null,null,null,null,null,null,null,null,null,null,null,null,null,null,null,null,null,null,"Artichaut de 2 ans et plus.","Moyennement riche",null,"Artichaut 3e année",0,0,0,"80/120",0,0,0,"90/120",0,"0","0",120,"0","0","0",120]
[null,"Culture",null,"Intitulé",null,null,null,null,null,null,null,null,null,null,null,null,null,null,null,null,null,null,null,null,null,null,null,null,null,null,null,null,null,null,null,null,null,null,null,null,null,null,null,null,null,null,null,null,null,null,null,null,null,null,null,"Brocoli et chou-fleur (récoltés au printpemps)","Riche",null,"Aubergines",0,"40/60","60/90",0,"20/40","40/80","80/110",0,0,"60","90","0","40","80",110,"0"]
[null,null,null,"Objectif de rendement",null,null,null,null,null,null,null,null,null,null,null,null,null,null,null,null,null,null,null,null,null,null,null,null,null,null,null,null,null,null,null,null,null,null,null,null,null,null,null,null,null,null,null,null,null,null,null,null,null,null,null,"Carotte (venant juste avant la nouvelle culture)","Moyennement riche",null,"Betteraves potagères","0/30","30/50","50/80","50 si tardif","20/40","40/60","60/90","50 si tardif",30,"50","80",50,"40","60","90",50]
[null,"Précédent cultural",null,"Système de culture et/ou type de sol",null,null,null,null,null,null,null,null,null,null,null,null,null,null,null,null,null,null,null,null,null,null,null,null,null,null,null,null,null,null,null,null,null,null,null,null,null,null,null,null,null,null,null,null,null,null,null,null,null,null,null,"Céréales","Pauvre",null,"Brocoli de printemps","50/100","100/130","130/150",0,"60/110","120/140","140/160",0,100,"130","150","0",110,"140","160","0"]
[null,null,null,"Culture précédente",null,null,null,null,null,null,null,null,null,null,null,null,null,null,null,null,null,null,null,null,null,null,null,null,null,null,null,null,null,null,null,null,null,null,null,null,null,null,null,null,null,null,null,null,null,null,null,null,null,null,null,"Chou pommé (faible taux de récolte)","Moyennement riche",null,"Brocoli d’automne","0/40","50/80","100/110",0,"20/60","60/100","100/120",0,40,"80","110","0","60","00","120","0"]
[null,null,null,"Type de précédent",null,{"$f":"IF(ISERROR(VLOOKUP(F12,$BD$8:$BD$30,1,FALSE)),0,VLOOKUP(F12,$BD$8:$BE$30,2,FALSE))","v":0},null,null,null,null,null,null,null,null,null,null,null,null,null,null,null,null,null,null,null,null,null,null,null,null,null,null,null,null,null,null,null,null,null,null,null,null,null,null,null,null,null,null,null,null,null,null,null,null,null,"Chou pommé (fort taux de récolte)","Pauvre",null,"Céleri rave d'automne",0,"0/20","20/40",50,"0/20","20/40","40/60",50,0,"20","40","50","20","40","60","50"]
[null,"Azote efficace à apporter (kg N/ha)",null,null,null,{"$f":"IF(OR(ISERROR(MATCH(F9,$BG$4:$BG$44,0)),ISERROR(MATCH(F13,$BH$3:$BJ$3,0))),\"\",IF(F11=$BB$4,OFFSET($BH$4,(MATCH(F9,$BG$4:$BG$44,0)-1),MATCH(F13,$BH$3:$BJ$3,0)-1,1,1),IF(F11=$BB$5,OFFSET($BL$4,(MATCH(F9,$BG$4:$BG$44,0)-1),MATCH(F13,$BL$3:$BN$3,0)-1,1,1),\"\")))","v":""},null,null,null,null,null,null,null,null,null,null,null,null,null,null,null,null,null,null,null,null,null,null,null,null,null,null,null,null,null,null,null,null,null,null,null,null,null,null,null,null,null,null,null,null,null,null,null,null,null,"Chou-fleur d'hiver","Riche",null,"Chicorées frisées","70/90","90/100","100/100",0,"80/90","90/100","100/120",0,90,"00","100","0","90","00","120","0"]
[null,"Apports au semis","Apports de matières organiques \n(au semis)","Apport de matières organiques","Type",null,null,null,null,null,null,null,null,null,null,null,null,null,null,null,null,null,null,null,null,null,null,null,null,null,null,null,null,null,null,null,null,null,null,null,null,null,null,null,null,null,null,null,null,null,null,null,null,null,null,"Choux et brocoli (récoltés à l'automne précédent)","Moyennement riche",null,"Chicorées scaroles","70/90","90/100","100/100",0,"80/90","90/100","100/120",0,90,"00","100","0","90","00","120","0"]
[null,null,null,null,"Date d'apport",null,null,null,null,null,null,null,null,null,null,null,null,null,null,null,null,null,null,null,null,null,null,null,null,null,null,null,null,null,null,null,null,null,null,null,null,null,null,null,null,null,null,null,null,null,null,null,null,null,null,"Couvert végétal (CIPAN) après céréales","Pauvre",null,"Choux de Bruxelles","0/40","40/50","50/80",50,"0/40","40/60","60/90",50,40,"50","80","50","40","60","90","50"]
[null,null,null,null,"Quantité  / ha",null,null,null,null,null,null,null,null,null,null,null,null,null,null,null,null,null,null,null,null,null,null,null,null,null,null,null,null,null,null,null,null,null,null,null,null,null,null,null,null,null,null,null,null,null,null,null,null,null,null,"Couvert végétal (CIPAN) après précédent riche","Moyennement riche",null,"Chou-fleur d'été","50/100","100/130","130/150",0,"70/120","120/150","150/170",0,100,"130","150","0",120,"150","170","0"]
[null,null,null,null,"Valeur N (kg/ha)",null,null,null,null,null,null,null,null,null,null,null,null,null,null,null,null,null,null,null,null,null,null,null,null,null,null,null,null,null,null,null,null,null,null,null,null,null,null,null,null,null,null,null,null,null,null,null,null,null,null,"Drageon ","Pauvre",null,"Chou pommé","0/40","40/50","50/80",50,"0/40","40/60","60/90",50,40,"50","80","50","40","60","90","50"]
[null,null,null,"Apport de matières organiques","Type",null,null,null,null,null,null,null,null,null,null,null,null,null,null,null,null,null,null,null,null,null,null,null,null,null,null,null,null,null,null,null,null,null,null,null,null,null,null,null,null,null,null,null,null,null,null,null,null,null,null,"Échalote (avec plastique)","Moyennement riche",null,"Chou-fleur d’automne","0/40","40/90","100/120",0,"30/60","60/100","100/130",0,40,"90","120","0","60","00","130","0"]
[null,null,null,null,"Date d'apport",null,null,null,null,null,null,null,null,null,null,null,null,null,null,null,null,null,null,null,null,null,null,null,null,null,null,null,null,null,null,null,null,null,null,null,null,null,null,null,null,null,null,null,null,null,null,null,null,null,null,"Échalote (sans plastique)","Pauvre",null,"Chou-fleur d’hiver","0/40","40/80","80/100",50,"30/60","60/100","100/120",50,40,"80",100,"50","60","00","120","50"]
[null,null,null,null,"Quantité  / ha",null,null,null,null,null,null,null,null,null,null,null,null,null,null,null,null,null,null,null,null,null,null,null,null,null,null,null,null,null,null,null,null,null,null,null,null,null,null,null,null,null,null,null,null,null,null,null,null,null,null,"Endive et céleri","Pauvre",null,"Chou-fleur tardif","0/40","40/50","50/80","2 fois 50","0/50","50/70","70/100","2 fois 50",40,"50","80",100,"50","70",100,100]
[null,null,null,null,"Valeur N (kg/ha)",null,null,null,null,null,null,null,null,null,null,null,null,null,null,null,null,null,null,null,null,null,null,null,null,null,null,null,null,null,null,null,null,null,null,null,null,null,null,null,null,null,null,null,null,null,null,null,null,null,null,"Épinard et pois (venant juste avant la nouvelle culture)","Moyennement riche",null,"Carotte petite","20/30","30/40","40/70",0,"20/40","40/60","60/90",0,30,"40","70","0","40","60","90","0"]
[null,null,null,"Apport de matières organiques","Type",null,null,null,null,null,null,null,null,null,null,null,null,null,null,null,null,null,null,null,null,null,null,null,null,null,null,null,null,null,null,null,null,null,null,null,null,null,null,null,null,null,null,null,null,null,null,null,null,null,null,"Haricot (venant juste avant la culture)","Riche",null,"Carotte d’automne","0/30","30/50","50/80","50 si tardif","20/40","40/60","60/90","50 si tardif",30,"50","80",50,"40","60","90",50]
[null,null,null,null,"Date d'apport",null,null,null,null,null,null,null,null,null,null,null,null,null,null,null,null,null,null,null,null,null,null,null,null,null,null,null,null,null,null,null,null,null,null,null,null,null,null,null,null,null,null,null,null,null,null,null,null,null,null,"Oignon - poireau","Pauvre",null,"Courgette d’automne",0,"40/60","60/90",0,"20/40","40/80","80/110",0,0,"60","90","0","40","80",110,"0"]
[null,null,null,null,"Quantité  / ha",null,null,null,null,null,null,null,null,null,null,null,null,null,null,null,null,null,null,null,null,null,null,null,null,null,null,null,null,null,null,null,null,null,null,null,null,null,null,null,null,null,null,null,null,null,null,null,null,null,null,"Pâture de 3 ans et plus.","Riche",null,"Echalote","0/20","40/60","60/80",0,"20/40","50/70","70/100",0,20,"60","80","0","40","70",100,"0"]
[null,null,null,null,"Valeur N (kg/ha)",null,null,null,null,null,null,null,null,null,null,null,null,null,null,null,null,null,null,null,null,null,null,null,null,null,null,null,null,null,null,null,null,null,null,null,null,null,null,null,null,null,null,null,null,null,null,null,null,null,null,"Pomme de terre (récoltée en mai ou juin)","Moyennement riche",null,"Endives racines","0/20","0/30","0/40",0,"0/20","0/30","0/40",0,20,"30","40","0","20","30","40","0"]
[null,null,"N efficace total des Matières organiques au semis (kg N/ha)",null,null,{"$f":"F18+F22+F26","v":0},null,null,null,null,null,null,null,null,null,null,null,null,null,null,null,null,null,null,null,null,null,null,null,null,null,null,null,null,null,null,null,null,null,null,null,null,null,null,null,null,null,null,null,null,null,null,null,null,null,"Pomme de terre (récoltée en septembre)","Pauvre",null,"Haricot coco","20/50","50/90","90/100",0,"20/50","60/100","100/120",0,50,"90",100,"0","50","00","120","0"]
[null,null,"Apport N minéral prévisionnel (au semis)","Apport d'azote minéral","Type",null,null,null,null,null,null,null,null,null,null,null,null,null,null,null,null,null,null,null,null,null,null,null,null,null,null,null,null,null,null,null,null,null,null,null,null,null,null,null,null,null,null,null,null,null,null,null,null,null,null,"Ray-grass annuel fauché","Pauvre",null,"Haricot legume frais","20/50","50/80","80/110",0,"20/50","60/90","90/120",0,50,"80",110,"0","50","90",120,"0"]
[null,null,null,null,"Date d'apport",null,null,null,null,null,null,null,null,null,null,null,null,null,null,null,null,null,null,null,null,null,null,null,null,null,null,null,null,null,null,null,null,null,null,null,null,null,null,null,null,null,null,null,null,null,null,null,null,null,null,"Salade","Pauvre",null,"Fenouil","0/30","30/70","70/90",0,"40/50","50/80","80/100",0,30,"70","90","0","50","80",100,"0"]
[null,null,null,null,"Quantité  / ha",null,null,null,null,null,null,null,null,null,null,null,null,null,null,null,null,null,null,null,null,null,null,null,null,null,null,null,null,null,null,null,null,null,null,null,null,null,null,null,null,null,null,null,null,null,null,null,null,null,null,"Sol nu l'hiver","Pauvre",null,"Laitue de printemps","70/90","90/100","100/100",0,"80/90","90/100","100/120",0,90,"00","100","0","90","00","120","0"]
[null,null,null,null,"Teneur en N (%)",null,null,null,null,null,null,null,null,null,null,null,null,null,null,null,null,null,null,null,null,null,null,null,null,null,null,null,null,null,null,null,null,null,null,null,null,null,null,null,null,null,null,null,null,null,null,null,null,null,null,null,null,null,"Laitue d’été et d’automne","0/30","30/50","50/70",0,"0/30","30/60","60/80",0,30,"50","70","0","30","60","80","0"]
[null,null,null,"Apport d'azote minéral","Type",null,null,null,null,null,null,null,null,null,null,null,null,null,null,null,null,null,null,null,null,null,null,null,null,null,null,null,null,null,null,null,null,null,null,null,null,null,null,null,null,null,null,null,null,null,null,null,null,null,null,null,null,null,"Oignon d’automne",0,0,0,"2 fois 50",0,0,0,"2 fois 50",0,"0","0",100,"0","0","0",100]
[null,null,null,null,"Date d'apport",null,null,null,null,null,null,null,null,null,null,null,null,null,null,null,null,null,null,null,null,null,null,null,null,null,null,null,null,null,null,null,null,null,null,null,null,null,null,null,null,null,null,null,null,null,null,null,null,null,null,null,null,null,"Oignon rosé",0,"0/40","40/60",0,"0/30","30/60","60/80",0,0,"40","60","0","30","60","80","0"]
[null,null,null,null,"Quantité  / ha",null,null,null,null,null,null,null,null,null,null,null,null,null,null,null,null,null,null,null,null,null,null,null,null,null,null,null,null,null,null,null,null,null,null,null,null,null,null,null,null,null,null,null,null,null,null,null,null,null,null,null,null,null,"Panais","0/30","30/50","50/80","50 si tardif","20/40","40/60","60/90","50 si tardif",30,"50","80",50,"40","60","90",50]
[null,null,null,null,"Teneur en N (%)",null,null,null,null,null,null,null,null,null,null,null,null,null,null,null,null,null,null,null,null,null,null,null,null,null,null,null,null,null,null,null,null,null,null,null,null,null,null,null,null,null,null,null,null,null,null,null,null,null,null,null,null,null,"Persil"]
[null,null,"Total apport N minéral(kg/ha)",null,null,{"$f":"((F30*F31)+(F34*F35))/100","v":0},null,null,null,null,null,null,null,null,null,null,null,null,null,null,null,null,null,null,null,null,null,null,null,null,null,null,null,null,null,null,null,null,null,null,null,null,null,null,null,null,null,null,null,null,null,null,null,null,null,null,null,null,"Pomme de terre très précoce","70/90","90/100","100/130",0,"70/90","90/110","110/140",0,90,"00","130","0","90","10","140","0"]
[null,"Ecart / grille (kg N/ha)",null,null,null,{"$f":"IF(ISERROR(MATCH(F9,$BG$4:$BG$44,0)),0,IF(F11=$BB$4,OFFSET($BP$4,(MATCH(F9,$BG$4:$BG$44,0)-1),MATCH(F13,$BP$3:$BR$3,0)-1,1,1),IF(F11=$BB$5,OFFSET($BT$4,(MATCH(F9,$BG$4:$BG$44,0)-1),MATCH(F13,$BT$3:$BV$3,0)-1,1,1),0)))-(F27+F36)","v":0},null,null,null,null,null,null,null,null,null,null,null,null,null,null,null,null,null,null,null,null,null,null,null,null,null,null,null,null,null,null,null,null,null,null,null,null,null,null,null,null,null,null,null,null,null,null,null,null,null,null,null,null,"Pomme de terre précoce","100/130","130/140","140/170",0,"110/140","140/150","150/180",0,130,"140","170","0","140","150","180","0"]
[null,"Apports prévisionnels sur la culture","Apports prévisionnels de matières organiques","Apport 1","Type",null,null,null,null,null,null,null,null,null,null,null,null,null,null,null,null,null,null,null,null,null,null,null,null,null,null,null,null,null,null,null,null,null,null,null,null,null,null,null,null,null,null,null,null,null,null,null,null,null,null,null,null,null,"Pommes de terre de consommation","80/100","100/130","130/160",0,"90/120","120/150","150/180",0,100,"130","160","0",120,"150","180","0"]
[null,null,null,null,"Date d'apport",null,null,null,null,null,null,null,null,null,null,null,null,null,null,null,null,null,null,null,null,null,null,null,null,null,null,null,null,null,null,null,null,null,null,null,null,null,null,null,null,null,null,null,null,null,null,null,null,null,null,null,null,null,"Pomme de terre semences","40/70","70/100","100/110",0,"50/70","70/100","100/120",0,70,"00","110","0","70","00","120","0"]
[null,null,null,null,"Quantité  / ha",null,null,null,null,null,null,null,null,null,null,null,null,null,null,null,null,null,null,null,null,null,null,null,null,null,null,null,null,null,null,null,null,null,null,null,null,null,null,null,null,null,null,null,null,null,null,null,null,null,null,null,null,null,"Poireau d’été","60/100","100/120","120/150",0,"80/110","110/140","140/170",0,100,"120","150","0",110,"140","170","0"]
[null,null,null,null,"Valeur N (kg/ha)",null,null,null,null,null,null,null,null,null,null,null,null,null,null,null,null,null,null,null,null,null,null,null,null,null,null,null,null,null,null,null,null,null,null,null,null,null,null,null,null,null,null,null,null,null,null,null,null,null,null,null,null,null,"Poireau d’automne","0/40","40/50","50/70",50,"40/60","60/80","80/90",50,40,"50","70","50","60","80","90","50"]
[null,null,null,"Apport 2","Type",null,null,null,null,null,null,null,null,null,null,null,null,null,null,null,null,null,null,null,null,null,null,null,null,null,null,null,null,null,null,null,null,null,null,null,null,null,null,null,null,null,null,null,null,null,null,null,null,null,null,null,null,null,"Poireau d’hiver","0/40","40/50","50/70","2 fois 50","0/40","40/70","70/90","2 fois 50",40,"50","70",100,"40","70","90",100]
[null,null,null,null,"Date d'apport",null,null,null,null,null,null,null,null,null,null,null,null,null,null,null,null,null,null,null,null,null,null,null,null,null,null,null,null,null,null,null,null,null,null,null,null,null,null,null,null,null,null,null,null,null,null,null,null,null,null,null,null,null,"Radis"]
[null,null,null,null,"Quantité  / ha",null,null,null,null,null,null,null,null,null,null,null,null,null,null,null,null,null,null,null,null,null,null,null,null,null,null,null,null,null,null,null,null,null,null,null,null,null,null,null,null,null,null,null,null,null,null,null,null,null,null,null,null,null,"Salsifis et scorsonères","0/40","40/80","80/100",50,"30/60","60/100","100/120",50,40,"80",100,"50","60","00","120","50"]
[null,null,null,null,"Valeur N (kg/ha)"]
[null,null,null,"Apport 3","Type"]
[null,null,null,null,"Date d'apport"]
[null,null,null,null,"Quantité  / ha"]
[null,null,null,null,"Valeur N (kg/ha)"]
[null,null,"N efficace total des Matières organiques",null,null,{"$f":"F41+F45+F49","v":0}]
[null,null,"Apport N minéral prévisionnel","Apport 1","Type"]
[null,null,null,null,"Date d'apport"]
[null,null,null,null,"Quantité / ha"]
[null,null,null,null,"Teneur en azote (%)"]
[null,null,null,"Apport 2","Type"]
[null,null,null,null,"Date d'apport"]
[null,null,null,null,"Quantité / ha"]
[null,null,null,null,"Teneur en azote (%)"]
[null,null,null,"Apport 3","Type"]
[null,null,null,null,"Date d'apport"]
[null,null,null,null,"Quantité / ha"]
[null,null,null,null,"Teneur en azote (%)"]
[null,null,"Apport total N minéral",null,null,{"$f":"(F53*F54+F57*F58+F61*F62)/100","v":0}]
[null,"Ecart entre besoins et fertilisation (kg N/ha)",null,null,null,{"$f":"(F50+F63)-F37","v":0}]
[null,"Culture suivante"]

{"sheet":"0CF Légumes frais","index":25,"n_rows":68,"n_cols":75,"rows_kept":68,"cut":false,"hidden":true,"merged":[[3,3,3,4],[30,3,33,3],[1,71,1,74],[1,58,2,58],[1,59,1,62],[1,63,1,66],[1,67,1,70],[11,1,11,4],[2,1,3,2],[2,3,2,4],[4,1,7,2],[8,1,9,2],[10,1,10,4],[12,1,12,4],[26,3,29,3],[13,2,24,2],[17,3,20,3],[21,3,24,3],[0,2,0,5],[39,3,42,3],[43,3,46,3],[4,3,4,4],[5,3,7,3],[8,3,8,4],[9,3,9,4],[34,2,34,4],[25,2,25,4],[13,3,16,3],[48,2,59,2],[47,2,47,4],[60,2,60,4],[35,2,46,2],[35,3,38,3],[48,3,51,3],[52,3,55,3],[56,3,59,3],[61,1,61,4],[26,2,33,2],[13,1,34,1],[67,1,67,4],[62,1,62,4],[63,1,63,4],[64,1,64,4],[65,1,65,4],[66,1,66,4],[35,1,60,1]]}
[null,null,"8) Cahiers de Fertilisation\n   « grille Légumes de plein champ »"]
[null,null,null,null,null,null,null,null,null,null,null,null,null,null,null,null,null,null,null,null,null,null,null,null,null,null,null,null,null,null,null,null,null,null,null,null,null,null,null,null,null,null,null,null,null,null,null,null,null,null,null,null,null,null,null,null,null,null,"Culture",{"$f":"BB4","v":"Système légumes exclusif ou mixte (légumes avec 20% de céréales)"},null,null,null,{"$f":"BB5","v":"Système endivier ou sol très pauvre en MO (< 2%)"},null,null,null,{"$f":"BB4","v":"Système légumes exclusif ou mixte (légumes avec 20% de céréales)"},null,null,null,{"$f":"BB5","v":"Système endivier ou sol très pauvre en MO (< 2%)"}]
[null,"Ilot",null,"Nom",null,null,null,null,null,null,null,null,null,null,null,null,null,null,null,null,null,null,null,null,null,null,null,null,null,null,null,null,null,null,null,null,null,null,null,null,null,null,null,null,null,null,null,null,null,null,null,null,null,"Système / sol",null,"Précédents",null,null,null,{"$f":"$BD$6","v":"Riche"},{"$f":"$BD$5","v":"Moyennement riche"},{"$f":"$BD$4","v":"Pauvre"},"En cours",{"$f":"$BD$6","v":"Riche"},{"$f":"$BD$5","v":"Moyennement riche"},{"$f":"$BD$4","v":"Pauvre"},"En cours",{"$f":"$BD$6","v":"Riche"},{"$f":"$BD$5","v":"Moyennement riche"},{"$f":"$BD$4","v":"Pauvre"},"En cours",{"$f":"$BD$6","v":"Riche"},{"$f":"$BD$5","v":"Moyennement riche"},{"$f":"$BD$4","v":"Pauvre"},"En cours"]
[null,null,null,"Numéro",null,null,null,null,null,null,null,null,null,null,null,null,null,null,null,null,null,null,null,null,null,null,null,null,null,null,null,null,null,null,null,null,null,null,null,null,null,null,null,null,null,null,null,null,null,null,null,null,null,"Système légumes exclusif ou mixte (légumes avec 20% de céréales)",null,"Pauvre",null,null,"Ail (en sec)","0/20","40/60","60/80",0,"20/40","50/70","70/100",0,20,"60","80","0","40","70",100,"0"]
[null,"Parcelle culturale",null,"N° parcelle",null,null,null,null,null,null,null,null,null,null,null,null,null,null,null,null,null,null,null,null,null,null,null,null,null,null,null,null,null,null,null,null,null,null,null,null,null,null,null,null,null,null,null,null,null,null,null,null,null,"Système endivier ou sol très pauvre en MO (< 2%)",null,"Moyennement riche",null,null,"Ail (en vert) *","0/20","40/60","60/80",0,"20/40","50/70","70/100",0,20,"60","80","0","40","70",100,"0"]
[null,null,null,"Surfaces","SAU",null,null,null,null,null,null,null,null,null,null,null,null,null,null,null,null,null,null,null,null,null,null,null,null,null,null,null,null,null,null,null,null,null,null,null,null,null,null,null,null,null,null,null,null,null,null,null,null,null,null,"Riche",null,null,"Artichaut drageon","20/50","50/70","70/100",0,50,"50/70","70/110",0,50,"70",100,"0","50","70",110,"0"]
[null,null,null,null,"SPE",null,null,null,null,null,null,null,null,null,null,null,null,null,null,null,null,null,null,null,null,null,null,null,null,null,null,null,null,null,null,null,null,null,null,null,null,null,null,null,null,null,null,null,null,null,null,null,null,null,null,null,null,null,"Artichaut 2e année",0,0,0,"60/100",0,0,0,"80/110",0,"0","0",100,"0","0","0",110]
[null,null,null,null,"SNE",null,null,null,null,null,null,null,null,null,null,null,null,null,null,null,null,null,null,null,null,null,null,null,null,null,null,null,null,null,null,null,null,null,null,null,null,null,null,null,null,null,null,null,null,null,null,null,null,null,null,"Artichaut de 2 ans et plus.","Moyennement riche",null,"Artichaut 3e année",0,0,0,"80/120",0,0,0,"90/120",0,"0","0",120,"0","0","0",120]
[null,"Culture",null,"Intitulé",null,null,null,null,null,null,null,null,null,null,null,null,null,null,null,null,null,null,null,null,null,null,null,null,null,null,null,null,null,null,null,null,null,null,null,null,null,null,null,null,null,null,null,null,null,null,null,null,null,null,null,"Brocoli et chou-fleur (récoltés au printpemps)","Riche",null,"Aubergines",0,"40/60","60/90",0,"20/40","40/80","80/110",0,0,"60","90","0","40","80",110,"0"]
[null,null,null,"Objectif de rendement",null,null,null,null,null,null,null,null,null,null,null,null,null,null,null,null,null,null,null,null,null,null,null,null,null,null,null,null,null,null,null,null,null,null,null,null,null,null,null,null,null,null,null,null,null,null,null,null,null,null,null,"Carotte (venant juste avant la nouvelle culture)","Moyennement riche",null,"Betteraves potagères","0/30","30/50","50/80","50 si tardif","20/40","40/60","60/90","50 si tardif",30,"50","80",50,"40","60","90",50]
[null,"Azote efficace à apporter (kg N/ha)",null,null,null,null,null,null,null,null,null,null,null,null,null,null,null,null,null,null,null,null,null,null,null,null,null,null,null,null,null,null,null,null,null,null,null,null,null,null,null,null,null,null,null,null,null,null,null,null,null,null,null,null,null,"Céréales","Pauvre",null,"Brocoli de printemps","50/100","100/130","130/150",0,"60/110","120/140","140/160",0,100,"130","150","0",110,"140","160","0"]
[null,"Correction liée aux outils de pilotage"]
[null,"Azote efficace corrigé à apporter (kg N/ha)",null,null,null,{"$f":"F11+F12","v":0},null,null,null,null,null,null,null,null,null,null,null,null,null,null,null,null,null,null,null,null,null,null,null,null,null,null,null,null,null,null,null,null,null,null,null,null,null,null,null,null,null,null,null,null,null,null,null,null,null,"Chou pommé (faible taux de récolte)","Moyennement riche",null,"Brocoli d’automne","0/40","50/80","100/110",0,"20/60","60/100","100/120",0,40,"80","110","0","60","00","120","0"]
[null,"Apports au semis","Apports de matières organiques \n(au semis)","Apport de matières organiques","Type",null,null,null,null,null,null,null,null,null,null,null,null,null,null,null,null,null,null,null,null,null,null,null,null,null,null,null,null,null,null,null,null,null,null,null,null,null,null,null,null,null,null,null,null,null,null,null,null,null,null,"Chou pommé (fort taux de récolte)","Pauvre",null,"Céleri rave d'automne",0,"0/20","20/40",50,"0/20","20/40","40/60",50,0,"20","40","50","20","40","60","50"]
[null,null,null,null,"Date d'apport",null,null,null,null,null,null,null,null,null,null,null,null,null,null,null,null,null,null,null,null,null,null,null,null,null,null,null,null,null,null,null,null,null,null,null,null,null,null,null,null,null,null,null,null,null,null,null,null,null,null,"Chou-fleur d'hiver","Riche",null,"Chicorées frisées","70/90","90/100","100/100",0,"80/90","90/100","100/120",0,90,"00","100","0","90","00","120","0"]
[null,null,null,null,"Quantité  / ha",null,null,null,null,null,null,null,null,null,null,null,null,null,null,null,null,null,null,null,null,null,null,null,null,null,null,null,null,null,null,null,null,null,null,null,null,null,null,null,null,null,null,null,null,null,null,null,null,null,null,"Choux et brocoli (récoltés à l'automne précédent)","Moyennement riche",null,"Chicorées scaroles","70/90","90/100","100/100",0,"80/90","90/100","100/120",0,90,"00","100","0","90","00","120","0"]
[null,null,null,null,"Valeur N (kg/ha)",0,null,null,null,null,null,null,null,null,null,null,null,null,null,null,null,null,null,null,null,null,null,null,null,null,null,null,null,null,null,null,null,null,null,null,null,null,null,null,null,null,null,null,null,null,null,null,null,null,null,"Couvert végétal (CIPAN) après céréales","Pauvre",null,"Choux de Bruxelles","0/40","40/50","50/80",50,"0/40","40/60","60/90",50,40,"50","80","50","40","60","90","50"]
[null,null,null,"Apport de matières organiques","Type",null,null,null,null,null,null,null,null,null,null,null,null,null,null,null,null,null,null,null,null,null,null,null,null,null,null,null,null,null,null,null,null,null,null,null,null,null,null,null,null,null,null,null,null,null,null,null,null,null,null,"Couvert végétal (CIPAN) après précédent riche","Moyennement riche",null,"Chou-fleur d'été","50/100","100/130","130/150",0,"70/120","120/150","150/170",0,100,"130","150","0",120,"150","170","0"]
[null,null,null,null,"Date d'apport",null,null,null,null,null,null,null,null,null,null,null,null,null,null,null,null,null,null,null,null,null,null,null,null,null,null,null,null,null,null,null,null,null,null,null,null,null,null,null,null,null,null,null,null,null,null,null,null,null,null,"Drageon ","Pauvre",null,"Chou pommé","0/40","40/50","50/80",50,"0/40","40/60","60/90",50,40,"50","80","50","40","60","90","50"]
[null,null,null,null,"Quantité  / ha",null,null,null,null,null,null,null,null,null,null,null,null,null,null,null,null,null,null,null,null,null,null,null,null,null,null,null,null,null,null,null,null,null,null,null,null,null,null,null,null,null,null,null,null,null,null,null,null,null,null,"Échalote (avec plastique)","Moyennement riche",null,"Chou-fleur d’automne","0/40","40/90","100/120",0,"30/60","60/100","100/130",0,40,"90","120","0","60","00","130","0"]
[null,null,null,null,"Valeur N (kg/ha)",0,null,null,null,null,null,null,null,null,null,null,null,null,null,null,null,null,null,null,null,null,null,null,null,null,null,null,null,null,null,null,null,null,null,null,null,null,null,null,null,null,null,null,null,null,null,null,null,null,null,"Échalote (sans plastique)","Pauvre",null,"Chou-fleur d’hiver","0/40","40/80","80/100",50,"30/60","60/100","100/120",50,40,"80",100,"50","60","00","120","50"]
[null,null,null,"Apport de matières organiques","Type",null,null,null,null,null,null,null,null,null,null,null,null,null,null,null,null,null,null,null,null,null,null,null,null,null,null,null,null,null,null,null,null,null,null,null,null,null,null,null,null,null,null,null,null,null,null,null,null,null,null,"Endive et céleri","Pauvre",null,"Chou-fleur tardif","0/40","40/50","50/80","2 fois 50","0/50","50/70","70/100","2 fois 50",40,"50","80",100,"50","70",100,100]
[null,null,null,null,"Date d'apport",null,null,null,null,null,null,null,null,null,null,null,null,null,null,null,null,null,null,null,null,null,null,null,null,null,null,null,null,null,null,null,null,null,null,null,null,null,null,null,null,null,null,null,null,null,null,null,null,null,null,"Épinard et pois (venant juste avant la nouvelle culture)","Moyennement riche",null,"Carotte petite","20/30","30/40","40/70",0,"20/40","40/60","60/90",0,30,"40","70","0","40","60","90","0"]
[null,null,null,null,"Quantité  / ha",null,null,null,null,null,null,null,null,null,null,null,null,null,null,null,null,null,null,null,null,null,null,null,null,null,null,null,null,null,null,null,null,null,null,null,null,null,null,null,null,null,null,null,null,null,null,null,null,null,null,"Haricot (venant juste avant la culture)","Riche",null,"Carotte d’automne","0/30","30/50","50/80","50 si tardif","20/40","40/60","60/90","50 si tardif",30,"50","80",50,"40","60","90",50]
[null,null,null,null,"Valeur N (kg/ha)",0,null,null,null,null,null,null,null,null,null,null,null,null,null,null,null,null,null,null,null,null,null,null,null,null,null,null,null,null,null,null,null,null,null,null,null,null,null,null,null,null,null,null,null,null,null,null,null,null,null,"Oignon - poireau","Pauvre",null,"Courgette d’automne",0,"40/60","60/90",0,"20/40","40/80","80/110",0,0,"60","90","0","40","80",110,"0"]
[null,null,"N efficace total des Matières organiques au semis (kg N/ha)",null,null,{"$f":"F17+F21+F25","v":0},null,null,null,null,null,null,null,null,null,null,null,null,null,null,null,null,null,null,null,null,null,null,null,null,null,null,null,null,null,null,null,null,null,null,null,null,null,null,null,null,null,null,null,null,null,null,null,null,null,"Pâture de 3 ans et plus.","Riche",null,"Echalote","0/20","40/60","60/80",0,"20/40","50/70","70/100",0,20,"60","80","0","40","70",100,"0"]
[null,null,"Apport N minéral prévisionnel (au semis)","Apport d'azote minéral","Type",null,null,null,null,null,null,null,null,null,null,null,null,null,null,null,null,null,null,null,null,null,null,null,null,null,null,null,null,null,null,null,null,null,null,null,null,null,null,null,null,null,null,null,null,null,null,null,null,null,null,"Pomme de terre (récoltée en mai ou juin)","Moyennement riche",null,"Endives racines","0/20","0/30","0/40",0,"0/20","0/30","0/40",0,20,"30","40","0","20","30","40","0"]
[null,null,null,null,"Date d'apport",null,null,null,null,null,null,null,null,null,null,null,null,null,null,null,null,null,null,null,null,null,null,null,null,null,null,null,null,null,null,null,null,null,null,null,null,null,null,null,null,null,null,null,null,null,null,null,null,null,null,"Pomme de terre (récoltée en septembre)","Pauvre",null,"Haricot coco","20/50","50/90","90/100",0,"20/50","60/100","100/120",0,50,"90",100,"0","50","00","120","0"]
[null,null,null,null,"Quantité  / ha",null,null,null,null,null,null,null,null,null,null,null,null,null,null,null,null,null,null,null,null,null,null,null,null,null,null,null,null,null,null,null,null,null,null,null,null,null,null,null,null,null,null,null,null,null,null,null,null,null,null,"Ray-grass annuel fauché","Pauvre",null,"Haricot legume frais","20/50","50/80","80/110",0,"20/50","60/90","90/120",0,50,"80",110,"0","50","90",120,"0"]
[null,null,null,null,"Teneur en N (%)",null,null,null,null,null,null,null,null,null,null,null,null,null,null,null,null,null,null,null,null,null,null,null,null,null,null,null,null,null,null,null,null,null,null,null,null,null,null,null,null,null,null,null,null,null,null,null,null,null,null,"Salade","Pauvre",null,"Fenouil","0/30","30/70","70/90",0,"40/50","50/80","80/100",0,30,"70","90","0","50","80",100,"0"]
[null,null,null,"Apport d'azote minéral","Type",null,null,null,null,null,null,null,null,null,null,null,null,null,null,null,null,null,null,null,null,null,null,null,null,null,null,null,null,null,null,null,null,null,null,null,null,null,null,null,null,null,null,null,null,null,null,null,null,null,null,"Sol nu l'hiver","Pauvre",null,"Laitue de printemps","70/90","90/100","100/100",0,"80/90","90/100","100/120",0,90,"00","100","0","90","00","120","0"]
[null,null,null,null,"Date d'apport",null,null,null,null,null,null,null,null,null,null,null,null,null,null,null,null,null,null,null,null,null,null,null,null,null,null,null,null,null,null,null,null,null,null,null,null,null,null,null,null,null,null,null,null,null,null,null,null,null,null,null,null,null,"Laitue d’été et d’automne","0/30","30/50","50/70",0,"0/30","30/60","60/80",0,30,"50","70","0","30","60","80","0"]
[null,null,null,null,"Quantité  / ha",null,null,null,null,null,null,null,null,null,null,null,null,null,null,null,null,null,null,null,null,null,null,null,null,null,null,null,null,null,null,null,null,null,null,null,null,null,null,null,null,null,null,null,null,null,null,null,null,null,null,null,null,null,"Oignon d’automne",0,0,0,"2 fois 50",0,0,0,"2 fois 50",0,"0","0",100,"0","0","0",100]
[null,null,null,null,"Teneur en N (%)",null,null,null,null,null,null,null,null,null,null,null,null,null,null,null,null,null,null,null,null,null,null,null,null,null,null,null,null,null,null,null,null,null,null,null,null,null,null,null,null,null,null,null,null,null,null,null,null,null,null,null,null,null,"Oignon rosé",0,"0/40","40/60",0,"0/30","30/60","60/80",0,0,"40","60","0","30","60","80","0"]
[null,null,"Total apport N minéral(kg/ha)",null,null,{"$f":"((F29*F30)+(F33*F34))/100","v":0},null,null,null,null,null,null,null,null,null,null,null,null,null,null,null,null,null,null,null,null,null,null,null,null,null,null,null,null,null,null,null,null,null,null,null,null,null,null,null,null,null,null,null,null,null,null,null,null,null,null,null,null,"Panais","0/30","30/50","50/80","50 si tardif","20/40","40/60","60/90","50 si tardif",30,"50","80",50,"40","60","90",50]
[null,"Apports effectifs sur la culture","Apports effectifs de matières organiques","Apport 1","Type",null,null,null,null,null,null,null,null,null,null,null,null,null,null,null,null,null,null,null,null,null,null,null,null,null,null,null,null,null,null,null,null,null,null,null,null,null,null,null,null,null,null,null,null,null,null,null,null,null,null,null,null,null,"Persil"]
[null,null,null,null,"Date d'apport",null,null,null,null,null,null,null,null,null,null,null,null,null,null,null,null,null,null,null,null,null,null,null,null,null,null,null,null,null,null,null,null,null,null,null,null,null,null,null,null,null,null,null,null,null,null,null,null,null,null,null,null,null,"Pomme de terre très précoce","70/90","90/100","100/130",0,"70/90","90/110","110/140",0,90,"00","130","0","90","10","140","0"]
[null,null,null,null,"Quantité  / ha",null,null,null,null,null,null,null,null,null,null,null,null,null,null,null,null,null,null,null,null,null,null,null,null,null,null,null,null,null,null,null,null,null,null,null,null,null,null,null,null,null,null,null,null,null,null,null,null,null,null,null,null,null,"Pomme de terre précoce","100/130","130/140","140/170",0,"110/140","140/150","150/180",0,130,"140","170","0","140","150","180","0"]
[null,null,null,null,"Valeur N (kg/ha)",0,null,null,null,null,null,null,null,null,null,null,null,null,null,null,null,null,null,null,null,null,null,null,null,null,null,null,null,null,null,null,null,null,null,null,null,null,null,null,null,null,null,null,null,null,null,null,null,null,null,null,null,null,"Pommes de terre de consommation","80/100","100/130","130/160",0,"90/120","120/150","150/180",0,100,"130","160","0",120,"150","180","0"]
[null,null,null,"Apport 2","Type",null,null,null,null,null,null,null,null,null,null,null,null,null,null,null,null,null,null,null,null,null,null,null,null,null,null,null,null,null,null,null,null,null,null,null,null,null,null,null,null,null,null,null,null,null,null,null,null,null,null,null,null,null,"Pomme de terre semences","40/70","70/100","100/110",0,"50/70","70/100","100/120",0,70,"00","110","0","70","00","120","0"]
[null,null,null,null,"Date d'apport",null,null,null,null,null,null,null,null,null,null,null,null,null,null,null,null,null,null,null,null,null,null,null,null,null,null,null,null,null,null,null,null,null,null,null,null,null,null,null,null,null,null,null,null,null,null,null,null,null,null,null,null,null,"Poireau d’été","60/100","100/120","120/150",0,"80/110","110/140","140/170",0,100,"120","150","0",110,"140","170","0"]
[null,null,null,null,"Quantité  / ha",null,null,null,null,null,null,null,null,null,null,null,null,null,null,null,null,null,null,null,null,null,null,null,null,null,null,null,null,null,null,null,null,null,null,null,null,null,null,null,null,null,null,null,null,null,null,null,null,null,null,null,null,null,"Poireau d’automne","0/40","40/50","50/70",50,"40/60","60/80","80/90",50,40,"50","70","50","60","80","90","50"]
[null,null,null,null,"Valeur N (kg/ha)",0,null,null,null,null,null,null,null,null,null,null,null,null,null,null,null,null,null,null,null,null,null,null,null,null,null,null,null,null,null,null,null,null,null,null,null,null,null,null,null,null,null,null,null,null,null,null,null,null,null,null,null,null,"Poireau d’hiver","0/40","40/50","50/70","2 fois 50","0/40","40/70","70/90","2 fois 50",40,"50","70",100,"40","70","90",100]
[null,null,null,"Apport 3","Type",null,null,null,null,null,null,null,null,null,null,null,null,null,null,null,null,null,null,null,null,null,null,null,null,null,null,null,null,null,null,null,null,null,null,null,null,null,null,null,null,null,null,null,null,null,null,null,null,null,null,null,null,null,"Radis"]
[null,null,null,null,"Date d'apport",null,null,null,null,null,null,null,null,null,null,null,null,null,null,null,null,null,null,null,null,null,null,null,null,null,null,null,null,null,null,null,null,null,null,null,null,null,null,null,null,null,null,null,null,null,null,null,null,null,null,null,null,null,"Salsifis et scorsonères","0/40","40/80","80/100",50,"30/60","60/100","100/120",50,40,"80",100,"50","60","00","120","50"]
[null,null,null,null,"Quantité  / ha"]
[null,null,null,null,"Valeur N (kg/ha)",0]
[null,null,"N efficace total des Matières organiques",null,null,{"$f":"F39+F43+F47","v":0}]
[null,null,"Apport N minéral effectif","Apport 1","Type"]
[null,null,null,null,"Date d'apport"]
[null,null,null,null,"Quantité / ha"]
[null,null,null,null,"Teneur en azote (%)"]
[null,null,null,"Apport 2","Type"]
[null,null,null,null,"Date d'apport"]
[null,null,null,null,"Quantité / ha"]
[null,null,null,null,"Teneur en azote (%)"]
[null,null,null,"Apport 3","Type"]
[null,null,null,null,"Date d'apport"]
[null,null,null,null,"Quantité / ha"]
[null,null,null,null,"Teneur en azote (%)"]
[null,null,"Apport total N minéral",null,null,{"$f":"(F51*F52+F55*F56+F59*F60)/100","v":0}]
[null,"Ecart entre besoins et fertilisation (kg N/ha)",null,null,null,{"$f":"IF(ISBLANK(F13),0,(F48+F61-F13))","v":0}]
[null,"Date de récolte"]
[null,"Rendement réalisé"]
[null,"Modalités de gestion de l'inter-culture"]
[null,"Modalités de gestion des CIPAN"]
[null,"Modalités de gestion des dérobées"]
[null,"Culture suivante"]

{"sheet":"0PPF Légumes - industries","index":26,"n_rows":48,"n_cols":79,"rows_kept":48,"cut":false,"hidden":true,"merged":[[20,1,45,1],[33,2,44,2],[16,2,17,2],[16,3,16,4],[17,3,17,4],[18,2,18,4],[33,3,36,3],[37,3,40,3],[45,2,45,4],[2,55,2,63],[2,64,2,72],[2,73,2,78],[2,46,3,46],[2,47,3,47],[2,48,3,54],[0,2,0,5],[2,1,3,2],[4,1,7,2],[8,1,11,2],[8,3,8,4],[9,3,9,4],[10,3,10,4],[2,3,2,4],[3,3,3,4],[5,3,7,3],[2,45,3,45],[11,3,11,4],[12,2,15,2],[12,3,12,4],[13,3,13,4],[14,3,14,4],[15,3,15,4],[4,3,4,4],[46,1,46,4],[47,1,47,4],[12,1,18,1],[20,2,31,2],[20,3,23,3],[24,3,27,3],[28,3,31,3],[32,2,32,4],[19,1,19,4],[41,3,44,3]]}
[null,null,"8) Plan Prévisionnel de Fumure\n    « Grille Légumes pour l'industrie »"]
[]
[null,"Ilot",null,"Nom",null,null,null,null,null,null,null,null,null,null,null,null,null,null,null,null,null,null,null,null,null,null,null,null,null,null,null,null,null,null,null,null,null,null,null,null,null,null,null,null,null,"culture","Dose pivot","Rendement référence","Précédent",null,null,null,null,null,null,"Reliquats pré-semis",null,null,null,null,null,null,null,null,"Précédent cultural",null,null,null,null,null,null,null,null,"Apports organiques années antérieures"]
[null,null,null,"Numéro",null,null,null,null,null,null,null,null,null,null,null,null,null,null,null,null,null,null,null,null,null,null,null,null,null,null,null,null,null,null,null,null,null,null,null,null,null,null,null,null,null,null,null,null,null,null,null,null,null,null,null,"Pâture","Epinards","Pois","Haricots","Carottes","Choux","Céréales","Sol nu","RGI, CIPAN, autres","Pâture","Epinards","Pois","haricots","Carottes","Choux","Céréales","Sol nu","RGI, CIPAN, autres","Bovins sur fumier + hors-sol","Bovins sur lisier + hors-sol","Bovins sur fumier","Hors-sol","Bovin sur lisier","Pas de déjection"]
[null,"Parcelle culturale",null,"N° parcelle",null,null,null,null,null,null,null,null,null,null,null,null,null,null,null,null,null,null,null,null,null,null,null,null,null,null,null,null,null,null,null,null,null,null,null,null,null,null,null,null,null,"Grosses carottes",150,80,"Pâture","Epinards","Sol nu","RGI, CIPAN, autres",null,null,null,70,50,null,null,null,null,null,20,10,50,30,null,null,null,null,null,0,15,30,25,25,25,15,0]
[null,null,null,"Surfaces","SAU",null,null,null,null,null,null,null,null,null,null,null,null,null,null,null,null,null,null,null,null,null,null,null,null,null,null,null,null,null,null,null,null,null,null,null,null,null,null,null,null,"Jeunes carottes",110,45,"Pâture","Sol nu","RGI, CIPAN, autres",null,null,null,null,70,null,null,null,null,null,null,20,10,30,null,null,null,null,null,null,0,10,15,10,10,10,5,0]
[null,null,null,null,"SPE",null,null,null,null,null,null,null,null,null,null,null,null,null,null,null,null,null,null,null,null,null,null,null,null,null,null,null,null,null,null,null,null,null,null,null,null,null,null,null,null,"Epinards d'automne",200,20,"Epinards","Pois","Haricots","Carottes","Choux","Céréales",null,null,50,50,50,40,70,20,null,null,null,15,20,25,15,30,0,null,null,10,5,5,5,5,0]
[null,null,null,null,"SNE",null,null,null,null,null,null,null,null,null,null,null,null,null,null,null,null,null,null,null,null,null,null,null,null,null,null,null,null,null,null,null,null,null,null,null,null,null,null,null,null,"Epinards de printemps et d'hiver",250,30,"Pâture","Sol nu","RGI, CIPAN, autres",null,null,null,null,70,null,null,null,null,null,null,20,10,30,null,null,null,null,null,null,0,10,10,5,5,5,5,0]
[null,"Culture",null,"Intitulé",null,null,null,null,null,null,null,null,null,null,null,null,null,null,null,null,null,null,null,null,null,null,null,null,null,null,null,null,null,null,null,null,null,null,null,null,null,null,null,null,null,"Flageolets",180,6.5,"Pâture","Epinards","Pois","Sol nu","RGI, CIPAN, autres",null,null,70,50,50,null,null,null,null,40,20,40,20,30,null,null,null,null,0,10,15,10,10,10,10,0]
[null,null,null,"Objectif de rendement",null,null,null,null,null,null,null,null,null,null,null,null,null,null,null,null,null,null,null,null,null,null,null,null,null,null,null,null,null,null,null,null,null,null,null,null,null,null,null,null,null,"Gros haricots",180,18,"Pâture","Epinards","Pois","Sol nu","RGI, CIPAN, autres",null,null,70,50,50,null,null,null,null,40,20,40,20,30,null,null,null,null,0,10,15,10,10,10,10,0]
[null,null,null,"Rendement de référence",null,{"$f":"IF(ISERROR(VLOOKUP(F9,$AT$5:$AV$11,1,FALSE)),0,VLOOKUP(F9,$AT$5:$AV$11,3,FALSE)) & \" t/ha\"","v":"0 t/ha"},null,null,null,null,null,null,null,null,null,null,null,null,null,null,null,null,null,null,null,null,null,null,null,null,null,null,null,null,null,null,null,null,null,null,null,null,null,null,null,"Haricots très fins et extra fins",160,12,"Pâture","Epinards","Pois","Carottes","Choux","Sol nu","RGI, CIPAN, autres",70,50,50,null,50,50,null,40,20,40,20,30,null,20,30,null,0,10,10,10,10,10,5,0]
[null,null,null,"Dose pivot",null,{"$f":"IF(ISERROR(VLOOKUP(F9,$AT$5:$AV$11,1,FALSE)),0,VLOOKUP(F9,$AT$5:$AV$11,2,FALSE))","v":0}]
[null,"Restitutions\n du sol","Apports antérieurs","Précédent cultural"]
[null,null,null,"Système d'élevage"]
[null,null,null,"Report précédent cultural",null,{"$f":"IF(ISERROR(MATCH(F$9,$AT$5:$AT$11,0)),0,IF(ISERROR(MATCH(F13,$BM$4:$BU$4,0)),0,OFFSET($BM$5,(MATCH(F$9,$AT$5:$AT$11,0)-1),MATCH(F13,$BM$4:$BU$4,0)-1,1,1)))","v":0}]
[null,null,null,"Apports organiques années antérieures",null,{"$f":"IF(ISERROR(MATCH(F$9,$AT$5:$AT$11,0)),0,IF(ISERROR(MATCH(F14,$BV$4:$CA$4,0)),0,OFFSET($BV$5,(MATCH(F$9,$AT$5:$AT$11,0)-1),MATCH(F14,$BV$4:$CA$4,0)-1,1,1)))","v":0}]
[null,null,"Reliquat pré-semis (kgN/ha)","Mesuré sur la parcelle"]
[null,null,null,"Valeur \"grille\"",null,{"$f":"IF(ISERROR(MATCH(F$9,$AT$5:$AT$11,0)),0,IF(ISERROR(MATCH(F13,$BD$4:$BL$4,0)),0,OFFSET($BD$5,(MATCH(F$9,$AT$5:$AT$11,0)-1),MATCH(F13,$BD$4:$BL$4,0)-1,1,1)))","v":0}]
[null,null,"Total contribution apports organiques antérieurs (kgN/ha)",null,null,{"$f":"IF(ISBLANK(F17),F18,F17)+F15+F16","v":0}]
[null,"Dose à apporter (kg N/ha)",null,null,null,{"$f":"IF((F19-F12)>0,(F19-F12),0)","v":0}]
[null,"Apports prévisionnels sur la culture","Apports prévisionnels de matières organiques","Apport 1","Type"]
[null,null,null,null,"Date d'apport"]
[null,null,null,null,"Quantité  / ha"]
[null,null,null,null,"Valeur N (kg/ha)"]
[null,null,null,"Apport 2","Type"]
[null,null,null,null,"Date d'apport"]
[null,null,null,null,"Quantité  / ha"]
[null,null,null,null,"Valeur N (kg/ha)"]
[null,null,null,"Apport 3","Type"]
[null,null,null,null,"Date d'apport"]
[null,null,null,null,"Quantité  / ha"]
[null,null,null,null,"Valeur N (kg/ha)"]
[null,null,"N efficace total des Matières organiques",null,null,{"$f":"F24+F28+F32","v":0}]
[null,null,"Apport N minéral prévisionnel","Apport 1","Type"]
[null,null,null,null,"Date d'apport"]
[null,null,null,null,"Quantité / ha"]
[null,null,null,null,"Teneur en azote (%)"]
[null,null,null,"Apport 2","Type"]
[null,null,null,null,"Date d'apport"]
[null,null,null,null,"Quantité / ha"]
[null,null,null,null,"Teneur en azote (%)"]
[null,null,null,"Apport 3","Type"]
[null,null,null,null,"Date d'apport"]
[null,null,null,null,"Quantité / ha"]
[null,null,null,null,"Teneur en azote (%)"]
[null,null,"Apport total N minéral",null,null,{"$f":"(F36*F37+F40*F41)/100","v":0}]
[null,"Ecart entre besoins et fertilisation (kg N/ha)",null,null,null,{"$f":"(F33+F46)-F20","v":0}]
[null,"Culture suivante"]

{"sheet":"0CF Légumes - industries","index":27,"n_rows":47,"n_cols":79,"rows_kept":47,"cut":false,"hidden":true,"merged":[[2,73,2,78],[2,46,3,46],[2,47,3,47],[2,48,3,54],[9,3,9,4],[2,3,2,4],[3,3,3,4],[5,3,7,3],[2,55,2,63],[2,64,2,72],[22,3,25,3],[10,1,10,4],[13,1,13,4],[11,1,12,2],[11,3,11,4],[0,2,0,5],[2,1,3,2],[4,1,7,2],[8,1,9,2],[8,3,8,4],[14,1,39,1],[27,2,38,2],[27,3,30,3],[31,3,34,3],[39,2,39,4],[2,45,3,45],[4,3,4,4],[14,2,25,2],[14,3,17,3],[18,3,21,3],[12,3,12,4],[46,1,46,4],[41,1,41,4],[44,1,44,4],[45,1,45,4],[26,2,26,4],[35,3,38,3],[42,1,42,4],[43,1,43,4],[40,1,40,4]]}
[null,null,"8) Cahiers de Fertilisation\n    « Grille Légumes pour l'industrie »"]
[]
[null,"Ilot",null,"Nom",null,null,null,null,null,null,null,null,null,null,null,null,null,null,null,null,null,null,null,null,null,null,null,null,null,null,null,null,null,null,null,null,null,null,null,null,null,null,null,null,null,"culture","Dose pivot","Rendement référence","Précédent",null,null,null,null,null,null,"Reliquats pré-semis",null,null,null,null,null,null,null,null,"Précédent cultural",null,null,null,null,null,null,null,null,"Apports organiques années antérieures"]
[null,null,null,"Numéro",null,null,null,null,null,null,null,null,null,null,null,null,null,null,null,null,null,null,null,null,null,null,null,null,null,null,null,null,null,null,null,null,null,null,null,null,null,null,null,null,null,null,null,null,null,null,null,null,null,null,null,"Pâture","Epinards","Pois","Haricots","Carottes","Choux","Céréales","Sol nu","RGI, CIPAN, autres","Pâture","Epinards","Pois","haricots","Carottes","Choux","Céréales","Sol nu","RGI, CIPAN, autres","Bovins sur fumier + hors-sol","Bovins sur lisier + hors-sol","Bovins sur fumier","Hors-sol","Bovin sur lisier","Pas de déjection"]
[null,"Parcelle culturale",null,"N° parcelle",null,null,null,null,null,null,null,null,null,null,null,null,null,null,null,null,null,null,null,null,null,null,null,null,null,null,null,null,null,null,null,null,null,null,null,null,null,null,null,null,null,"Grosses carottes",150,80,"Pâture","Epinards","Sol nu","RGI, CIPAN, autres",null,null,null,70,50,null,null,null,null,null,20,10,50,30,null,null,null,null,null,0,15,30,25,25,25,15,0]
[null,null,null,"Surfaces","SAU",null,null,null,null,null,null,null,null,null,null,null,null,null,null,null,null,null,null,null,null,null,null,null,null,null,null,null,null,null,null,null,null,null,null,null,null,null,null,null,null,"Jeunes carottes",110,45,"Pâture","Sol nu","RGI, CIPAN, autres",null,null,null,null,70,null,null,null,null,null,null,20,10,30,null,null,null,null,null,null,0,10,15,10,10,10,5,0]
[null,null,null,null,"SPE",null,null,null,null,null,null,null,null,null,null,null,null,null,null,null,null,null,null,null,null,null,null,null,null,null,null,null,null,null,null,null,null,null,null,null,null,null,null,null,null,"Epinards d'automne",200,20,"Epinards","Pois","Haricots","Carottes","Choux","Céréales",null,null,50,50,50,40,70,20,null,null,null,15,20,25,15,30,0,null,null,10,5,5,5,5,0]
[null,null,null,null,"SNE",null,null,null,null,null,null,null,null,null,null,null,null,null,null,null,null,null,null,null,null,null,null,null,null,null,null,null,null,null,null,null,null,null,null,null,null,null,null,null,null,"Epinards de printemps et d'hiver",250,30,"Pâture","Sol nu","RGI, CIPAN, autres",null,null,null,null,70,null,null,null,null,null,null,20,10,30,null,null,null,null,null,null,0,10,10,5,5,5,5,0]
[null,"Culture",null,"Intitulé",null,null,null,null,null,null,null,null,null,null,null,null,null,null,null,null,null,null,null,null,null,null,null,null,null,null,null,null,null,null,null,null,null,null,null,null,null,null,null,null,null,"Flageolets",180,6.5,"Pâture","Epinards","Pois","Sol nu","RGI, CIPAN, autres",null,null,70,50,50,null,null,null,null,40,20,40,20,30,null,null,null,null,0,10,15,10,10,10,10,0]
[null,null,null,"Objectif de rendement",null,null,null,null,null,null,null,null,null,null,null,null,null,null,null,null,null,null,null,null,null,null,null,null,null,null,null,null,null,null,null,null,null,null,null,null,null,null,null,null,null,"Gros haricots",180,18,"Pâture","Epinards","Pois","Sol nu","RGI, CIPAN, autres",null,null,70,50,50,null,null,null,null,40,20,40,20,30,null,null,null,null,0,10,15,10,10,10,10,0]
[null,"Dose à apporter Prévisionnelle (kg N/ha)",null,null,null,0]
[null,"Correction",null,"RSH (reliquat sortie d'hiver)"]
[null,null,null,"Correction liée aux outils de pilotage"]
[null,"Dose à apporter corrigée (kg N/ha)",null,null,null,{"$f":"F11+F12+F13","v":0}]
[null,"Apports effectifs sur la culture","Apports effectifs de matières organiques","Apport 1","Type"]
[null,null,null,null,"date d'apport"]
[null,null,null,null,"Quantité  / ha"]
[null,null,null,null,"Valeur N (kg/ha)",0]
[null,null,null,"Apport 2","Type"]
[null,null,null,null,"Date d'apport"]
[null,null,null,null,"Quantité  / ha"]
[null,null,null,null,"Valeur N (kg/ha)",0]
[null,null,null,"Apport 3","Type"]
[null,null,null,null,"Date d'apport"]
[null,null,null,null,"Quantité  / ha"]
[null,null,null,null,"Valeur N (kg/ha)",0]
[null,null,"N efficace total des Matières organiques",null,null,{"$f":"F18+F22+F26","v":0}]
[null,null,"Apport N minéral effectif","Apport 1","Type"]
[null,null,null,null,"Date d'apport"]
[null,null,null,null,"Quantité / ha"]
[null,null,null,null,"Teneur en azote (%)"]
[null,null,null,"Apport 2","Type"]
[null,null,null,null,"Date d'apport"]
[null,null,null,null,"Quantité / ha"]
[null,null,null,null,"Teneur en azote (%)"]
[null,null,null,"Apport 3","Type"]
[null,null,null,null,"Date d'apport"]
[null,null,null,null,"Quantité / ha"]
[null,null,null,null,"Teneur en azote (%)"]
[null,null,"Apport total N minéral",null,null,{"$f":"(F30*F31+F34*F35)/100","v":0}]
[null,"Ecart entre besoins et fertilisation (kg N/ha)",null,null,null,{"$f":"IF(ISBLANK(F14),0,((F27+F40)-F14))","v":0}]
[null,"Date de récolte"]
[null,"Rendement réalisé"]
[null,"Modalités de gestion de l'inter-culture"]
[null,"Modalités de gestion des CIPAN"]
[null,"Modalités de gestion des dérobées"]
[null,"Culture suivante"]

{"sheet":"0PPF Autres cultures","index":28,"n_rows":37,"n_cols":6,"rows_kept":37,"cut":false,"hidden":true,"merged":[[0,2,0,5],[21,3,24,3],[8,3,8,4],[9,3,9,4],[10,3,10,4],[11,3,11,4],[2,3,2,4],[30,3,33,3],[13,2,24,2],[13,3,16,3],[3,3,3,4],[4,3,4,4],[5,3,7,3],[12,3,12,4],[17,3,20,3],[13,1,34,1],[35,1,35,4],[36,1,36,4],[2,1,3,2],[4,1,7,2],[8,1,12,2],[25,2,25,4],[26,2,33,2],[34,2,34,4],[26,3,29,3]]}
[null,null,"8) Plan Prévisionnel de Fumure\n    « Grille autres cultures »"]
[]
[null,"Ilot",null,"Nom"]
[null,null,null,"Numéro"]
[null,"Parcelle culturale",null,"N° parcelle"]
[null,null,null,"Surfaces","SAU"]
[null,null,null,null,"SPE"]
[null,null,null,null,"SNE"]
[null,"Culture",null,"Intitulé"]
[null,null,null,"Objectif de rendement"]
[null,null,null,"Rendement de référence (t/ha)",null,{"$f":"IF(ISERROR(VLOOKUP(F9,Cultures_complet,1,FALSE)),0,VLOOKUP(F9,Cultures_complet,5,FALSE))","v":0}]
[null,null,null,"Dose pivot (kg N/ha)",null,{"$f":"IF(ISERROR(VLOOKUP(F9,Cultures_complet,1,FALSE)),0,VLOOKUP(F9,Cultures_complet,10,FALSE))","v":0}]
[null,null,null,"Dose plafond (kg N/ha)",null,{"$f":"IF(ISERROR(VLOOKUP(F9,Cultures_complet,1,FALSE)),0,VLOOKUP(F9,Cultures_complet,11,FALSE))","v":0}]
[null,"Apports prévisionnels sur la culture","Apports prévisionnels de matières organiques","Apport 1","Type"]
[null,null,null,null,"Date d'apport"]
[null,null,null,null,"Quantité  / ha"]
[null,null,null,null,"Valeur N (kg/ha)"]
[null,null,null,"Apport 2","Type"]
[null,null,null,null,"Date d'apport"]
[null,null,null,null,"Quantité  / ha"]
[null,null,null,null,"Valeur N (kg/ha)"]
[null,null,null,"Apport 3","Type"]
[null,null,null,null,"Date d'apport"]
[null,null,null,null,"Quantité  / ha"]
[null,null,null,null,"Valeur N (kg/ha)"]
[null,null,"N efficace total des Matières organiques",null,null,{"$f":"F17+F21+F25","v":0}]
[null,null,"Apport N minéral prévisionnel","Apport 1","Type"]
[null,null,null,null,"Date d'apport"]
[null,null,null,null,"Quantité / ha"]
[null,null,null,null,"Teneur en azote (%)"]
[null,null,null,"Apport 2","Type"]
[null,null,null,null,"Date d'apport"]
[null,null,null,null,"Quantité / ha"]
[null,null,null,null,"Teneur en azote (%)"]
[null,null,"Apport total N minéral",null,null,{"$f":"(F29*F30+F33*F34)/100","v":0}]
[null,"Ecart entre besoins et fertilisation (kg N/ha)",null,null,null,{"$f":"(F26+F35)-F13","v":0}]
[null,"Culture suivante"]

{"sheet":"0CF Autres cultures","index":29,"n_rows":40,"n_cols":6,"rows_kept":40,"cut":false,"hidden":true,"merged":[[3,3,3,4],[8,1,10,2],[28,3,31,3],[24,3,27,3],[0,2,0,5],[19,3,22,3],[8,3,8,4],[9,3,9,4],[2,3,2,4],[2,1,3,2],[4,3,4,4],[4,1,7,2],[5,3,7,3],[10,3,10,4],[33,1,33,4],[15,3,18,3],[23,2,23,4],[11,2,22,2],[11,1,32,1],[24,2,31,2],[32,2,32,4],[11,3,14,3],[39,1,39,4],[34,1,34,4],[35,1,35,4],[36,1,36,4],[37,1,37,4],[38,1,38,4]]}
[null,null,"8) Cahiers de Fertilisation\n    « Grille autres cultures »"]
[]
[null,"Ilot",null,"Nom"]
[null,null,null,"Numéro"]
[null,"Parcelle culturale",null,"N° parcelle"]
[null,null,null,"Surfaces","SAU"]
[null,null,null,null,"SPE"]
[null,null,null,null,"SNE"]
[null,"Culture",null,"Intitulé"]
[null,null,null,"Objectif de rendement"]
[null,null,null,"Dose plafond (kg N/ha)",null,0]
[null,"Apports effectifs sur la culture","Apports effectifs de matières organiques","Apport 1","Type"]
[null,null,null,null,"Date d'apport"]
[null,null,null,null,"Quantité  / ha"]
[null,null,null,null,"Valeur N (kg/ha)",0]
[null,null,null,"Apport 2","Type"]
[null,null,null,null,"Date d'apport"]
[null,null,null,null,"Quantité  / ha"]
[null,null,null,null,"Valeur N (kg/ha)",0]
[null,null,null,"Apport 3","Type"]
[null,null,null,null,"Date d'apport"]
[null,null,null,null,"Quantité  / ha"]
[null,null,null,null,"Valeur N (kg/ha)",0]
[null,null,"N efficace total des Matières organiques",null,null,{"$f":"F15+F19+F23","v":0}]
[null,null,"Apport N minéral effectif","Apport 1","Type"]
[null,null,null,null,"Date d'apport"]
[null,null,null,null,"Quantité / ha"]
[null,null,null,null,"Teneur en azote (%)"]
[null,null,null,"Apport 2","Type"]
[null,null,null,null,"Date d'apport"]
[null,null,null,null,"Quantité / ha"]
[null,null,null,null,"Teneur en azote (%)"]
[null,null,"Apport total N minéral",null,null,{"$f":"(F27*F28+F31*F32)/100","v":0}]
[null,"Ecart entre besoins et fertilisation (kg N/ha)",null,null,null,{"$f":"IF(ISBLANK(F11),0,((F24+F33)-F11))","v":0}]
[null,"Date de récolte"]
[null,"Rendement réalisé"]
[null,"Modalités de gestion de l'inter-culture"]
[null,"Modalités de gestion des CIPAN"]
[null,"Modalités de gestion des dérobées"]
[null,"Culture suivante"]

{"sheet":"Rendements","index":30,"n_rows":5,"n_cols":9,"rows_kept":5,"cut":false,"hidden":true,"merged":[[2,1,3,8],[0,1,0,7]]}
[null,"7)  Rendements moyens des parcelles de l'exploitation"]
[]
[null,"Parcelles culturales"]
[]
[null,"Nom de l'ilot","N° ilôt","N° parcelle","SAU\n (ha)","SPE\n(ha)","SNE\n(ha)","Type de sol","Profondeur"]